Workbook

Sheet Overview
A2: CDCM Annual Review Pack
A4: Company: | B4: ='CDCM Forecast Data'!E3 -> WPD East Midlands
A5: Date of Issue: | B5: ='CDCM Forecast Data'!E4 -> 2018-01-01
A7: ="Although every effort has been made to ensure the accuracy of the information provided in this annual review pack, " & 'CDCM Forecast Data'!E3 & " does not accept any liability for the accuracy of the information contained herein and, in particular, " & 'CDCM Forecast Data'!E3 & " or any of its employees, shall not be held liable for any misstatement or opinion on which the recipient of this statement relies or seeks to rely." -> Although every effort has been made to ensure the accuracy of the information provided in this annual review pack, WPD East Midlands does not accept any liability for the accuracy of the information contained herein and, in particular, WPD East Midlands or any of its employees, shall not be held liable for any misstatement or opinion on which the recipient of this statement relies or seeks to rely.
A12: Contents:
A14: Sheet Name | B14: Detail
A15: Commentary | B15: This sheet contains the DNO's commentary on the forecast input CDCM data for the forecast over the 5 year period.
A16: CDCM Forecast Data | B16: This sheet contains historical and forecast data for all CDCM inputs except for volume data (table 1053) and matrix of applicability data (table 1025 - 1028). The RPI forecast is seperated out and listed as a standalone assumption. Any forecasts that relate to RPI will be linked to this row. Comments are provided alongside each forecast explaining any assumptions made by the DNO.
A17: Table 1 | B17: This sheet contains the DNO's table 1 produced in accordance with DCUSA Schedule 15 "cost information table".
A18: Mat of App | B18: This sheet contains the forecast CDCM matrix of applicability data (table 1025 - 1028). The default value is that the same matrix will be used for each of the five years.
A19: CDCM Volume Forecasts | B19: This sheet contains forecast CDCM volume data (table 1053). The matrix at the top can be used to apply different growth rates to groups of customers.
A20: CDCM Timebands | B20: Contains the time bands that the DNO plans to use for the coming year and advance warning of any changes.
A21: CDCM Input Sheet (Y) | B21: This sheet contains the CDCM input sheet for base year 0 (Y) in a format that can be copy and pasted (paste-value) into the CDCM spreadsheet model.
A22: CDCM Input Sheet (Y + 1) | B22: This sheet contains the CDCM input sheet for base year +1 (Y+1) in a format that can be copy and pasted (paste-value) into the CDCM spreadsheet model.
A23: CDCM Input Sheet (Y + 2) | B23: This sheet contains the CDCM input sheet for base year +2 (Y+2) in a format that can be copy and pasted (paste-value) into the CDCM spreadsheet model.
A24: CDCM Input Sheet (Y + 3) | B24: This sheet contains the CDCM input sheet for base year +3 (Y+3) in a format that can be copy and pasted (paste-value) into the CDCM spreadsheet model.
A25: CDCM Input Sheet (Y + 4) | B25: This sheet contains the CDCM input sheet for base year +4 (Y+4) in a format that can be copy and pasted (paste-value) into the CDCM spreadsheet model.
A26: Tariffs ARP | B26: This sheet contains the CDCM tariffs that are produced from the CDCM input data, after the Macro on this sheet has been run. It contains the tariffs for each of the 5 years.
A29: This document, model or dataset has been prepared by or for Reckon LLP on the instructions of the DCUSA Panel or
A30: one of its working groups. Only the DCUSA Panel and its working groups have authority to approve this
A31: material as meeting their requirements. Reckon LLP makes no representation about the suitability of this
A32: material for the purposes of complying with any licence conditions or furthering any relevant objective.

Sheet Commentary
B3: ='CDCM Forecast Data'!E3 -> WPD East Midlands

Sheet CDCM Forecast Data
D3: Company: | E3: WPD East Midlands
D4: Date of Issue: | E4: 2018-01-01
D5: Status | E5: ARP
C9: Historical CDCM Input Data (Actuals) | E9: ="CDCM Values - "&E5 -> CDCM Values - ARP | F9: Forecast CDCM Values
B10: Year Ref -> | C10: Y-2 | D10: Y-1 | E10: Y | F10: Y+1 | G10: Y+2 | H10: Y+3 | I10: Y+4
B11: Charging Year -> | C11: 2017/18 | D11: 2018/19 | E11: 2019/20 | F11: 2020/21 | G11: 2021/22 | H11: 2022/23 | I11: 2023/24
B12: DPCR -> | C12: RIIO - ED1 | D12: RIIO - ED1 | E12: RIIO - ED1 | F12: RIIO - ED1 | G12: RIIO - ED1 | H12: RIIO - ED1 | I12: RIIO - ED2 | J12: Assumptions
B13: RPI Forecast: | D13: 0.03479036574 | E13: 0.03103448276 | F13: 0.03177257525 | G13: 0.03079416532 | H13: 0.03144654088 | I13: 0.031
A14: 1 | B14: 1000 Company name, charging year and model version
A15: 2 | B15: Company | C15: =E3 -> WPD East Midlands | D15: =C15 -> WPD East Midlands | E15: =D15 -> WPD East Midlands | F15: WPD East Midlands | G15: WPD East Midlands | H15: WPD East Midlands | I15: WPD East Midlands
A16: 3 | B16: Year | C16: =C11 -> 2017/18 | D16: =D11 -> 2018/19 | E16: 2019/20 | F16: 2020/21 | G16: 2021/22 | H16: 2022/23 | I16: 2023/24
A17: 4 | B17: Version | C17: Finals | D17: Finals | E17: Finals | F17: Forecast | G17: Forecast | H17: Forecast | I17: Forecast
A18: 5 | B18: 1010 Financial and general assumptions
A19: 6 | B19: Rate of return | C19: 0.0431 | D19: 0.0421 | E19: 0.0408 | F19: 0.0421 | G19: 0.0421 | H19: 0.0421 | I19: 0.0421
A20: 7 | B20: Annualisation period (years) | C20: 40 | D20: 40 | E20: 40 | F20: 40 | G20: 40 | H20: 40 | I20: 40
A21: 8 | B21: Power factor | C21: 0.95 | D21: 0.95 | E21: 0.95 | F21: 0.95 | G21: 0.95 | H21: 0.95 | I21: 0.95
A22: 9 | B22: Days in the charging period | C22: 365 | D22: 365 | E22: 366 | F22: 365 | G22: 365 | H22: 365 | I22: 366
A23: 10 | B23: 1017 Diversity allowance between top and bottom of network level
A24: 11 | B24: GSPs | C24: 0.02471374244 | D24: 0.02471374244 | E24: ='[2]CDCM Forecast Data'!E24 -> 0.02471374244 | F24: =E24 -> 0.02471374244 | G24: =F24 -> 0.02471374244 | H24: 0.02471374244 | I24: 0.02471374244
A25: 12 | B25: 132kV | C25: 0.04501347824 | D25: 0.04501347824 | E25: ='[2]CDCM Forecast Data'!E25 -> 0.04501347824 | F25: =E25 -> 0.04501347824 | G25: 0.04501347824 | H25: 0.04501347824 | I25: 0.04501347824
A26: 13 | B26: EHV | C26: 0.07901764269 | D26: 0.07901764269 | E26: ='[2]CDCM Forecast Data'!E26 -> 0.07901764269 | F26: 0.07901764269 | G26: 0.07901764269 | H26: 0.07901764269 | I26: 0.07901764269
A27: 14 | B27: HV | C27: 0.34 | D27: 0.34 | E27: ='[2]CDCM Forecast Data'!E27 -> 0.34 | F27: 0.34 | G27: 0.34 | H27: 0.34 | I27: 0.34
A28: 15 | B28: 1018 Proportion of relevant load going through 132kV/HV direct transformation | C28: 0.07504434271 | D28: 0.07504434271 | E28: ='[2]CDCM Forecast Data'!E28 -> 0.07504434271 | F28: 0.07504434271 | G28: 0.07504434271 | H28: 0.07504434271 | I28: 0.07504434271
A29: 16 | B29: 1019 Network model GSP demand (MW) | C29: 500 | D29: 500 | E29: ='[2]CDCM Forecast Data'!E29 -> 500 | F29: 500 | G29: 500 | H29: 500 | I29: 500
A30: 17 | B30: 1020 Gross asset cost by network level (£)
A31: 18 | B31: 132kV | C31: 55958407.75 | D31: 57679128.79 | E31: 56518353.98 | F31: =E31*(1+F$13) -> 58314087.63 | G31: 60109821.29 | H31: 62000067.24 | I31: 63922069.32
A32: 19 | B32: 132kV/EHV | C32: 28164838.67 | D32: 29030907.45 | E32: 28721335.71 | F32: 29633886.51 | G32: 30546437.31 | H32: 31507017.1 | I32: 32483734.63
A33: 20 | B33: EHV | C33: 34330453.65 | D33: 35386115.1 | E33: 35107370.34 | F33: 36222821.91 | G33: 37338273.48 | H33: 38512433.02 | I33: 39706318.44
A34: 21 | B34: EHV/HV | C34: 55627383.38 | D34: 57337925.42 | E34: 56993035.86 | F34: 58803851.38 | G34: 60614666.91 | H34: 62520788.51 | I34: 64458932.95
A35: 22 | B35: 132kV/HV | C35: 4677230.051 | D35: 4821054.875 | E35: 4780051.294 | F35: 4931925.834 | G35: 5083800.373 | H35: 5243668.31 | I35: 5406222.027
A36: 23 | B36: HV | C36: 139133043.3 | D36: 143411384.4 | E36: 135229188.2 | F36: 139525767.8 | G36: 143822347.3 | H36: 148345062.6 | I36: 152943759.6
A37: 24 | B37: HV/LV | C37: 59090390.25 | D37: 60907419.75 | E37: 61125988.26 | F37: 63068118.32 | G37: 65010248.38 | H37: 67054595.81 | I37: 69133288.28
A38: 25 | B38: LV circuits | C38: 116606719.2 | D38: 120192375.8 | E38: 118958510.7 | F38: 122738128.9 | G38: 126517747.1 | H38: 130496292.6 | I38: 134541677.7
A39: 26 | B39: 1022 LV service model asset cost (£)
A40: 27 | B40: LV service model 1 | C40: 5262.160904 | D40: 5423.972352 | E40: 4357.3283 | F40: =E40*(1+F$13) -> 4495.771841 | G40: 4634.215383 | H40: 4779.945426 | I40: 4928.123734
A41: 28 | B41: LV service model 2 | C41: 591.9404912 | D41: 610.1426613 | E41: 664.3320883 | F41: 685.4396296 | G41: 706.5471709 | H41: 728.7656354 | I41: 751.3573701
A42: 29 | B42: LV service model 3 | C42: 720.6833308 | D42: 742.8443432 | E42: 768.3550333 | F42: 792.7676514 | G42: 817.1802696 | H42: 842.8777623 | I42: 869.006973
A43: 30 | B43: LV service model 4 | C43: 534.4731483 | D43: 550.9081976 | E43: 557.61394 | F43: 575.3307709 | G43: 593.0476017 | H43: 611.6968974 | I43: 630.6595012
A44: 31 | B44: LV service model 5 | C44: 1214.976409 | D44: 1252.336934 | E44: 1230.218011 | F44: 1269.305205 | G44: 1308.392399 | H44: 1349.536814 | I44: 1391.372456
A45: 32 | B45: LV service model 6 | C45: 935.7907338 | D45: 964.5662989 | E45: 960.3594 | F45: 990.8724913 | G45: 1021.385583 | H45: 1053.504626 | I45: 1086.163269
A46: 33 | B46: LV service model 7 | C46: 0 | D46: 0 | E46: 0 | F46: 0 | G46: 0 | H46: 0 | I46: 0
A47: 34 | B47: LV service model 8 | C47: 489.4240134 | D47: 504.4738018 | E47: 525.61262 | F47: 542.3126865 | G47: 559.012753 | H47: 576.5917704 | I47: 594.4661153
A48: 35 | B48: 1023 HV service model asset cost (£)
A49: 36 | B49: HV service model 1 | C49: 9284.129939 | D49: 9569.616935 | E49: 10371.62568 | F49: =E49*(1+F$13) -> 10701.15894 | G49: 11030.69219 | H49: 11377.56931 | I49: 11730.27396
A50: 37 | B50: HV service model 2 | C50: 4476.192672 | D50: 4613.835597 | E50: 4264 | F50: 4399.478261 | G50: 4534.956522 | H50: 4677.565217 | I50: 4822.569739
A51: 38 | B51: HV service model 3 | C51: 0 | D51: 0 | E51: ='[2]CDCM Forecast Data'!E51 -> 0 | F51: 0 | G51: 0 | H51: 0 | I51: 0
A52: 39 | B52: HV service model 4 | C52: 0 | D52: 0 | E52: ='[2]CDCM Forecast Data'!E52 -> 0 | F52: 0 | G52: 0 | H52: 0 | I52: 0
A53: 40 | B53: HV service model 5 | C53: 0 | D53: 0 | E53: ='[2]CDCM Forecast Data'!E53 -> 0 | F53: 0 | G53: 0 | H53: 0 | I53: 0
A54: 41 | B54: 1025 Matrix of applicability of LV service models to tariffs with fixed charges
A55: 42 | B55: 1026 Matrix of applicability of LV service models to unmetered tariffs
A56: 43 | B56: 1028 Matrix of applicability of HV service models to tariffs with fixed charges
A57: 44 | B57: 1032 Loss adjustment factors to transmission
A58: 45 | B58: 132kV | C58: 1.002 | D58: 1.002 | E58: 1.002 | F58: =E58 -> 1.002 | G58: 1.002 | H58: 1.002 | I58: 1.002
A59: 46 | B59: 132kV/EHV | C59: 1.007 | D59: 1.008 | E59: 1.008 | F59: 1.008 | G59: 1.008 | H59: 1.008 | I59: 1.008
A60: 47 | B60: EHV | C60: 1.01 | D60: 1.01 | E60: 1.01 | F60: 1.01 | G60: 1.01 | H60: 1.01 | I60: 1.01
A61: 48 | B61: EHV/HV | C61: 1.018 | D61: 1.018 | E61: 1.018 | F61: 1.018 | G61: 1.018 | H61: 1.018 | I61: 1.018
A62: 49 | B62: HV | C62: 1.034 | D62: 1.034 | E62: 1.034 | F62: 1.034 | G62: 1.034 | H62: 1.034 | I62: 1.034
A63: 50 | B63: HV/LV | C63: 1.053 | D63: 1.05 | E63: 1.05 | F63: 1.05 | G63: 1.05 | H63: 1.05 | I63: 1.05
A64: 51 | B64: LV circuits | C64: 1.093 | D64: 1.08 | E64: 1.08 | F64: 1.08 | G64: 1.08 | H64: 1.08 | I64: 1.08
A65: 52 | B65: 1037 Embedded network (LDNO) discounts
A66: 53 | B66: LDNO LV: LV user | C66: 0.3012216499 | D66: 0.3014472644 | E66: 0.3003526752 | F66: =E66 -> 0.3003526752 | G66: 0.3003526752 | H66: 0.3003526752 | I66: 0.3003526752
A67: 54 | B67: LDNO HV: LV user | C67: 0.4882031939 | D67: 0.4813124308 | E67: 0.4781813948 | F67: 0.4781813948 | G67: 0.4781813948 | H67: 0.4781813948 | I67: 0.4781813948
A68: 55 | B68: LDNO HV: LV sub user | C68: 0.258456414 | D68: 0.2484184575 | E68: 0.2436374369 | F68: 0.2436374369 | G68: 0.2436374369 | H68: 0.2436374369 | I68: 0.2436374369
A69: 56 | B69: LDNO HV: HV user | C69: 0.1594889774 | D69: 0.1480503478 | E69: 0.142496875 | F69: 0.142496875 | G69: 0.142496875 | H69: 0.142496875 | I69: 0.142496875
A70: 57 | B70: 1041 Load profile data for demand users: coincidence factor
A71: 58 | B71: Domestic Unrestricted | C71: 0.8514863565 | D71: 0.8540031844 | E71: ='Smoothed Input Details'!E15 -> 0.8624074107 | F71: =E71 -> 0.8624074107 | G71: 0.8624074107 | H71: 0.8624074107 | I71: 0.8624074107
A72: 59 | B72: Domestic Two Rate | C72: 0.8643840665 | D72: 0.8579263259 | E72: ='Smoothed Input Details'!E16 -> 0.8603473111 | F72: 0.8603473111 | G72: 0.8603473111 | H72: 0.8603473111 | I72: 0.8603473111
A73: 60 | B73: Domestic Off Peak (related MPAN) | C73: 0
A74: 61 | B74: Small Non Domestic Unrestricted | C74: 0.6910319573 | D74: 0.6988932684 | E74: ='Smoothed Input Details'!E18 -> 0.723249365 | F74: =E74 -> 0.723249365 | G74: 0.723249365 | H74: 0.723249365 | I74: 0.723249365
A75: 62 | B75: Small Non Domestic Two Rate | C75: 0.8283087356 | D75: 0.8430386177 | E75: ='Smoothed Input Details'!E19 -> 0.8624062199 | F75: 0.8624062199 | G75: 0.8624062199 | H75: 0.8624062199 | I75: 0.8624062199
A76: 63 | B76: Small Non Domestic Off Peak (related MPAN) | C76: 0
A77: 64 | B77: LV Medium Non-Domestic | C77: 0.8306754375 | D77: 0.8412277878 | E77: ='Smoothed Input Details'!E21 -> 0.8412277878 | F77: =E77 -> 0.8412277878 | G77: 0.8412277878 | H77: 0.8412277878 | I77: 0.8412277878
A78: 65 | B78: LV Sub Medium Non-Domestic | C78: 0.8306754375 | D78: 0.8412277878 | E78: ='Smoothed Input Details'!E22 -> 0.8412277878 | F78: 0.8412277878 | G78: 0.8412277878 | H78: 0.8412277878 | I78: 0.8412277878
A79: 66 | B79: HV Medium Non-Domestic | C79: 0.7589336675 | D79: 0.7888674972 | E79: ='Smoothed Input Details'!E23 -> 0.7888674972 | F79: 0.7888674972 | G79: 0.7888674972 | H79: 0.7888674972 | I79: 0.7888674972
A80: 67 | B80: LV Network Domestic | C80: 0.8562628109 | D80: 0.8554560552 | E80: ='Smoothed Input Details'!E24 -> 0.8616444867 | F80: 0.8616444867 | G80: 0.8616444867 | H80: 0.8616444867 | I80: 0.8616444867
A81: 68 | B81: LV Network Non-Domestic Non-CT | C81: 0.7544389769 | D81: 0.7654728246 | E81: ='Smoothed Input Details'!E25 -> 0.7875247765 | F81: 0.7875247765 | G81: 0.7875247765 | H81: 0.7875247765 | I81: 0.7875247765
A82: 69 | B82: LV HH Metered | C82: 0.8274659305 | D82: 0.820865216 | E82: ='Smoothed Input Details'!E26 -> 0.820865216 | F82: 0.820865216 | G82: 0.820865216 | H82: 0.820865216 | I82: 0.820865216
A83: 70 | B83: LV Sub HH Metered | C83: 0.8175646526 | D83: 0.825322577 | E83: ='Smoothed Input Details'!E27 -> 0.8402686756 | F83: 0.8402686756 | G83: 0.8402686756 | H83: 0.8402686756 | I83: 0.8402686756
A84: 71 | B84: HV HH Metered | C84: 0.8591425459 | D84: 0.8505350086 | E84: ='Smoothed Input Details'!E28 -> 0.8476012159 | F84: 0.8476012159 | G84: 0.8476012159 | H84: 0.8476012159 | I84: 0.8476012159
A85: 72 | B85: NHH UMS category A | C85: 1 | D85: 1 | E85: ='Smoothed Input Details'!E29 -> 1 | F85: 1 | G85: 1 | H85: 1 | I85: 1
A86: 73 | B86: NHH UMS category B | C86: 1 | D86: 1 | E86: ='Smoothed Input Details'!E30 -> 1 | F86: 1 | G86: 1 | H86: 1 | I86: 1
A87: 74 | B87: NHH UMS category C | C87: 1 | D87: 1 | E87: ='Smoothed Input Details'!E31 -> 1 | F87: 1 | G87: 1 | H87: 1 | I87: 1
A88: 75 | B88: NHH UMS category D | C88: 0.005077658303 | D88: 0.005362102748 | E88: ='Smoothed Input Details'!E32 -> 0.005362102748 | F88: 0.005362102748 | G88: 0.005362102748 | H88: 0.005362102748 | I88: 0.005362102748
A89: 76 | B89: LV UMS (Pseudo HH Metered) | C89: 0.978481666 | D89: 0.9719073685 | E89: ='Smoothed Input Details'!E33 -> 0.9507957642 | F89: 0.9507957642 | G89: 0.9507957642 | H89: 0.9507957642 | I89: 0.9507957642
A90: 77 | B90: 1041 Load profile data for demand users: load factor
A91: 78 | B91: Domestic Unrestricted | C91: 0.4191046303 | D91: 0.4200972173 | E91: ='Smoothed Input Details'!E42 -> 0.416237105 | F91: =E91 -> 0.416237105 | G91: 0.416237105 | H91: 0.416237105 | I91: 0.416237105
A92: 79 | B92: Domestic Two Rate | C92: 0.5139525577 | D92: 0.5120194239 | E92: ='Smoothed Input Details'!E43 -> 0.5028096693 | F92: 0.5028096693 | G92: 0.5028096693 | H92: 0.5028096693 | I92: 0.5028096693
A93: 80 | B93: Domestic Off Peak (related MPAN) | C93: 0.1497940848 | D93: 0.1514383645 | E93: ='Smoothed Input Details'!E44 -> 0.1479037568 | F93: 0.1479037568 | G93: 0.1479037568 | H93: 0.1479037568 | I93: 0.1479037568
A94: 81 | B94: Small Non Domestic Unrestricted | C94: 0.3854798955 | D94: 0.3846632801 | E94: ='Smoothed Input Details'!E45 -> 0.3753258856 | F94: 0.3753258856 | G94: 0.3753258856 | H94: 0.3753258856 | I94: 0.3753258856
A95: 82 | B95: Small Non Domestic Two Rate | C95: 0.5516824487 | D95: 0.5488185314 | E95: ='Smoothed Input Details'!E46 -> 0.5342406539 | F95: 0.5342406539 | G95: 0.5342406539 | H95: 0.5342406539 | I95: 0.5342406539
A96: 83 | B96: Small Non Domestic Off Peak (related MPAN) | C96: 0.2358765967 | D96: 0.2402211358 | E96: ='Smoothed Input Details'!E47 -> 0.2427877725 | F96: 0.2427877725 | G96: 0.2427877725 | H96: 0.2427877725 | I96: 0.2427877725
A97: 84 | B97: LV Medium Non-Domestic | C97: 0.5309357927 | D97: 0.5266769045 | E97: ='Smoothed Input Details'!E48 -> 0.5266769045 | F97: 0.5266769045 | G97: 0.5266769045 | H97: 0.5266769045 | I97: 0.5266769045
A98: 85 | B98: LV Sub Medium Non-Domestic | C98: 0.5309357927 | D98: 0.5266769045 | E98: ='Smoothed Input Details'!E49 -> 0.5266769045 | F98: 0.5266769045 | G98: 0.5266769045 | H98: 0.5266769045 | I98: 0.5266769045
A99: 86 | B99: HV Medium Non-Domestic | C99: 0.4816402402 | D99: 0.4919974796 | E99: ='Smoothed Input Details'!E50 -> 0.4919974796 | F99: 0.4919974796 | G99: 0.4919974796 | H99: 0.4919974796 | I99: 0.4919974796
A100: 87 | B100: LV Network Domestic | C100: 0.4497016064 | D100: 0.4496365113 | E100: ='Smoothed Input Details'!E51 -> 0.4438295579 | F100: 0.4438295579 | G100: 0.4438295579 | H100: 0.4438295579 | I100: 0.4438295579
A101: 88 | B101: LV Network Non-Domestic Non-CT | C101: 0.4613314551 | D101: 0.4595939196 | E101: ='Smoothed Input Details'!E52 -> 0.4478939551 | F101: 0.4478939551 | G101: 0.4478939551 | H101: 0.4478939551 | I101: 0.4478939551
A102: 89 | B102: LV HH Metered | C102: 0.5602576597 | D102: 0.5584288623 | E102: ='Smoothed Input Details'!E53 -> 0.5584288623 | F102: 0.5584288623 | G102: 0.5584288623 | H102: 0.5584288623 | I102: 0.5584288623
A103: 90 | B103: LV Sub HH Metered | C103: 0.5625244128 | D103: 0.5749636481 | E103: ='Smoothed Input Details'!E54 -> 0.5790756672 | F103: 0.5790756672 | G103: 0.5790756672 | H103: 0.5790756672 | I103: 0.5790756672
A104: 91 | B104: HV HH Metered | C104: 0.7144445763 | D104: 0.711030497 | E104: ='Smoothed Input Details'!E55 -> 0.7141076062 | F104: 0.7141076062 | G104: 0.7141076062 | H104: 0.7141076062 | I104: 0.7141076062
A105: 92 | B105: NHH UMS category A | C105: 1 | D105: 1 | E105: ='Smoothed Input Details'!E56 -> 1 | F105: 1 | G105: 1 | H105: 1 | I105: 1
A106: 93 | B106: NHH UMS category B | C106: 0.472351086 | D106: 0.4724710832 | E106: ='Smoothed Input Details'!E57 -> 0.4727080734 | F106: 0.4727080734 | G106: 0.4727080734 | H106: 0.4727080734 | I106: 0.4727080734
A107: 94 | B107: NHH UMS category C | C107: 0.2407569902 | D107: 0.2328554362 | E107: ='Smoothed Input Details'!E58 -> 0.2433937156 | F107: =E107 -> 0.2433937156 | G107: 0.2433937156 | H107: 0.2433937156 | I107: 0.2433937156
A108: 95 | B108: NHH UMS category D | C108: 0.5137925654 | D108: 0.5115005547 | E108: ='Smoothed Input Details'!E59 -> 0.5115869751 | F108: 0.5115869751 | G108: 0.5115869751 | H108: 0.5115869751 | I108: 0.5115869751
A109: 96 | B109: LV UMS (Pseudo HH Metered) | C109: 0.4600010424 | D109: 0.4478670433 | E109: ='Smoothed Input Details'!E60 -> 0.4416089679 | F109: 0.4416089679 | G109: 0.4416089679 | H109: 0.4416089679 | I109: 0.4416089679
A110: 97 | B110: 1053. Volume forecasts for the charging year
A111: 98 | B111: 1055 Transmission exit charges (£/year) | C111: 11765728.37 | D111: 11739385.59 | E111: 12361557.29 | F111: 13075155.8 | G111: 14342754.31 | H111: 16132024.32 | I111: =H111*(1+I$13) -> 16632117.08
A112: 99 | B112: 1059 Other Expenditure (£/year)
A113: 100 | B113: Direct cost (£/year) | C113: 24217737.45 | D113: 32530260.7 | E113: 34760356.96 | F113: =E113*(1+F$13) -> 35864783.02 | G113: =F113*(1+G$13) -> 36969209.08 | H113: =G113*(1+H$13) -> 38131762.82 | I113: 39313847.47
A114: 101 | B114: Indirect cost (£/year) | C114: 109692210.6 | D114: 115748659 | E114: 123377417.7 | F114: 127297436 | G114: 131217454.3 | H114: 135343789.3 | I114: 139539446.8
A115: 102 | B115: Indirect cost proportion | C115: 0.6 | D115: 0.6 | E115: ='[2]CDCM Forecast Data'!E115 -> 0.6 | F115: ='[2]CDCM Forecast Data'!F115 -> 0.6 | G115: ='[2]CDCM Forecast Data'!G115 -> 0.6 | H115: ='[2]CDCM Forecast Data'!H115 -> 0.6 | I115: ='[2]CDCM Forecast Data'!I115 -> 0.6
A116: 103 | B116: Network rates (£/year) | C116: 42938905.55 | D116: 35308717.16 | E116: 34760396.18 | F116: 33894095.56 | G116: 33377951.12 | H116: 32354179.52 | I116: =H116*(1+I$13) -> 33357159.09
A117: 104 | B117: 1060 Customer contributions under current connection charging policy
A118: 105 | B118: LV network
A119: 106 | B119: Assets 132kV | C119: 0 | D119: 0 | E119: ='[2]CDCM Forecast Data'!E119 -> 0 | F119: =E119 -> 0 | G119: 0 | H119: 0 | I119: 0
A120: 107 | B120: Assets 132kV/EHV | C120: 0 | D120: 0 | E120: ='[2]CDCM Forecast Data'!E120 -> 0 | F120: 0 | G120: 0 | H120: 0 | I120: 0
A121: 108 | B121: Assets EHV | C121: 0 | D121: 0 | E121: ='[2]CDCM Forecast Data'!E121 -> 0 | F121: 0 | G121: 0 | H121: 0 | I121: 0
A122: 109 | B122: Assets EHV/HV | C122: 0 | D122: 0 | E122: ='[2]CDCM Forecast Data'!E122 -> 0 | F122: 0 | G122: 0 | H122: 0 | I122: 0
A123: 110 | B123: Assets 132kV/HV | C123: 0 | D123: 0 | E123: ='[2]CDCM Forecast Data'!E123 -> 0 | F123: 0 | G123: 0 | H123: 0 | I123: 0
A124: 111 | B124: Assets HV | C124: 0.479133519 | D124: 0.479133519 | E124: ='[2]CDCM Forecast Data'!E124 -> 0.479133519 | F124: 0.479133519 | G124: 0.479133519 | H124: 0.479133519 | I124: 0.479133519
A125: 112 | B125: Assets HV/LV | C125: 0.7089238456 | D125: 0.7089238456 | E125: ='[2]CDCM Forecast Data'!E125 -> 0.7089238456 | F125: 0.7089238456 | G125: 0.7089238456 | H125: 0.7089238456 | I125: 0.7089238456
A126: 113 | B126: Assets LV circuits | C126: 0.9387141723 | D126: 0.9387141723 | E126: ='[2]CDCM Forecast Data'!E126 -> 0.9387141723 | F126: 0.9387141723 | G126: 0.9387141723 | H126: 0.9387141723 | I126: 0.9387141723
A127: 114 | B127: LV substation
A128: 115 | B128: Assets 132kV | C128: 0 | D128: 0 | E128: ='[2]CDCM Forecast Data'!E128 -> 0 | F128: =E128 -> 0 | G128: 0 | H128: 0 | I128: 0
A129: 116 | B129: Assets 132kV/EHV | C129: 0 | D129: 0 | E129: ='[2]CDCM Forecast Data'!E129 -> 0 | F129: 0 | G129: 0 | H129: 0 | I129: 0
A130: 117 | B130: Assets EHV | C130: 0 | D130: 0 | E130: ='[2]CDCM Forecast Data'!E130 -> 0 | F130: 0 | G130: 0 | H130: 0 | I130: 0
A131: 118 | B131: Assets EHV/HV | C131: 0 | D131: 0 | E131: ='[2]CDCM Forecast Data'!E131 -> 0 | F131: 0 | G131: 0 | H131: 0 | I131: 0
A132: 119 | B132: Assets 132kV/HV | C132: 0 | D132: 0 | E132: ='[2]CDCM Forecast Data'!E132 -> 0 | F132: 0 | G132: 0 | H132: 0 | I132: 0
A133: 120 | B133: Assets HV | C133: 0.479133519 | D133: 0.479133519 | E133: ='[2]CDCM Forecast Data'!E133 -> 0.479133519 | F133: 0.479133519 | G133: 0.479133519 | H133: 0.479133519 | I133: 0.479133519
A134: 121 | B134: Assets HV/LV | C134: 0.7089238456 | D134: 0.7089238456 | E134: ='[2]CDCM Forecast Data'!E134 -> 0.7089238456 | F134: 0.7089238456 | G134: 0.7089238456 | H134: 0.7089238456 | I134: 0.7089238456
A135: 122 | B135: HV network
A136: 123 | B136: Assets 132kV | C136: 0 | D136: 0 | E136: ='[2]CDCM Forecast Data'!E136 -> 0 | F136: =E136 -> 0 | G136: 0 | H136: 0 | I136: 0
A137: 124 | B137: Assets 132kV/EHV | C137: 0 | D137: 0 | E137: ='[2]CDCM Forecast Data'!E137 -> 0 | F137: 0 | G137: 0 | H137: 0 | I137: 0
A138: 125 | B138: Assets EHV | C138: 0.06542004956 | D138: 0.06542004956 | E138: ='[2]CDCM Forecast Data'!E138 -> 0.06542004956 | F138: 0.06542004956 | G138: 0.06542004956 | H138: 0.06542004956 | I138: 0.06542004956
A139: 126 | B139: Assets EHV/HV | C139: 0.3516296229 | D139: 0.3516296229 | E139: ='[2]CDCM Forecast Data'!E139 -> 0.3516296229 | F139: 0.3516296229 | G139: 0.3516296229 | H139: 0.3516296229 | I139: 0.3516296229
A140: 127 | B140: Assets 132kV/HV | C140: 0.3516296229 | D140: 0.3516296229 | E140: ='[2]CDCM Forecast Data'!E140 -> 0.3516296229 | F140: 0.3516296229 | G140: 0.3516296229 | H140: 0.3516296229 | I140: 0.3516296229
A141: 128 | B141: Assets HV | C141: 0.6378391962 | D141: 0.6378391962 | E141: ='[2]CDCM Forecast Data'!E141 -> 0.6378391962 | F141: 0.6378391962 | G141: 0.6378391962 | H141: 0.6378391962 | I141: 0.6378391962
A142: 129 | B142: HV substation
A143: 130 | B143: Assets 132kV | C143: 0 | D143: 0 | E143: ='[2]CDCM Forecast Data'!E143 -> 0 | F143: =E143 -> 0 | G143: 0 | H143: 0 | I143: 0
A144: 131 | B144: Assets 132kV/EHV | C144: 0 | D144: 0 | E144: ='[2]CDCM Forecast Data'!E144 -> 0 | F144: 0 | G144: 0 | H144: 0 | I144: 0
A145: 132 | B145: Assets EHV | C145: 0.06542004956 | D145: 0.06542004956 | E145: ='[2]CDCM Forecast Data'!E145 -> 0.06542004956 | F145: 0.06542004956 | G145: 0.06542004956 | H145: 0.06542004956 | I145: 0.06542004956
A146: 133 | B146: Assets EHV/HV | C146: 0.3516296229 | D146: 0.3516296229 | E146: ='[2]CDCM Forecast Data'!E146 -> 0.3516296229 | F146: 0.3516296229 | G146: 0.3516296229 | H146: 0.3516296229 | I146: 0.3516296229
A147: 134 | B147: 1061 Average split of rate 1 units by distribution time band
A148: 135 | B148: RED
A149: 136 | B149: Domestic Unrestricted | C149: 0.1517518132 | D149: 0.1521337222 | E149: ='Smoothed Input Details'!K70 -> 0.143203378 | F149: =E149 -> 0.143203378 | G149: 0.143203378 | H149: 0.143203378 | I149: 0.143203378
A150: 137 | B150: Domestic Two Rate | C150: 0.1498893099 | D150: 0.1511805905 | E150: ='Smoothed Input Details'!K71 -> 0.1514252192 | F150: 0.1514252192 | G150: 0.1514252192 | H150: 0.1514252192 | I150: 0.1514252192
A151: 138 | B151: Domestic Off Peak (related MPAN) | C151: 0.04506632487 | D151: 0.04494814539 | E151: ='Smoothed Input Details'!K72 -> 0.04481535976 | F151: 0.04481535976 | G151: 0.04481535976 | H151: 0.04481535976 | I151: 0.04481535976
A152: 139 | B152: Small Non Domestic Unrestricted | C152: 0.131971395 | D152: 0.1324646967 | E152: ='Smoothed Input Details'!K73 -> 0.1244895525 | F152: 0.1244895525 | G152: 0.1244895525 | H152: 0.1244895525 | I152: 0.1244895525
A153: 140 | B153: Small Non Domestic Two Rate | C153: 0.1255934352 | D153: 0.1267355925 | E153: ='Smoothed Input Details'!K74 -> 0.1278998977 | F153: 0.1278998977 | G153: 0.1278998977 | H153: 0.1278998977 | I153: 0.1278998977
A154: 141 | B154: Small Non Domestic Off Peak (related MPAN) | C154: 0.01688353941 | D154: 0.01670589091 | E154: ='Smoothed Input Details'!K75 -> 0.01666274693 | F154: 0.01666274693 | G154: 0.01666274693 | H154: 0.01666274693 | I154: 0.01666274693
A155: 142 | B155: LV Medium Non-Domestic | C155: 0.1352322848 | D155: 0.135788091 | E155: ='Smoothed Input Details'!K76 -> 0.1357871475 | F155: 0.1357871475 | G155: 0.1357871475 | H155: 0.1357871475 | I155: 0.1357871475
A156: 143 | B156: LV Sub Medium Non-Domestic | C156: 0.1338159989 | D156: 0.1337271153 | E156: ='Smoothed Input Details'!K77 -> 0.1339689491 | F156: 0.1339689491 | G156: 0.1339689491 | H156: 0.1339689491 | I156: 0.1339689491
A157: 144 | B157: HV Medium Non-Domestic | C157: 0.1339102609 | D157: 0.1337479844 | E157: ='Smoothed Input Details'!K78 -> 0.1334124684 | F157: 0.1334124684 | G157: 0.1334124684 | H157: 0.1334124684 | I157: 0.1334124684
A158: 145 | B158: AMBER
A159: 146 | B159: Domestic Unrestricted | C159: 0.4186355459 | D159: 0.4202220417 | E159: ='Smoothed Input Details'!L70 -> 0.3965156149 | F159: =E159 -> 0.3965156149 | G159: 0.3965156149 | H159: 0.3965156149 | I159: 0.3965156149
A160: 147 | B160: Domestic Two Rate | C160: 0.4152479315 | D160: 0.4181580348 | E160: ='Smoothed Input Details'!L71 -> 0.4199139685 | F160: 0.4199139685 | G160: 0.4199139685 | H160: 0.4199139685 | I160: 0.4199139685
A161: 148 | B161: Domestic Off Peak (related MPAN) | C161: 0.3178637911 | D161: 0.3229314187 | E161: ='Smoothed Input Details'!L72 -> 0.3249137672 | F161: 0.3249137672 | G161: 0.3249137672 | H161: 0.3249137672 | I161: 0.3249137672
A162: 149 | B162: Small Non Domestic Unrestricted | C162: 0.5863213634 | D162: 0.5843048953 | E162: ='Smoothed Input Details'!L73 -> 0.5483994645 | F162: 0.5483994645 | G162: 0.5483994645 | H162: 0.5483994645 | I162: 0.5483994645
A163: 150 | B163: Small Non Domestic Two Rate | C163: 0.5149675057 | D163: 0.5151499713 | E163: ='Smoothed Input Details'!L74 -> 0.5140719299 | F163: 0.5140719299 | G163: 0.5140719299 | H163: 0.5140719299 | I163: 0.5140719299
A164: 151 | B164: Small Non Domestic Off Peak (related MPAN) | C164: 0.1870661166 | D164: 0.1863758242 | E164: ='Smoothed Input Details'!L75 -> 0.1853936044 | F164: 0.1853936044 | G164: 0.1853936044 | H164: 0.1853936044 | I164: 0.1853936044
A165: 152 | B165: LV Medium Non-Domestic | C165: 0.5274835998 | D165: 0.5276740886 | E165: ='Smoothed Input Details'!L76 -> 0.5273718862 | F165: 0.5273718862 | G165: 0.5273718862 | H165: 0.5273718862 | I165: 0.5273718862
A166: 153 | B166: LV Sub Medium Non-Domestic | C166: 0.528772287 | D166: 0.5292875811 | E166: ='Smoothed Input Details'!L77 -> 0.5240531053 | F166: 0.5240531053 | G166: 0.5240531053 | H166: 0.5240531053 | I166: 0.5240531053
A167: 154 | B167: HV Medium Non-Domestic | C167: 0.5396190176 | D167: 0.5394761272 | E167: ='Smoothed Input Details'!L78 -> 0.5410592867 | F167: 0.5410592867 | G167: 0.5410592867 | H167: 0.5410592867 | I167: 0.5410592867
A168: 155 | B168: GREEN
A169: 156 | B169: Domestic Unrestricted | C169: 0.4296126409 | D169: 0.4276442361 | E169: ='Smoothed Input Details'!M70 -> 0.4602810071 | F169: =E169 -> 0.4602810071 | G169: 0.4602810071 | H169: 0.4602810071 | I169: 0.4602810071
A170: 157 | B170: Domestic Two Rate | C170: 0.4348627585 | D170: 0.4306613747 | E170: ='Smoothed Input Details'!M71 -> 0.4286608122 | F170: 0.4286608122 | G170: 0.4286608122 | H170: 0.4286608122 | I170: 0.4286608122
A171: 158 | B171: Domestic Off Peak (related MPAN) | C171: 0.637069884 | D171: 0.632120436 | E171: ='Smoothed Input Details'!M72 -> 0.6302708731 | F171: 0.6302708731 | G171: 0.6302708731 | H171: 0.6302708731 | I171: 0.6302708731
A172: 159 | B172: Small Non Domestic Unrestricted | C172: 0.2817072416 | D172: 0.283230408 | E172: ='Smoothed Input Details'!M73 -> 0.327110983 | F172: 0.327110983 | G172: 0.327110983 | H172: 0.327110983 | I172: 0.327110983
A173: 160 | B173: Small Non Domestic Two Rate | C173: 0.3594390591 | D173: 0.3581144362 | E173: ='Smoothed Input Details'!M74 -> 0.3580281724 | F173: 0.3580281724 | G173: 0.3580281724 | H173: 0.3580281724 | I173: 0.3580281724
A174: 161 | B174: Small Non Domestic Off Peak (related MPAN) | C174: 0.796050344 | D174: 0.7969182849 | E174: ='Smoothed Input Details'!M75 -> 0.7979436487 | F174: 0.7979436487 | G174: 0.7979436487 | H174: 0.7979436487 | I174: 0.7979436487
A175: 162 | B175: LV Medium Non-Domestic | C175: 0.3372841155 | D175: 0.3365378204 | E175: ='Smoothed Input Details'!M76 -> 0.3368409664 | F175: 0.3368409664 | G175: 0.3368409664 | H175: 0.3368409664 | I175: 0.3368409664
A176: 163 | B176: LV Sub Medium Non-Domestic | C176: 0.3374117141 | D176: 0.3369853037 | E176: ='Smoothed Input Details'!M77 -> 0.3419779457 | F176: 0.3419779457 | G176: 0.3419779457 | H176: 0.3419779457 | I176: 0.3419779457
A177: 164 | B177: HV Medium Non-Domestic | C177: 0.3264707215 | D177: 0.3267758885 | E177: ='Smoothed Input Details'!M78 -> 0.3255282449 | F177: 0.3255282449 | G177: 0.3255282449 | H177: 0.3255282449 | I177: 0.3255282449
A178: 165 | B178: 1062 Average split of rate 2 units by distribution time band
A179: 166 | B179: RED
A180: 167 | B180: Domestic Two Rate | C180: 0 | D180: 0 | E180: ='Smoothed Input Details'!K88 -> 0 | F180: =E180 -> 0 | G180: 0 | H180: 0 | I180: 0
A181: 168 | B181: Small Non Domestic Two Rate | C181: 0 | D181: 0 | E181: ='Smoothed Input Details'!K89 -> 0 | F181: 0 | G181: 0 | H181: 0 | I181: 0
A182: 169 | B182: LV Medium Non-Domestic | C182: 0 | D182: 0 | E182: ='Smoothed Input Details'!K90 -> 0 | F182: 0 | G182: 0 | H182: 0 | I182: 0
A183: 170 | B183: LV Sub Medium Non-Domestic | C183: 0 | D183: 0 | E183: ='Smoothed Input Details'!K91 -> 0 | F183: 0 | G183: 0 | H183: 0 | I183: 0
A184: 171 | B184: HV Medium Non-Domestic | C184: 0 | D184: 0 | E184: ='Smoothed Input Details'!K92 -> 0 | F184: 0 | G184: 0 | H184: 0 | I184: 0
A185: 172 | B185: AMBER
A186: 173 | B186: Domestic Two Rate | C186: 0 | D186: 0 | E186: ='Smoothed Input Details'!L88 -> 0 | F186: =E186 -> 0 | G186: 0 | H186: 0 | I186: 0
A187: 174 | B187: Small Non Domestic Two Rate | C187: 0 | D187: 0 | E187: ='Smoothed Input Details'!L89 -> 0 | F187: 0 | G187: 0 | H187: 0 | I187: 0
A188: 175 | B188: LV Medium Non-Domestic | C188: 0 | D188: 0 | E188: ='Smoothed Input Details'!L90 -> 0 | F188: 0 | G188: 0 | H188: 0 | I188: 0
A189: 176 | B189: LV Sub Medium Non-Domestic | C189: 0 | D189: 0 | E189: ='Smoothed Input Details'!L91 -> 0 | F189: 0 | G189: 0 | H189: 0 | I189: 0
A190: 177 | B190: HV Medium Non-Domestic | C190: 0 | D190: 0 | E190: ='Smoothed Input Details'!L92 -> 0 | F190: 0 | G190: 0 | H190: 0 | I190: 0
A191: 178 | B191: GREEN
A192: 179 | B192: Domestic Two Rate | C192: 1 | D192: 1 | E192: ='Smoothed Input Details'!M88 -> 1 | F192: =E192 -> 1 | G192: 1 | H192: 1 | I192: 1
A193: 180 | B193: Small Non Domestic Two Rate | C193: 1 | D193: 1 | E193: ='Smoothed Input Details'!M89 -> 1 | F193: 1 | G193: 1 | H193: 1 | I193: 1
A194: 181 | B194: LV Medium Non-Domestic | C194: 1 | D194: 1 | E194: ='Smoothed Input Details'!M90 -> 1 | F194: 1 | G194: 1 | H194: 1 | I194: 1
A195: 182 | B195: LV Sub Medium Non-Domestic | C195: 1 | D195: 1 | E195: ='Smoothed Input Details'!M91 -> 1 | F195: 1 | G195: 1 | H195: 1 | I195: 1
A196: 183 | B196: HV Medium Non-Domestic | C196: 1 | D196: 1 | E196: ='Smoothed Input Details'!M92 -> 1 | F196: 1 | G196: 1 | H196: 1 | I196: 1
A197: 184 | B197: 1064. Average split of rate 1 units by special distribution time band
A198: 185 | B198: BLACK
A199: 186 | B199: NHH UMS category A | C199: 0.02933789954 | D199: 0.02931107618 | E199: ='Smoothed Input Details'!K102 -> 0.02931107618 | F199: =E199 -> 0.02931107618 | G199: 0.02931107618 | H199: 0.02931107618 | I199: 0.02931107618
A200: 187 | B200: NHH UMS category B | C200: 0.049474084 | D200: 0.04986351143 | E200: ='Smoothed Input Details'!K103 -> 0.05043274714 | F200: 0.05043274714 | G200: 0.05043274714 | H200: 0.05043274714 | I200: 0.05043274714
A201: 188 | B201: NHH UMS category C | C201: 0.08998701844 | D201: 0.09479757623 | E201: ='Smoothed Input Details'!K104 -> 0.09618523175 | F201: 0.09618523175 | G201: 0.09618523175 | H201: 0.09618523175 | I201: 0.09618523175
A202: 189 | B202: NHH UMS category D | C202: 0.009594803357 | D202: 0.009238425645 | E202: ='Smoothed Input Details'!K105 -> 0.00883056756 | F202: 0.00883056756 | G202: 0.00883056756 | H202: 0.00883056756 | I202: 0.00883056756
A203: 190 | B203: YELLOW
A204: 191 | B204: NHH UMS category A | C204: 0.3723744292 | D204: 0.3730609202 | E204: ='Smoothed Input Details'!L102 -> 0.3730609202 | F204: =E204 -> 0.3730609202 | G204: 0.3730609202 | H204: 0.3730609202 | I204: 0.3730609202
A205: 192 | B205: NHH UMS category B | C205: 0.08916622669 | D205: 0.090358127 | E205: ='Smoothed Input Details'!L103 -> 0.0902486697 | F205: 0.0902486697 | G205: 0.0902486697 | H205: 0.0902486697 | I205: 0.0902486697
... 66 more rows

Sheet Table 1
A1: Schedule 15 table 1
A2: ="Company Name: "&'CDCM Forecast Data'!E3 -> Company Name: WPD East Midlands
A3: Date:
A5: Description | B5: Licence Term | C5: CRC | K5: Assumptions
A6: Regulatory Year | D6: t-2 | E6: t-1 | F6: t | G6: t+1 | H6: t+2 | I6: t+3 | J6: t+4
A7: Regulatory Year | D7: ='CDCM Forecast Data'!C11 -> 2017/18 | E7: ='CDCM Forecast Data'!D11 -> 2018/19 | F7: ='CDCM Forecast Data'!E11 -> 2019/20 | G7: ='CDCM Forecast Data'!F11 -> 2020/21 | H7: ='CDCM Forecast Data'!G11 -> 2021/22 | I7: ='CDCM Forecast Data'!H11 -> 2022/23 | J7: ='CDCM Forecast Data'!I11 -> 2023/24
A8: Base Demand Revenue Before Inflation (A1) | B8: PU | C8: CRC2A | D8: ='[3]R6 Base Demand Revenue'!I6 -> 410.9 | E8: ='[3]R6 Base Demand Revenue'!J6 -> 415 | F8: ='[3]R6 Base Demand Revenue'!K6 -> 419.2 | G8: ='[3]R6 Base Demand Revenue'!L6 -> 423.3 | H8: ='[3]R6 Base Demand Revenue'!M6 -> 427.6 | I8: ='[3]R6 Base Demand Revenue'!N6 -> 431.9 | J8: =I8 -> 431.9
A9: Annual Iteration adjustment before inflation (A2) | B9: MOD | C9: CRC2A | D9: ='[3]R6 Base Demand Revenue'!I7 -> -0.8269639087 | E9: ='[3]R6 Base Demand Revenue'!J7 -> -14.41579542 | F9: ='[3]R6 Base Demand Revenue'!K7 -> -11.50095322 | G9: ='[3]R6 Base Demand Revenue'!L7 -> -18.4655322 | H9: ='[3]R6 Base Demand Revenue'!M7 -> -22.75697072 | I9: ='[3]R6 Base Demand Revenue'!N7 -> -27.53816075 | J9: ='[3]R6 Base Demand Revenue'!O7 -> 0
A10: RPI True-up before inflation (A3) | B10: TRU | C10: CRC2A | D10: ='[3]R6 Base Demand Revenue'!I8 -> -8.512059158 | E10: ='[3]R6 Base Demand Revenue'!J8 -> -1.59406801 | F10: ='[3]R6 Base Demand Revenue'!K8 -> 0.303812239 | G10: ='[3]R6 Base Demand Revenue'!L8 -> 0 | H10: ='[3]R6 Base Demand Revenue'!M8 -> 0 | I10: ='[3]R6 Base Demand Revenue'!N8 -> 0 | J10: ='[3]R6 Base Demand Revenue'!O8 -> 0
A11: Price index adjustment (RPI index) (A4) | B11: RPIF | C11: CRC2A | D11: ='[3]R6 Base Demand Revenue'!I9 -> 1.121 | E11: =(1+'CDCM Forecast Data'!D13)*D11 -> 1.16 | F11: =(1+'CDCM Forecast Data'!E13)*E11 -> 1.196 | G11: =(1+'CDCM Forecast Data'!F13)*F11 -> 1.234 | H11: =(1+'CDCM Forecast Data'!G13)*G11 -> 1.272 | I11: =(1+'CDCM Forecast Data'!H13)*H11 -> 1.312 | J11: =(1+'CDCM Forecast Data'!I13)*I11 -> 1.352672
A12: Base Demand Revenue (A): [A = (A1 + A2 + A3) * A4] | B12: BR | C12: CRC2A | D12: =(D8+D9+D10)*D11 -> 450.1498551 | E12: =(E8+E9+E10)*E11 -> 462.8285584 | F12: 487.9714194 | G12: 499.5657333 | H12: 514.9603332 | I12: 530.5227331 | J12: 584.2190368 | K12: A = (A1 + A2 + A3) * A4
A13: Pass-Through Licence Fees (B1) | B13: LF | C13: CRC2B | D13: ='[3]R8 Pass-Through Items'!I6 -> 0.2464680009 | E13: ='[3]R8 Pass-Through Items'!J6 -> -0.06794105979 | F13: ='[3]R8 Pass-Through Items'!K6 -> 0.3682921791 | G13: ='[3]R8 Pass-Through Items'!L6 -> 0.3784691478 | H13: ='[3]R8 Pass-Through Items'!M6 -> 0.3881513425 | I13: ='[3]R8 Pass-Through Items'!N6 -> 0.3985631234 | J13: =I13 -> 0.3985631234
A14: Pass-Through Business Rates (B2) | B14: RB | C14: CRC2B | D14: ='[3]R8 Pass-Through Items'!I7 -> 0.5920691343 | E14: ='[3]R8 Pass-Through Items'!J7 -> 0.0194527983 | F14: ='[3]R8 Pass-Through Items'!K7 -> -7.971408036 | G14: ='[3]R8 Pass-Through Items'!L7 -> -18.67409136 | H14: ='[3]R8 Pass-Through Items'!M7 -> -32.23957585 | I14: ='[3]R8 Pass-Through Items'!N7 -> -35.32236936 | J14: =I14 -> -35.32236936
A15: Pass-Through Transmission Connection Point Charges (B3) | B15: TB | C15: CRC2B | D15: ='[3]R8 Pass-Through Items'!I8 -> -0.2880091394 | E15: ='[3]R8 Pass-Through Items'!J8 -> -0.7168386479 | F15: ='[3]R8 Pass-Through Items'!K8 -> -1.494139853 | G15: ='[3]R8 Pass-Through Items'!L8 -> -1.535427221 | H15: ='[3]R8 Pass-Through Items'!M8 -> -1.709962431 | I15: ='[3]R8 Pass-Through Items'!N8 -> -1.811383784 | J15: -1.811383784
A16: Pass-through Smart Meter Communication Licence Costs (B4) | B16: SMC | C16: CRC2B | D16: ='[3]R8 Pass-Through Items'!I10 -> 0.001571321684 | E16: ='[3]R8 Pass-Through Items'!J10 -> 0.6094593908 | F16: ='[3]R8 Pass-Through Items'!K10 -> 0.7666870738 | G16: ='[3]R8 Pass-Through Items'!L10 -> 1.366929347 | H16: ='[3]R8 Pass-Through Items'!M10 -> 1.492647837 | I16: ='[3]R8 Pass-Through Items'!N10 -> 1.952400455 | J16: 1.952400455
A17: Pass-through Smart Meter IT Costs (B5) | B17: SMIT | C17: CRC2B | D17: ='[3]R8 Pass-Through Items'!I11 -> -0.02643809423 | E17: ='[3]R8 Pass-Through Items'!J11 -> 0.1066302691 | F17: ='[3]R8 Pass-Through Items'!K11 -> 0.274134354 | G17: ='[3]R8 Pass-Through Items'!L11 -> -0.1452082837 | H17: ='[3]R8 Pass-Through Items'!M11 -> 0.5914014524 | I17: ='[3]R8 Pass-Through Items'!N11 -> -0.6080926537 | J17: -0.6080926537
A18: Pass-through Ring Fence Costs | B18: RF | C18: CRC2B | D18: ='[3]R8 Pass-Through Items'!I12 -> 0.02929959528 | E18: ='[3]R8 Pass-Through Items'!J12 -> 0.03054856299 | F18: ='[3]R8 Pass-Through Items'!K12 -> 0.03140706676 | G18: ='[3]R8 Pass-Through Items'!L12 -> 0.03227493405 | H18: ='[3]R8 Pass-Through Items'!M12 -> 0.03310060821 | I18: ='[3]R8 Pass-Through Items'!N12 -> 0.03398849971 | J18: 0.03398849971
A19: Pass-Through Others (B5) | B19: HB, SEC, UNC | C19: CRC2B
A20: Allowed Pass-Through Items (B): [B = B1 + B2 + B3 +B4 + B5 + B6 + B7] | B20: PT | C20: CRC2B | D20: =SUM(D13:D19) -> 0.5549608185 | E20: =SUM(E13:E19) -> -0.01868868651 | F20: -8.025027215 | G20: -18.57705343 | H20: -31.44423704 | I20: -35.35689372 | J20: -35.35689372 | K20: B = B1 + B2 + B3 +B4 + B5 + B6 + B7
A21: Broad Measure of Customer Service incentive (C1) | B21: BM | C21: CRC2C | D21: ='[3]R7 Output Incentives'!I6 -> 5.893134447 | E21: ='[3]R7 Output Incentives'!J6 -> 5.617602962 | F21: ='[3]R7 Output Incentives'!K6 -> 5.74044152 | G21: ='[3]R7 Output Incentives'!L6 -> 5.936154261 | H21: ='[3]R7 Output Incentives'!M6 -> 6.120379738 | I21: ='[3]R7 Output Incentives'!N6 -> 6.314839964 | J21: =I21 -> 6.314839964
A22: Quality of Service incentive (C2) | B22: IQ | C22: CRC2D | D22: ='[3]R7 Output Incentives'!I7 -> 20.67094014 | E22: ='[3]R7 Output Incentives'!J7 -> 21.3454155 | F22: ='[3]R7 Output Incentives'!K7 -> 21.94528397 | G22: ='[3]R7 Output Incentives'!L7 -> 22.55169508 | H22: ='[3]R7 Output Incentives'!M7 -> 22.2825136 | I22: ='[3]R7 Output Incentives'!N7 -> 20.94774736 | J22: =I22 -> 20.94774736
A23: Connections Engagement incentive (C3) | B23: ICE | C23: CRC2E | D23: ='[3]R7 Output Incentives'!I8 -> 0 | E23: ='[3]R7 Output Incentives'!J8 -> 0 | F23: ='[3]R7 Output Incentives'!K8 -> 0 | G23: ='[3]R7 Output Incentives'!L8 -> 0 | H23: ='[3]R7 Output Incentives'!M8 -> 0 | I23: ='[3]R7 Output Incentives'!N8 -> 0 | J23: 0
A24: Time to Connect incentive (C4) | B24: TTC | C24: CRC2F | D24: ='[3]R7 Output Incentives'!I9 -> 1.636598899 | E24: ='[3]R7 Output Incentives'!J9 -> 1.423976629 | F24: ='[3]R7 Output Incentives'!K9 -> 1.794808388 | G24: ='[3]R7 Output Incentives'!L9 -> 1.856 | H24: ='[3]R7 Output Incentives'!M9 -> 1.9136 | I24: ='[3]R7 Output Incentives'!N9 -> 1.9744 | J24: 1.9744
A25: Losses Discretionary Reward incentive (C5) | B25: LDR | C25: CRC2G | D25: ='[3]R7 Output Incentives'!I10 -> 0.04484 | E25: ='[3]R7 Output Incentives'!J10 -> 0 | F25: ='[3]R7 Output Incentives'!K10 -> 0.04784 | G25: ='[3]R7 Output Incentives'!L10 -> 0 | H25: ='[3]R7 Output Incentives'!M10 -> 0.05088 | I25: ='[3]R7 Output Incentives'!N10 -> 0 | J25: 0
A26: Network Innovation Allowance (C6) | B26: NIA | C26: CRC2H | D26: ='[3]R14 Allowed Revenue Summary'!I$11 -> 1.647485334 | E26: ='[3]R14 Allowed Revenue Summary'!J$11 -> 1.647485334 | F26: ='[3]R14 Allowed Revenue Summary'!K$11 -> 1.482736801 | G26: ='[3]R14 Allowed Revenue Summary'!L$11 -> 1.334463121 | H26: ='[3]R14 Allowed Revenue Summary'!M$11 -> 1.067570496 | I26: ='[3]R14 Allowed Revenue Summary'!N$11 -> 0.7472993475 | J26: 0.7472993475
A27: Low Carbon Network Fund - Tier 1 unrecoverable (C7) | B27: LCN1 | C27: CRC2J | D27: 0 | E27: 0 | F27: 0 | G27: 0 | H27: 0 | I27: 0 | J27: 0
A28: Low Carbon Network Fund - Tier 2 & Discretionary Funding (C7) | B28: LCN2 | C28: CRC2J | D28: ='[3]R14 Allowed Revenue Summary'!I$12 -> 0.7151942324 | E28: ='[3]R14 Allowed Revenue Summary'!J$12 -> 0.2776942324 | F28: ='[3]R14 Allowed Revenue Summary'!K$12 -> 0.2776942324 | G28: ='[3]R14 Allowed Revenue Summary'!L$12 -> 0.2776942324 | H28: ='[3]R14 Allowed Revenue Summary'!M$12 -> 0.2776942324 | I28: ='[3]R14 Allowed Revenue Summary'!N$12 -> 0.2776942324 | J28: 0.2776942324
A29: Connection Guaranteed Standards Systems & Processes penalty (C8) | B29: AUM, CGSRA | C29: CRC2K-L | D29: 0 | E29: 0 | F29: 0 | G29: 0 | H29: 0 | I29: 0 | J29: 0
A30: Residual Losses and Growth Incentive - Losses (C9) | B30: PPL | C30: CRC2M | D30: ='[3]R14 Allowed Revenue Summary'!I$15 -> -13.11990907 | E30: ='[3]R14 Allowed Revenue Summary'!J$15 -> -3.225423967 | F30: ='[3]R14 Allowed Revenue Summary'!K$15 -> 0 | G30: ='[3]R14 Allowed Revenue Summary'!L$15 -> 0 | H30: ='[3]R14 Allowed Revenue Summary'!M$15 -> 0 | I30: ='[3]R14 Allowed Revenue Summary'!N$15 -> 0 | J30: ='[3]R14 Allowed Revenue Summary'!O$15 -> 0
A31: Residual Losses and Growth Incentive - Growth (C9) | B31: GTA | C31: CRC2M | D31: 0 | E31: 0 | F31: 0 | G31: 0 | H31: 0 | I31: 0 | J31: 0
A32: Incentive Revenue and Other Adjustments (C): [C = C1 + C2 + C3 + C4 + C5 + C6 + C7 + C8 + C9] | D32: =SUM(D21:D31) -> 17.48828398 | E32: 27.08675069 | F32: 31.28880491 | G32: 31.95600669 | H32: 31.71263806 | I32: 30.2619809 | J32: 30.2619809 | K32: C = C1 + C2 + C3 + C4 + C5 + C6 + C7 + C8 + C9
A33: Correction Factor (D) | B33: -K | C33: CRC2A | D33: =-'[3]R14 Allowed Revenue Summary'!I$17 -> -0.6924243741 | E33: =-'[3]R14 Allowed Revenue Summary'!J$17 -> -6.958054203 | F33: =-'[3]R14 Allowed Revenue Summary'!K$17 -> 3.445761927 | G33: =-'[3]R14 Allowed Revenue Summary'!L$17 -> -7.528289866 | H33: =-'[3]R14 Allowed Revenue Summary'!M$17 -> 0.01680659011 | I33: =-'[3]R14 Allowed Revenue Summary'!N$17 -> 0 | J33: =-'[3]R14 Allowed Revenue Summary'!O$17 -> 0
A34: Total allowed Revenue (E): [E = A + B + C + D] | B34: AR | C34: CRC2A | D34: =D12+D20+D32+D33 -> 467.5006756 | E34: =E12+E20+E32+E33 -> 482.9385662 | F34: 514.680959 | G34: 505.4163967 | H34: 515.2455409 | I34: 525.4278203 | J34: 579.124124 | K34: E = A + B + C + D
A35: Other 1. Excluded services - Top-up, standby, and enhanced system security (F1) (see note 1) | B35: DRS4 | C35: CRC5C | D35: 0 | E35: 0 | F35: 0 | G35: 0 | H35: 0 | I35: 0 | J35: 0
A36: Other 2. Excluded services - Revenue protection services (F2) (see note 1) | B36: DRS5 | C36: CRC5C | D36: 0 | E36: 0 | F36: 0 | G36: 0 | H36: 0 | I36: 0 | J36: 0
A37: Other 3. Excluded services - Miscellaneous (F3) (see note 1) | B37: DRS9 | C37: CRC5C | D37: 0 | E37: 0 | F37: 0 | G37: 0 | H37: 0 | I37: 0 | J37: 0
A38: Other 4. - blank or if required please provide description (F4) | D38: 0 | E38: 0 | F38: 0 | G38: 0 | H38: 0 | I38: 0 | J38: 0
A39: Other 5. - blank or if required please provide description (F5) | D39: 0 | E39: 0 | F39: 0 | G39: 0 | H39: 0 | I39: 0 | J39: 0
A40: Total Other Revenue to be recovered by Use of System Charges (F): [F = F1 + F2 + F3 + F4 +F5] | D40: =SUM(D35:D39) -> 0 | E40: =SUM(E35:E39) -> 0 | F40: 0 | G40: 0 | H40: 0 | I40: 0 | J40: 0 | K40: F = F1 + F2 + F3 + F4 +F5
A41: Total Revenue for Use of System Charges (G): [G=E + F] | D41: =D34+D40 -> 467.5006756 | E41: =E34+E40 -> 482.9385662 | F41: 514.680959 | G41: 505.4163967 | H41: 515.2455409 | I41: 525.4278203 | J41: 579.124124 | K41: G = E + F
A42: 1. Revenue raised outside CDCM - EDCM and Certain Interconnector Revenue (H1) | D42: =[4]Table1!F$41 -> 9.494606691 | E42: =[4]Table1!G$41 -> 10.41399541 | F42: =10809631.8658602/1000000 -> 10.80963187 | G42: =G41/F41*F42 -> 10.61505208 | H42: =H41/G41*G42 -> 10.82148955 | I42: 11.03534376 | J42: 12.16310508
A43: 2. Revenue raised outside CDCM - Voluntary under-recovery (H2)
A44: 3. Revenue raised outside CDCM - blank or if required please provide description (H3)
A45: 4. Revenue raised outside CDCM - blank or if required please provide description (H4)
A46: Total Revenue to be raised outside the CDCM (H): [H = H1 + H2 + H3 + H4] | D46: =D42+D43+D44+D45 -> 9.494606691 | E46: =E42+E43+E44+E45 -> 10.41399541 | F46: 10.80963187 | G46: 10.61505208 | H46: 10.82148955 | I46: 11.03534376 | J46: 12.16310508 | K46: H = H1 + H2 + H3 + H4
A47: Latest forecast of CDCM Revenue (I): [I = G - H] | D47: =D41-D46 -> 458.0060689 | E47: 472.5245708 | F47: 503.8713272 | G47: 494.8013446 | H47: 504.4240513 | I47: 514.3924765 | J47: 566.9610189 | K47: I = G - H
A48: CDCM Revenue Used in Charging Model [Equal to I] | D48: =D47 -> 458.0060689 | E48: =E47 -> 472.5245708 | F48: 503.8713272 | G48: 494.8013446 | H48: 504.4240513 | I48: 514.3924765 | J48: 566.9610189 | K48: Equal to I
A49: Final Collected Revenue Forecast (J) | D49: ='[3]R5 Input Page'!I$47 -> 464.1839283 | E49: ='[3]R5 Input Page'!J$47 -> 490.1745234 | F49: ='[3]R5 Input Page'!K$47 -> 514.664805 | G49: ='[3]R5 Input Page'!L$47 -> 505.4163967 | H49: ='[3]R5 Input Page'!M$47 -> 515.2455409 | I49: ='[3]R5 Input Page'!N$47 -> 525.4278203 | J49: =J41 -> 579.124124
A50: Forecast Over / (Under) Recovery [being (J - F - E + H2] | D50: =D49-D40-D34+D43 -> -3.316747273 | E50: 7.235957195 | F50: -0.01615396974 | G50: -1.136868377e-13 | H50: 0 | I50: -1.136868377e-13 | J50: 0 | K50: J - F - E + H2
A51: Forecast overall percentage change to Allowed Revenue (K) | E51: =E34/D34-1 -> 0.03302217829 | F51: =F34/E34-1 -> 0.06572759977 | G51: -0.01800059278 | H51: 0.0194476164 | I51: 0.01976199426 | J51: 0.1021953951
A52: Overall % change to Use of System Charges effective 1st April of Regulatory Year to balance (L) | E52: =E49/D49-1 -> 0.05599201856 | F52: 0.04996237148 | G52: -0.01796977041 | H52: 0.0194476164 | I52: 0.01976199426 | J52: 0.1021953951
A53: Note 1: Cost categories associated with excluded services should only be populated if the Company recovers the costs of providing these services from Use of System Charges

Sheet Smoothed Input Details
A1: DNO | B1: =+'CDCM Forecast Data'!E3 -> WPD East Midlands
A2: Charges for (year Y) | B2: =+'CDCM Forecast Data'!E11 -> 2019/20
A4: Year charges are set (year Y - 2) | B4: =+'CDCM Forecast Data'!C11 -> 2017/18
A6: Year to which input data relates
A7: Year Y - 3 | B7: 2016/17
A8: Year Y - 4 | B8: 2015/16
A9: Year Y - 5 | B9: 2014/15
A11: 1041 - load profile for demand users - coincidence factors
A12: Charges for year Y are set in Y-2 using historical data for the previous three years
B14: Y - 5 | C14: Y - 4 | D14: Y - 3 | E14: Information to be used calculating tariffs in year t
A15: Domestic Unrestricted | B15: ='[5]Mid East'!F15 -> 0.8132144708 | C15: ='[5]Mid East'!G15 -> 0.8830159763 | D15: ='[5]Mid East'!H15 -> 0.890991785 | E15: =AVERAGE(B15:D15) -> 0.8624074107
A16: Domestic Two Rate | B16: ='[5]Mid East'!F16 -> 0.8435948206 | C16: ='[5]Mid East'!G16 -> 0.8479543668 | D16: ='[5]Mid East'!H16 -> 0.8894927459 | E16: =AVERAGE(B16:D16) -> 0.8603473111
A17: Domestic Off Peak (related MPAN) | B17: ='[5]Mid East'!F17 -> 0 | C17: ='[5]Mid East'!G17 -> 0 | D17: ='[5]Mid East'!H17 -> 0
A18: Small Non Domestic Unrestricted | B18: ='[5]Mid East'!F18 -> 0.788715509 | C18: ='[5]Mid East'!G18 -> 0.6859401035 | D18: ='[5]Mid East'!H18 -> 0.6950924824 | E18: =AVERAGE(B18:D18) -> 0.723249365
A19: Small Non Domestic Two Rate | B19: ='[5]Mid East'!F19 -> 0.9031425556 | C19: ='[5]Mid East'!G19 -> 0.8353196315 | D19: ='[5]Mid East'!H19 -> 0.8487564725 | E19: =AVERAGE(B19:D19) -> 0.8624062199
A20: Small Non Domestic Off Peak (related MPAN) | B20: ='[5]Mid East'!F20 -> 0 | C20: ='[5]Mid East'!G20 -> 0 | D20: ='[5]Mid East'!H20 -> 0
A21: LV Medium Non-Domestic | B21: ='[5]Mid East'!E21 -> 0.7867177785 | C21: ='[5]Mid East'!F21 -> 0.8901740972 | D21: ='[5]Mid East'!G21 -> 0.8467914877 | E21: =AVERAGE(B21:D21) -> 0.8412277878
A22: LV Sub Medium Non-Domestic | B22: ='[5]Mid East'!E22 -> 0.7867177785 | C22: ='[5]Mid East'!F22 -> 0.8901740972 | D22: ='[5]Mid East'!G22 -> 0.8467914877 | E22: 0.8412277878
A23: HV Medium Non-Domestic | B23: ='[5]Mid East'!E23 -> 0.7353008794 | C23: ='[5]Mid East'!F23 -> 0.842418027 | D23: ='[5]Mid East'!G23 -> 0.7888835853 | E23: 0.7888674972
A24: LV Network Domestic | B24: ='[5]Mid East'!F24 -> 0.8244653328 | C24: ='[5]Mid East'!G24 -> 0.8700314869 | D24: ='[5]Mid East'!H24 -> 0.8904366405 | E24: =AVERAGE(B24:D24) -> 0.8616444867
A25: LV Network Non-Domestic Non-CT | B25: ='[5]Mid East'!F25 -> 0.8415684246 | C25: ='[5]Mid East'!G25 -> 0.754937284 | D25: ='[5]Mid East'!H25 -> 0.7660686208 | E25: 0.7875247765
A26: LV HH Metered | B26: ='[5]Mid East'!E26 -> 0.8111654593 | C26: ='[5]Mid East'!F26 -> 0.861733357 | D26: ='[5]Mid East'!G26 -> 0.7896968317 | E26: 0.820865216
A27: LV Sub HH Metered | B27: ='[5]Mid East'!F27 -> 0.8320295233 | C27: ='[5]Mid East'!G27 -> 0.8327727483 | D27: ='[5]Mid East'!H27 -> 0.8560037553 | E27: 0.8402686756
A28: HV HH Metered | B28: ='[5]Mid East'!F28 -> 0.883984826 | C28: ='[5]Mid East'!G28 -> 0.8261584053 | D28: ='[5]Mid East'!H28 -> 0.8326604164 | E28: 0.8476012159
A29: NHH UMS category A | B29: ='[5]Mid East'!F29 -> 1 | C29: ='[5]Mid East'!G29 -> 1 | D29: ='[5]Mid East'!H29 -> 1 | E29: =AVERAGE(B29:D29) -> 1
A30: NHH UMS category B | B30: ='[5]Mid East'!F30 -> 1 | C30: ='[5]Mid East'!G30 -> 1 | D30: ='[5]Mid East'!H30 -> 1 | E30: 1
A31: NHH UMS category C | B31: ='[5]Mid East'!F31 -> 1 | C31: ='[5]Mid East'!G31 -> 1 | D31: ='[5]Mid East'!H31 -> 1 | E31: =AVERAGE(B31:D31) -> 1
A32: NHH UMS category D | B32: ='[5]Mid East'!F32 -> 0.01523297491 | C32: ='[5]Mid East'!G32 -> 0.0008533333333 | D32: ='[5]Mid East'!H32 -> 0 | E32: 0.005362102748
A33: LV UMS (Pseudo HH Metered) | B33: ='[5]Mid East'!F33 -> 0.956970391 | C33: ='[5]Mid East'!G33 -> 0.9683946847 | D33: ='[5]Mid East'!H33 -> 0.9270222168 | E33: 0.9507957642
A37: 1041 - load profile for demand users - load factors
A38: Charges for year Y are set in Y-2 using historical data for the previous three years
B41: Y - 5 | C41: Y - 4 | D41: Y - 3 | E41: Information to be used calculating tariffs in year t
A42: Domestic Unrestricted | B42: ='[5]Mid East'!F42 -> 0.4166428798 | C42: ='[5]Mid East'!G42 -> 0.4169519205 | D42: ='[5]Mid East'!H42 -> 0.4151165147 | E42: =AVERAGE(B42:D42) -> 0.416237105
A43: Domestic Two Rate | B43: ='[5]Mid East'!F43 -> 0.5114464737 | C43: ='[5]Mid East'!G43 -> 0.4950894851 | D43: ='[5]Mid East'!H43 -> 0.5018930491 | E43: 0.5028096693
A44: Domestic Off Peak (related MPAN) | B44: ='[5]Mid East'!F44 -> 0.1553126536 | C44: ='[5]Mid East'!G44 -> 0.1487822291 | D44: ='[5]Mid East'!H44 -> 0.1396163877 | E44: 0.1479037568
A45: Small Non Domestic Unrestricted | B45: ='[5]Mid East'!F45 -> 0.3929249933 | C45: ='[5]Mid East'!G45 -> 0.3734830327 | D45: ='[5]Mid East'!H45 -> 0.3595696308 | E45: 0.3753258856
A46: Small Non Domestic Two Rate | B46: ='[5]Mid East'!F46 -> 0.5542075857 | C46: ='[5]Mid East'!G46 -> 0.5303108622 | D46: ='[5]Mid East'!H46 -> 0.5182035137 | E46: 0.5342406539
A47: Small Non Domestic Off Peak (related MPAN) | B47: ='[5]Mid East'!F47 -> 0.2344564763 | C47: ='[5]Mid East'!G47 -> 0.2431967036 | D47: ='[5]Mid East'!H47 -> 0.2507101375 | E47: 0.2427877725
A48: LV Medium Non-Domestic | B48: ='[5]Mid East'!E48 -> 0.5345820154 | C48: ='[5]Mid East'!F48 -> 0.5225442616 | D48: ='[5]Mid East'!G48 -> 0.5229044364 | E48: 0.5266769045
A49: LV Sub Medium Non-Domestic | B49: ='[5]Mid East'!E49 -> 0.5345820154 | C49: ='[5]Mid East'!F49 -> 0.5225442616 | D49: ='[5]Mid East'!G49 -> 0.5229044364 | E49: 0.5266769045
A50: HV Medium Non-Domestic | B50: ='[5]Mid East'!E50 -> 0.5156410969 | C50: ='[5]Mid East'!F50 -> 0.4748290617 | D50: ='[5]Mid East'!G50 -> 0.4855222804 | E50: 0.4919974796
A51: LV Network Domestic | B51: ='[5]Mid East'!F51 -> 0.4473423868 | C51: ='[5]Mid East'!G51 -> 0.4414695096 | D51: ='[5]Mid East'!H51 -> 0.4426767774 | E51: =AVERAGE(B51:D51) -> 0.4438295579
A52: LV Network Non-Domestic Non-CT | B52: ='[5]Mid East'!F52 -> 0.4664773851 | C52: ='[5]Mid East'!G52 -> 0.4451001751 | D52: ='[5]Mid East'!H52 -> 0.4321043052 | E52: 0.4478939551
A53: LV HH Metered | B53: ='[5]Mid East'!E53 -> 0.5687797326 | C53: ='[5]Mid East'!F53 -> 0.55931322 | D53: ='[5]Mid East'!G53 -> 0.5471936345 | E53: 0.5584288623
A54: LV Sub HH Metered | B54: ='[5]Mid East'!F54 -> 0.5661134792 | C54: ='[5]Mid East'!G54 -> 0.5899977326 | D54: ='[5]Mid East'!H54 -> 0.58111579 | E54: 0.5790756672
A55: HV HH Metered | B55: ='[5]Mid East'!F55 -> 0.7151872831 | C55: ='[5]Mid East'!G55 -> 0.7046471782 | D55: ='[5]Mid East'!H55 -> 0.7224883572 | E55: 0.7141076062
A56: NHH UMS category A | B56: ='[5]Mid East'!F56 -> 1 | C56: ='[5]Mid East'!G56 -> 1 | D56: ='[5]Mid East'!H56 -> 1 | E56: 1
A57: NHH UMS category B | B57: ='[5]Mid East'!F57 -> 0.4714534304 | C57: ='[5]Mid East'!G57 -> 0.4731599055 | D57: ='[5]Mid East'!H57 -> 0.4735108842 | E57: 0.4727080734
A58: NHH UMS category C | B58: ='[5]Mid East'!F58 -> 0.2265200673 | C58: ='[5]Mid East'!G58 -> 0.2241707896 | D58: ='[5]Mid East'!H58 -> 0.2794902899 | E58: 0.2433937156
A59: NHH UMS category D | B59: ='[5]Mid East'!F59 -> 0.5097531364 | C59: ='[5]Mid East'!G59 -> 0.5089362477 | D59: ='[5]Mid East'!H59 -> 0.5160715413 | E59: 0.5115869751
A60: LV UMS (Pseudo HH Metered) | B60: ='[5]Mid East'!F60 -> 0.4387845363 | C60: ='[5]Mid East'!G60 -> 0.4425350154 | D60: ='[5]Mid East'!H60 -> 0.443507352 | E60: 0.4416089679
A64: 1061 - Average split of rate 1 units by distribution time band
A65: Charges for year Y are set in Y-2 using historical data for the previous three years
B68: Y - 5 | E68: Y - 4 | H68: Y - 3 | K68: Information to be used calculating tariffs in year t
B69: Red | C69: Amber | D69: Green | E69: Red | F69: Amber | G69: Green | H69: Red | I69: Amber | J69: Green | K69: Red | L69: Amber | M69: Green
A70: Domestic Unrestricted | B70: ='[5]Mid East'!N70 -> 0.1525091136 | C70: ='[5]Mid East'!O70 -> 0.4210542955 | D70: ='[5]Mid East'!P70 -> 0.4264365909 | E70: ='[5]Mid East'!Q70 -> 0.1520451792 | F70: ='[5]Mid East'!R70 -> 0.4207130978 | G70: ='[5]Mid East'!S70 -> 0.427241723 | H70: ='[5]Mid East'!T70 -> 0.1250558412 | I70: ='[5]Mid East'!U70 -> 0.3477794515 | J70: ='[5]Mid East'!V70 -> 0.5271647074 | K70: =AVERAGE(B70,E70,H70) -> 0.143203378 | L70: 0.3965156149 | M70: 0.4602810071
A71: Domestic Two Rate | B71: ='[5]Mid East'!N71 -> 0.1510676207 | C71: ='[5]Mid East'!O71 -> 0.4185302838 | D71: ='[5]Mid East'!P71 -> 0.4304020954 | E71: ='[5]Mid East'!Q71 -> 0.152094786 | F71: ='[5]Mid East'!R71 -> 0.4211136008 | G71: ='[5]Mid East'!S71 -> 0.4267916132 | H71: ='[5]Mid East'!T71 -> 0.1511132509 | I71: ='[5]Mid East'!U71 -> 0.420098021 | J71: ='[5]Mid East'!V71 -> 0.4287887281 | K71: =AVERAGE(B71,E71,H71) -> 0.1514252192 | L71: =AVERAGE(C71,F71,I71) -> 0.4199139685 | M71: =AVERAGE(D71,G71,J71) -> 0.4286608122
A72: Domestic Off Peak (related MPAN) | B72: ='[5]Mid East'!N72 -> 0.04474332408 | C72: ='[5]Mid East'!O72 -> 0.3215486606 | D72: ='[5]Mid East'!P72 -> 0.6337080153 | E72: ='[5]Mid East'!Q72 -> 0.0445724056 | F72: ='[5]Mid East'!R72 -> 0.3258839203 | G72: ='[5]Mid East'!S72 -> 0.6295436741 | H72: ='[5]Mid East'!T72 -> 0.04513034959 | I72: ='[5]Mid East'!U72 -> 0.3273087205 | J72: ='[5]Mid East'!V72 -> 0.6275609299 | K72: 0.04481535976 | L72: 0.3249137672 | M72: 0.6302708731
A73: Small Non Domestic Unrestricted | B73: ='[5]Mid East'!N73 -> 0.1319886711 | C73: ='[5]Mid East'!O73 -> 0.5819971896 | D73: ='[5]Mid East'!P73 -> 0.2860141393 | E73: ='[5]Mid East'!Q73 -> 0.1327618292 | F73: ='[5]Mid East'!R73 -> 0.5826608774 | G73: ='[5]Mid East'!S73 -> 0.2845772934 | H73: ='[5]Mid East'!T73 -> 0.1087181573 | I73: ='[5]Mid East'!U73 -> 0.4805403265 | J73: ='[5]Mid East'!V73 -> 0.4107415162 | K73: 0.1244895525 | L73: 0.5483994645 | M73: 0.327110983
A74: Small Non Domestic Two Rate | B74: ='[5]Mid East'!N74 -> 0.126322072 | C74: ='[5]Mid East'!O74 -> 0.5157114164 | D74: ='[5]Mid East'!P74 -> 0.3579665116 | E74: ='[5]Mid East'!Q74 -> 0.1282162907 | F74: ='[5]Mid East'!R74 -> 0.5142364744 | G74: ='[5]Mid East'!S74 -> 0.3575472349 | H74: ='[5]Mid East'!T74 -> 0.1291613303 | I74: ='[5]Mid East'!U74 -> 0.512267899 | J74: ='[5]Mid East'!V74 -> 0.3585707707 | K74: 0.1278998977 | L74: 0.5140719299 | M74: 0.3580281724
A75: Small Non Domestic Off Peak (related MPAN) | B75: ='[5]Mid East'!N75 -> 0.01694863148 | C75: ='[5]Mid East'!O75 -> 0.1842741529 | D75: ='[5]Mid East'!P75 -> 0.7987772156 | E75: ='[5]Mid East'!Q75 -> 0.01652432344 | F75: ='[5]Mid East'!R75 -> 0.1864375959 | G75: ='[5]Mid East'!S75 -> 0.7970380807 | H75: ='[5]Mid East'!T75 -> 0.01651528586 | I75: ='[5]Mid East'!U75 -> 0.1854690643 | J75: ='[5]Mid East'!V75 -> 0.7980156498 | K75: 0.01666274693 | L75: 0.1853936044 | M75: 0.7979436487
A76: LV Medium Non-Domestic | B76: ='[5]Mid East'!N76 -> 0.1357876789 | C76: ='[5]Mid East'!O76 -> 0.5279199507 | D76: ='[5]Mid East'!P76 -> 0.3362923704 | E76: ='[5]Mid East'!Q76 -> 0.1360371973 | F76: ='[5]Mid East'!R76 -> 0.5275589633 | G76: ='[5]Mid East'!S76 -> 0.3364038393 | H76: ='[5]Mid East'!T76 -> 0.1355365662 | I76: ='[5]Mid East'!U76 -> 0.5266367445 | J76: ='[5]Mid East'!V76 -> 0.3378266894 | K76: 0.1357871475 | L76: 0.5273718862 | M76: 0.3368409664
A77: LV Sub Medium Non-Domestic | B77: ='[5]Mid East'!N77 -> 0.1338920427 | C77: ='[5]Mid East'!O77 -> 0.5257675844 | D77: ='[5]Mid East'!P77 -> 0.3403403729 | E77: ='[5]Mid East'!Q77 -> 0.1341031276 | F77: ='[5]Mid East'!R77 -> 0.5285333789 | G77: ='[5]Mid East'!S77 -> 0.3373634935 | H77: ='[5]Mid East'!T77 -> 0.1339116769 | I77: ='[5]Mid East'!U77 -> 0.5178583525 | J77: ='[5]Mid East'!V77 -> 0.3482299706 | K77: 0.1339689491 | L77: 0.5240531053 | M77: 0.3419779457
A78: HV Medium Non-Domestic | B78: ='[5]Mid East'!N78 -> 0.1331916943 | C78: ='[5]Mid East'!O78 -> 0.5387678185 | D78: ='[5]Mid East'!P78 -> 0.3280404872 | E78: ='[5]Mid East'!Q78 -> 0.1336881835 | F78: ='[5]Mid East'!R78 -> 0.5421102878 | G78: ='[5]Mid East'!S78 -> 0.3242015287 | H78: ='[5]Mid East'!T78 -> 0.1333575275 | I78: ='[5]Mid East'!U78 -> 0.5422997539 | J78: ='[5]Mid East'!V78 -> 0.3243427186 | K78: 0.1334124684 | L78: 0.5410592867 | M78: 0.3255282449
A82: 1062 - Average split of rate 2 units by distribution time band
A83: Charges for year Y are set in Y-2 using historical data for the previous three years
B86: Y - 5 | E86: Y - 4 | H86: Y - 3 | K86: Information to be used calculating tariffs in year t
B87: Red | C87: Amber | D87: Green | E87: Red | F87: Amber | G87: Green | H87: Red | I87: Amber | J87: Green | K87: Red | L87: Amber | M87: Green
A88: Domestic Two Rate | B88: ='[5]Mid East'!N88 -> 0 | C88: ='[5]Mid East'!O88 -> 0 | D88: ='[5]Mid East'!P88 -> 1 | E88: ='[5]Mid East'!Q88 -> 0 | F88: ='[5]Mid East'!R88 -> 0 | G88: ='[5]Mid East'!S88 -> 1 | H88: ='[5]Mid East'!T88 -> 0 | I88: ='[5]Mid East'!U88 -> 0 | J88: ='[5]Mid East'!V88 -> 1 | K88: =AVERAGE(B88,E88,H88) -> 0 | L88: 0 | M88: 1
A89: Small Non Domestic Two Rate | B89: ='[5]Mid East'!N89 -> 0 | C89: ='[5]Mid East'!O89 -> 0 | D89: ='[5]Mid East'!P89 -> 1 | E89: ='[5]Mid East'!Q89 -> 0 | F89: ='[5]Mid East'!R89 -> 0 | G89: ='[5]Mid East'!S89 -> 1 | H89: ='[5]Mid East'!T89 -> 0 | I89: ='[5]Mid East'!U89 -> 0 | J89: ='[5]Mid East'!V89 -> 1 | K89: 0 | L89: 0 | M89: 1
A90: LV Medium Non-Domestic | B90: ='[5]Mid East'!N90 -> 0 | C90: ='[5]Mid East'!O90 -> 0 | D90: ='[5]Mid East'!P90 -> 1 | E90: ='[5]Mid East'!Q90 -> 0 | F90: ='[5]Mid East'!R90 -> 0 | G90: ='[5]Mid East'!S90 -> 1 | H90: ='[5]Mid East'!T90 -> 0 | I90: ='[5]Mid East'!U90 -> 0 | J90: ='[5]Mid East'!V90 -> 1 | K90: 0 | L90: 0 | M90: 1
A91: LV Sub Medium Non-Domestic | B91: ='[5]Mid East'!N91 -> 0 | C91: ='[5]Mid East'!O91 -> 0 | D91: ='[5]Mid East'!P91 -> 1 | E91: ='[5]Mid East'!Q91 -> 0 | F91: ='[5]Mid East'!R91 -> 0 | G91: ='[5]Mid East'!S91 -> 1 | H91: ='[5]Mid East'!T91 -> 0 | I91: ='[5]Mid East'!U91 -> 0 | J91: ='[5]Mid East'!V91 -> 1 | K91: 0 | L91: 0 | M91: 1
A92: HV Medium Non-Domestic | B92: ='[5]Mid East'!N92 -> 0 | C92: ='[5]Mid East'!O92 -> 0 | D92: ='[5]Mid East'!P92 -> 1 | E92: ='[5]Mid East'!Q92 -> 0 | F92: ='[5]Mid East'!R92 -> 0 | G92: ='[5]Mid East'!S92 -> 1 | H92: ='[5]Mid East'!T92 -> 0 | I92: ='[5]Mid East'!U92 -> 0 | J92: ='[5]Mid East'!V92 -> 1 | K92: 0 | L92: 0 | M92: 1
A96: 1064. Average split of rate 1 units by special distribution time band
A97: Charges for year Y are set in Y-2 using historical data for the previous three years
B100: Y - 5 | E100: Y - 4 | H100: Y - 3 | K100: Information to be used calculating tariffs in year t
B101: Black | C101: Yellow | D101: Green | E101: Black | F101: Yellow | G101: Green | H101: Black | I101: Yellow | J101: Green | K101: Red | L101: Amber | M101: Green
A102: NHH UMS category A | B102: ='[5]Mid East'!N117 -> 0.02910958904 | C102: ='[5]Mid East'!O117 -> 0.3731164384 | D102: ='[5]Mid East'!P117 -> 0.5977739726 | E102: ='[5]Mid East'!Q117 -> 0.0293715847 | F102: ='[5]Mid East'!R117 -> 0.3732923497 | G102: ='[5]Mid East'!S117 -> 0.5973360656 | H102: ='[5]Mid East'!T117 -> 0.02945205479 | I102: ='[5]Mid East'!U117 -> 0.3727739726 | J102: ='[5]Mid East'!V117 -> 0.5977739726 | K102: =AVERAGE(B102,E102,H102) -> 0.02931107618 | L102: =AVERAGE(C102,F102,I102) -> 0.3730609202 | M102: =AVERAGE(D102,G102,J102) -> 0.5976280036
A103: NHH UMS category B | B103: ='[5]Mid East'!N118 -> 0.05017724399 | C103: ='[5]Mid East'!O118 -> 0.09013813805 | D103: ='[5]Mid East'!P118 -> 0.859684618 | E103: ='[5]Mid East'!Q118 -> 0.05032496341 | F103: ='[5]Mid East'!R118 -> 0.0920984133 | G103: ='[5]Mid East'!S118 -> 0.8575766233 | H103: ='[5]Mid East'!T118 -> 0.050796034 | I103: ='[5]Mid East'!U118 -> 0.08850945774 | J103: ='[5]Mid East'!V118 -> 0.8606945083 | K103: 0.05043274714 | L103: 0.0902486697 | M103: 0.8593185832
A104: NHH UMS category C | B104: ='[5]Mid East'!N119 -> 0.09727494563 | C104: ='[5]Mid East'!O119 -> 0.1506965148 | D104: ='[5]Mid East'!P119 -> 0.7520285396 | E104: ='[5]Mid East'!Q119 -> 0.1008401354 | F104: ='[5]Mid East'!R119 -> 0.1749683285 | G104: ='[5]Mid East'!S119 -> 0.7241915361 | H104: ='[5]Mid East'!T119 -> 0.09044061418 | I104: ='[5]Mid East'!U119 -> 0.1643563514 | J104: ='[5]Mid East'!V119 -> 0.7452030345 | K104: 0.09618523175 | L104: 0.1633403982 | M104: 0.74047437
A105: NHH UMS category D | B105: ='[5]Mid East'!N120 -> 0.008911602887 | C105: ='[5]Mid East'!O120 -> 0.6348907648 | D105: ='[5]Mid East'!P120 -> 0.3561976323 | E105: ='[5]Mid East'!Q120 -> 0.008836794247 | F105: ='[5]Mid East'!R120 -> 0.6356089824 | G105: ='[5]Mid East'!S120 -> 0.3555542234 | H105: ='[5]Mid East'!T120 -> 0.008743305547 | I105: ='[5]Mid East'!U120 -> 0.6357185865 | J105: ='[5]Mid East'!V120 -> 0.3555381079 | K105: 0.00883056756 | L105: 0.6354061113 | M105: 0.3557633212
A109: 1069 - Peaking probabilities by network level
A110: Charges for year Y are set in Y-2 using historical data for the previous three years
B113: Y - 5 | F113: Y - 4 | J113: Y - 3 | N113: Information to be used calculating tariffs in year t
B114: Red | C114: Amber | D114: Green | E114: Black | F114: Red | G114: Amber | H114: Green | I114: Black | J114: Red | K114: Amber | L114: Green | M114: Black | N114: Red | O114: Amber | P114: Green | Q114: Black
A115: GSPs | B115: ='[5]Mid East'!R102 -> 1 | C115: ='[5]Mid East'!S102 -> 0 | D115: ='[5]Mid East'!T102 -> 0 | E115: ='[5]Mid East'!U102 -> 1 | F115: ='[5]Mid East'!V102 -> 1 | G115: ='[5]Mid East'!W102 -> 0 | H115: ='[5]Mid East'!X102 -> 0 | I115: ='[5]Mid East'!Y102 -> 1 | J115: ='[5]Mid East'!Z102 -> 1 | K115: ='[5]Mid East'!AA102 -> 0 | L115: ='[5]Mid East'!AB102 -> 0 | M115: ='[5]Mid East'!AC102 -> 1 | N115: =AVERAGE(B115,F115,J115) -> 1 | O115: =AVERAGE(C115,G115,K115) -> 0 | P115: =AVERAGE(D115,H115,L115) -> 0 | Q115: =AVERAGE(E115,I115,M115) -> 1
A116: 132kV | B116: ='[5]Mid East'!R103 -> 0.7578518548 | C116: ='[5]Mid East'!S103 -> 0.2197027863 | D116: ='[5]Mid East'!T103 -> 0.02244535888 | E116: ='[5]Mid East'!U103 -> 0.7553961282 | F116: ='[5]Mid East'!V103 -> 0.8329102217 | G116: ='[5]Mid East'!W103 -> 0.1561696755 | H116: ='[5]Mid East'!X103 -> 0.01092010273 | I116: ='[5]Mid East'!Y103 -> 0.8253267163 | J116: ='[5]Mid East'!Z103 -> 0.7517476481 | K116: ='[5]Mid East'!AA103 -> 0.2482523519 | L116: ='[5]Mid East'!AB103 -> 0 | M116: ='[5]Mid East'!AC103 -> 0.7222133967 | N116: 0.7808365749 | O116: 0.2080416046 | P116: 0.01112182054 | Q116: 0.7676454137
A117: 132kV/EHV | B117: ='[5]Mid East'!R104 -> 0.7578518548 | C117: ='[5]Mid East'!S104 -> 0.2197027863 | D117: ='[5]Mid East'!T104 -> 0.02244535888 | E117: ='[5]Mid East'!U104 -> 0.7553961282 | F117: ='[5]Mid East'!V104 -> 0.8329102217 | G117: ='[5]Mid East'!W104 -> 0.1561696755 | H117: ='[5]Mid East'!X104 -> 0.01092010273 | I117: ='[5]Mid East'!Y104 -> 0.8253267163 | J117: ='[5]Mid East'!Z104 -> 0.7517476481 | K117: ='[5]Mid East'!AA104 -> 0.2482523519 | L117: ='[5]Mid East'!AB104 -> 0 | M117: ='[5]Mid East'!AC104 -> 0.7222133967 | N117: 0.7808365749 | O117: 0.2080416046 | P117: 0.01112182054 | Q117: 0.7676454137
A118: EHV | B118: ='[5]Mid East'!R105 -> 0.6503197777 | C118: ='[5]Mid East'!S105 -> 0.3106660554 | D118: ='[5]Mid East'!T105 -> 0.03901416691 | E118: ='[5]Mid East'!U105 -> 0.6445793724 | F118: ='[5]Mid East'!V105 -> 0.6677766134 | G118: ='[5]Mid East'!W105 -> 0.2909444085 | H118: ='[5]Mid East'!X105 -> 0.04127897807 | I118: ='[5]Mid East'!Y105 -> 0.6564800523 | J118: ='[5]Mid East'!Z105 -> 0.671551727 | K118: ='[5]Mid East'!AA105 -> 0.2919991521 | L118: ='[5]Mid East'!AB105 -> 0.0364491209 | M118: ='[5]Mid East'!AC105 -> 0.6566215961 | N118: 0.6632160394 | O118: 0.297869872 | P118: 0.03891408863 | Q118: 0.6525603403
A119: EHV/HV | B119: ='[5]Mid East'!R106 -> 0.6503197777 | C119: ='[5]Mid East'!S106 -> 0.3106660554 | D119: ='[5]Mid East'!T106 -> 0.03901416691 | E119: ='[5]Mid East'!U106 -> 0.6445793724 | F119: ='[5]Mid East'!V106 -> 0.6677766134 | G119: ='[5]Mid East'!W106 -> 0.2909444085 | H119: ='[5]Mid East'!X106 -> 0.04127897807 | I119: ='[5]Mid East'!Y106 -> 0.6564800523 | J119: ='[5]Mid East'!Z106 -> 0.671551727 | K119: ='[5]Mid East'!AA106 -> 0.2919991521 | L119: ='[5]Mid East'!AB106 -> 0.0364491209 | M119: ='[5]Mid East'!AC106 -> 0.6566215961 | N119: 0.6632160394 | O119: 0.297869872 | P119: 0.03891408863 | Q119: 0.6525603403
A120: 132kV/HV | B120: ='[5]Mid East'!R107 -> 0.7578518548 | C120: ='[5]Mid East'!S107 -> 0.2197027863 | D120: ='[5]Mid East'!T107 -> 0.02244535888 | E120: ='[5]Mid East'!U107 -> 0.7553961282 | F120: ='[5]Mid East'!V107 -> 0.8329102217 | G120: ='[5]Mid East'!W107 -> 0.1561696755 | H120: ='[5]Mid East'!X107 -> 0.01092010273 | I120: ='[5]Mid East'!Y107 -> 0.8253267163 | J120: ='[5]Mid East'!Z107 -> 0.7517476481 | K120: ='[5]Mid East'!AA107 -> 0.2482523519 | L120: ='[5]Mid East'!AB107 -> 0 | M120: ='[5]Mid East'!AC107 -> 0.7222133967 | N120: 0.7808365749 | O120: 0.2080416046 | P120: 0.01112182054 | Q120: 0.7676454137
A121: HV | B121: ='[5]Mid East'!R108 -> 0.6503197777 | C121: ='[5]Mid East'!S108 -> 0.3106660554 | D121: ='[5]Mid East'!T108 -> 0.03901416691 | E121: ='[5]Mid East'!U108 -> 0.6445793724 | F121: ='[5]Mid East'!V108 -> 0.6677766134 | G121: ='[5]Mid East'!W108 -> 0.2909444085 | H121: ='[5]Mid East'!X108 -> 0.04127897807 | I121: ='[5]Mid East'!Y108 -> 0.6564800523 | J121: ='[5]Mid East'!Z108 -> 0.671551727 | K121: ='[5]Mid East'!AA108 -> 0.2919991521 | L121: ='[5]Mid East'!AB108 -> 0.0364491209 | M121: ='[5]Mid East'!AC108 -> 0.6566215961 | N121: 0.6632160394 | O121: 0.297869872 | P121: 0.03891408863 | Q121: 0.6525603403
A122: HV/LV | B122: ='[5]Mid East'!R109 -> 0.6503197777 | C122: ='[5]Mid East'!S109 -> 0.3106660554 | D122: ='[5]Mid East'!T109 -> 0.03901416691 | E122: ='[5]Mid East'!U109 -> 0.6445793724 | F122: ='[5]Mid East'!V109 -> 0.6677766134 | G122: ='[5]Mid East'!W109 -> 0.2909444085 | H122: ='[5]Mid East'!X109 -> 0.04127897807 | I122: ='[5]Mid East'!Y109 -> 0.6564800523 | J122: ='[5]Mid East'!Z109 -> 0.671551727 | K122: ='[5]Mid East'!AA109 -> 0.2919991521 | L122: ='[5]Mid East'!AB109 -> 0.0364491209 | M122: ='[5]Mid East'!AC109 -> 0.6566215961 | N122: 0.6632160394 | O122: 0.297869872 | P122: 0.03891408863 | Q122: 0.6525603403
A123: LV circuits | B123: ='[5]Mid East'!R110 -> 0.6503197777 | C123: ='[5]Mid East'!S110 -> 0.3106660554 | D123: ='[5]Mid East'!T110 -> 0.03901416691 | E123: ='[5]Mid East'!U110 -> 0.6445793724 | F123: ='[5]Mid East'!V110 -> 0.6677766134 | G123: ='[5]Mid East'!W110 -> 0.2909444085 | H123: ='[5]Mid East'!X110 -> 0.04127897807 | I123: ='[5]Mid East'!Y110 -> 0.6564800523 | J123: ='[5]Mid East'!Z110 -> 0.671551727 | K123: ='[5]Mid East'!AA110 -> 0.2919991521 | L123: ='[5]Mid East'!AB110 -> 0.0364491209 | M123: ='[5]Mid East'!AC110 -> 0.6566215961 | N123: 0.6632160394 | O123: 0.297869872 | P123: 0.03891408863 | Q123: 0.6525603403

Sheet Mat of App
B3: 1025. Matrix of applicability of LV service models to tariffs with fixed charges
C5: ='CDCM Forecast Data'!$E$11 -> 2019/20 | K5: ='CDCM Forecast Data'!$F$11 -> 2020/21 | S5: ='CDCM Forecast Data'!$G$11 -> 2021/22 | AA5: ='CDCM Forecast Data'!$H$11 -> 2022/23 | AI5: ='CDCM Forecast Data'!$I$11 -> 2023/24
C6: LV service model 1 | D6: LV service model 2 | E6: LV service model 3 | F6: LV service model 4 | G6: LV service model 5 | H6: LV service model 6 | I6: LV service model 7 | J6: LV service model 8 | K6: LV service model 1 | L6: LV service model 2 | M6: LV service model 3 | N6: LV service model 4 | O6: LV service model 5 | P6: LV service model 6 | Q6: LV service model 7 | R6: LV service model 8 | S6: LV service model 1 | T6: LV service model 2 | U6: LV service model 3 | V6: LV service model 4 | W6: LV service model 5 | X6: LV service model 6 | Y6: LV service model 7 | Z6: LV service model 8 | AA6: LV service model 1 | AB6: LV service model 2 | AC6: LV service model 3 | AD6: LV service model 4 | AE6: LV service model 5 | AF6: LV service model 6 | AG6: LV service model 7 | AH6: LV service model 8 | AI6: LV service model 1 | AJ6: LV service model 2 | AK6: LV service model 3 | AL6: LV service model 4 | AM6: LV service model 5 | AN6: LV service model 6 | AO6: LV service model 7 | AP6: LV service model 8
B7: Domestic Unrestricted | C7: 0.05 | D7: 0 | E7: 0 | F7: 0 | G7: 0 | H7: 0 | I7: 0 | J7: 0 | K7: =C7 -> 0.05 | L7: =D7 -> 0 | M7: =E7 -> 0 | N7: =F7 -> 0 | O7: =G7 -> 0 | P7: =H7 -> 0 | Q7: =I7 -> 0 | R7: =J7 -> 0 | S7: =K7 -> 0.05 | T7: =L7 -> 0 | U7: =M7 -> 0 | V7: =N7 -> 0 | W7: =O7 -> 0 | X7: =P7 -> 0 | Y7: =Q7 -> 0 | Z7: =R7 -> 0 | AA7: =S7 -> 0.05 | AB7: =T7 -> 0 | AC7: =U7 -> 0 | AD7: =V7 -> 0 | AE7: =W7 -> 0 | AF7: =X7 -> 0 | AG7: =Y7 -> 0 | AH7: =Z7 -> 0 | AI7: =AA7 -> 0.05 | AJ7: =AB7 -> 0 | AK7: =AC7 -> 0 | AL7: =AD7 -> 0 | AM7: =AE7 -> 0 | AN7: =AF7 -> 0 | AO7: =AG7 -> 0 | AP7: =AH7 -> 0
B8: Domestic Two Rate | C8: 0.05 | D8: 0 | E8: 0 | F8: 0 | G8: 0 | H8: 0 | I8: 0 | J8: 0 | K8: =C8 -> 0.05 | L8: =D8 -> 0 | M8: =E8 -> 0 | N8: =F8 -> 0 | O8: =G8 -> 0 | P8: =H8 -> 0 | Q8: =I8 -> 0 | R8: =J8 -> 0 | S8: =K8 -> 0.05 | T8: =L8 -> 0 | U8: =M8 -> 0 | V8: =N8 -> 0 | W8: =O8 -> 0 | X8: =P8 -> 0 | Y8: =Q8 -> 0 | Z8: =R8 -> 0 | AA8: =S8 -> 0.05 | AB8: =T8 -> 0 | AC8: =U8 -> 0 | AD8: =V8 -> 0 | AE8: =W8 -> 0 | AF8: =X8 -> 0 | AG8: =Y8 -> 0 | AH8: =Z8 -> 0 | AI8: =AA8 -> 0.05 | AJ8: =AB8 -> 0 | AK8: =AC8 -> 0 | AL8: =AD8 -> 0 | AM8: =AE8 -> 0 | AN8: =AF8 -> 0 | AO8: =AG8 -> 0 | AP8: =AH8 -> 0
B9: Small Non Domestic Unrestricted | C9: 0 | D9: 1 | E9: 0 | F9: 0 | G9: 0 | H9: 0 | I9: 0 | J9: 0 | K9: 0 | L9: 1 | M9: 0 | N9: 0 | O9: 0 | P9: 0 | Q9: 0 | R9: 0 | S9: 0 | T9: 1 | U9: 0 | V9: 0 | W9: 0 | X9: 0 | Y9: 0 | Z9: 0 | AA9: 0 | AB9: 1 | AC9: 0 | AD9: 0 | AE9: 0 | AF9: 0 | AG9: 0 | AH9: 0 | AI9: 0 | AJ9: 1 | AK9: 0 | AL9: 0 | AM9: 0 | AN9: 0 | AO9: 0 | AP9: 0
B10: Small Non Domestic Two Rate | C10: 0 | D10: 1 | E10: 0 | F10: 0 | G10: 0 | H10: 0 | I10: 0 | J10: 0 | K10: 0 | L10: 1 | M10: 0 | N10: 0 | O10: 0 | P10: 0 | Q10: 0 | R10: 0 | S10: 0 | T10: 1 | U10: 0 | V10: 0 | W10: 0 | X10: 0 | Y10: 0 | Z10: 0 | AA10: 0 | AB10: 1 | AC10: 0 | AD10: 0 | AE10: 0 | AF10: 0 | AG10: 0 | AH10: 0 | AI10: 0 | AJ10: 1 | AK10: 0 | AL10: 0 | AM10: 0 | AN10: 0 | AO10: 0 | AP10: 0
B11: LV Medium Non-Domestic | C11: 0 | D11: 0 | E11: 1 | F11: 0 | G11: 0 | H11: 0 | I11: 0 | J11: 0 | K11: 0 | L11: 0 | M11: 1 | N11: 0 | O11: 0 | P11: 0 | Q11: 0 | R11: 0 | S11: 0 | T11: 0 | U11: 1 | V11: 0 | W11: 0 | X11: 0 | Y11: 0 | Z11: 0 | AA11: 0 | AB11: 0 | AC11: 1 | AD11: 0 | AE11: 0 | AF11: 0 | AG11: 0 | AH11: 0 | AI11: 0 | AJ11: 0 | AK11: 1 | AL11: 0 | AM11: 0 | AN11: 0 | AO11: 0 | AP11: 0
B12: LV Sub Medium Non-Domestic | C12: 0 | D12: 0 | E12: 0 | F12: 1 | G12: 0 | H12: 0 | I12: 0 | J12: 0 | K12: 0 | L12: 0 | M12: 0 | N12: 1 | O12: 0 | P12: 0 | Q12: 0 | R12: 0 | S12: 0 | T12: 0 | U12: 0 | V12: 1 | W12: 0 | X12: 0 | Y12: 0 | Z12: 0 | AA12: 0 | AB12: 0 | AC12: 0 | AD12: 1 | AE12: 0 | AF12: 0 | AG12: 0 | AH12: 0 | AI12: 0 | AJ12: 0 | AK12: 0 | AL12: 1 | AM12: 0 | AN12: 0 | AO12: 0 | AP12: 0
B13: LV Network Domestic | C13: 0.05 | D13: 0 | E13: 0 | F13: 0 | G13: 0 | H13: 0 | I13: 0 | J13: 0 | K13: 0.05 | L13: 0 | M13: 0 | N13: 0 | O13: 0 | P13: 0 | Q13: 0 | R13: 0 | S13: 0.05 | T13: 0 | U13: 0 | V13: 0 | W13: 0 | X13: 0 | Y13: 0 | Z13: 0 | AA13: 0.05 | AB13: 0 | AC13: 0 | AD13: 0 | AE13: 0 | AF13: 0 | AG13: 0 | AH13: 0 | AI13: 0.05 | AJ13: 0 | AK13: 0 | AL13: 0 | AM13: 0 | AN13: 0 | AO13: 0 | AP13: 0
B14: LV Network Non-Domestic Non-CT | C14: 0 | D14: 1 | E14: 0 | F14: 0 | G14: 0 | H14: 0 | I14: 0 | J14: 0 | K14: 0 | L14: 1 | M14: 0 | N14: 0 | O14: 0 | P14: 0 | Q14: 0 | R14: 0 | S14: 0 | T14: 1 | U14: 0 | V14: 0 | W14: 0 | X14: 0 | Y14: 0 | Z14: 0 | AA14: 0 | AB14: 1 | AC14: 0 | AD14: 0 | AE14: 0 | AF14: 0 | AG14: 0 | AH14: 0 | AI14: 0 | AJ14: 1 | AK14: 0 | AL14: 0 | AM14: 0 | AN14: 0 | AO14: 0 | AP14: 0
B15: LV HH Metered | C15: 0 | D15: 0 | E15: 0 | F15: 0 | G15: 1 | H15: 0 | I15: 0 | J15: 0 | K15: 0 | L15: 0 | M15: 0 | N15: 0 | O15: 1 | P15: 0 | Q15: 0 | R15: 0 | S15: 0 | T15: 0 | U15: 0 | V15: 0 | W15: 1 | X15: 0 | Y15: 0 | Z15: 0 | AA15: 0 | AB15: 0 | AC15: 0 | AD15: 0 | AE15: 1 | AF15: 0 | AG15: 0 | AH15: 0 | AI15: 0 | AJ15: 0 | AK15: 0 | AL15: 0 | AM15: 1 | AN15: 0 | AO15: 0 | AP15: 0
B16: LV Sub HH Metered | C16: 0 | D16: 0 | E16: 0 | F16: 0 | G16: 0 | H16: 1 | I16: 0 | J16: 0 | K16: 0 | L16: 0 | M16: 0 | N16: 0 | O16: 0 | P16: 1 | Q16: 0 | R16: 0 | S16: 0 | T16: 0 | U16: 0 | V16: 0 | W16: 0 | X16: 1 | Y16: 0 | Z16: 0 | AA16: 0 | AB16: 0 | AC16: 0 | AD16: 0 | AE16: 0 | AF16: 1 | AG16: 0 | AH16: 0 | AI16: 0 | AJ16: 0 | AK16: 0 | AL16: 0 | AM16: 0 | AN16: 1 | AO16: 0 | AP16: 0
B17: LV Generation NHH or Aggregate HH | C17: 0 | D17: 0 | E17: 0 | F17: 0 | G17: 0 | H17: 0 | I17: 1 | J17: 0 | K17: 0 | L17: 0 | M17: 0 | N17: 0 | O17: 0 | P17: 0 | Q17: 1 | R17: 0 | S17: 0 | T17: 0 | U17: 0 | V17: 0 | W17: 0 | X17: 0 | Y17: 1 | Z17: 0 | AA17: 0 | AB17: 0 | AC17: 0 | AD17: 0 | AE17: 0 | AF17: 0 | AG17: 1 | AH17: 0 | AI17: 0 | AJ17: 0 | AK17: 0 | AL17: 0 | AM17: 0 | AN17: 0 | AO17: 1 | AP17: 0
B18: LV Sub Generation NHH | C18: 0 | D18: 0 | E18: 0 | F18: 0 | G18: 0 | H18: 0 | I18: 1 | J18: 0 | K18: 0 | L18: 0 | M18: 0 | N18: 0 | O18: 0 | P18: 0 | Q18: 1 | R18: 0 | S18: 0 | T18: 0 | U18: 0 | V18: 0 | W18: 0 | X18: 0 | Y18: 1 | Z18: 0 | AA18: 0 | AB18: 0 | AC18: 0 | AD18: 0 | AE18: 0 | AF18: 0 | AG18: 1 | AH18: 0 | AI18: 0 | AJ18: 0 | AK18: 0 | AL18: 0 | AM18: 0 | AN18: 0 | AO18: 1 | AP18: 0
B19: LV Generation Intermittent | C19: 0 | D19: 0 | E19: 0 | F19: 0 | G19: 0 | H19: 0 | I19: 1 | J19: 0 | K19: 0 | L19: 0 | M19: 0 | N19: 0 | O19: 0 | P19: 0 | Q19: 1 | R19: 0 | S19: 0 | T19: 0 | U19: 0 | V19: 0 | W19: 0 | X19: 0 | Y19: 1 | Z19: 0 | AA19: 0 | AB19: 0 | AC19: 0 | AD19: 0 | AE19: 0 | AF19: 0 | AG19: 1 | AH19: 0 | AI19: 0 | AJ19: 0 | AK19: 0 | AL19: 0 | AM19: 0 | AN19: 0 | AO19: 1 | AP19: 0
B20: LV Generation Intermittent no RP charge | C20: 0 | D20: 0 | E20: 0 | F20: 0 | G20: 0 | H20: 0 | I20: 1 | J20: 0 | K20: 0 | L20: 0 | M20: 0 | N20: 0 | O20: 0 | P20: 0 | Q20: 1 | R20: 0 | S20: 0 | T20: 0 | U20: 0 | V20: 0 | W20: 0 | X20: 0 | Y20: 1 | Z20: 0 | AA20: 0 | AB20: 0 | AC20: 0 | AD20: 0 | AE20: 0 | AF20: 0 | AG20: 1 | AH20: 0 | AI20: 0 | AJ20: 0 | AK20: 0 | AL20: 0 | AM20: 0 | AN20: 0 | AO20: 1 | AP20: 0
B21: LV Generation Non-Intermittent | C21: 0 | D21: 0 | E21: 0 | F21: 0 | G21: 0 | H21: 0 | I21: 0 | J21: 0 | K21: 0 | L21: 0 | M21: 0 | N21: 0 | O21: 0 | P21: 0 | Q21: 0 | R21: 0 | S21: 0 | T21: 0 | U21: 0 | V21: 0 | W21: 0 | X21: 0 | Y21: 0 | Z21: 0 | AA21: 0 | AB21: 0 | AC21: 0 | AD21: 0 | AE21: 0 | AF21: 0 | AG21: 0 | AH21: 0 | AI21: 0 | AJ21: 0 | AK21: 0 | AL21: 0 | AM21: 0 | AN21: 0 | AO21: 0 | AP21: 0
B22: LV Generation Non-Intermittent no RP charge | C22: 0 | D22: 0 | E22: 0 | F22: 0 | G22: 0 | H22: 0 | I22: 0 | J22: 0 | K22: 0 | L22: 0 | M22: 0 | N22: 0 | O22: 0 | P22: 0 | Q22: 0 | R22: 0 | S22: 0 | T22: 0 | U22: 0 | V22: 0 | W22: 0 | X22: 0 | Y22: 0 | Z22: 0 | AA22: 0 | AB22: 0 | AC22: 0 | AD22: 0 | AE22: 0 | AF22: 0 | AG22: 0 | AH22: 0 | AI22: 0 | AJ22: 0 | AK22: 0 | AL22: 0 | AM22: 0 | AN22: 0 | AO22: 0 | AP22: 0
B23: LV Sub Generation Intermittent | C23: 0 | D23: 0 | E23: 0 | F23: 0 | G23: 0 | H23: 0 | I23: 0 | J23: 0 | K23: 0 | L23: 0 | M23: 0 | N23: 0 | O23: 0 | P23: 0 | Q23: 0 | R23: 0 | S23: 0 | T23: 0 | U23: 0 | V23: 0 | W23: 0 | X23: 0 | Y23: 0 | Z23: 0 | AA23: 0 | AB23: 0 | AC23: 0 | AD23: 0 | AE23: 0 | AF23: 0 | AG23: 0 | AH23: 0 | AI23: 0 | AJ23: 0 | AK23: 0 | AL23: 0 | AM23: 0 | AN23: 0 | AO23: 0 | AP23: 0
B24: LV Sub Generation Intermittent no RP charge | C24: 0 | D24: 0 | E24: 0 | F24: 0 | G24: 0 | H24: 0 | I24: 0 | J24: 0 | K24: 0 | L24: 0 | M24: 0 | N24: 0 | O24: 0 | P24: 0 | Q24: 0 | R24: 0 | S24: 0 | T24: 0 | U24: 0 | V24: 0 | W24: 0 | X24: 0 | Y24: 0 | Z24: 0 | AA24: 0 | AB24: 0 | AC24: 0 | AD24: 0 | AE24: 0 | AF24: 0 | AG24: 0 | AH24: 0 | AI24: 0 | AJ24: 0 | AK24: 0 | AL24: 0 | AM24: 0 | AN24: 0 | AO24: 0 | AP24: 0
B25: LV Sub Generation Non-Intermittent | C25: 0 | D25: 0 | E25: 0 | F25: 0 | G25: 0 | H25: 0 | I25: 0 | J25: 0 | K25: 0 | L25: 0 | M25: 0 | N25: 0 | O25: 0 | P25: 0 | Q25: 0 | R25: 0 | S25: 0 | T25: 0 | U25: 0 | V25: 0 | W25: 0 | X25: 0 | Y25: 0 | Z25: 0 | AA25: 0 | AB25: 0 | AC25: 0 | AD25: 0 | AE25: 0 | AF25: 0 | AG25: 0 | AH25: 0 | AI25: 0 | AJ25: 0 | AK25: 0 | AL25: 0 | AM25: 0 | AN25: 0 | AO25: 0 | AP25: 0
B26: LV Sub Generation Non-Intermittent no RP charge | C26: 0 | D26: 0 | E26: 0 | F26: 0 | G26: 0 | H26: 0 | I26: 0 | J26: 0 | K26: 0 | L26: 0 | M26: 0 | N26: 0 | O26: 0 | P26: 0 | Q26: 0 | R26: 0 | S26: 0 | T26: 0 | U26: 0 | V26: 0 | W26: 0 | X26: 0 | Y26: 0 | Z26: 0 | AA26: 0 | AB26: 0 | AC26: 0 | AD26: 0 | AE26: 0 | AF26: 0 | AG26: 0 | AH26: 0 | AI26: 0 | AJ26: 0 | AK26: 0 | AL26: 0 | AM26: 0 | AN26: 0 | AO26: 0 | AP26: 0
B28: 1026. Matrix of applicability of LV service models to unmetered tariffs
B30: Source: service models
B31: Proportion of service model involved in connecting load of 1 MWh/year | C31: ='CDCM Forecast Data'!$E$11 -> 2019/20 | K31: ='CDCM Forecast Data'!$F$11 -> 2020/21 | S31: ='CDCM Forecast Data'!$G$11 -> 2021/22 | AA31: ='CDCM Forecast Data'!$H$11 -> 2022/23 | AI31: ='CDCM Forecast Data'!$I$11 -> 2023/24
C32: LV service model 1 | D32: LV service model 2 | E32: LV service model 3 | F32: LV service model 4 | G32: LV service model 5 | H32: LV service model 6 | I32: LV service model 7 | J32: LV service model 8 | K32: LV service model 1 | L32: LV service model 2 | M32: LV service model 3 | N32: LV service model 4 | O32: LV service model 5 | P32: LV service model 6 | Q32: LV service model 7 | R32: LV service model 8 | S32: LV service model 1 | T32: LV service model 2 | U32: LV service model 3 | V32: LV service model 4 | W32: LV service model 5 | X32: LV service model 6 | Y32: LV service model 7 | Z32: LV service model 8 | AA32: LV service model 1 | AB32: LV service model 2 | AC32: LV service model 3 | AD32: LV service model 4 | AE32: LV service model 5 | AF32: LV service model 6 | AG32: LV service model 7 | AH32: LV service model 8 | AI32: LV service model 1 | AJ32: LV service model 2 | AK32: LV service model 3 | AL32: LV service model 4 | AM32: LV service model 5 | AN32: LV service model 6 | AO32: LV service model 7 | AP32: LV service model 8
B33: All LV unmetered tariffs | C33: 0 | D33: 0 | E33: 0 | F33: 0 | G33: 0 | H33: 0 | I33: 0 | J33: 0.488 | K33: =C33 -> 0 | L33: 0 | M33: 0 | N33: 0 | O33: 0 | P33: 0 | Q33: 0 | R33: 0.488 | S33: =K33 -> 0 | T33: =L33 -> 0 | U33: =M33 -> 0 | V33: =N33 -> 0 | W33: =O33 -> 0 | X33: =P33 -> 0 | Y33: =Q33 -> 0 | Z33: =R33 -> 0.488 | AA33: =S33 -> 0 | AB33: =T33 -> 0 | AC33: =U33 -> 0 | AD33: =V33 -> 0 | AE33: =W33 -> 0 | AF33: =X33 -> 0 | AG33: =Y33 -> 0 | AH33: =Z33 -> 0.488 | AI33: =AA33 -> 0 | AJ33: =AB33 -> 0 | AK33: =AC33 -> 0 | AL33: =AD33 -> 0 | AM33: =AE33 -> 0 | AN33: =AF33 -> 0 | AO33: =AG33 -> 0 | AP33: =AH33 -> 0.488
B35: 1028. Matrix of applicability of HV service models to tariffs with fixed charges
C36: ='CDCM Forecast Data'!$E$11 -> 2019/20 | H36: =+'CDCM Forecast Data'!F11 -> 2020/21 | M36: =+'CDCM Forecast Data'!G11 -> 2021/22 | R36: =+'CDCM Forecast Data'!H11 -> 2022/23 | W36: =+'CDCM Forecast Data'!I11 -> 2023/24
C37: HV service model 1 | D37: HV service model 2 | E37: HV service model 3 | F37: HV service model 4 | G37: HV service model 5 | H37: HV service model 1 | I37: HV service model 2 | J37: HV service model 3 | K37: HV service model 4 | L37: HV service model 5 | M37: HV service model 1 | N37: HV service model 2 | O37: HV service model 3 | P37: HV service model 4 | Q37: HV service model 5 | R37: HV service model 1 | S37: HV service model 2 | T37: HV service model 3 | U37: HV service model 4 | V37: HV service model 5 | W37: HV service model 1 | X37: HV service model 2 | Y37: HV service model 3 | Z37: HV service model 4 | AA37: HV service model 5
B38: HV Medium Non-Domestic | C38: 1 | D38: 0 | E38: 0 | F38: 0 | G38: 0 | H38: =C38 -> 1 | I38: =D38 -> 0 | J38: =E38 -> 0 | K38: =F38 -> 0 | L38: =G38 -> 0 | M38: =H38 -> 1 | N38: =I38 -> 0 | O38: =J38 -> 0 | P38: =K38 -> 0 | Q38: =L38 -> 0 | R38: =M38 -> 1 | S38: =N38 -> 0 | T38: =O38 -> 0 | U38: =P38 -> 0 | V38: =Q38 -> 0 | W38: =R38 -> 1 | X38: =S38 -> 0 | Y38: =T38 -> 0 | Z38: =U38 -> 0 | AA38: =V38 -> 0
B39: HV HH Metered | C39: 1 | D39: 0 | E39: 0 | F39: 0 | G39: 0 | H39: =C39 -> 1 | I39: =D39 -> 0 | J39: =E39 -> 0 | K39: =F39 -> 0 | L39: =G39 -> 0 | M39: =H39 -> 1 | N39: =I39 -> 0 | O39: =J39 -> 0 | P39: =K39 -> 0 | Q39: =L39 -> 0 | R39: =M39 -> 1 | S39: =N39 -> 0 | T39: =O39 -> 0 | U39: =P39 -> 0 | V39: =Q39 -> 0 | W39: =R39 -> 1 | X39: =S39 -> 0 | Y39: =T39 -> 0 | Z39: =U39 -> 0 | AA39: =V39 -> 0
B40: HV Generation Intermittent | C40: 0 | D40: 1 | E40: 0 | F40: 0 | G40: 0 | H40: 0 | I40: 1 | J40: 0 | K40: 0 | L40: 0 | M40: 0 | N40: 1 | O40: 0 | P40: 0 | Q40: 0 | R40: 0 | S40: 1 | T40: 0 | U40: 0 | V40: 0 | W40: 0 | X40: 1 | Y40: 0 | Z40: 0 | AA40: 0
B41: HV Generation Intermittent no RP charge | C41: 0 | D41: 1 | E41: 0 | F41: 0 | G41: 0 | H41: 0 | I41: 1 | J41: 0 | K41: 0 | L41: 0 | M41: 0 | N41: 1 | O41: 0 | P41: 0 | Q41: 0 | R41: 0 | S41: 1 | T41: 0 | U41: 0 | V41: 0 | W41: 0 | X41: 1 | Y41: 0 | Z41: 0 | AA41: 0
B42: HV Generation Non-Intermittent | C42: 0 | D42: 1 | E42: 0 | F42: 0 | G42: 0 | H42: 0 | I42: 1 | J42: 0 | K42: 0 | L42: 0 | M42: 0 | N42: 1 | O42: 0 | P42: 0 | Q42: 0 | R42: 0 | S42: 1 | T42: 0 | U42: 0 | V42: 0 | W42: 0 | X42: 1 | Y42: 0 | Z42: 0 | AA42: 0
B43: HV Generation Non-Intermittent no RP charge | C43: 0 | D43: 1 | E43: 0 | F43: 0 | G43: 0 | H43: 0 | I43: 1 | J43: 0 | K43: 0 | L43: 0 | M43: 0 | N43: 1 | O43: 0 | P43: 0 | Q43: 0 | R43: 0 | S43: 1 | T43: 0 | U43: 0 | V43: 0 | W43: 0 | X43: 1 | Y43: 0 | Z43: 0 | AA43: 0

Sheet CDCM Volume Forecasts
G3: Growth Rates (%)
G4: VOLUME - RED BAND | L4: VOLUME - AMBER BAND | P4: VOLUME - GREEN BAND | T4: CUSTOMER NUMBERS | X4: IMPORT CAPACITY | AB4: EXCEEDED CAPACITY | AF4: REACTIVE POWER
G5: Y | H5: Y + 1 | I5: Y + 2 | J5: Y + 3 | K5: Y + 4 | L5: Y + 1 | M5: Y + 2 | N5: Y + 3 | O5: Y + 4 | P5: Y + 1 | Q5: Y + 2 | R5: Y + 3 | S5: Y + 4 | T5: Y + 1 | U5: Y + 2 | V5: Y + 3 | W5: Y + 4 | X5: Y + 1 | Y5: Y + 2 | Z5: Y + 3 | AA5: Y + 4 | AB5: Y + 1 | AC5: Y + 2 | AD5: Y + 3 | AE5: Y + 4 | AF5: Y + 1 | AG5: Y + 2 | AH5: Y + 3 | AI5: Y + 4
E6: Customer Category | F6: Description | G6: =+'CDCM Forecast Data'!E11 -> 2019/20 | H6: =+'CDCM Forecast Data'!F11 -> 2020/21 | I6: =+'CDCM Forecast Data'!G11 -> 2021/22 | J6: =+'CDCM Forecast Data'!H11 -> 2022/23 | K6: =+'CDCM Forecast Data'!I11 -> 2023/24 | L6: =+H6 -> 2020/21 | M6: 2021/22 | N6: 2022/23 | O6: 2023/24 | P6: 2020/21 | Q6: 2021/22 | R6: 2022/23 | S6: 2023/24 | T6: 2020/21 | U6: 2021/22 | V6: 2022/23 | W6: 2023/24 | X6: 2020/21 | Y6: 2021/22 | Z6: 2022/23 | AA6: 2023/24 | AB6: =+T6 -> 2020/21 | AC6: 2021/22 | AD6: 2022/23 | AE6: 2023/24 | AF6: 2020/21 | AG6: 2021/22 | AH6: 2022/23 | AI6: 2023/24 | AJ6: Assumptions
E7: 1 | F7: Aggregated demand
E8: 2 | F8: Site-specific demand
E9: 3 | F9: Not used
E10: 4 | F10: Generation
E11: 5 | F11: Not used
E12: 6 | F12: Not used
E13: 7 | F13: Not used
E14: 8 | F14: Not used
E15: 9 | F15: Not used
E16: 10 | F16: Not used
E18: Summary Data | F18: Year | G18: =G6 -> 2019/20 | H18: =H6 -> 2020/21 | I18: =I6 -> 2021/22 | J18: =J6 -> 2022/23 | K18: =K6 -> 2023/24
F19: Total Volume | G19: =SUM(D29:F136) -> 26040291.62 | H19: =SUM(K29:M136) -> 26040291.62 | I19: =SUM(R29:T136) -> 26040291.62 | J19: =SUM(Y29:AA136) -> 26040291.62 | K19: =SUM(AF29:AH136) -> 26040291.62
F20: No. of MPANs | G20: =SUM(G29:G136) -> 2797417.265 | H20: =SUM(N29:N136) -> 2797417.265 | I20: =SUM(U29:U136) -> 2797417.265 | J20: =SUM(AB29:AB136) -> 2797417.265 | K20: =SUM(AI29:AI136) -> 2797417.265
F21: Total Import Capacity | G21: =SUM(H29:H136) -> 5058403.116 | H21: =SUM(O29:O136) -> 5058403.116 | I21: =SUM(V29:V136) -> 5058403.116 | J21: =SUM(AC29:AC136) -> 5058403.116 | K21: =SUM(AJ29:AJ136) -> 5058403.116
F22: Total exceeded capacity | G22: =SUM(I29:I136) -> 103420.3897 | H22: =SUM(P29:P136) -> 103420.3897 | I22: =SUM(W29:W136) -> 103420.3897 | J22: =SUM(AD29:AD136) -> 103420.3897 | K22: =SUM(AK29:AK136) -> 103420.3897
F23: Total Reactive | G23: =SUM(J29:J136) -> 990566.3249 | H23: =SUM(Q29:Q136) -> 990566.3249 | I23: =SUM(X29:X136) -> 990566.3249 | J23: =SUM(AE29:AE136) -> 990566.3249 | K23: =SUM(AL29:AL136) -> 990566.3249
C26: 1053. Volume forecasts for the charging year: | D26: =G6& " - ("&G5&")" -> 2019/20 - (Y) | K26: =H6& " - ("&H5&")" -> 2020/21 - (Y + 1) | R26: =I6& " - ("&I5&")" -> 2021/22 - (Y + 2) | Y26: =J6& " - ("&J5&")" -> 2022/23 - (Y + 3) | AF26: =K6& " - ("&K5&")" -> 2023/24 - (Y + 4)
B27: Customer Category | C27: Tariff | D27: Rate 1 units (MWh) | E27: Rate 2 units (MWh) | F27: Rate 3 units (MWh) | G27: MPANs | H27: Import capacity (kVA) | I27: Exceeded capacity (kVA) | J27: Reactive power units (MVArh) | K27: Rate 1 units (MWh) | L27: Rate 2 units (MWh) | M27: Rate 3 units (MWh) | N27: MPANs | O27: Import capacity (kVA) | P27: Exceeded capacity (kVA) | Q27: Reactive power units (MVArh) | R27: Rate 1 units (MWh) | S27: Rate 2 units (MWh) | T27: Rate 3 units (MWh) | U27: MPANs | V27: Import capacity (kVA) | W27: Exceeded capacity (kVA) | X27: Reactive power units (MVArh) | Y27: Rate 1 units (MWh) | Z27: Rate 2 units (MWh) | AA27: Rate 3 units (MWh) | AB27: MPANs | AC27: Import capacity (kVA) | AD27: Exceeded capacity (kVA) | AE27: Reactive power units (MVArh) | AF27: Rate 1 units (MWh) | AG27: Rate 2 units (MWh) | AH27: Rate 3 units (MWh) | AI27: MPANs | AJ27: Import capacity (kVA) | AK27: Exceeded capacity (kVA) | AL27: Reactive power units (MVArh)
A28: 1 | C28: > Domestic Unrestricted
A29: =A28+1 -> 2 | B29: 1 | C29: Domestic Unrestricted | D29: 5635747.395 | E29: 0 | F29: 0 | G29: 1671267.776 | H29: 0 | I29: 0 | J29: 0 | K29: =IF(D29,((VLOOKUP($B29,$E$7:$AI$16,4)+1)*D29),) -> 5635747.395 | L29: =IF(E29,((VLOOKUP($B29,$E$7:$AI$16,8)+1)*E29),) -> 0 | M29: =IF(F29,((VLOOKUP($B29,$E$7:$AI$16,12)+1)*F29),) -> 0 | N29: =IF(G29,((VLOOKUP($B29,$E$7:$AI$16,16)+1)*G29),) -> 1671267.776 | O29: =IF(H29,((VLOOKUP($B29,$E$7:$AI$16,20)+1)*H29),) -> 0 | R29: =IF(D29,((VLOOKUP($B29,$E$7:$AI$16,5)+1)*K29),) -> 5635747.395 | S29: =IF(E29,((VLOOKUP($B29,$E$7:$AI$16,5+4)+1)*L29),) -> 0 | T29: =IF(F29,((VLOOKUP($B29,$E$7:$AI$16,5+8)+1)*M29),) -> 0 | U29: =IF(G29,((VLOOKUP($B29,$E$7:$AI$16,5+12)+1)*N29),) -> 1671267.776 | V29: =IF(H29,((VLOOKUP($B29,$E$7:$AI$16,5+16)+1)*O29),) -> 0 | Y29: =IF(D29,((VLOOKUP($B29,$E$7:$AI$16,6)+1)*R29),) -> 5635747.395 | Z29: =IF(E29,((VLOOKUP($B29,$E$7:$AI$16,6+4)+1)*S29),) -> 0 | AA29: =IF(F29,((VLOOKUP($B29,$E$7:$AI$16,6+8)+1)*T29),) -> 0 | AB29: =IF(G29,((VLOOKUP($B29,$E$7:$AI$16,6+12)+1)*U29),) -> 1671267.776 | AC29: =IF(H29,((VLOOKUP($B29,$E$7:$AI$16,6+16)+1)*V29),) -> 0 | AF29: =IF(D29,((VLOOKUP($B29,$E$7:$AI$16,7)+1)*Y29),) -> 5635747.395 | AG29: =IF(E29,((VLOOKUP($B29,$E$7:$AI$16,7+4)+1)*Z29),) -> 0 | AH29: =IF(F29,((VLOOKUP($B29,$E$7:$AI$16,7+8)+1)*AA29),) -> 0 | AI29: =IF(G29,((VLOOKUP($B29,$E$7:$AI$16,7+12)+1)*AB29),) -> 1671267.776 | AJ29: =IF(H29,((VLOOKUP($B29,$E$7:$AI$16,7+16)+1)*AC29),) -> 0
A30: =A29+1 -> 3 | B30: 1 | C30: LDNO LV: Domestic Unrestricted | D30: 94982.04277 | E30: 0 | F30: 0 | G30: 35033.39034 | H30: 0 | I30: 0 | J30: 0 | K30: =IF(D30,((VLOOKUP($B30,$E$7:$AI$16,4)+1)*D30),) -> 94982.04277 | L30: =IF(E30,((VLOOKUP($B30,$E$7:$AI$16,8)+1)*E30),) -> 0 | M30: =IF(F30,((VLOOKUP($B30,$E$7:$AI$16,12)+1)*F30),) -> 0 | N30: =IF(G30,((VLOOKUP($B30,$E$7:$AI$16,16)+1)*G30),) -> 35033.39034 | O30: =IF(H30,((VLOOKUP($B30,$E$7:$AI$16,20)+1)*H30),) -> 0 | R30: =IF(D30,((VLOOKUP($B30,$E$7:$AI$16,5)+1)*K30),) -> 94982.04277 | S30: =IF(E30,((VLOOKUP($B30,$E$7:$AI$16,5+4)+1)*L30),) -> 0 | T30: =IF(F30,((VLOOKUP($B30,$E$7:$AI$16,5+8)+1)*M30),) -> 0 | U30: =IF(G30,((VLOOKUP($B30,$E$7:$AI$16,5+12)+1)*N30),) -> 35033.39034 | V30: =IF(H30,((VLOOKUP($B30,$E$7:$AI$16,5+16)+1)*O30),) -> 0 | Y30: =IF(D30,((VLOOKUP($B30,$E$7:$AI$16,6)+1)*R30),) -> 94982.04277 | Z30: =IF(E30,((VLOOKUP($B30,$E$7:$AI$16,6+4)+1)*S30),) -> 0 | AA30: =IF(F30,((VLOOKUP($B30,$E$7:$AI$16,6+8)+1)*T30),) -> 0 | AB30: =IF(G30,((VLOOKUP($B30,$E$7:$AI$16,6+12)+1)*U30),) -> 35033.39034 | AC30: =IF(H30,((VLOOKUP($B30,$E$7:$AI$16,6+16)+1)*V30),) -> 0 | AF30: =IF(D30,((VLOOKUP($B30,$E$7:$AI$16,7)+1)*Y30),) -> 94982.04277 | AG30: =IF(E30,((VLOOKUP($B30,$E$7:$AI$16,7+4)+1)*Z30),) -> 0 | AH30: =IF(F30,((VLOOKUP($B30,$E$7:$AI$16,7+8)+1)*AA30),) -> 0 | AI30: =IF(G30,((VLOOKUP($B30,$E$7:$AI$16,7+12)+1)*AB30),) -> 35033.39034 | AJ30: =IF(H30,((VLOOKUP($B30,$E$7:$AI$16,7+16)+1)*AC30),) -> 0
A31: 4 | B31: 1 | C31: LDNO HV: Domestic Unrestricted | D31: 155171.2713 | E31: 0 | F31: 0 | G31: 58162.88093 | H31: 0 | I31: 0 | J31: 0 | K31: 155171.2713 | L31: 0 | M31: 0 | N31: 58162.88093 | O31: 0 | R31: 155171.2713 | S31: 0 | T31: 0 | U31: 58162.88093 | V31: 0 | Y31: 155171.2713 | Z31: 0 | AA31: 0 | AB31: 58162.88093 | AC31: 0 | AF31: 155171.2713 | AG31: 0 | AH31: 0 | AI31: 58162.88093 | AJ31: 0
A32: 5 | C32: > Domestic Two Rate | D32: 0 | E32: 0 | F32: 0 | G32: 0 | H32: 0 | I32: 0 | J32: 0 | K32: 0 | L32: 0 | M32: 0 | N32: 0 | O32: 0 | R32: 0 | S32: 0 | T32: 0 | U32: 0 | V32: 0 | Y32: 0 | Z32: 0 | AA32: 0 | AB32: 0 | AC32: 0 | AF32: 0 | AG32: 0 | AH32: 0 | AI32: 0 | AJ32: 0
A33: 6 | B33: 1 | C33: Domestic Two Rate | D33: 2417415.845 | E33: 1076309.379 | F33: 0 | G33: 792868.4906 | H33: 0 | I33: 0 | J33: 0 | K33: 2417415.845 | L33: 1076309.379 | M33: 0 | N33: 792868.4906 | O33: 0 | R33: 2417415.845 | S33: 1076309.379 | T33: 0 | U33: 792868.4906 | V33: 0 | Y33: 2417415.845 | Z33: 1076309.379 | AA33: 0 | AB33: 792868.4906 | AC33: 0 | AF33: 2417415.845 | AG33: 1076309.379 | AH33: 0 | AI33: 792868.4906 | AJ33: 0
A34: 7 | B34: 1 | C34: LDNO LV: Domestic Two Rate | D34: 4629.961433 | E34: 1426.905031 | F34: 0 | G34: 1499.239142 | H34: 0 | I34: 0 | J34: 0 | K34: 4629.961433 | L34: 1426.905031 | M34: 0 | N34: 1499.239142 | O34: 0 | R34: 4629.961433 | S34: 1426.905031 | T34: 0 | U34: 1499.239142 | V34: 0 | Y34: 4629.961433 | Z34: 1426.905031 | AA34: 0 | AB34: 1499.239142 | AC34: 0 | AF34: 4629.961433 | AG34: 1426.905031 | AH34: 0 | AI34: 1499.239142 | AJ34: 0
A35: 8 | B35: 1 | C35: LDNO HV: Domestic Two Rate | D35: 7642.505214 | E35: 2597.384749 | F35: 0 | G35: 2453.434764 | H35: 0 | I35: 0 | J35: 0 | K35: 7642.505214 | L35: 2597.384749 | M35: 0 | N35: 2453.434764 | O35: 0 | R35: 7642.505214 | S35: 2597.384749 | T35: 0 | U35: 2453.434764 | V35: 0 | Y35: 7642.505214 | Z35: 2597.384749 | AA35: 0 | AB35: 2453.434764 | AC35: 0 | AF35: 7642.505214 | AG35: 2597.384749 | AH35: 0 | AI35: 2453.434764 | AJ35: 0
A36: 9 | C36: > Domestic Off Peak (related MPAN) | D36: 0 | E36: 0 | F36: 0 | G36: 0 | H36: 0 | I36: 0 | J36: 0 | K36: 0 | L36: 0 | M36: 0 | N36: 0 | O36: 0 | R36: 0 | S36: 0 | T36: 0 | U36: 0 | V36: 0 | Y36: 0 | Z36: 0 | AA36: 0 | AB36: 0 | AC36: 0 | AF36: 0 | AG36: 0 | AH36: 0 | AI36: 0 | AJ36: 0
A37: 10 | B37: 1 | C37: Domestic Off Peak (related MPAN) | D37: 49585.59318 | F37: 0 | G37: 26805 | H37: 0 | I37: 0 | J37: 0 | K37: 49585.59318 | L37: 0 | M37: 0 | N37: 26805 | O37: 0 | R37: 49585.59318 | S37: 0 | T37: 0 | U37: 26805 | V37: 0 | Y37: 49585.59318 | Z37: 0 | AA37: 0 | AB37: 26805 | AC37: 0 | AF37: 49585.59318 | AG37: 0 | AH37: 0 | AI37: 26805 | AJ37: 0
A38: 11 | B38: 1 | C38: LDNO LV: Domestic Off Peak (related MPAN) | D38: 0 | E38: 0 | F38: 0 | G38: 0 | H38: 0 | I38: 0 | J38: 0 | K38: 0 | L38: 0 | M38: 0 | N38: 0 | O38: 0 | R38: 0 | S38: 0 | T38: 0 | U38: 0 | V38: 0 | Y38: 0 | Z38: 0 | AA38: 0 | AB38: 0 | AC38: 0 | AF38: 0 | AG38: 0 | AH38: 0 | AI38: 0 | AJ38: 0
A39: 12 | B39: 1 | C39: LDNO HV: Domestic Off Peak (related MPAN) | D39: 0 | E39: 0 | F39: 0 | G39: 0 | H39: 0 | I39: 0 | J39: 0 | K39: 0 | L39: 0 | M39: 0 | N39: 0 | O39: 0 | R39: 0 | S39: 0 | T39: 0 | U39: 0 | V39: 0 | Y39: 0 | Z39: 0 | AA39: 0 | AB39: 0 | AC39: 0 | AF39: 0 | AG39: 0 | AH39: 0 | AI39: 0 | AJ39: 0
A40: 13 | C40: > Small Non Domestic Unrestricted | D40: 0 | E40: 0 | F40: 0 | G40: 0 | H40: 0 | I40: 0 | J40: 0 | K40: 0 | L40: 0 | M40: 0 | N40: 0 | O40: 0 | R40: 0 | S40: 0 | T40: 0 | U40: 0 | V40: 0 | Y40: 0 | Z40: 0 | AA40: 0 | AB40: 0 | AC40: 0 | AF40: 0 | AG40: 0 | AH40: 0 | AI40: 0 | AJ40: 0
A41: 14 | B41: 1 | C41: Small Non Domestic Unrestricted | D41: 1140613.974 | E41: 0 | F41: 0 | G41: 95495.2531 | H41: 0 | I41: 0 | J41: 0 | K41: 1140613.974 | L41: 0 | M41: 0 | N41: 95495.2531 | O41: 0 | R41: 1140613.974 | S41: 0 | T41: 0 | U41: 95495.2531 | V41: 0 | Y41: 1140613.974 | Z41: 0 | AA41: 0 | AB41: 95495.2531 | AC41: 0 | AF41: 1140613.974 | AG41: 0 | AH41: 0 | AI41: 95495.2531 | AJ41: 0
A42: 15 | B42: 1 | C42: LDNO LV: Small Non Domestic Unrestricted | D42: 4254.851922 | E42: 0 | F42: 0 | G42: 714.0844724 | H42: 0 | I42: 0 | J42: 0 | K42: 4254.851922 | L42: 0 | M42: 0 | N42: 714.0844724 | O42: 0 | R42: 4254.851922 | S42: 0 | T42: 0 | U42: 714.0844724 | V42: 0 | Y42: 4254.851922 | Z42: 0 | AA42: 0 | AB42: 714.0844724 | AC42: 0 | AF42: 4254.851922 | AG42: 0 | AH42: 0 | AI42: 714.0844724 | AJ42: 0
A43: 16 | B43: 1 | C43: LDNO HV: Small Non Domestic Unrestricted | D43: 11145.92223 | E43: 0 | F43: 0 | G43: 1270.175358 | H43: 0 | I43: 0 | J43: 0 | K43: 11145.92223 | L43: 0 | M43: 0 | N43: 1270.175358 | O43: 0 | R43: 11145.92223 | S43: 0 | T43: 0 | U43: 1270.175358 | V43: 0 | Y43: 11145.92223 | Z43: 0 | AA43: 0 | AB43: 1270.175358 | AC43: 0 | AF43: 11145.92223 | AG43: 0 | AH43: 0 | AI43: 1270.175358 | AJ43: 0
A44: 17 | C44: > Small Non Domestic Two Rate | D44: 0 | E44: 0 | F44: 0 | G44: 0 | H44: 0 | I44: 0 | J44: 0 | K44: 0 | L44: 0 | M44: 0 | N44: 0 | O44: 0 | R44: 0 | S44: 0 | T44: 0 | U44: 0 | V44: 0 | Y44: 0 | Z44: 0 | AA44: 0 | AB44: 0 | AC44: 0 | AF44: 0 | AG44: 0 | AH44: 0 | AI44: 0 | AJ44: 0
A45: 18 | B45: 1 | C45: Small Non Domestic Two Rate | D45: 1514286.226 | E45: 451030.4649 | F45: 0 | G45: 82427.24468 | H45: 0 | I45: 0 | J45: 0 | K45: 1514286.226 | L45: 451030.4649 | M45: 0 | N45: 82427.24468 | O45: 0 | R45: 1514286.226 | S45: 451030.4649 | T45: 0 | U45: 82427.24468 | V45: 0 | Y45: 1514286.226 | Z45: 451030.4649 | AA45: 0 | AB45: 82427.24468 | AC45: 0 | AF45: 1514286.226 | AG45: 451030.4649 | AH45: 0 | AI45: 82427.24468 | AJ45: 0
A46: 19 | B46: 1 | C46: LDNO LV: Small Non Domestic Two Rate | D46: 402.4795805 | E46: 80.43862928 | F46: 0 | G46: 12.90367511 | H46: 0 | I46: 0 | J46: 0 | K46: 402.4795805 | L46: 80.43862928 | M46: 0 | N46: 12.90367511 | O46: 0 | R46: 402.4795805 | S46: 80.43862928 | T46: 0 | U46: 12.90367511 | V46: 0 | Y46: 402.4795805 | Z46: 80.43862928 | AA46: 0 | AB46: 12.90367511 | AC46: 0 | AF46: 402.4795805 | AG46: 80.43862928 | AH46: 0 | AI46: 12.90367511 | AJ46: 0
A47: 20 | B47: 1 | C47: LDNO HV: Small Non Domestic Two Rate | D47: 1111.632243 | E47: 286.0338415 | F47: 0 | G47: 47.78805345 | H47: 0 | I47: 0 | J47: 0 | K47: 1111.632243 | L47: 286.0338415 | M47: 0 | N47: 47.78805345 | O47: 0 | R47: 1111.632243 | S47: 286.0338415 | T47: 0 | U47: 47.78805345 | V47: 0 | Y47: 1111.632243 | Z47: 286.0338415 | AA47: 0 | AB47: 47.78805345 | AC47: 0 | AF47: 1111.632243 | AG47: 286.0338415 | AH47: 0 | AI47: 47.78805345 | AJ47: 0
A48: 21 | C48: > Small Non Domestic Off Peak (related MPAN) | D48: 0 | E48: 0 | F48: 0 | G48: 0 | H48: 0 | I48: 0 | J48: 0 | K48: 0 | L48: 0 | M48: 0 | N48: 0 | O48: 0 | R48: 0 | S48: 0 | T48: 0 | U48: 0 | V48: 0 | Y48: 0 | Z48: 0 | AA48: 0 | AB48: 0 | AC48: 0 | AF48: 0 | AG48: 0 | AH48: 0 | AI48: 0 | AJ48: 0
A49: 22 | B49: 1 | C49: Small Non Domestic Off Peak (related MPAN) | D49: 2583.384072 | F49: 0 | G49: 517 | H49: 0 | I49: 0 | J49: 0 | K49: 2583.384072 | L49: 0 | M49: 0 | N49: 517 | O49: 0 | R49: 2583.384072 | S49: 0 | T49: 0 | U49: 517 | V49: 0 | Y49: 2583.384072 | Z49: 0 | AA49: 0 | AB49: 517 | AC49: 0 | AF49: 2583.384072 | AG49: 0 | AH49: 0 | AI49: 517 | AJ49: 0
A50: 23 | B50: 1 | C50: LDNO LV: Small Non Domestic Off Peak (related MPAN) | D50: 0 | E50: 0 | F50: 0 | G50: 0 | H50: 0 | I50: 0 | J50: 0 | K50: 0 | L50: 0 | M50: 0 | N50: 0 | O50: 0 | R50: 0 | S50: 0 | T50: 0 | U50: 0 | V50: 0 | Y50: 0 | Z50: 0 | AA50: 0 | AB50: 0 | AC50: 0 | AF50: 0 | AG50: 0 | AH50: 0 | AI50: 0 | AJ50: 0
A51: 24 | B51: 1 | C51: LDNO HV: Small Non Domestic Off Peak (related MPAN) | D51: 0 | E51: 0 | F51: 0 | G51: 0 | H51: 0 | I51: 0 | J51: 0 | K51: 0 | L51: 0 | M51: 0 | N51: 0 | O51: 0 | R51: 0 | S51: 0 | T51: 0 | U51: 0 | V51: 0 | Y51: 0 | Z51: 0 | AA51: 0 | AB51: 0 | AC51: 0 | AF51: 0 | AG51: 0 | AH51: 0 | AI51: 0 | AJ51: 0
A52: 25 | C52: > LV Medium Non-Domestic | D52: 0 | E52: 0 | F52: 0 | G52: 0 | H52: 0 | I52: 0 | J52: 0 | K52: 0 | L52: 0 | M52: 0 | N52: 0 | O52: 0 | R52: 0 | S52: 0 | T52: 0 | U52: 0 | V52: 0 | Y52: 0 | Z52: 0 | AA52: 0 | AB52: 0 | AC52: 0 | AF52: 0 | AG52: 0 | AH52: 0 | AI52: 0 | AJ52: 0
A53: 26 | B53: 1 | C53: LV Medium Non-Domestic | D53: 41587.88902 | E53: 11522.85719 | F53: 0 | G53: 1226.513004 | H53: 0 | I53: 0 | J53: 0 | K53: 41587.88902 | L53: 11522.85719 | M53: 0 | N53: 1226.513004 | O53: 0 | R53: 41587.88902 | S53: 11522.85719 | T53: 0 | U53: 1226.513004 | V53: 0 | Y53: 41587.88902 | Z53: 11522.85719 | AA53: 0 | AB53: 1226.513004 | AC53: 0 | AF53: 41587.88902 | AG53: 11522.85719 | AH53: 0 | AI53: 1226.513004 | AJ53: 0
A54: 27 | B54: 1 | C54: LDNO LV: LV Medium Non-Domestic | D54: -4.91127139e-14 | E54: 5.456968211e-15 | F54: 0 | G54: 0 | H54: 0 | I54: 0 | J54: 0 | K54: -4.91127139e-14 | L54: 5.456968211e-15 | M54: 0 | N54: 0 | O54: 0 | R54: -4.91127139e-14 | S54: 5.456968211e-15 | T54: 0 | U54: 0 | V54: 0 | Y54: -4.91127139e-14 | Z54: 5.456968211e-15 | AA54: 0 | AB54: 0 | AC54: 0 | AF54: -4.91127139e-14 | AG54: 5.456968211e-15 | AH54: 0 | AI54: 0 | AJ54: 0
A55: 28 | B55: 1 | C55: LDNO HV: LV Medium Non-Domestic | D55: -2.473825589e-13 | E55: 1.818989404e-14 | F55: 0 | G55: 0 | H55: 0 | I55: 0 | J55: 0 | K55: -2.473825589e-13 | L55: 1.818989404e-14 | M55: 0 | N55: 0 | O55: 0 | R55: -2.473825589e-13 | S55: 1.818989404e-14 | T55: 0 | U55: 0 | V55: 0 | Y55: -2.473825589e-13 | Z55: 1.818989404e-14 | AA55: 0 | AB55: 0 | AC55: 0 | AF55: -2.473825589e-13 | AG55: 1.818989404e-14 | AH55: 0 | AI55: 0 | AJ55: 0
A56: 29 | C56: > LV Sub Medium Non-Domestic | D56: 0 | E56: 0 | F56: 0 | G56: 0 | H56: 0 | I56: 0 | J56: 0 | K56: 0 | L56: 0 | M56: 0 | N56: 0 | O56: 0 | R56: 0 | S56: 0 | T56: 0 | U56: 0 | V56: 0 | Y56: 0 | Z56: 0 | AA56: 0 | AB56: 0 | AC56: 0 | AF56: 0 | AG56: 0 | AH56: 0 | AI56: 0 | AJ56: 0
A57: 30 | B57: 1 | C57: LV Sub Medium Non-Domestic | D57: 0.1430502914 | E57: 0.04177103706 | F57: 0 | G57: 0.003167819672 | H57: 0 | I57: 0 | J57: 0 | K57: 0.1430502914 | L57: 0.04177103706 | M57: 0 | N57: 0.003167819672 | O57: 0 | R57: 0.1430502914 | S57: 0.04177103706 | T57: 0 | U57: 0.003167819672 | V57: 0 | Y57: 0.1430502914 | Z57: 0.04177103706 | AA57: 0 | AB57: 0.003167819672 | AC57: 0 | AF57: 0.1430502914 | AG57: 0.04177103706 | AH57: 0 | AI57: 0.003167819672 | AJ57: 0
A58: 31 | C58: > HV Medium Non-Domestic | D58: 0 | E58: 0 | F58: 0 | G58: 0 | H58: 0 | I58: 0 | J58: 0 | K58: 0 | L58: 0 | M58: 0 | N58: 0 | O58: 0 | R58: 0 | S58: 0 | T58: 0 | U58: 0 | V58: 0 | Y58: 0 | Z58: 0 | AA58: 0 | AB58: 0 | AC58: 0 | AF58: 0 | AG58: 0 | AH58: 0 | AI58: 0 | AJ58: 0
A59: 32 | B59: 1 | C59: HV Medium Non-Domestic | D59: 2605.212072 | E59: 788.6054445 | F59: 0 | G59: 44 | H59: 0 | I59: 0 | J59: 0 | K59: 2605.212072 | L59: 788.6054445 | M59: 0 | N59: 44 | O59: 0 | R59: 2605.212072 | S59: 788.6054445 | T59: 0 | U59: 44 | V59: 0 | Y59: 2605.212072 | Z59: 788.6054445 | AA59: 0 | AB59: 44 | AC59: 0 | AF59: 2605.212072 | AG59: 788.6054445 | AH59: 0 | AI59: 44 | AJ59: 0
A60: 33 | C60: > LV Network Domestic | D60: 0 | E60: 0 | F60: 0 | G60: 0 | H60: 0 | I60: 0 | J60: 0 | K60: 0 | L60: 0 | M60: 0 | N60: 0 | O60: 0 | R60: 0 | S60: 0 | T60: 0 | U60: 0 | V60: 0 | Y60: 0 | Z60: 0 | AA60: 0 | AB60: 0 | AC60: 0 | AF60: 0 | AG60: 0 | AH60: 0 | AI60: 0 | AJ60: 0
A61: 34 | B61: 1 | C61: LV Network Domestic | D61: 25.91664886 | E61: 99.41640677 | F61: 122.0854601 | G61: 76.11876557 | H61: 0 | I61: 0 | J61: 0 | K61: 25.91664886 | L61: 99.41640677 | M61: 122.0854601 | N61: 76.11876557 | O61: 0 | R61: 25.91664886 | S61: 99.41640677 | T61: 122.0854601 | U61: 76.11876557 | V61: 0 | Y61: 25.91664886 | Z61: 99.41640677 | AA61: 122.0854601 | AB61: 76.11876557 | AC61: 0 | AF61: 25.91664886 | AG61: 99.41640677 | AH61: 122.0854601 | AI61: 76.11876557 | AJ61: 0
A62: 35 | B62: 1 | C62: LDNO LV: LV Network Domestic | D62: 0 | E62: 0 | F62: 0 | G62: 0 | H62: 0 | I62: 0 | J62: 0 | K62: 0 | L62: 0 | M62: 0 | N62: 0 | O62: 0 | R62: 0 | S62: 0 | T62: 0 | U62: 0 | V62: 0 | Y62: 0 | Z62: 0 | AA62: 0 | AB62: 0 | AC62: 0 | AF62: 0 | AG62: 0 | AH62: 0 | AI62: 0 | AJ62: 0
A63: 36 | B63: 1 | C63: LDNO HV: LV Network Domestic | D63: 0 | E63: 0 | F63: 0 | G63: 0 | H63: 0 | I63: 0 | J63: 0 | K63: 0 | L63: 0 | M63: 0 | N63: 0 | O63: 0 | R63: 0 | S63: 0 | T63: 0 | U63: 0 | V63: 0 | Y63: 0 | Z63: 0 | AA63: 0 | AB63: 0 | AC63: 0 | AF63: 0 | AG63: 0 | AH63: 0 | AI63: 0 | AJ63: 0
A64: 37 | C64: > LV Network Non-Domestic Non-CT | D64: 0 | E64: 0 | F64: 0 | G64: 0 | H64: 0 | I64: 0 | J64: 0 | K64: 0 | L64: 0 | M64: 0 | N64: 0 | O64: 0 | R64: 0 | S64: 0 | T64: 0 | U64: 0 | V64: 0 | Y64: 0 | Z64: 0 | AA64: 0 | AB64: 0 | AC64: 0 | AF64: 0 | AG64: 0 | AH64: 0 | AI64: 0 | AJ64: 0
A65: 38 | B65: 1 | C65: LV Network Non-Domestic Non-CT | D65: 18558.48769 | E65: 73567.92673 | F65: 78280.3327 | G65: 2509.103459 | H65: 0 | I65: 0 | J65: 0 | K65: 18558.48769 | L65: 73567.92673 | M65: 78280.3327 | N65: 2509.103459 | O65: 0 | R65: 18558.48769 | S65: 73567.92673 | T65: 78280.3327 | U65: 2509.103459 | V65: 0 | Y65: 18558.48769 | Z65: 73567.92673 | AA65: 78280.3327 | AB65: 2509.103459 | AC65: 0 | AF65: 18558.48769 | AG65: 73567.92673 | AH65: 78280.3327 | AI65: 2509.103459 | AJ65: 0
A66: 39 | B66: 1 | C66: LDNO LV: LV Network Non-Domestic Non-CT | D66: 19.24968808 | E66: 72.68858731 | F66: 120.4985183 | G66: 4.718437313 | H66: 0 | I66: 0 | J66: 0 | K66: 19.24968808 | L66: 72.68858731 | M66: 120.4985183 | N66: 4.718437313 | O66: 0 | R66: 19.24968808 | S66: 72.68858731 | T66: 120.4985183 | U66: 4.718437313 | V66: 0 | Y66: 19.24968808 | Z66: 72.68858731 | AA66: 120.4985183 | AB66: 4.718437313 | AC66: 0 | AF66: 19.24968808 | AG66: 72.68858731 | AH66: 120.4985183 | AI66: 4.718437313 | AJ66: 0
A67: 40 | B67: 1 | C67: LDNO HV: LV Network Non-Domestic Non-CT | D67: 104.2423559 | E67: 362.6834743 | F67: 416.1208825 | G67: 19.84182935 | H67: 0 | I67: 0 | J67: 0 | K67: 104.2423559 | L67: 362.6834743 | M67: 416.1208825 | N67: 19.84182935 | O67: 0 | R67: 104.2423559 | S67: 362.6834743 | T67: 416.1208825 | U67: 19.84182935 | V67: 0 | Y67: 104.2423559 | Z67: 362.6834743 | AA67: 416.1208825 | AB67: 19.84182935 | AC67: 0 | AF67: 104.2423559 | AG67: 362.6834743 | AH67: 416.1208825 | AI67: 19.84182935 | AJ67: 0
A68: 41 | C68: > LV HH Metered | D68: 0 | E68: 0 | F68: 0 | G68: 0 | H68: 0 | I68: 0 | J68: 0 | K68: 0 | L68: 0 | M68: 0 | N68: 0 | O68: 0 | R68: 0 | S68: 0 | T68: 0 | U68: 0 | V68: 0 | Y68: 0 | Z68: 0 | AA68: 0 | AB68: 0 | AC68: 0 | AF68: 0 | AG68: 0 | AH68: 0 | AI68: 0 | AJ68: 0
A69: 42 | B69: 2 | C69: LV HH Metered | D69: 377835.6813 | E69: 1505767.623 | F69: 1615847.006 | G69: 15832.33207 | H69: 1960000 | I69: 42265.31704 | J69: 367491.3783 | K69: 377835.6813 | L69: 1505767.623 | M69: 1615847.006 | N69: 15832.33207 | O69: 1960000 | P69: =IF(I69,((VLOOKUP($B69,$E$7:$AI$16,24)+1)*I69),) -> 42265.31704 | Q69: =IF(J69,((VLOOKUP($B69,$E$7:$AI$16,28)+1)*J69),) -> 367491.3783 | R69: 377835.6813 | S69: 1505767.623 | T69: 1615847.006 | U69: 15832.33207 | V69: 1960000 | W69: =IF(I69,((VLOOKUP($B69,$E$7:$AI$16,5+20)+1)*P69),) -> 42265.31704 | X69: =IF(J69,((VLOOKUP($B69,$E$7:$AI$16,5+24)+1)*Q69),) -> 367491.3783 | Y69: 377835.6813 | Z69: 1505767.623 | AA69: 1615847.006 | AB69: 15832.33207 | AC69: 1960000 | AD69: =IF(I69,((VLOOKUP($B69,$E$7:$AI$16,6+20)+1)*W69),) -> 42265.31704 | AE69: =IF(J69,((VLOOKUP($B69,$E$7:$AI$16,6+24)+1)*X69),) -> 367491.3783 | AF69: 377835.6813 | AG69: 1505767.623 | AH69: 1615847.006 | AI69: 15832.33207 | AJ69: 1960000 | AK69: =IF(I69,((VLOOKUP($B69,$E$7:$AI$16,7+20)+1)*AD69),) -> 42265.31704 | AL69: =IF(J69,((VLOOKUP($B69,$E$7:$AI$16,7+24)+1)*AE69),) -> 367491.3783
A70: 43 | B70: 2 | C70: LDNO LV: LV HH Metered | D70: 1412.870559 | E70: 4888.839063 | F70: 6114.885476 | G70: 61.22986971 | H70: 10476.91862 | I70: 12.98705717 | J70: 1333.714793 | K70: 1412.870559 | L70: 4888.839063 | M70: 6114.885476 | N70: 61.22986971 | O70: 10476.91862 | P70: =IF(I70,((VLOOKUP($B70,$E$7:$AI$16,24)+1)*I70),) -> 12.98705717 | Q70: =IF(J70,((VLOOKUP($B70,$E$7:$AI$16,28)+1)*J70),) -> 1333.714793 | R70: 1412.870559 | S70: 4888.839063 | T70: 6114.885476 | U70: 61.22986971 | V70: 10476.91862 | W70: =IF(I70,((VLOOKUP($B70,$E$7:$AI$16,5+20)+1)*P70),) -> 12.98705717 | X70: =IF(J70,((VLOOKUP($B70,$E$7:$AI$16,5+24)+1)*Q70),) -> 1333.714793 | Y70: 1412.870559 | Z70: 4888.839063 | AA70: 6114.885476 | AB70: 61.22986971 | AC70: 10476.91862 | AD70: =IF(I70,((VLOOKUP($B70,$E$7:$AI$16,6+20)+1)*W70),) -> 12.98705717 | AE70: =IF(J70,((VLOOKUP($B70,$E$7:$AI$16,6+24)+1)*X70),) -> 1333.714793 | AF70: 1412.870559 | AG70: 4888.839063 | AH70: 6114.885476 | AI70: 61.22986971 | AJ70: 10476.91862 | AK70: =IF(I70,((VLOOKUP($B70,$E$7:$AI$16,7+20)+1)*AD70),) -> 12.98705717 | AL70: =IF(J70,((VLOOKUP($B70,$E$7:$AI$16,7+24)+1)*AE70),) -> 1333.714793
A71: 44 | B71: 2 | C71: LDNO HV: LV HH Metered | D71: 15040.23512 | E71: 54927.68561 | F71: 65960.83678 | G71: 382.6216986 | H71: 108669.6156 | I71: 446.261544 | J71: 11418.40144 | K71: 15040.23512 | L71: 54927.68561 | M71: 65960.83678 | N71: 382.6216986 | O71: 108669.6156 | P71: 446.261544 | Q71: 11418.40144 | R71: 15040.23512 | S71: 54927.68561 | T71: 65960.83678 | U71: 382.6216986 | V71: 108669.6156 | W71: 446.261544 | X71: 11418.40144 | Y71: 15040.23512 | Z71: 54927.68561 | AA71: 65960.83678 | AB71: 382.6216986 | AC71: 108669.6156 | AD71: 446.261544 | AE71: 11418.40144 | AF71: 15040.23512 | AG71: 54927.68561 | AH71: 65960.83678 | AI71: 382.6216986 | AJ71: 108669.6156 | AK71: 446.261544 | AL71: 11418.40144
A72: 45 | C72: > LV Sub HH Metered | D72: 0 | E72: 0 | F72: 0 | G72: 0 | H72: 0 | I72: 0 | J72: 0 | K72: 0 | L72: 0 | M72: 0 | N72: 0 | O72: 0 | R72: 0 | S72: 0 | T72: 0 | U72: 0 | V72: 0 | Y72: 0 | Z72: 0 | AA72: 0 | AB72: 0 | AC72: 0 | AF72: 0 | AG72: 0 | AH72: 0 | AI72: 0 | AJ72: 0
A73: 46 | B73: 2 | C73: LV Sub HH Metered | D73: 23555.93971 | E73: 90295.11947 | F73: 105307.3853 | G73: 342.8466956 | H73: 138821.8672 | I73: 1785.101098 | J73: 18220.1968 | K73: 23555.93971 | L73: 90295.11947 | M73: 105307.3853 | N73: 342.8466956 | O73: 138821.8672 | P73: =IF(I73,((VLOOKUP($B73,$E$7:$AI$16,24)+1)*I73),) -> 1785.101098 | Q73: =IF(J73,((VLOOKUP($B73,$E$7:$AI$16,28)+1)*J73),) -> 18220.1968 | R73: 23555.93971 | S73: 90295.11947 | T73: 105307.3853 | U73: 342.8466956 | V73: 138821.8672 | W73: =IF(I73,((VLOOKUP($B73,$E$7:$AI$16,5+20)+1)*P73),) -> 1785.101098 | X73: =IF(J73,((VLOOKUP($B73,$E$7:$AI$16,5+24)+1)*Q73),) -> 18220.1968 | Y73: 23555.93971 | Z73: 90295.11947 | AA73: 105307.3853 | AB73: 342.8466956 | AC73: 138821.8672 | AD73: =IF(I73,((VLOOKUP($B73,$E$7:$AI$16,6+20)+1)*W73),) -> 1785.101098 | AE73: =IF(J73,((VLOOKUP($B73,$E$7:$AI$16,6+24)+1)*X73),) -> 18220.1968 | AF73: 23555.93971 | AG73: 90295.11947 | AH73: 105307.3853 | AI73: 342.8466956 | AJ73: 138821.8672 | AK73: =IF(I73,((VLOOKUP($B73,$E$7:$AI$16,7+20)+1)*AD73),) -> 1785.101098 | AL73: =IF(J73,((VLOOKUP($B73,$E$7:$AI$16,7+24)+1)*AE73),) -> 18220.1968
A74: 47 | B74: 2 | C74: LDNO HV: LV Sub HH Metered | D74: 890.7228729 | E74: 3077.583554 | F74: 5287.780212 | G74: 4.895893637 | H74: 3426.922262 | I74: 46.89237776 | J74: 903.927504 | K74: 890.7228729 | L74: 3077.583554 | M74: 5287.780212 | N74: 4.895893637 | O74: 3426.922262 | P74: 46.89237776 | Q74: 903.927504 | R74: 890.7228729 | S74: 3077.583554 | T74: 5287.780212 | U74: 4.895893637 | V74: 3426.922262 | W74: 46.89237776 | X74: 903.927504 | Y74: 890.7228729 | Z74: 3077.583554 | AA74: 5287.780212 | AB74: 4.895893637 | AC74: 3426.922262 | AD74: 46.89237776 | AE74: 903.927504 | AF74: 890.7228729 | AG74: 3077.583554 | AH74: 5287.780212 | AI74: 4.895893637 | AJ74: 3426.922262 | AK74: =IF(I74,((VLOOKUP($B74,$E$7:$AI$16,7+20)+1)*AD74),) -> 46.89237776 | AL74: =IF(J74,((VLOOKUP($B74,$E$7:$AI$16,7+24)+1)*AE74),) -> 903.927504
A75: 48 | C75: > HV HH Metered | D75: 0 | E75: 0 | F75: 0 | G75: 0 | H75: 0 | I75: 0 | J75: 0 | K75: 0 | L75: 0 | M75: 0 | N75: 0 | O75: 0 | R75: 0 | S75: 0 | T75: 0 | U75: 0 | V75: 0 | Y75: 0 | Z75: 0 | AA75: 0 | AB75: 0 | AC75: 0 | AF75: 0 | AG75: 0 | AH75: 0 | AI75: 0 | AJ75: 0
A76: 49 | B76: 2 | C76: HV HH Metered | D76: 738923.1968 | E76: 2849711.721 | F76: 4000945.162 | G76: 3524.919235 | H76: 2788259.538 | I76: 58664.74725 | J76: 557819.6963 | K76: 738923.1968 | L76: 2849711.721 | M76: 4000945.162 | N76: 3524.919235 | O76: 2788259.538 | P76: =IF(I76,((VLOOKUP($B76,$E$7:$AI$16,24)+1)*I76),) -> 58664.74725 | Q76: =IF(J76,((VLOOKUP($B76,$E$7:$AI$16,28)+1)*J76),) -> 557819.6963 | R76: 738923.1968 | S76: 2849711.721 | T76: 4000945.162 | U76: 3524.919235 | V76: 2788259.538 | W76: =IF(I76,((VLOOKUP($B76,$E$7:$AI$16,5+20)+1)*P76),) -> 58664.74725 | X76: =IF(J76,((VLOOKUP($B76,$E$7:$AI$16,5+24)+1)*Q76),) -> 557819.6963 | Y76: 738923.1968 | Z76: 2849711.721 | AA76: 4000945.162 | AB76: 3524.919235 | AC76: 2788259.538 | AD76: =IF(I76,((VLOOKUP($B76,$E$7:$AI$16,6+20)+1)*W76),) -> 58664.74725 | AE76: =IF(J76,((VLOOKUP($B76,$E$7:$AI$16,6+24)+1)*X76),) -> 557819.6963 | AF76: 738923.1968 | AG76: 2849711.721 | AH76: 4000945.162 | AI76: 3524.919235 | AJ76: 2788259.538 | AK76: =IF(I76,((VLOOKUP($B76,$E$7:$AI$16,7+20)+1)*AD76),) -> 58664.74725 | AL76: =IF(J76,((VLOOKUP($B76,$E$7:$AI$16,7+24)+1)*AE76),) -> 557819.6963
A77: 50 | B77: 2 | C77: LDNO HV: HV HH Metered | D77: 7258.323342 | E77: 23980.29605 | F77: 38623.66453 | G77: 38.40859545 | H77: 48748.2535 | I77: 199.083295 | J77: 2217.464865 | K77: 7258.323342 | L77: 23980.29605 | M77: 38623.66453 | N77: 38.40859545 | O77: 48748.2535 | P77: 199.083295 | Q77: 2217.464865 | R77: 7258.323342 | S77: 23980.29605 | T77: 38623.66453 | U77: 38.40859545 | V77: 48748.2535 | W77: 199.083295 | X77: 2217.464865 | Y77: 7258.323342 | Z77: 23980.29605 | AA77: 38623.66453 | AB77: 38.40859545 | AC77: 48748.2535 | AD77: 199.083295 | AE77: 2217.464865 | AF77: 7258.323342 | AG77: 23980.29605 | AH77: 38623.66453 | AI77: 38.40859545 | AJ77: 48748.2535 | AK77: =IF(I77,((VLOOKUP($B77,$E$7:$AI$16,7+20)+1)*AD77),) -> 199.083295 | AL77: =IF(J77,((VLOOKUP($B77,$E$7:$AI$16,7+24)+1)*AE77),) -> 2217.464865
A78: 51 | C78: > NHH UMS category A | D78: 0 | E78: 0 | F78: 0 | G78: 0 | H78: 0 | I78: 0 | J78: 0 | K78: 0 | L78: 0 | M78: 0 | N78: 0 | O78: 0 | R78: 0 | S78: 0 | T78: 0 | U78: 0 | V78: 0 | Y78: 0 | Z78: 0 | AA78: 0 | AB78: 0 | AC78: 0 | AF78: 0 | AG78: 0 | AH78: 0 | AI78: 0 | AJ78: 0
A79: 52 | B79: 1 | C79: NHH UMS category A | D79: 34134.8937 | E79: 0 | F79: 0 | G79: 1567 | H79: 0 | I79: 0 | J79: 0 | K79: 34134.8937 | L79: 0 | M79: 0 | N79: 1567 | O79: 0 | R79: 34134.8937 | S79: 0 | T79: 0 | U79: 1567 | V79: 0 | Y79: 34134.8937 | Z79: 0 | AA79: 0 | AB79: 1567 | AC79: 0 | AF79: 34134.8937 | AG79: 0 | AH79: 0 | AI79: 1567 | AJ79: 0
A80: 53 | B80: 1 | C80: LDNO LV: NHH UMS category A | D80: 275.22148 | E80: 0 | F80: 0 | G80: 0 | H80: 0 | I80: 0 | J80: 0 | K80: 275.22148 | L80: 0 | M80: 0 | N80: 0 | O80: 0 | R80: 275.22148 | S80: 0 | T80: 0 | U80: 0 | V80: 0 | Y80: 275.22148 | Z80: 0 | AA80: 0 | AB80: 0 | AC80: 0 | AF80: 275.22148 | AG80: 0 | AH80: 0 | AI80: 0 | AJ80: 0
A81: 54 | B81: 1 | C81: LDNO HV: NHH UMS category A | D81: 531.7577591 | E81: 0 | F81: 0 | G81: 0 | H81: 0 | I81: 0 | J81: 0 | K81: 531.7577591 | L81: 0 | M81: 0 | N81: 0 | O81: 0 | R81: 531.7577591 | S81: 0 | T81: 0 | U81: 0 | V81: 0 | Y81: 531.7577591 | Z81: 0 | AA81: 0 | AB81: 0 | AC81: 0 | AF81: 531.7577591 | AG81: 0 | AH81: 0 | AI81: 0 | AJ81: 0
A82: 55 | C82: > NHH UMS category B | D82: 0 | E82: 0 | F82: 0 | G82: 0 | H82: 0 | I82: 0 | J82: 0 | K82: 0 | L82: 0 | M82: 0 | N82: 0 | O82: 0 | R82: 0 | S82: 0 | T82: 0 | U82: 0 | V82: 0 | Y82: 0 | Z82: 0 | AA82: 0 | AB82: 0 | AC82: 0 | AF82: 0 | AG82: 0 | AH82: 0 | AI82: 0 | AJ82: 0
A83: 56 | B83: 1 | C83: NHH UMS category B | D83: 22466.14998 | E83: 0 | F83: 0 | G83: 1279 | H83: 0 | I83: 0 | J83: 0 | K83: 22466.14998 | L83: 0 | M83: 0 | N83: 1279 | O83: 0 | R83: 22466.14998 | S83: 0 | T83: 0 | U83: 1279 | V83: 0 | Y83: 22466.14998 | Z83: 0 | AA83: 0 | AB83: 1279 | AC83: 0 | AF83: 22466.14998 | AG83: 0 | AH83: 0 | AI83: 1279 | AJ83: 0
A84: 57 | B84: 1 | C84: LDNO LV: NHH UMS category B | D84: 319.4011436 | E84: 0 | F84: 0 | G84: 0 | H84: 0 | I84: 0 | J84: 0 | K84: 319.4011436 | L84: 0 | M84: 0 | N84: 0 | O84: 0 | R84: 319.4011436 | S84: 0 | T84: 0 | U84: 0 | V84: 0 | Y84: 319.4011436 | Z84: 0 | AA84: 0 | AB84: 0 | AC84: 0 | AF84: 319.4011436 | AG84: 0 | AH84: 0 | AI84: 0 | AJ84: 0
A85: 58 | B85: 1 | C85: LDNO HV: NHH UMS category B | D85: 613.6304424 | E85: 0 | F85: 0 | G85: 0 | H85: 0 | I85: 0 | J85: 0 | K85: 613.6304424 | L85: 0 | M85: 0 | N85: 0 | O85: 0 | R85: 613.6304424 | S85: 0 | T85: 0 | U85: 0 | V85: 0 | Y85: 613.6304424 | Z85: 0 | AA85: 0 | AB85: 0 | AC85: 0 | AF85: 613.6304424 | AG85: 0 | AH85: 0 | AI85: 0 | AJ85: 0
A86: 59 | C86: > NHH UMS category C | D86: 0 | E86: 0 | F86: 0 | G86: 0 | H86: 0 | I86: 0 | J86: 0 | K86: 0 | L86: 0 | M86: 0 | N86: 0 | O86: 0 | R86: 0 | S86: 0 | T86: 0 | U86: 0 | V86: 0 | Y86: 0 | Z86: 0 | AA86: 0 | AB86: 0 | AC86: 0 | AF86: 0 | AG86: 0 | AH86: 0 | AI86: 0 | AJ86: 0
A87: 60 | B87: 1 | C87: NHH UMS category C | D87: 339.1014082 | E87: 0 | F87: 0 | G87: 194 | H87: 0 | I87: 0 | J87: 0 | K87: 339.1014082 | L87: 0 | M87: 0 | N87: 194 | O87: 0 | R87: 339.1014082 | S87: 0 | T87: 0 | U87: 194 | V87: 0 | Y87: 339.1014082 | Z87: 0 | AA87: 0 | AB87: 194 | AC87: 0 | AF87: 339.1014082 | AG87: 0 | AH87: 0 | AI87: 194 | AJ87: 0
A88: 61 | B88: 1 | C88: LDNO LV: NHH UMS category C | D88: 0 | E88: 0 | F88: 0 | G88: 0 | H88: 0 | I88: 0 | J88: 0 | K88: 0 | L88: 0 | M88: 0 | N88: 0 | O88: 0 | R88: 0 | S88: 0 | T88: 0 | U88: 0 | V88: 0 | Y88: 0 | Z88: 0 | AA88: 0 | AB88: 0 | AC88: 0 | AF88: 0 | AG88: 0 | AH88: 0 | AI88: 0 | AJ88: 0
A89: 62 | B89: 1 | C89: LDNO HV: NHH UMS category C | D89: 0 | E89: 0 | F89: 0 | G89: 0 | H89: 0 | I89: 0 | J89: 0 | K89: 0 | L89: 0 | M89: 0 | N89: 0 | O89: 0 | R89: 0 | S89: 0 | T89: 0 | U89: 0 | V89: 0 | Y89: 0 | Z89: 0 | AA89: 0 | AB89: 0 | AC89: 0 | AF89: 0 | AG89: 0 | AH89: 0 | AI89: 0 | AJ89: 0
A90: 63 | C90: > NHH UMS category D | D90: 0 | E90: 0 | F90: 0 | G90: 0 | H90: 0 | I90: 0 | J90: 0 | K90: 0 | L90: 0 | M90: 0 | N90: 0 | O90: 0 | R90: 0 | S90: 0 | T90: 0 | U90: 0 | V90: 0 | Y90: 0 | Z90: 0 | AA90: 0 | AB90: 0 | AC90: 0 | AF90: 0 | AG90: 0 | AH90: 0 | AI90: 0 | AJ90: 0
A91: 64 | B91: 1 | C91: NHH UMS category D | D91: 7208.556085 | E91: 0 | F91: 0 | G91: 247 | H91: 0 | I91: 0 | J91: 0 | K91: 7208.556085 | L91: 0 | M91: 0 | N91: 247 | O91: 0 | R91: 7208.556085 | S91: 0 | T91: 0 | U91: 247 | V91: 0 | Y91: 7208.556085 | Z91: 0 | AA91: 0 | AB91: 247 | AC91: 0 | AF91: 7208.556085 | AG91: 0 | AH91: 0 | AI91: 247 | AJ91: 0
A92: 65 | B92: 1 | C92: LDNO LV: NHH UMS category D | D92: 0 | E92: 0 | F92: 0 | G92: 0 | H92: 0 | I92: 0 | J92: 0 | K92: 0 | L92: 0 | M92: 0 | N92: 0 | O92: 0 | R92: 0 | S92: 0 | T92: 0 | U92: 0 | V92: 0 | Y92: 0 | Z92: 0 | AA92: 0 | AB92: 0 | AC92: 0 | AF92: 0 | AG92: 0 | AH92: 0 | AI92: 0 | AJ92: 0
A93: 66 | B93: 1 | C93: LDNO HV: NHH UMS category D | D93: 0 | E93: 0 | F93: 0 | G93: 0 | H93: 0 | I93: 0 | J93: 0 | K93: 0 | L93: 0 | M93: 0 | N93: 0 | O93: 0 | R93: 0 | S93: 0 | T93: 0 | U93: 0 | V93: 0 | Y93: 0 | Z93: 0 | AA93: 0 | AB93: 0 | AC93: 0 | AF93: 0 | AG93: 0 | AH93: 0 | AI93: 0 | AJ93: 0
A94: =A93+1 -> 67 | C94: > LV UMS (Pseudo HH Metered) | D94: 0 | E94: 0 | F94: 0 | G94: 0 | H94: 0 | I94: 0 | J94: 0 | K94: =IF(D94,((VLOOKUP($B94,$E$7:$AI$16,4)+1)*D94),) -> 0 | L94: =IF(E94,((VLOOKUP($B94,$E$7:$AI$16,8)+1)*E94),) -> 0 | M94: =IF(F94,((VLOOKUP($B94,$E$7:$AI$16,12)+1)*F94),) -> 0 | N94: =IF(G94,((VLOOKUP($B94,$E$7:$AI$16,16)+1)*G94),) -> 0 | O94: =IF(H94,((VLOOKUP($B94,$E$7:$AI$16,20)+1)*H94),) -> 0 | R94: =IF(D94,((VLOOKUP($B94,$E$7:$AI$16,5)+1)*K94),) -> 0 | S94: =IF(E94,((VLOOKUP($B94,$E$7:$AI$16,5+4)+1)*L94),) -> 0 | T94: =IF(F94,((VLOOKUP($B94,$E$7:$AI$16,5+8)+1)*M94),) -> 0 | U94: =IF(G94,((VLOOKUP($B94,$E$7:$AI$16,5+12)+1)*N94),) -> 0 | V94: =IF(H94,((VLOOKUP($B94,$E$7:$AI$16,5+16)+1)*O94),) -> 0 | Y94: =IF(D94,((VLOOKUP($B94,$E$7:$AI$16,6)+1)*R94),) -> 0 | Z94: =IF(E94,((VLOOKUP($B94,$E$7:$AI$16,6+4)+1)*S94),) -> 0 | AA94: =IF(F94,((VLOOKUP($B94,$E$7:$AI$16,6+8)+1)*T94),) -> 0 | AB94: =IF(G94,((VLOOKUP($B94,$E$7:$AI$16,6+12)+1)*U94),) -> 0 | AC94: =IF(H94,((VLOOKUP($B94,$E$7:$AI$16,6+16)+1)*V94),) -> 0 | AF94: =IF(D94,((VLOOKUP($B94,$E$7:$AI$16,7)+1)*Y94),) -> 0 | AG94: =IF(E94,((VLOOKUP($B94,$E$7:$AI$16,7+4)+1)*Z94),) -> 0 | AH94: =IF(F94,((VLOOKUP($B94,$E$7:$AI$16,7+8)+1)*AA94),) -> 0 | AI94: =IF(G94,((VLOOKUP($B94,$E$7:$AI$16,7+12)+1)*AB94),) -> 0 | AJ94: =IF(H94,((VLOOKUP($B94,$E$7:$AI$16,7+16)+1)*AC94),) -> 0
A95: 68 | B95: 2 | C95: LV UMS (Pseudo HH Metered) | D95: 12092.42647 | E95: 33947.07157 | F95: 185619.8076 | G95: 26.81967213 | H95: 0 | I95: 0 | J95: 0 | K95: 12092.42647 | L95: 33947.07157 | M95: 185619.8076 | N95: 26.81967213 | O95: 0 | R95: 12092.42647 | S95: 33947.07157 | T95: 185619.8076 | U95: 26.81967213 | V95: 0 | Y95: 12092.42647 | Z95: 33947.07157 | AA95: 185619.8076 | AB95: 26.81967213 | AC95: 0 | AF95: 12092.42647 | AG95: 33947.07157 | AH95: 185619.8076 | AI95: 26.81967213 | AJ95: 0
A96: 69 | B96: 2 | C96: LDNO LV: LV UMS (Pseudo HH Metered) | D96: 0 | E96: 0 | F96: 0 | G96: 0 | H96: 0 | I96: 0 | J96: 0 | K96: 0 | L96: 0 | M96: 0 | N96: 0 | O96: 0 | R96: 0 | S96: 0 | T96: 0 | U96: 0 | V96: 0 | Y96: 0 | Z96: 0 | AA96: 0 | AB96: 0 | AC96: 0 | AF96: 0 | AG96: 0 | AH96: 0 | AI96: 0 | AJ96: 0
A97: 70 | B97: 2 | C97: LDNO HV: LV UMS (Pseudo HH Metered) | D97: 0 | E97: 0 | F97: 0 | G97: 0 | H97: 0 | I97: 0 | J97: 0 | K97: 0 | L97: 0 | M97: 0 | N97: 0 | O97: 0 | R97: 0 | S97: 0 | T97: 0 | U97: 0 | V97: 0 | Y97: 0 | Z97: 0 | AA97: 0 | AB97: 0 | AC97: 0 | AF97: 0 | AG97: 0 | AH97: 0 | AI97: 0 | AJ97: 0
A98: 71 | C98: > LV Generation NHH or Aggregate HH | D98: 0 | E98: 0 | F98: 0 | G98: 0 | H98: 0 | I98: 0 | J98: 0 | K98: 0 | L98: 0 | M98: 0 | N98: 0 | O98: 0 | R98: 0 | S98: 0 | T98: 0 | U98: 0 | V98: 0 | Y98: 0 | Z98: 0 | AA98: 0 | AB98: 0 | AC98: 0 | AF98: 0 | AG98: 0 | AH98: 0 | AI98: 0 | AJ98: 0
A99: 72 | B99: 4 | C99: LV Generation NHH or Aggregate HH | D99: 10233.95383 | E99: 0 | F99: 0 | G99: 136 | H99: 0 | I99: 0 | J99: 0 | K99: 10233.95383 | L99: 0 | M99: 0 | N99: 136 | O99: 0 | R99: 10233.95383 | S99: 0 | T99: 0 | U99: 136 | V99: 0 | Y99: 10233.95383 | Z99: 0 | AA99: 0 | AB99: 136 | AC99: 0 | AF99: 10233.95383 | AG99: 0 | AH99: 0 | AI99: 136 | AJ99: 0
A100: 73 | B100: 4 | C100: LDNO LV: LV Generation NHH or Aggregate HH | D100: 27.78537836 | E100: 0 | F100: 0 | G100: 0 | H100: 0 | I100: 0 | J100: 0 | K100: 27.78537836 | L100: 0 | M100: 0 | N100: 0 | O100: 0 | R100: 27.78537836 | S100: 0 | T100: 0 | U100: 0 | V100: 0 | Y100: 27.78537836 | Z100: 0 | AA100: 0 | AB100: 0 | AC100: 0 | AF100: 27.78537836 | AG100: 0 | AH100: 0 | AI100: 0 | AJ100: 0
A101: 74 | B101: 4 | C101: LDNO HV: LV Generation NHH or Aggregate HH | D101: 0 | E101: 0 | F101: 0 | G101: 0 | H101: 0 | I101: 0 | J101: 0 | K101: 0 | L101: 0 | M101: 0 | N101: 0 | O101: 0 | R101: 0 | S101: 0 | T101: 0 | U101: 0 | V101: 0 | Y101: 0 | Z101: 0 | AA101: 0 | AB101: 0 | AC101: 0 | AF101: 0 | AG101: 0 | AH101: 0 | AI101: 0 | AJ101: 0
A102: 75 | C102: > LV Sub Generation NHH | D102: 0 | E102: 0 | F102: 0 | G102: 0 | H102: 0 | I102: 0 | J102: 0 | K102: 0 | L102: 0 | M102: 0 | N102: 0 | O102: 0 | R102: 0 | S102: 0 | T102: 0 | U102: 0 | V102: 0 | Y102: 0 | Z102: 0 | AA102: 0 | AB102: 0 | AC102: 0 | AF102: 0 | AG102: 0 | AH102: 0 | AI102: 0 | AJ102: 0
A103: 76 | B103: 4 | C103: LV Sub Generation NHH | D103: 0 | E103: 0 | F103: 0 | G103: 0 | H103: 0 | I103: 0 | J103: 0 | K103: 0 | L103: 0 | M103: 0 | N103: 0 | O103: 0 | R103: 0 | S103: 0 | T103: 0 | U103: 0 | V103: 0 | Y103: 0 | Z103: 0 | AA103: 0 | AB103: 0 | AC103: 0 | AF103: 0 | AG103: 0 | AH103: 0 | AI103: 0 | AJ103: 0
A104: 77 | B104: 4 | C104: LDNO HV: LV Sub Generation NHH | D104: 0 | E104: 0 | F104: 0 | G104: 0 | J104: 0 | K104: 0 | L104: 0 | M104: 0 | N104: 0 | O104: 0 | R104: 0 | S104: 0 | T104: 0 | U104: 0 | V104: 0 | Y104: 0 | Z104: 0 | AA104: 0 | AB104: 0 | AC104: 0 | AF104: 0 | AG104: 0 | AH104: 0 | AI104: 0 | AJ104: 0
A105: 78 | C105: > LV Generation Intermittent | D105: 0 | E105: 0 | F105: 0 | G105: 0 | J105: 0 | K105: 0 | L105: 0 | M105: 0 | N105: 0 | O105: 0 | R105: 0 | S105: 0 | T105: 0 | U105: 0 | V105: 0 | Y105: 0 | Z105: 0 | AA105: 0 | AB105: 0 | AC105: 0 | AF105: 0 | AG105: 0 | AH105: 0 | AI105: 0 | AJ105: 0
A106: 79 | B106: 4 | C106: LV Generation Intermittent | D106: 39541.45547 | E106: 0 | F106: 0 | G106: 697.5741639 | J106: 4219.38069 | K106: 39541.45547 | L106: 0 | M106: 0 | N106: 697.5741639 | O106: 0 | Q106: =IF(J106,((VLOOKUP($B106,$E$7:$AI$16,28)+1)*J106),) -> 4219.38069 | R106: 39541.45547 | S106: 0 | T106: 0 | U106: 697.5741639 | V106: 0 | X106: =IF(J106,((VLOOKUP($B106,$E$7:$AI$16,5+24)+1)*Q106),) -> 4219.38069 | Y106: 39541.45547 | Z106: 0 | AA106: 0 | AB106: 697.5741639 | AC106: 0 | AE106: =IF(J106,((VLOOKUP($B106,$E$7:$AI$16,6+24)+1)*X106),) -> 4219.38069 | AF106: 39541.45547 | AG106: 0 | AH106: 0 | AI106: 697.5741639 | AJ106: 0 | AL106: =IF(J106,((VLOOKUP($B106,$E$7:$AI$16,7+24)+1)*AE106),) -> 4219.38069
A107: 80 | B107: 4 | C107: LDNO LV: LV Generation Intermittent | D107: 0 | E107: 0 | F107: 0 | G107: 0 | J107: 0 | K107: 0 | L107: 0 | M107: 0 | N107: 0 | O107: 0 | Q107: 0 | R107: 0 | S107: 0 | T107: 0 | U107: 0 | V107: 0 | X107: 0 | Y107: 0 | Z107: 0 | AA107: 0 | AB107: 0 | AC107: 0 | AE107: 0 | AF107: 0 | AG107: 0 | AH107: 0 | AI107: 0 | AJ107: 0 | AL107: 0
A108: 81 | B108: 4 | C108: LDNO HV: LV Generation Intermittent | D108: 72.66896608 | G108: 4.420147541 | J108: 40.59606129 | K108: 72.66896608 | L108: 0 | M108: 0 | N108: 4.420147541 | O108: 0 | Q108: 40.59606129 | R108: 72.66896608 | S108: 0 | T108: 0 | U108: 4.420147541 | V108: 0 | X108: 40.59606129 | Y108: 72.66896608 | Z108: 0 | AA108: 0 | AB108: 4.420147541 | AC108: 0 | AE108: 40.59606129 | AF108: 72.66896608 | AG108: 0 | AH108: 0 | AI108: 4.420147541 | AJ108: 0 | AL108: 40.59606129
A109: 82 | C109: > LV Generation Intermittent no RP charge | D109: 0 | E109: 0 | F109: 0 | G109: 0 | J109: 0 | K109: 0 | L109: 0 | M109: 0 | N109: 0 | O109: 0 | R109: 0 | S109: 0 | T109: 0 | U109: 0 | V109: 0 | Y109: 0 | Z109: 0 | AA109: 0 | AB109: 0 | AC109: 0 | AF109: 0 | AG109: 0 | AH109: 0 | AI109: 0 | AJ109: 0
A110: 83 | B110: 4 | C110: LV Generation Intermittent no RP charge | D110: 0 | E110: 0 | F110: 0 | G110: 0 | J110: 0 | K110: 0 | L110: 0 | M110: 0 | N110: 0 | O110: 0 | R110: 0 | S110: 0 | T110: 0 | U110: 0 | V110: 0 | Y110: 0 | Z110: 0 | AA110: 0 | AB110: 0 | AC110: 0 | AF110: 0 | AG110: 0 | AH110: 0 | AI110: 0 | AJ110: 0
A111: 84 | C111: > LV Generation Non-Intermittent | D111: 0 | E111: 0 | F111: 0 | G111: 0 | J111: 0 | K111: 0 | L111: 0 | M111: 0 | N111: 0 | O111: 0 | R111: 0 | S111: 0 | T111: 0 | U111: 0 | V111: 0 | Y111: 0 | Z111: 0 | AA111: 0 | AB111: 0 | AC111: 0 | AF111: 0 | AG111: 0 | AH111: 0 | AI111: 0 | AJ111: 0
A112: 85 | B112: 4 | C112: LV Generation Non-Intermittent | D112: 1593.585293 | E112: 6242.392261 | F112: 9539.91196 | G112: 105.7270389 | J112: 667.6291972 | K112: 1593.585293 | L112: 6242.392261 | M112: 9539.91196 | N112: 105.7270389 | O112: 0 | Q112: =IF(J112,((VLOOKUP($B112,$E$7:$AI$16,28)+1)*J112),) -> 667.6291972 | R112: 1593.585293 | S112: 6242.392261 | T112: 9539.91196 | U112: 105.7270389 | V112: 0 | X112: =IF(J112,((VLOOKUP($B112,$E$7:$AI$16,5+24)+1)*Q112),) -> 667.6291972 | Y112: 1593.585293 | Z112: 6242.392261 | AA112: 9539.91196 | AB112: 105.7270389 | AC112: 0 | AE112: =IF(J112,((VLOOKUP($B112,$E$7:$AI$16,6+24)+1)*X112),) -> 667.6291972 | AF112: 1593.585293 | AG112: 6242.392261 | AH112: 9539.91196 | AI112: 105.7270389 | AJ112: 0 | AL112: =IF(J112,((VLOOKUP($B112,$E$7:$AI$16,7+24)+1)*AE112),) -> 667.6291972
A113: 86 | B113: 4 | C113: LDNO LV: LV Generation Non-Intermittent | D113: 0 | E113: 0 | F113: 0 | G113: 0 | J113: 0 | K113: 0 | L113: 0 | M113: 0 | N113: 0 | O113: 0 | Q113: 0 | R113: 0 | S113: 0 | T113: 0 | U113: 0 | V113: 0 | X113: 0 | Y113: 0 | Z113: 0 | AA113: 0 | AB113: 0 | AC113: 0 | AE113: 0 | AF113: 0 | AG113: 0 | AH113: 0 | AI113: 0 | AJ113: 0 | AL113: 0
A114: 87 | B114: 4 | C114: LDNO HV: LV Generation Non-Intermittent | D114: 0 | E114: 0 | F114: 0 | G114: 0 | J114: 0 | K114: 0 | L114: 0 | M114: 0 | N114: 0 | O114: 0 | Q114: 0 | R114: 0 | S114: 0 | T114: 0 | U114: 0 | V114: 0 | X114: 0 | Y114: 0 | Z114: 0 | AA114: 0 | AB114: 0 | AC114: 0 | AE114: 0 | AF114: 0 | AG114: 0 | AH114: 0 | AI114: 0 | AJ114: 0 | AL114: =IF(J114,((VLOOKUP($B114,$E$7:$AI$16,7+24)+1)*AE114),) -> 0
A115: 88 | C115: > LV Generation Non-Intermittent no RP charge | D115: 0 | E115: 0 | F115: 0 | G115: 0 | J115: 0 | K115: 0 | L115: 0 | M115: 0 | N115: 0 | O115: 0 | R115: 0 | S115: 0 | T115: 0 | U115: 0 | V115: 0 | Y115: 0 | Z115: 0 | AA115: 0 | AB115: 0 | AC115: 0 | AF115: 0 | AG115: 0 | AH115: 0 | AI115: 0 | AJ115: 0
A116: 89 | B116: 4 | C116: LV Generation Non-Intermittent no RP charge | D116: 0 | E116: 0 | F116: 0 | G116: 0 | J116: 0 | K116: 0 | L116: 0 | M116: 0 | N116: 0 | O116: 0 | R116: 0 | S116: 0 | T116: 0 | U116: 0 | V116: 0 | Y116: 0 | Z116: 0 | AA116: 0 | AB116: 0 | AC116: 0 | AF116: 0 | AG116: 0 | AH116: 0 | AI116: 0 | AJ116: 0
A117: 90 | C117: > LV Sub Generation Intermittent | D117: 0 | E117: 0 | F117: 0 | G117: 0 | J117: 0 | K117: 0 | L117: 0 | M117: 0 | N117: 0 | O117: 0 | R117: 0 | S117: 0 | T117: 0 | U117: 0 | V117: 0 | Y117: 0 | Z117: 0 | AA117: 0 | AB117: 0 | AC117: 0 | AF117: 0 | AG117: 0 | AH117: 0 | AI117: 0 | AJ117: 0
A118: 91 | B118: 4 | C118: LV Sub Generation Intermittent | D118: 3841.656405 | E118: 0 | F118: 0 | G118: 31.30639344 | J118: 365.0749339 | K118: 3841.656405 | L118: 0 | M118: 0 | N118: 31.30639344 | O118: 0 | Q118: =IF(J118,((VLOOKUP($B118,$E$7:$AI$16,28)+1)*J118),) -> 365.0749339 | R118: 3841.656405 | S118: 0 | T118: 0 | U118: 31.30639344 | V118: 0 | X118: =IF(J118,((VLOOKUP($B118,$E$7:$AI$16,5+24)+1)*Q118),) -> 365.0749339 | Y118: 3841.656405 | Z118: 0 | AA118: 0 | AB118: 31.30639344 | AC118: 0 | AE118: =IF(J118,((VLOOKUP($B118,$E$7:$AI$16,6+24)+1)*X118),) -> 365.0749339 | AF118: 3841.656405 | AG118: 0 | AH118: 0 | AI118: 31.30639344 | AJ118: 0 | AL118: =IF(J118,((VLOOKUP($B118,$E$7:$AI$16,7+24)+1)*AE118),) -> 365.0749339
A119: 92 | B119: 4 | C119: LDNO HV: LV Sub Generation Intermittent | D119: 0 | E119: 0 | F119: 0 | G119: 0 | J119: 0 | K119: 0 | L119: 0 | M119: 0 | N119: 0 | O119: 0 | Q119: 0 | R119: 0 | S119: 0 | T119: 0 | U119: 0 | V119: 0 | X119: 0 | Y119: 0 | Z119: 0 | AA119: 0 | AB119: 0 | AC119: 0 | AE119: 0 | AF119: 0 | AG119: 0 | AH119: 0 | AI119: 0 | AJ119: 0 | AL119: 0
A120: 93 | C120: > LV Sub Generation Intermittent no RP charge | D120: 0 | E120: 0 | F120: 0 | G120: 0 | J120: 0 | K120: 0 | L120: 0 | M120: 0 | N120: 0 | O120: 0 | R120: 0 | S120: 0 | T120: 0 | U120: 0 | V120: 0 | Y120: 0 | Z120: 0 | AA120: 0 | AB120: 0 | AC120: 0 | AF120: 0 | AG120: 0 | AH120: 0 | AI120: 0 | AJ120: 0
A121: 94 | B121: 4 | C121: LV Sub Generation Intermittent no RP charge | D121: 0 | E121: 0 | F121: 0 | G121: 0 | J121: 0 | K121: 0 | L121: 0 | M121: 0 | N121: 0 | O121: 0 | R121: 0 | S121: 0 | T121: 0 | U121: 0 | V121: 0 | Y121: 0 | Z121: 0 | AA121: 0 | AB121: 0 | AC121: 0 | AF121: 0 | AG121: 0 | AH121: 0 | AI121: 0 | AJ121: 0
A122: 95 | C122: > LV Sub Generation Non-Intermittent | D122: 0 | E122: 0 | F122: 0 | G122: 0 | J122: 0 | K122: 0 | L122: 0 | M122: 0 | N122: 0 | O122: 0 | R122: 0 | S122: 0 | T122: 0 | U122: 0 | V122: 0 | Y122: 0 | Z122: 0 | AA122: 0 | AB122: 0 | AC122: 0 | AF122: 0 | AG122: 0 | AH122: 0 | AI122: 0 | AJ122: 0
A123: 96 | B123: 4 | C123: LV Sub Generation Non-Intermittent | D123: 504.4010526 | E123: 1662.050758 | F123: 3695.400786 | G123: 6.136798156 | J123: 368.1738802 | K123: 504.4010526 | L123: 1662.050758 | M123: 3695.400786 | N123: 6.136798156 | O123: 0 | Q123: =IF(J123,((VLOOKUP($B123,$E$7:$AI$16,28)+1)*J123),) -> 368.1738802 | R123: 504.4010526 | S123: 1662.050758 | T123: 3695.400786 | U123: 6.136798156 | V123: 0 | X123: =IF(J123,((VLOOKUP($B123,$E$7:$AI$16,5+24)+1)*Q123),) -> 368.1738802 | Y123: 504.4010526 | Z123: 1662.050758 | AA123: 3695.400786 | AB123: 6.136798156 | AC123: 0 | AE123: =IF(J123,((VLOOKUP($B123,$E$7:$AI$16,6+24)+1)*X123),) -> 368.1738802 | AF123: 504.4010526 | AG123: 1662.050758 | AH123: 3695.400786 | AI123: 6.136798156 | AJ123: 0 | AL123: =IF(J123,((VLOOKUP($B123,$E$7:$AI$16,7+24)+1)*AE123),) -> 368.1738802
A124: 97 | B124: 4 | C124: LDNO HV: LV Sub Generation Non-Intermittent | D124: 0 | E124: 0 | F124: 0 | G124: 0 | J124: 0 | K124: 0 | L124: 0 | M124: 0 | N124: 0 | O124: 0 | Q124: 0 | R124: 0 | S124: 0 | T124: 0 | U124: 0 | V124: 0 | X124: 0 | Y124: 0 | Z124: 0 | AA124: 0 | AB124: 0 | AC124: 0 | AE124: 0 | AF124: 0 | AG124: 0 | AH124: 0 | AI124: 0 | AJ124: 0 | AL124: 0
A125: 98 | C125: > LV Sub Generation Non-Intermittent no RP charge | D125: 0 | E125: 0 | F125: 0 | G125: 0 | J125: 0 | K125: 0 | L125: 0 | M125: 0 | N125: 0 | O125: 0 | R125: 0 | S125: 0 | T125: 0 | U125: 0 | V125: 0 | Y125: 0 | Z125: 0 | AA125: 0 | AB125: 0 | AC125: 0 | AF125: 0 | AG125: 0 | AH125: 0 | AI125: 0 | AJ125: 0
A126: 99 | B126: 4 | C126: LV Sub Generation Non-Intermittent no RP charge | D126: 0 | E126: 0 | F126: 0 | G126: 0 | J126: 0 | K126: 0 | L126: 0 | M126: 0 | N126: 0 | O126: 0 | R126: 0 | S126: 0 | T126: 0 | U126: 0 | V126: 0 | Y126: 0 | Z126: 0 | AA126: 0 | AB126: 0 | AC126: 0 | AF126: 0 | AG126: 0 | AH126: 0 | AI126: 0 | AJ126: 0
A127: 100 | C127: > HV Generation Intermittent | D127: 0 | E127: 0 | F127: 0 | G127: 0 | J127: 0 | K127: 0 | L127: 0 | M127: 0 | N127: 0 | O127: 0 | R127: 0 | S127: 0 | T127: 0 | U127: 0 | V127: 0 | Y127: 0 | Z127: 0 | AA127: 0 | AB127: 0 | AC127: 0 | AF127: 0 | AG127: 0 | AH127: 0 | AI127: 0 | AJ127: 0
A128: 101 | B128: 4 | C128: HV Generation Intermittent | D128: 479000.8297 | E128: 0 | F128: 0 | G128: 248.1556721 | J128: 10496.6186 | K128: 479000.8297 | L128: 0 | M128: 0 | N128: 248.1556721 | O128: 0 | Q128: =IF(J128,((VLOOKUP($B128,$E$7:$AI$16,28)+1)*J128),) -> 10496.6186 | R128: 479000.8297 | S128: 0 | T128: 0 | U128: 248.1556721 | V128: 0 | X128: =IF(J128,((VLOOKUP($B128,$E$7:$AI$16,5+24)+1)*Q128),) -> 10496.6186 | Y128: 479000.8297 | Z128: 0 | AA128: 0 | AB128: 248.1556721 | AC128: 0 | AE128: =IF(J128,((VLOOKUP($B128,$E$7:$AI$16,6+24)+1)*X128),) -> 10496.6186 | AF128: 479000.8297 | AG128: 0 | AH128: 0 | AI128: 248.1556721 | AJ128: 0 | AL128: =IF(J128,((VLOOKUP($B128,$E$7:$AI$16,7+24)+1)*AE128),) -> 10496.6186
A129: 102 | B129: 4 | C129: LDNO HV: HV Generation Intermittent | D129: 18.63069 | G129: 0.6228852459 | J129: 0.09108 | K129: 18.63069 | L129: 0 | M129: 0 | N129: 0.6228852459 | O129: 0 | Q129: 0.09108 | R129: 18.63069 | S129: 0 | T129: 0 | U129: 0.6228852459 | V129: 0 | X129: 0.09108 | Y129: 18.63069 | Z129: 0 | AA129: 0 | AB129: 0.6228852459 | AC129: 0 | AE129: 0.09108 | AF129: 18.63069 | AG129: 0 | AH129: 0 | AI129: 0.6228852459 | AJ129: 0 | AL129: 0.09108
A130: 103 | C130: > HV Generation Intermittent no RP charge | D130: 0 | E130: 0 | F130: 0 | G130: 0 | J130: 0 | K130: 0 | L130: 0 | M130: 0 | N130: 0 | O130: 0 | R130: 0 | S130: 0 | T130: 0 | U130: 0 | V130: 0 | Y130: 0 | Z130: 0 | AA130: 0 | AB130: 0 | AC130: 0 | AF130: 0 | AG130: 0 | AH130: 0 | AI130: 0 | AJ130: 0
A131: 104 | B131: 4 | C131: HV Generation Intermittent no RP charge | D131: 0 | E131: 0 | F131: 0 | G131: 0 | J131: 0 | K131: 0 | L131: 0 | M131: 0 | N131: 0 | O131: 0 | R131: 0 | S131: 0 | T131: 0 | U131: 0 | V131: 0 | Y131: 0 | Z131: 0 | AA131: 0 | AB131: 0 | AC131: 0 | AF131: 0 | AG131: 0 | AH131: 0 | AI131: 0 | AJ131: 0
A132: 105 | C132: > HV Generation Non-Intermittent | D132: 0 | E132: 0 | F132: 0 | G132: 0 | J132: 0 | K132: 0 | L132: 0 | M132: 0 | N132: 0 | O132: 0 | R132: 0 | S132: 0 | T132: 0 | U132: 0 | V132: 0 | Y132: 0 | Z132: 0 | AA132: 0 | AB132: 0 | AC132: 0 | AF132: 0 | AG132: 0 | AH132: 0 | AI132: 0 | AJ132: 0
A133: 106 | B133: 4 | C133: HV Generation Non-Intermittent | D133: 87733.66005 | E133: 276082.2822 | F133: 487742.2954 | G133: 231.2883842 | J133: 15003.9804 | K133: 87733.66005 | L133: 276082.2822 | M133: 487742.2954 | N133: 231.2883842 | O133: 0 | Q133: =IF(J133,((VLOOKUP($B133,$E$7:$AI$16,28)+1)*J133),) -> 15003.9804 | R133: 87733.66005 | S133: 276082.2822 | T133: 487742.2954 | U133: 231.2883842 | V133: 0 | X133: =IF(J133,((VLOOKUP($B133,$E$7:$AI$16,5+24)+1)*Q133),) -> 15003.9804 | Y133: 87733.66005 | Z133: 276082.2822 | AA133: 487742.2954 | AB133: 231.2883842 | AC133: 0 | AE133: =IF(J133,((VLOOKUP($B133,$E$7:$AI$16,6+24)+1)*X133),) -> 15003.9804 | AF133: 87733.66005 | AG133: 276082.2822 | AH133: 487742.2954 | AI133: 231.2883842 | AJ133: 0 | AL133: =IF(J133,((VLOOKUP($B133,$E$7:$AI$16,7+24)+1)*AE133),) -> 15003.9804
A134: 107 | B134: 4 | C134: LDNO HV: HV Generation Non-Intermittent | D134: 0 | E134: 0 | F134: 0 | G134: 0 | J134: 0 | K134: 0 | L134: 0 | M134: 0 | N134: 0 | O134: 0 | Q134: 0 | R134: 0 | S134: 0 | T134: 0 | U134: 0 | V134: 0 | X134: 0 | Y134: 0 | Z134: 0 | AA134: 0 | AB134: 0 | AC134: 0 | AE134: 0 | AF134: 0 | AG134: 0 | AH134: 0 | AI134: 0 | AJ134: 0 | AL134: 0
A135: 108 | C135: > HV Generation Non-Intermittent no RP charge | D135: 0 | E135: 0 | F135: 0 | G135: 0 | J135: 0 | K135: 0 | L135: 0 | M135: 0 | N135: 0 | O135: 0 | R135: 0 | S135: 0 | T135: 0 | U135: 0 | V135: 0 | Y135: 0 | Z135: 0 | AA135: 0 | AB135: 0 | AC135: 0 | AF135: 0 | AG135: 0 | AH135: 0 | AI135: 0 | AJ135: 0
A136: 109 | B136: 4 | C136: HV Generation Non-Intermittent no RP charge | D136: 0 | E136: 0 | F136: 0 | G136: 0 | J136: 0 | K136: 0 | L136: 0 | M136: 0 | N136: 0 | O136: 0 | R136: 0 | S136: 0 | T136: 0 | U136: 0 | V136: 0 | Y136: 0 | Z136: 0 | AA136: 0 | AB136: 0 | AC136: 0 | AF136: 0 | AG136: 0 | AH136: 0 | AI136: 0 | AJ136: 0

Sheet CDCM Timebands
B2: CDCM Timebands
C4: 2019/20
C5: WD (incl. bank holidays) | D5: WE | E5: 2020/21 | F5: 2021/22 | G5: 2022/23 | H5: 2023/24
B6: Red | C6: 16:00 to 19:00 | E6: No Change | F6: No Change | G6: No Change | H6: No Change
B8: Amber | C8: 07:30 to 16:00 | D8: 0
C9: 19:00 to 21:00
B11: Green | C11: 00:00 to 07:30 | D11: 00:00 to 24:00
C12: 21:00 to 24:00 | D12: 0
C14: 2019/20
C15: WD (incl. bank holidays) Nov to Feb | D15: WD (incl. bank holidays) Mar to Oct | E15: WE | F15: 2020/21 | G15: 2021/22 | H15: 2022/23 | I15: 2023/24
B16: Black | C16: 16:00 to 19:00 | F16: No Change | G16: No Change | H16: No Change | I16: No Change
B18: Yellow | C18: 07:30 to 16:00 | D18: 07:30 to 21:00 | E18: 0
C19: 19:00 to 21:00
B21: Green | C21: 00:00 to 07:30 | D21: 00:00 to 07:30 | E21: 00:00 to 24:00
C22: 21:00 to 24:00 | D22: 21:00 to 24:00 | E22: 0

Sheet (Y)
A1: Input data (Y)
A4: 1000. Company, charging year, data version
B6: Company | C6: Year | D6: Version
A7: Company, charging year, data version | B7: =VLOOKUP(Vlookup!B7,'CDCM Forecast Data'!$A$14:$I$271,5,FALSE) -> WPD East Midlands | C7: =VLOOKUP(Vlookup!C7,'CDCM Forecast Data'!$A$14:$I$271,5,FALSE) -> 2019/20 | D7: =VLOOKUP(Vlookup!D7,'CDCM Forecast Data'!$A$14:$I$271,5,FALSE) -> Finals
A9: 1010. Financial and general assumptions
A11: Sources: financial assumptions; calendar; network model.
A12: These financial assumptions determine the annuity rate applied to convert the asset values of the network model into an annual charge.
B13: Rate of return | C13: Annualisation period (years) | D13: Annuity proportion for customer-contributed assets | E13: Power factor | F13: Days in the charging period
A14: Financial and general assumptions | B14: =VLOOKUP(Vlookup!B14,'CDCM Forecast Data'!$A$14:$I$271,5,FALSE) -> 0.0408 | C14: =VLOOKUP(Vlookup!C14,'CDCM Forecast Data'!$A$14:$I$271,5,FALSE) -> 40 | E14: =VLOOKUP(Vlookup!E14,'CDCM Forecast Data'!$A$14:$I$271,5,FALSE) -> 0.95 | F14: =VLOOKUP(Vlookup!F14,'CDCM Forecast Data'!$A$14:$I$271,5,FALSE) -> 366
A16: 1017. Diversity allowance between top and bottom of network level
A18: Source: operational data analysis and/or network model.
A19: The diversity figure against GSP is the diversity between GSP Group (the whole system) and individual GSPs.
A20: The diversity figure against 132kV is the diversity between GSPs (the top of the 132kV network) and 132kV/EHV bulk supply points (the bottom of the 132kV network).
A21: The diversity figure against EHV is the diversity between 132kV/EHV bulk supply points (the top of the EHV network) and EHV/HV primary substations (the bottom of the EHV network).
A22: The diversity figure against HV is the diversity between EHV/HV primary substations (the top of the HV network) and HV/LV substations (the bottom of the HV network).
B23: Diversity allowance between top and bottom of network level
A24: GSPs | B24: =VLOOKUP(Vlookup!B24,'CDCM Forecast Data'!$A$14:$I$271,5,FALSE) -> 0.02471374244
A25: 132kV | B25: =VLOOKUP(Vlookup!B25,'CDCM Forecast Data'!$A$14:$I$271,5,FALSE) -> 0.04501347824
A26: 132kV/EHV
A27: EHV | B27: =VLOOKUP(Vlookup!B27,'CDCM Forecast Data'!$A$14:$I$271,5,FALSE) -> 0.07901764269
A28: EHV/HV
A29: HV | B29: =VLOOKUP(Vlookup!B29,'CDCM Forecast Data'!$A$14:$I$271,5,FALSE) -> 0.34
A30: HV/LV
A31: LV circuits
A33: 1018. Proportion of relevant load going through 132kV/HV direct transformation
B35: 132kV/HV
A36: EHV/HV | B36: =VLOOKUP(Vlookup!B36,'CDCM Forecast Data'!$A$14:$I$271,5,FALSE) -> 0.07504434271
A38: 1019. Network model GSP peak demand (MW)
B40: Network model GSP peak demand (MW)
A41: Network model GSP peak demand (MW) | B41: =VLOOKUP(Vlookup!B41,'CDCM Forecast Data'!$A$14:$I$271,5,FALSE) -> 500
A43: 1020. Gross asset cost by network level (£)
B45: Gross assets £
A46: 132kV | B46: =VLOOKUP(Vlookup!B46,'CDCM Forecast Data'!$A$14:$I$271,5,FALSE) -> 56518353.98
A47: 132kV/EHV | B47: =VLOOKUP(Vlookup!B47,'CDCM Forecast Data'!$A$14:$I$271,5,FALSE) -> 28721335.71
A48: EHV | B48: =VLOOKUP(Vlookup!B48,'CDCM Forecast Data'!$A$14:$I$271,5,FALSE) -> 35107370.34
A49: EHV/HV | B49: =VLOOKUP(Vlookup!B49,'CDCM Forecast Data'!$A$14:$I$271,5,FALSE) -> 56993035.86
A50: 132kV/HV | B50: =VLOOKUP(Vlookup!B50,'CDCM Forecast Data'!$A$14:$I$271,5,FALSE) -> 4780051.294
A51: HV | B51: =VLOOKUP(Vlookup!B51,'CDCM Forecast Data'!$A$14:$I$271,5,FALSE) -> 135229188.2
A52: HV/LV | B52: =VLOOKUP(Vlookup!B52,'CDCM Forecast Data'!$A$14:$I$271,5,FALSE) -> 61125988.26
A53: LV circuits | B53: =VLOOKUP(Vlookup!B53,'CDCM Forecast Data'!$A$14:$I$271,5,FALSE) -> 118958510.7
A55: 1022. LV service model asset cost (£)
B57: LV service model 1 | C57: LV service model 2 | D57: LV service model 3 | E57: LV service model 4 | F57: LV service model 5 | G57: LV service model 6 | H57: LV service model 7 | I57: LV service model 8
A58: LV service model asset cost (£) | B58: =VLOOKUP(Vlookup!B58,'CDCM Forecast Data'!$A$14:$I$271,5,FALSE) -> 4357.3283 | C58: =VLOOKUP(Vlookup!C58,'CDCM Forecast Data'!$A$14:$I$271,5,FALSE) -> 664.3320883 | D58: =VLOOKUP(Vlookup!D58,'CDCM Forecast Data'!$A$14:$I$271,5,FALSE) -> 768.3550333 | E58: =VLOOKUP(Vlookup!E58,'CDCM Forecast Data'!$A$14:$I$271,5,FALSE) -> 557.61394 | F58: =VLOOKUP(Vlookup!F58,'CDCM Forecast Data'!$A$14:$I$271,5,FALSE) -> 1230.218011 | G58: =VLOOKUP(Vlookup!G58,'CDCM Forecast Data'!$A$14:$I$271,5,FALSE) -> 960.3594 | H58: =VLOOKUP(Vlookup!H58,'CDCM Forecast Data'!$A$14:$I$271,5,FALSE) -> 0 | I58: =VLOOKUP(Vlookup!I58,'CDCM Forecast Data'!$A$14:$I$271,5,FALSE) -> 525.61262
A60: 1023. HV service model asset cost (£)
B62: HV service model 1 | C62: HV service model 2 | D62: HV service model 3 | E62: HV service model 4 | F62: HV service model 5
A63: HV service model asset cost (£) | B63: =VLOOKUP(Vlookup!B63,'CDCM Forecast Data'!$A$14:$I$271,5,FALSE) -> 10371.62568 | C63: =VLOOKUP(Vlookup!C63,'CDCM Forecast Data'!$A$14:$I$271,5,FALSE) -> 4264 | D63: =VLOOKUP(Vlookup!D63,'CDCM Forecast Data'!$A$14:$I$271,5,FALSE) -> 0 | E63: =VLOOKUP(Vlookup!E63,'CDCM Forecast Data'!$A$14:$I$271,5,FALSE) -> 0 | F63: =VLOOKUP(Vlookup!F63,'CDCM Forecast Data'!$A$14:$I$271,5,FALSE) -> 0
A65: 1025. Matrix of applicability of LV service models to tariffs with fixed charges
B66: 2 | C66: =B66+1 -> 3 | D66: 4 | E66: 5 | F66: 6 | G66: 7 | H66: 8 | I66: 9
B67: LV service model 1 | C67: LV service model 2 | D67: LV service model 3 | E67: LV service model 4 | F67: LV service model 5 | G67: LV service model 6 | H67: LV service model 7 | I67: LV service model 8
A68: Domestic Unrestricted | B68: =VLOOKUP($A68,'Mat of App'!$B$7:$AP$43,B$66,FALSE) -> 0.05 | C68: =VLOOKUP($A68,'Mat of App'!$B$7:$AP$43,C$66,FALSE) -> 0 | D68: =VLOOKUP($A68,'Mat of App'!$B$7:$AP$43,D$66,FALSE) -> 0 | E68: =VLOOKUP($A68,'Mat of App'!$B$7:$AP$43,E$66,FALSE) -> 0 | F68: =VLOOKUP($A68,'Mat of App'!$B$7:$AP$43,F$66,FALSE) -> 0 | G68: =VLOOKUP($A68,'Mat of App'!$B$7:$AP$43,G$66,FALSE) -> 0 | H68: =VLOOKUP($A68,'Mat of App'!$B$7:$AP$43,H$66,FALSE) -> 0 | I68: =VLOOKUP($A68,'Mat of App'!$B$7:$AP$43,I$66,FALSE) -> 0
A69: Domestic Two Rate | B69: =VLOOKUP($A69,'Mat of App'!$B$7:$AP$43,B$66,FALSE) -> 0.05 | C69: =VLOOKUP($A69,'Mat of App'!$B$7:$AP$43,C$66,FALSE) -> 0 | D69: =VLOOKUP($A69,'Mat of App'!$B$7:$AP$43,D$66,FALSE) -> 0 | E69: =VLOOKUP($A69,'Mat of App'!$B$7:$AP$43,E$66,FALSE) -> 0 | F69: =VLOOKUP($A69,'Mat of App'!$B$7:$AP$43,F$66,FALSE) -> 0 | G69: =VLOOKUP($A69,'Mat of App'!$B$7:$AP$43,G$66,FALSE) -> 0 | H69: =VLOOKUP($A69,'Mat of App'!$B$7:$AP$43,H$66,FALSE) -> 0 | I69: =VLOOKUP($A69,'Mat of App'!$B$7:$AP$43,I$66,FALSE) -> 0
A70: Small Non Domestic Unrestricted | B70: =VLOOKUP($A70,'Mat of App'!$B$7:$AP$43,B$66,FALSE) -> 0 | C70: =VLOOKUP($A70,'Mat of App'!$B$7:$AP$43,C$66,FALSE) -> 1 | D70: =VLOOKUP($A70,'Mat of App'!$B$7:$AP$43,D$66,FALSE) -> 0 | E70: =VLOOKUP($A70,'Mat of App'!$B$7:$AP$43,E$66,FALSE) -> 0 | F70: =VLOOKUP($A70,'Mat of App'!$B$7:$AP$43,F$66,FALSE) -> 0 | G70: =VLOOKUP($A70,'Mat of App'!$B$7:$AP$43,G$66,FALSE) -> 0 | H70: =VLOOKUP($A70,'Mat of App'!$B$7:$AP$43,H$66,FALSE) -> 0 | I70: =VLOOKUP($A70,'Mat of App'!$B$7:$AP$43,I$66,FALSE) -> 0
A71: Small Non Domestic Two Rate | B71: =VLOOKUP($A71,'Mat of App'!$B$7:$AP$43,B$66,FALSE) -> 0 | C71: =VLOOKUP($A71,'Mat of App'!$B$7:$AP$43,C$66,FALSE) -> 1 | D71: =VLOOKUP($A71,'Mat of App'!$B$7:$AP$43,D$66,FALSE) -> 0 | E71: =VLOOKUP($A71,'Mat of App'!$B$7:$AP$43,E$66,FALSE) -> 0 | F71: =VLOOKUP($A71,'Mat of App'!$B$7:$AP$43,F$66,FALSE) -> 0 | G71: =VLOOKUP($A71,'Mat of App'!$B$7:$AP$43,G$66,FALSE) -> 0 | H71: =VLOOKUP($A71,'Mat of App'!$B$7:$AP$43,H$66,FALSE) -> 0 | I71: =VLOOKUP($A71,'Mat of App'!$B$7:$AP$43,I$66,FALSE) -> 0
A72: LV Medium Non-Domestic | B72: =VLOOKUP($A72,'Mat of App'!$B$7:$AP$43,B$66,FALSE) -> 0 | C72: =VLOOKUP($A72,'Mat of App'!$B$7:$AP$43,C$66,FALSE) -> 0 | D72: =VLOOKUP($A72,'Mat of App'!$B$7:$AP$43,D$66,FALSE) -> 1 | E72: =VLOOKUP($A72,'Mat of App'!$B$7:$AP$43,E$66,FALSE) -> 0 | F72: =VLOOKUP($A72,'Mat of App'!$B$7:$AP$43,F$66,FALSE) -> 0 | G72: =VLOOKUP($A72,'Mat of App'!$B$7:$AP$43,G$66,FALSE) -> 0 | H72: =VLOOKUP($A72,'Mat of App'!$B$7:$AP$43,H$66,FALSE) -> 0 | I72: =VLOOKUP($A72,'Mat of App'!$B$7:$AP$43,I$66,FALSE) -> 0
A73: LV Sub Medium Non-Domestic | B73: =VLOOKUP($A73,'Mat of App'!$B$7:$AP$43,B$66,FALSE) -> 0 | C73: =VLOOKUP($A73,'Mat of App'!$B$7:$AP$43,C$66,FALSE) -> 0 | D73: =VLOOKUP($A73,'Mat of App'!$B$7:$AP$43,D$66,FALSE) -> 0 | E73: =VLOOKUP($A73,'Mat of App'!$B$7:$AP$43,E$66,FALSE) -> 1 | F73: =VLOOKUP($A73,'Mat of App'!$B$7:$AP$43,F$66,FALSE) -> 0 | G73: =VLOOKUP($A73,'Mat of App'!$B$7:$AP$43,G$66,FALSE) -> 0 | H73: =VLOOKUP($A73,'Mat of App'!$B$7:$AP$43,H$66,FALSE) -> 0 | I73: =VLOOKUP($A73,'Mat of App'!$B$7:$AP$43,I$66,FALSE) -> 0
A74: LV Network Domestic | B74: =VLOOKUP($A74,'Mat of App'!$B$7:$AP$43,B$66,FALSE) -> 0.05 | C74: =VLOOKUP($A74,'Mat of App'!$B$7:$AP$43,C$66,FALSE) -> 0 | D74: =VLOOKUP($A74,'Mat of App'!$B$7:$AP$43,D$66,FALSE) -> 0 | E74: =VLOOKUP($A74,'Mat of App'!$B$7:$AP$43,E$66,FALSE) -> 0 | F74: =VLOOKUP($A74,'Mat of App'!$B$7:$AP$43,F$66,FALSE) -> 0 | G74: =VLOOKUP($A74,'Mat of App'!$B$7:$AP$43,G$66,FALSE) -> 0 | H74: =VLOOKUP($A74,'Mat of App'!$B$7:$AP$43,H$66,FALSE) -> 0 | I74: =VLOOKUP($A74,'Mat of App'!$B$7:$AP$43,I$66,FALSE) -> 0
A75: LV Network Non-Domestic Non-CT | B75: =VLOOKUP($A75,'Mat of App'!$B$7:$AP$43,B$66,FALSE) -> 0 | C75: =VLOOKUP($A75,'Mat of App'!$B$7:$AP$43,C$66,FALSE) -> 1 | D75: =VLOOKUP($A75,'Mat of App'!$B$7:$AP$43,D$66,FALSE) -> 0 | E75: =VLOOKUP($A75,'Mat of App'!$B$7:$AP$43,E$66,FALSE) -> 0 | F75: =VLOOKUP($A75,'Mat of App'!$B$7:$AP$43,F$66,FALSE) -> 0 | G75: =VLOOKUP($A75,'Mat of App'!$B$7:$AP$43,G$66,FALSE) -> 0 | H75: =VLOOKUP($A75,'Mat of App'!$B$7:$AP$43,H$66,FALSE) -> 0 | I75: =VLOOKUP($A75,'Mat of App'!$B$7:$AP$43,I$66,FALSE) -> 0
A76: LV HH Metered | B76: =VLOOKUP($A76,'Mat of App'!$B$7:$AP$43,B$66,FALSE) -> 0 | C76: =VLOOKUP($A76,'Mat of App'!$B$7:$AP$43,C$66,FALSE) -> 0 | D76: =VLOOKUP($A76,'Mat of App'!$B$7:$AP$43,D$66,FALSE) -> 0 | E76: =VLOOKUP($A76,'Mat of App'!$B$7:$AP$43,E$66,FALSE) -> 0 | F76: =VLOOKUP($A76,'Mat of App'!$B$7:$AP$43,F$66,FALSE) -> 1 | G76: =VLOOKUP($A76,'Mat of App'!$B$7:$AP$43,G$66,FALSE) -> 0 | H76: =VLOOKUP($A76,'Mat of App'!$B$7:$AP$43,H$66,FALSE) -> 0 | I76: =VLOOKUP($A76,'Mat of App'!$B$7:$AP$43,I$66,FALSE) -> 0
A77: LV Sub HH Metered | B77: =VLOOKUP($A77,'Mat of App'!$B$7:$AP$43,B$66,FALSE) -> 0 | C77: =VLOOKUP($A77,'Mat of App'!$B$7:$AP$43,C$66,FALSE) -> 0 | D77: =VLOOKUP($A77,'Mat of App'!$B$7:$AP$43,D$66,FALSE) -> 0 | E77: =VLOOKUP($A77,'Mat of App'!$B$7:$AP$43,E$66,FALSE) -> 0 | F77: =VLOOKUP($A77,'Mat of App'!$B$7:$AP$43,F$66,FALSE) -> 0 | G77: =VLOOKUP($A77,'Mat of App'!$B$7:$AP$43,G$66,FALSE) -> 1 | H77: =VLOOKUP($A77,'Mat of App'!$B$7:$AP$43,H$66,FALSE) -> 0 | I77: =VLOOKUP($A77,'Mat of App'!$B$7:$AP$43,I$66,FALSE) -> 0
A78: LV Generation NHH or Aggregate HH | B78: =VLOOKUP($A78,'Mat of App'!$B$7:$AP$43,B$66,FALSE) -> 0 | C78: =VLOOKUP($A78,'Mat of App'!$B$7:$AP$43,C$66,FALSE) -> 0 | D78: =VLOOKUP($A78,'Mat of App'!$B$7:$AP$43,D$66,FALSE) -> 0 | E78: =VLOOKUP($A78,'Mat of App'!$B$7:$AP$43,E$66,FALSE) -> 0 | F78: =VLOOKUP($A78,'Mat of App'!$B$7:$AP$43,F$66,FALSE) -> 0 | G78: =VLOOKUP($A78,'Mat of App'!$B$7:$AP$43,G$66,FALSE) -> 0 | H78: =VLOOKUP($A78,'Mat of App'!$B$7:$AP$43,H$66,FALSE) -> 1 | I78: =VLOOKUP($A78,'Mat of App'!$B$7:$AP$43,I$66,FALSE) -> 0
A79: LV Sub Generation NHH | B79: =VLOOKUP($A79,'Mat of App'!$B$7:$AP$43,B$66,FALSE) -> 0 | C79: =VLOOKUP($A79,'Mat of App'!$B$7:$AP$43,C$66,FALSE) -> 0 | D79: =VLOOKUP($A79,'Mat of App'!$B$7:$AP$43,D$66,FALSE) -> 0 | E79: =VLOOKUP($A79,'Mat of App'!$B$7:$AP$43,E$66,FALSE) -> 0 | F79: =VLOOKUP($A79,'Mat of App'!$B$7:$AP$43,F$66,FALSE) -> 0 | G79: =VLOOKUP($A79,'Mat of App'!$B$7:$AP$43,G$66,FALSE) -> 0 | H79: =VLOOKUP($A79,'Mat of App'!$B$7:$AP$43,H$66,FALSE) -> 1 | I79: =VLOOKUP($A79,'Mat of App'!$B$7:$AP$43,I$66,FALSE) -> 0
A80: LV Generation Intermittent | B80: =VLOOKUP($A80,'Mat of App'!$B$7:$AP$43,B$66,FALSE) -> 0 | C80: =VLOOKUP($A80,'Mat of App'!$B$7:$AP$43,C$66,FALSE) -> 0 | D80: =VLOOKUP($A80,'Mat of App'!$B$7:$AP$43,D$66,FALSE) -> 0 | E80: =VLOOKUP($A80,'Mat of App'!$B$7:$AP$43,E$66,FALSE) -> 0 | F80: =VLOOKUP($A80,'Mat of App'!$B$7:$AP$43,F$66,FALSE) -> 0 | G80: =VLOOKUP($A80,'Mat of App'!$B$7:$AP$43,G$66,FALSE) -> 0 | H80: =VLOOKUP($A80,'Mat of App'!$B$7:$AP$43,H$66,FALSE) -> 1 | I80: =VLOOKUP($A80,'Mat of App'!$B$7:$AP$43,I$66,FALSE) -> 0
A81: LV Generation Intermittent no RP charge | B81: =VLOOKUP($A81,'Mat of App'!$B$7:$AP$43,B$66,FALSE) -> 0 | C81: =VLOOKUP($A81,'Mat of App'!$B$7:$AP$43,C$66,FALSE) -> 0 | D81: =VLOOKUP($A81,'Mat of App'!$B$7:$AP$43,D$66,FALSE) -> 0 | E81: =VLOOKUP($A81,'Mat of App'!$B$7:$AP$43,E$66,FALSE) -> 0 | F81: =VLOOKUP($A81,'Mat of App'!$B$7:$AP$43,F$66,FALSE) -> 0 | G81: =VLOOKUP($A81,'Mat of App'!$B$7:$AP$43,G$66,FALSE) -> 0 | H81: =VLOOKUP($A81,'Mat of App'!$B$7:$AP$43,H$66,FALSE) -> 1 | I81: =VLOOKUP($A81,'Mat of App'!$B$7:$AP$43,I$66,FALSE) -> 0
A82: LV Generation Non-Intermittent | B82: =VLOOKUP($A82,'Mat of App'!$B$7:$AP$43,B$66,FALSE) -> 0 | C82: =VLOOKUP($A82,'Mat of App'!$B$7:$AP$43,C$66,FALSE) -> 0 | D82: =VLOOKUP($A82,'Mat of App'!$B$7:$AP$43,D$66,FALSE) -> 0 | E82: =VLOOKUP($A82,'Mat of App'!$B$7:$AP$43,E$66,FALSE) -> 0 | F82: =VLOOKUP($A82,'Mat of App'!$B$7:$AP$43,F$66,FALSE) -> 0 | G82: =VLOOKUP($A82,'Mat of App'!$B$7:$AP$43,G$66,FALSE) -> 0 | H82: =VLOOKUP($A82,'Mat of App'!$B$7:$AP$43,H$66,FALSE) -> 0 | I82: =VLOOKUP($A82,'Mat of App'!$B$7:$AP$43,I$66,FALSE) -> 0
A83: LV Generation Non-Intermittent no RP charge | B83: =VLOOKUP($A83,'Mat of App'!$B$7:$AP$43,B$66,FALSE) -> 0 | C83: =VLOOKUP($A83,'Mat of App'!$B$7:$AP$43,C$66,FALSE) -> 0 | D83: =VLOOKUP($A83,'Mat of App'!$B$7:$AP$43,D$66,FALSE) -> 0 | E83: =VLOOKUP($A83,'Mat of App'!$B$7:$AP$43,E$66,FALSE) -> 0 | F83: =VLOOKUP($A83,'Mat of App'!$B$7:$AP$43,F$66,FALSE) -> 0 | G83: =VLOOKUP($A83,'Mat of App'!$B$7:$AP$43,G$66,FALSE) -> 0 | H83: =VLOOKUP($A83,'Mat of App'!$B$7:$AP$43,H$66,FALSE) -> 0 | I83: =VLOOKUP($A83,'Mat of App'!$B$7:$AP$43,I$66,FALSE) -> 0
A84: LV Sub Generation Intermittent | B84: =VLOOKUP($A84,'Mat of App'!$B$7:$AP$43,B$66,FALSE) -> 0 | C84: =VLOOKUP($A84,'Mat of App'!$B$7:$AP$43,C$66,FALSE) -> 0 | D84: =VLOOKUP($A84,'Mat of App'!$B$7:$AP$43,D$66,FALSE) -> 0 | E84: =VLOOKUP($A84,'Mat of App'!$B$7:$AP$43,E$66,FALSE) -> 0 | F84: =VLOOKUP($A84,'Mat of App'!$B$7:$AP$43,F$66,FALSE) -> 0 | G84: =VLOOKUP($A84,'Mat of App'!$B$7:$AP$43,G$66,FALSE) -> 0 | H84: =VLOOKUP($A84,'Mat of App'!$B$7:$AP$43,H$66,FALSE) -> 0 | I84: =VLOOKUP($A84,'Mat of App'!$B$7:$AP$43,I$66,FALSE) -> 0
A85: LV Sub Generation Intermittent no RP charge | B85: =VLOOKUP($A85,'Mat of App'!$B$7:$AP$43,B$66,FALSE) -> 0 | C85: =VLOOKUP($A85,'Mat of App'!$B$7:$AP$43,C$66,FALSE) -> 0 | D85: =VLOOKUP($A85,'Mat of App'!$B$7:$AP$43,D$66,FALSE) -> 0 | E85: =VLOOKUP($A85,'Mat of App'!$B$7:$AP$43,E$66,FALSE) -> 0 | F85: =VLOOKUP($A85,'Mat of App'!$B$7:$AP$43,F$66,FALSE) -> 0 | G85: =VLOOKUP($A85,'Mat of App'!$B$7:$AP$43,G$66,FALSE) -> 0 | H85: =VLOOKUP($A85,'Mat of App'!$B$7:$AP$43,H$66,FALSE) -> 0 | I85: =VLOOKUP($A85,'Mat of App'!$B$7:$AP$43,I$66,FALSE) -> 0
A86: LV Sub Generation Non-Intermittent | B86: =VLOOKUP($A86,'Mat of App'!$B$7:$AP$43,B$66,FALSE) -> 0 | C86: =VLOOKUP($A86,'Mat of App'!$B$7:$AP$43,C$66,FALSE) -> 0 | D86: =VLOOKUP($A86,'Mat of App'!$B$7:$AP$43,D$66,FALSE) -> 0 | E86: =VLOOKUP($A86,'Mat of App'!$B$7:$AP$43,E$66,FALSE) -> 0 | F86: =VLOOKUP($A86,'Mat of App'!$B$7:$AP$43,F$66,FALSE) -> 0 | G86: =VLOOKUP($A86,'Mat of App'!$B$7:$AP$43,G$66,FALSE) -> 0 | H86: =VLOOKUP($A86,'Mat of App'!$B$7:$AP$43,H$66,FALSE) -> 0 | I86: =VLOOKUP($A86,'Mat of App'!$B$7:$AP$43,I$66,FALSE) -> 0
A87: LV Sub Generation Non-Intermittent no RP charge | B87: =VLOOKUP($A87,'Mat of App'!$B$7:$AP$43,B$66,FALSE) -> 0 | C87: =VLOOKUP($A87,'Mat of App'!$B$7:$AP$43,C$66,FALSE) -> 0 | D87: =VLOOKUP($A87,'Mat of App'!$B$7:$AP$43,D$66,FALSE) -> 0 | E87: =VLOOKUP($A87,'Mat of App'!$B$7:$AP$43,E$66,FALSE) -> 0 | F87: =VLOOKUP($A87,'Mat of App'!$B$7:$AP$43,F$66,FALSE) -> 0 | G87: =VLOOKUP($A87,'Mat of App'!$B$7:$AP$43,G$66,FALSE) -> 0 | H87: =VLOOKUP($A87,'Mat of App'!$B$7:$AP$43,H$66,FALSE) -> 0 | I87: =VLOOKUP($A87,'Mat of App'!$B$7:$AP$43,I$66,FALSE) -> 0
A89: 1026. Matrix of applicability of LV service models to unmetered tariffs
A91: Source: service models
A92: Proportion of service model involved in connecting load of 1 MWh/year
B93: LV service model 1 | C93: LV service model 2 | D93: LV service model 3 | E93: LV service model 4 | F93: LV service model 5 | G93: LV service model 6 | H93: LV service model 7 | I93: LV service model 8
A94: All LV unmetered tariffs | B94: =VLOOKUP($A94,'Mat of App'!$B$7:$AP$43,B$66,FALSE) -> 0 | C94: =VLOOKUP($A94,'Mat of App'!$B$7:$AP$43,C$66,FALSE) -> 0 | D94: =VLOOKUP($A94,'Mat of App'!$B$7:$AP$43,D$66,FALSE) -> 0 | E94: =VLOOKUP($A94,'Mat of App'!$B$7:$AP$43,E$66,FALSE) -> 0 | F94: =VLOOKUP($A94,'Mat of App'!$B$7:$AP$43,F$66,FALSE) -> 0 | G94: =VLOOKUP($A94,'Mat of App'!$B$7:$AP$43,G$66,FALSE) -> 0 | H94: =VLOOKUP($A94,'Mat of App'!$B$7:$AP$43,H$66,FALSE) -> 0 | I94: =VLOOKUP($A94,'Mat of App'!$B$7:$AP$43,I$66,FALSE) -> 0.488
A96: 1028. Matrix of applicability of HV service models to tariffs with fixed charges
B97: 2 | C97: =B97+1 -> 3 | D97: =C97+1 -> 4 | E97: =D97+1 -> 5 | F97: =E97+1 -> 6
B98: HV service model 1 | C98: HV service model 2 | D98: HV service model 3 | E98: HV service model 4 | F98: HV service model 5
A99: HV Medium Non-Domestic | B99: =VLOOKUP($A99,'Mat of App'!$B$7:$AP$43,B$97,FALSE) -> 1 | C99: =VLOOKUP($A99,'Mat of App'!$B$7:$AP$43,C$97,FALSE) -> 0 | D99: =VLOOKUP($A99,'Mat of App'!$B$7:$AP$43,D$97,FALSE) -> 0 | E99: =VLOOKUP($A99,'Mat of App'!$B$7:$AP$43,E$97,FALSE) -> 0 | F99: =VLOOKUP($A99,'Mat of App'!$B$7:$AP$43,F$97,FALSE) -> 0
A100: HV HH Metered | B100: =VLOOKUP($A100,'Mat of App'!$B$7:$AP$43,B$97,FALSE) -> 1 | C100: =VLOOKUP($A100,'Mat of App'!$B$7:$AP$43,C$97,FALSE) -> 0 | D100: =VLOOKUP($A100,'Mat of App'!$B$7:$AP$43,D$97,FALSE) -> 0 | E100: =VLOOKUP($A100,'Mat of App'!$B$7:$AP$43,E$97,FALSE) -> 0 | F100: =VLOOKUP($A100,'Mat of App'!$B$7:$AP$43,F$97,FALSE) -> 0
A101: HV Generation Intermittent | B101: =VLOOKUP($A101,'Mat of App'!$B$7:$AP$43,B$97,FALSE) -> 0 | C101: =VLOOKUP($A101,'Mat of App'!$B$7:$AP$43,C$97,FALSE) -> 1 | D101: =VLOOKUP($A101,'Mat of App'!$B$7:$AP$43,D$97,FALSE) -> 0 | E101: =VLOOKUP($A101,'Mat of App'!$B$7:$AP$43,E$97,FALSE) -> 0 | F101: =VLOOKUP($A101,'Mat of App'!$B$7:$AP$43,F$97,FALSE) -> 0
A102: HV Generation Intermittent no RP charge | B102: =VLOOKUP($A102,'Mat of App'!$B$7:$AP$43,B$97,FALSE) -> 0 | C102: =VLOOKUP($A102,'Mat of App'!$B$7:$AP$43,C$97,FALSE) -> 1 | D102: =VLOOKUP($A102,'Mat of App'!$B$7:$AP$43,D$97,FALSE) -> 0 | E102: =VLOOKUP($A102,'Mat of App'!$B$7:$AP$43,E$97,FALSE) -> 0 | F102: =VLOOKUP($A102,'Mat of App'!$B$7:$AP$43,F$97,FALSE) -> 0
A103: HV Generation Non-Intermittent | B103: =VLOOKUP($A103,'Mat of App'!$B$7:$AP$43,B$97,FALSE) -> 0 | C103: =VLOOKUP($A103,'Mat of App'!$B$7:$AP$43,C$97,FALSE) -> 1 | D103: =VLOOKUP($A103,'Mat of App'!$B$7:$AP$43,D$97,FALSE) -> 0 | E103: =VLOOKUP($A103,'Mat of App'!$B$7:$AP$43,E$97,FALSE) -> 0 | F103: =VLOOKUP($A103,'Mat of App'!$B$7:$AP$43,F$97,FALSE) -> 0
A104: HV Generation Non-Intermittent no RP charge | B104: =VLOOKUP($A104,'Mat of App'!$B$7:$AP$43,B$97,FALSE) -> 0 | C104: =VLOOKUP($A104,'Mat of App'!$B$7:$AP$43,C$97,FALSE) -> 1 | D104: =VLOOKUP($A104,'Mat of App'!$B$7:$AP$43,D$97,FALSE) -> 0 | E104: =VLOOKUP($A104,'Mat of App'!$B$7:$AP$43,E$97,FALSE) -> 0 | F104: =VLOOKUP($A104,'Mat of App'!$B$7:$AP$43,F$97,FALSE) -> 0
A106: 1032. Loss adjustment factors to transmission
A108: Source: losses model or loss adjustment factors at time of system peak.
B109: 132kV | C109: 132kV/EHV | D109: EHV | E109: EHV/HV | F109: HV | G109: HV/LV | H109: LV circuits
A110: Loss adjustment factor | B110: =VLOOKUP(Vlookup!B69,'CDCM Forecast Data'!$A$14:$I$271,5,FALSE) -> 1.002 | C110: =VLOOKUP(Vlookup!C69,'CDCM Forecast Data'!$A$14:$I$271,5,FALSE) -> 1.008 | D110: =VLOOKUP(Vlookup!D69,'CDCM Forecast Data'!$A$14:$I$271,5,FALSE) -> 1.01 | E110: =VLOOKUP(Vlookup!E69,'CDCM Forecast Data'!$A$14:$I$271,5,FALSE) -> 1.018 | F110: =VLOOKUP(Vlookup!F69,'CDCM Forecast Data'!$A$14:$I$271,5,FALSE) -> 1.034 | G110: =VLOOKUP(Vlookup!G69,'CDCM Forecast Data'!$A$14:$I$271,5,FALSE) -> 1.05 | H110: =VLOOKUP(Vlookup!H69,'CDCM Forecast Data'!$A$14:$I$271,5,FALSE) -> 1.08
A112: 1037. Embedded network (LDNO) discounts
A114: Source: separate price control disaggregation model.
B115: No discount | C115: LDNO LV: LV user | D115: LDNO HV: LV user | E115: LDNO HV: LV sub user | F115: LDNO HV: HV user
A116: LDNO discount | C116: =VLOOKUP(Vlookup!C75,'CDCM Forecast Data'!$A$14:$I$271,5,FALSE) -> 0.3003526752 | D116: =VLOOKUP(Vlookup!D75,'CDCM Forecast Data'!$A$14:$I$271,5,FALSE) -> 0.4781813948 | E116: =VLOOKUP(Vlookup!E75,'CDCM Forecast Data'!$A$14:$I$271,5,FALSE) -> 0.2436374369 | F116: =VLOOKUP(Vlookup!F75,'CDCM Forecast Data'!$A$14:$I$271,5,FALSE) -> 0.142496875
A118: 1041. Load profile data for demand users
A120: Source: load data analysis.
B121: Coincidence factor | C121: Load factor
A122: Domestic Unrestricted | B122: =VLOOKUP(Vlookup!B81,'CDCM Forecast Data'!$A$14:$I$271,5,FALSE) -> 0.8624074107 | C122: =VLOOKUP(Vlookup!C81,'CDCM Forecast Data'!$A$14:$I$271,5,FALSE) -> 0.416237105
A123: Domestic Two Rate | B123: =VLOOKUP(Vlookup!B82,'CDCM Forecast Data'!$A$14:$I$271,5,FALSE) -> 0.8603473111 | C123: =VLOOKUP(Vlookup!C82,'CDCM Forecast Data'!$A$14:$I$271,5,FALSE) -> 0.5028096693
A124: Domestic Off Peak (related MPAN) | C124: =VLOOKUP(Vlookup!C83,'CDCM Forecast Data'!$A$14:$I$271,5,FALSE) -> 0.1479037568
A125: Small Non Domestic Unrestricted | B125: =VLOOKUP(Vlookup!B84,'CDCM Forecast Data'!$A$14:$I$271,5,FALSE) -> 0.723249365 | C125: =VLOOKUP(Vlookup!C84,'CDCM Forecast Data'!$A$14:$I$271,5,FALSE) -> 0.3753258856
A126: Small Non Domestic Two Rate | B126: =VLOOKUP(Vlookup!B85,'CDCM Forecast Data'!$A$14:$I$271,5,FALSE) -> 0.8624062199 | C126: =VLOOKUP(Vlookup!C85,'CDCM Forecast Data'!$A$14:$I$271,5,FALSE) -> 0.5342406539
A127: Small Non Domestic Off Peak (related MPAN) | C127: =VLOOKUP(Vlookup!C86,'CDCM Forecast Data'!$A$14:$I$271,5,FALSE) -> 0.2427877725
A128: LV Medium Non-Domestic | B128: =VLOOKUP(Vlookup!B87,'CDCM Forecast Data'!$A$14:$I$271,5,FALSE) -> 0.8412277878 | C128: =VLOOKUP(Vlookup!C87,'CDCM Forecast Data'!$A$14:$I$271,5,FALSE) -> 0.5266769045
A129: LV Sub Medium Non-Domestic | B129: =VLOOKUP(Vlookup!B88,'CDCM Forecast Data'!$A$14:$I$271,5,FALSE) -> 0.8412277878 | C129: =VLOOKUP(Vlookup!C88,'CDCM Forecast Data'!$A$14:$I$271,5,FALSE) -> 0.5266769045
A130: HV Medium Non-Domestic | B130: =VLOOKUP(Vlookup!B89,'CDCM Forecast Data'!$A$14:$I$271,5,FALSE) -> 0.7888674972 | C130: =VLOOKUP(Vlookup!C89,'CDCM Forecast Data'!$A$14:$I$271,5,FALSE) -> 0.4919974796
A131: LV Network Domestic | B131: =VLOOKUP(Vlookup!B90,'CDCM Forecast Data'!$A$14:$I$271,5,FALSE) -> 0.8616444867 | C131: =VLOOKUP(Vlookup!C90,'CDCM Forecast Data'!$A$14:$I$271,5,FALSE) -> 0.4438295579
A132: LV Network Non-Domestic Non-CT | B132: =VLOOKUP(Vlookup!B91,'CDCM Forecast Data'!$A$14:$I$271,5,FALSE) -> 0.7875247765 | C132: =VLOOKUP(Vlookup!C91,'CDCM Forecast Data'!$A$14:$I$271,5,FALSE) -> 0.4478939551
A133: LV HH Metered | B133: =VLOOKUP(Vlookup!B92,'CDCM Forecast Data'!$A$14:$I$271,5,FALSE) -> 0.820865216 | C133: =VLOOKUP(Vlookup!C92,'CDCM Forecast Data'!$A$14:$I$271,5,FALSE) -> 0.5584288623
A134: LV Sub HH Metered | B134: =VLOOKUP(Vlookup!B93,'CDCM Forecast Data'!$A$14:$I$271,5,FALSE) -> 0.8402686756 | C134: =VLOOKUP(Vlookup!C93,'CDCM Forecast Data'!$A$14:$I$271,5,FALSE) -> 0.5790756672
A135: HV HH Metered | B135: =VLOOKUP(Vlookup!B94,'CDCM Forecast Data'!$A$14:$I$271,5,FALSE) -> 0.8476012159 | C135: =VLOOKUP(Vlookup!C94,'CDCM Forecast Data'!$A$14:$I$271,5,FALSE) -> 0.7141076062
A136: NHH UMS category A | B136: =VLOOKUP(Vlookup!B95,'CDCM Forecast Data'!$A$14:$I$271,5,FALSE) -> 1 | C136: =VLOOKUP(Vlookup!C95,'CDCM Forecast Data'!$A$14:$I$271,5,FALSE) -> 1
A137: NHH UMS category B | B137: =VLOOKUP(Vlookup!B96,'CDCM Forecast Data'!$A$14:$I$271,5,FALSE) -> 1 | C137: =VLOOKUP(Vlookup!C96,'CDCM Forecast Data'!$A$14:$I$271,5,FALSE) -> 0.4727080734
A138: NHH UMS category C | B138: =VLOOKUP(Vlookup!B97,'CDCM Forecast Data'!$A$14:$I$271,5,FALSE) -> 1 | C138: =VLOOKUP(Vlookup!C97,'CDCM Forecast Data'!$A$14:$I$271,5,FALSE) -> 0.2433937156
A139: NHH UMS category D | B139: =VLOOKUP(Vlookup!B98,'CDCM Forecast Data'!$A$14:$I$271,5,FALSE) -> 0.005362102748 | C139: =VLOOKUP(Vlookup!C98,'CDCM Forecast Data'!$A$14:$I$271,5,FALSE) -> 0.5115869751
A140: LV UMS (Pseudo HH Metered) | B140: =VLOOKUP(Vlookup!B99,'CDCM Forecast Data'!$A$14:$I$271,5,FALSE) -> 0.9507957642 | C140: =VLOOKUP(Vlookup!C99,'CDCM Forecast Data'!$A$14:$I$271,5,FALSE) -> 0.4416089679
A142: 1053. Volume forecasts for the charging year
B143: 4 | C143: 5 | D143: 6 | E143: 7 | F143: 8 | G143: 9 | H143: 10
A144: Source: forecast.
A145: Please include MPAN counts for tariffs with no fixed charge (e.g. off-peak tariffs),
A146: but exclude MPANs on tariffs with a fixed charge that are not subject to a fixed charge due to a site grouping arrangement.
B147: Rate 1 units (MWh) | C147: Rate 2 units (MWh) | D147: Rate 3 units (MWh) | E147: MPANs | F147: Import capacity (kVA) | G147: Exceeded capacity (kVA) | H147: Reactive power units (MVArh)
A148: > Domestic Unrestricted | B148: =VLOOKUP(Vlookup!$B107,'CDCM Volume Forecasts'!$A$28:$AL$136,B$143,FALSE) -> 0 | C148: =VLOOKUP(Vlookup!$B107,'CDCM Volume Forecasts'!$A$28:$AL$136,C$143,FALSE) -> 0 | D148: =VLOOKUP(Vlookup!$B107,'CDCM Volume Forecasts'!$A$28:$AL$136,D$143,FALSE) -> 0 | E148: =VLOOKUP(Vlookup!$B107,'CDCM Volume Forecasts'!$A$28:$AL$136,E$143,FALSE) -> 0 | F148: =VLOOKUP(Vlookup!$B107,'CDCM Volume Forecasts'!$A$28:$AL$136,F$143,FALSE) -> 0 | H148: =VLOOKUP(Vlookup!$B107,'CDCM Volume Forecasts'!$A$28:$AL$136,G$143,FALSE) -> 0
A149: Domestic Unrestricted | B149: =VLOOKUP(Vlookup!$B108,'CDCM Volume Forecasts'!$A$28:$AL$136,B$143,FALSE) -> 5635747.395 | E149: =VLOOKUP(Vlookup!$B108,'CDCM Volume Forecasts'!$A$28:$AL$136,E$143,FALSE) -> 1671267.776
A150: LDNO LV: Domestic Unrestricted | B150: =VLOOKUP(Vlookup!$B109,'CDCM Volume Forecasts'!$A$28:$AL$136,B$143,FALSE) -> 94982.04277 | E150: =VLOOKUP(Vlookup!$B109,'CDCM Volume Forecasts'!$A$28:$AL$136,E$143,FALSE) -> 35033.39034
A151: LDNO HV: Domestic Unrestricted | B151: =VLOOKUP(Vlookup!$B110,'CDCM Volume Forecasts'!$A$28:$AL$136,B$143,FALSE) -> 155171.2713 | E151: =VLOOKUP(Vlookup!$B110,'CDCM Volume Forecasts'!$A$28:$AL$136,E$143,FALSE) -> 58162.88093
A152: > Domestic Two Rate
A153: Domestic Two Rate | B153: =VLOOKUP(Vlookup!$B112,'CDCM Volume Forecasts'!$A$28:$AL$136,B$143,FALSE) -> 2417415.845 | C153: =VLOOKUP(Vlookup!$B112,'CDCM Volume Forecasts'!$A$28:$AL$136,C$143,FALSE) -> 1076309.379 | E153: =VLOOKUP(Vlookup!$B112,'CDCM Volume Forecasts'!$A$28:$AL$136,E$143,FALSE) -> 792868.4906
A154: LDNO LV: Domestic Two Rate | B154: =VLOOKUP(Vlookup!$B113,'CDCM Volume Forecasts'!$A$28:$AL$136,B$143,FALSE) -> 4629.961433 | C154: =VLOOKUP(Vlookup!$B113,'CDCM Volume Forecasts'!$A$28:$AL$136,C$143,FALSE) -> 1426.905031 | E154: =VLOOKUP(Vlookup!$B113,'CDCM Volume Forecasts'!$A$28:$AL$136,E$143,FALSE) -> 1499.239142
A155: LDNO HV: Domestic Two Rate | B155: =VLOOKUP(Vlookup!$B114,'CDCM Volume Forecasts'!$A$28:$AL$136,B$143,FALSE) -> 7642.505214 | C155: =VLOOKUP(Vlookup!$B114,'CDCM Volume Forecasts'!$A$28:$AL$136,C$143,FALSE) -> 2597.384749 | E155: =VLOOKUP(Vlookup!$B114,'CDCM Volume Forecasts'!$A$28:$AL$136,E$143,FALSE) -> 2453.434764
A156: > Domestic Off Peak (related MPAN)
A157: Domestic Off Peak (related MPAN) | B157: =VLOOKUP(Vlookup!$B116,'CDCM Volume Forecasts'!$A$28:$AL$136,B$143,FALSE) -> 49585.59318 | E157: =VLOOKUP(Vlookup!$B116,'CDCM Volume Forecasts'!$A$28:$AL$136,E$143,FALSE) -> 26805
A158: LDNO LV: Domestic Off Peak (related MPAN) | B158: =VLOOKUP(Vlookup!$B117,'CDCM Volume Forecasts'!$A$28:$AL$136,B$143,FALSE) -> 0 | E158: =VLOOKUP(Vlookup!$B117,'CDCM Volume Forecasts'!$A$28:$AL$136,E$143,FALSE) -> 0
A159: LDNO HV: Domestic Off Peak (related MPAN) | B159: =VLOOKUP(Vlookup!$B118,'CDCM Volume Forecasts'!$A$28:$AL$136,B$143,FALSE) -> 0 | E159: =VLOOKUP(Vlookup!$B118,'CDCM Volume Forecasts'!$A$28:$AL$136,E$143,FALSE) -> 0
A160: > Small Non Domestic Unrestricted
A161: Small Non Domestic Unrestricted | B161: =VLOOKUP(Vlookup!$B120,'CDCM Volume Forecasts'!$A$28:$AL$136,B$143,FALSE) -> 1140613.974 | E161: =VLOOKUP(Vlookup!$B120,'CDCM Volume Forecasts'!$A$28:$AL$136,E$143,FALSE) -> 95495.2531
A162: LDNO LV: Small Non Domestic Unrestricted | B162: =VLOOKUP(Vlookup!$B121,'CDCM Volume Forecasts'!$A$28:$AL$136,B$143,FALSE) -> 4254.851922 | E162: =VLOOKUP(Vlookup!$B121,'CDCM Volume Forecasts'!$A$28:$AL$136,E$143,FALSE) -> 714.0844724
A163: LDNO HV: Small Non Domestic Unrestricted | B163: =VLOOKUP(Vlookup!$B122,'CDCM Volume Forecasts'!$A$28:$AL$136,B$143,FALSE) -> 11145.92223 | E163: =VLOOKUP(Vlookup!$B122,'CDCM Volume Forecasts'!$A$28:$AL$136,E$143,FALSE) -> 1270.175358
A164: > Small Non Domestic Two Rate
A165: Small Non Domestic Two Rate | B165: =VLOOKUP(Vlookup!$B124,'CDCM Volume Forecasts'!$A$28:$AL$136,B$143,FALSE) -> 1514286.226 | C165: =VLOOKUP(Vlookup!$B124,'CDCM Volume Forecasts'!$A$28:$AL$136,C$143,FALSE) -> 451030.4649 | E165: =VLOOKUP(Vlookup!$B124,'CDCM Volume Forecasts'!$A$28:$AL$136,E$143,FALSE) -> 82427.24468
A166: LDNO LV: Small Non Domestic Two Rate | B166: =VLOOKUP(Vlookup!$B125,'CDCM Volume Forecasts'!$A$28:$AL$136,B$143,FALSE) -> 402.4795805 | C166: =VLOOKUP(Vlookup!$B125,'CDCM Volume Forecasts'!$A$28:$AL$136,C$143,FALSE) -> 80.43862928 | E166: =VLOOKUP(Vlookup!$B125,'CDCM Volume Forecasts'!$A$28:$AL$136,E$143,FALSE) -> 12.90367511
A167: LDNO HV: Small Non Domestic Two Rate | B167: =VLOOKUP(Vlookup!$B126,'CDCM Volume Forecasts'!$A$28:$AL$136,B$143,FALSE) -> 1111.632243 | C167: =VLOOKUP(Vlookup!$B126,'CDCM Volume Forecasts'!$A$28:$AL$136,C$143,FALSE) -> 286.0338415 | E167: =VLOOKUP(Vlookup!$B126,'CDCM Volume Forecasts'!$A$28:$AL$136,E$143,FALSE) -> 47.78805345
A168: > Small Non Domestic Off Peak (related MPAN)
A169: Small Non Domestic Off Peak (related MPAN) | B169: =VLOOKUP(Vlookup!$B128,'CDCM Volume Forecasts'!$A$28:$AL$136,B$143,FALSE) -> 2583.384072 | E169: =VLOOKUP(Vlookup!$B128,'CDCM Volume Forecasts'!$A$28:$AL$136,E$143,FALSE) -> 517
A170: LDNO LV: Small Non Domestic Off Peak (related MPAN) | B170: =VLOOKUP(Vlookup!$B129,'CDCM Volume Forecasts'!$A$28:$AL$136,B$143,FALSE) -> 0 | E170: =VLOOKUP(Vlookup!$B129,'CDCM Volume Forecasts'!$A$28:$AL$136,E$143,FALSE) -> 0
A171: LDNO HV: Small Non Domestic Off Peak (related MPAN) | B171: =VLOOKUP(Vlookup!$B130,'CDCM Volume Forecasts'!$A$28:$AL$136,B$143,FALSE) -> 0 | E171: =VLOOKUP(Vlookup!$B130,'CDCM Volume Forecasts'!$A$28:$AL$136,E$143,FALSE) -> 0
A172: > LV Medium Non-Domestic
A173: LV Medium Non-Domestic | B173: =VLOOKUP(Vlookup!$B132,'CDCM Volume Forecasts'!$A$28:$AL$136,B$143,FALSE) -> 41587.88902 | C173: =VLOOKUP(Vlookup!$B132,'CDCM Volume Forecasts'!$A$28:$AL$136,C$143,FALSE) -> 11522.85719 | E173: =VLOOKUP(Vlookup!$B132,'CDCM Volume Forecasts'!$A$28:$AL$136,E$143,FALSE) -> 1226.513004
A174: LDNO LV: LV Medium Non-Domestic | B174: =VLOOKUP(Vlookup!$B133,'CDCM Volume Forecasts'!$A$28:$AL$136,B$143,FALSE) -> -4.91127139e-14 | C174: =VLOOKUP(Vlookup!$B133,'CDCM Volume Forecasts'!$A$28:$AL$136,C$143,FALSE) -> 5.456968211e-15 | E174: =VLOOKUP(Vlookup!$B133,'CDCM Volume Forecasts'!$A$28:$AL$136,E$143,FALSE) -> 0
A175: LDNO HV: LV Medium Non-Domestic | B175: =VLOOKUP(Vlookup!$B134,'CDCM Volume Forecasts'!$A$28:$AL$136,B$143,FALSE) -> -2.473825589e-13 | C175: =VLOOKUP(Vlookup!$B134,'CDCM Volume Forecasts'!$A$28:$AL$136,C$143,FALSE) -> 1.818989404e-14 | E175: =VLOOKUP(Vlookup!$B134,'CDCM Volume Forecasts'!$A$28:$AL$136,E$143,FALSE) -> 0
A176: > LV Sub Medium Non-Domestic
A177: LV Sub Medium Non-Domestic | B177: =VLOOKUP(Vlookup!$B136,'CDCM Volume Forecasts'!$A$28:$AL$136,B$143,FALSE) -> 0.1430502914 | C177: =VLOOKUP(Vlookup!$B136,'CDCM Volume Forecasts'!$A$28:$AL$136,C$143,FALSE) -> 0.04177103706 | E177: =VLOOKUP(Vlookup!$B136,'CDCM Volume Forecasts'!$A$28:$AL$136,E$143,FALSE) -> 0.003167819672
A178: > HV Medium Non-Domestic
A179: HV Medium Non-Domestic | B179: =VLOOKUP(Vlookup!$B138,'CDCM Volume Forecasts'!$A$28:$AL$136,B$143,FALSE) -> 2605.212072 | C179: =VLOOKUP(Vlookup!$B138,'CDCM Volume Forecasts'!$A$28:$AL$136,C$143,FALSE) -> 788.6054445 | E179: =VLOOKUP(Vlookup!$B138,'CDCM Volume Forecasts'!$A$28:$AL$136,E$143,FALSE) -> 44
A180: > LV Network Domestic
A181: LV Network Domestic | B181: =VLOOKUP(Vlookup!$B140,'CDCM Volume Forecasts'!$A$28:$AL$136,B$143,FALSE) -> 25.91664886 | C181: =VLOOKUP(Vlookup!$B140,'CDCM Volume Forecasts'!$A$28:$AL$136,C$143,FALSE) -> 99.41640677 | D181: =VLOOKUP(Vlookup!$B140,'CDCM Volume Forecasts'!$A$28:$AL$136,D$143,FALSE) -> 122.0854601 | E181: =VLOOKUP(Vlookup!$B140,'CDCM Volume Forecasts'!$A$28:$AL$136,E$143,FALSE) -> 76.11876557
A182: LDNO LV: LV Network Domestic | B182: =VLOOKUP(Vlookup!$B141,'CDCM Volume Forecasts'!$A$28:$AL$136,B$143,FALSE) -> 0 | C182: =VLOOKUP(Vlookup!$B141,'CDCM Volume Forecasts'!$A$28:$AL$136,C$143,FALSE) -> 0 | D182: =VLOOKUP(Vlookup!$B141,'CDCM Volume Forecasts'!$A$28:$AL$136,D$143,FALSE) -> 0 | E182: =VLOOKUP(Vlookup!$B141,'CDCM Volume Forecasts'!$A$28:$AL$136,E$143,FALSE) -> 0
A183: LDNO HV: LV Network Domestic | B183: =VLOOKUP(Vlookup!$B142,'CDCM Volume Forecasts'!$A$28:$AL$136,B$143,FALSE) -> 0 | C183: =VLOOKUP(Vlookup!$B142,'CDCM Volume Forecasts'!$A$28:$AL$136,C$143,FALSE) -> 0 | D183: =VLOOKUP(Vlookup!$B142,'CDCM Volume Forecasts'!$A$28:$AL$136,D$143,FALSE) -> 0 | E183: =VLOOKUP(Vlookup!$B142,'CDCM Volume Forecasts'!$A$28:$AL$136,E$143,FALSE) -> 0
A184: > LV Network Non-Domestic Non-CT
A185: LV Network Non-Domestic Non-CT | B185: =VLOOKUP(Vlookup!$B144,'CDCM Volume Forecasts'!$A$28:$AL$136,B$143,FALSE) -> 18558.48769 | C185: =VLOOKUP(Vlookup!$B144,'CDCM Volume Forecasts'!$A$28:$AL$136,C$143,FALSE) -> 73567.92673 | D185: =VLOOKUP(Vlookup!$B144,'CDCM Volume Forecasts'!$A$28:$AL$136,D$143,FALSE) -> 78280.3327 | E185: =VLOOKUP(Vlookup!$B144,'CDCM Volume Forecasts'!$A$28:$AL$136,E$143,FALSE) -> 2509.103459
A186: LDNO LV: LV Network Non-Domestic Non-CT | B186: =VLOOKUP(Vlookup!$B145,'CDCM Volume Forecasts'!$A$28:$AL$136,B$143,FALSE) -> 19.24968808 | C186: =VLOOKUP(Vlookup!$B145,'CDCM Volume Forecasts'!$A$28:$AL$136,C$143,FALSE) -> 72.68858731 | D186: =VLOOKUP(Vlookup!$B145,'CDCM Volume Forecasts'!$A$28:$AL$136,D$143,FALSE) -> 120.4985183 | E186: =VLOOKUP(Vlookup!$B145,'CDCM Volume Forecasts'!$A$28:$AL$136,E$143,FALSE) -> 4.718437313
A187: LDNO HV: LV Network Non-Domestic Non-CT | B187: =VLOOKUP(Vlookup!$B146,'CDCM Volume Forecasts'!$A$28:$AL$136,B$143,FALSE) -> 104.2423559 | C187: =VLOOKUP(Vlookup!$B146,'CDCM Volume Forecasts'!$A$28:$AL$136,C$143,FALSE) -> 362.6834743 | D187: =VLOOKUP(Vlookup!$B146,'CDCM Volume Forecasts'!$A$28:$AL$136,D$143,FALSE) -> 416.1208825 | E187: =VLOOKUP(Vlookup!$B146,'CDCM Volume Forecasts'!$A$28:$AL$136,E$143,FALSE) -> 19.84182935
A188: > LV HH Metered
A189: LV HH Metered | B189: =VLOOKUP(Vlookup!$B148,'CDCM Volume Forecasts'!$A$28:$AL$136,B$143,FALSE) -> 377835.6813 | C189: =VLOOKUP(Vlookup!$B148,'CDCM Volume Forecasts'!$A$28:$AL$136,C$143,FALSE) -> 1505767.623 | D189: =VLOOKUP(Vlookup!$B148,'CDCM Volume Forecasts'!$A$28:$AL$136,D$143,FALSE) -> 1615847.006 | E189: =VLOOKUP(Vlookup!$B148,'CDCM Volume Forecasts'!$A$28:$AL$136,E$143,FALSE) -> 15832.33207 | F189: =VLOOKUP(Vlookup!$B148,'CDCM Volume Forecasts'!$A$28:$AL$136,F$143,FALSE) -> 1960000 | G189: =VLOOKUP(Vlookup!$B148,'CDCM Volume Forecasts'!$A$28:$AL$136,G$143,FALSE) -> 42265.31704 | H189: =VLOOKUP(Vlookup!$B148,'CDCM Volume Forecasts'!$A$28:$AL$136,H$143,FALSE) -> 367491.3783
A190: LDNO LV: LV HH Metered | B190: =VLOOKUP(Vlookup!$B149,'CDCM Volume Forecasts'!$A$28:$AL$136,B$143,FALSE) -> 1412.870559 | C190: =VLOOKUP(Vlookup!$B149,'CDCM Volume Forecasts'!$A$28:$AL$136,C$143,FALSE) -> 4888.839063 | D190: =VLOOKUP(Vlookup!$B149,'CDCM Volume Forecasts'!$A$28:$AL$136,D$143,FALSE) -> 6114.885476 | E190: =VLOOKUP(Vlookup!$B149,'CDCM Volume Forecasts'!$A$28:$AL$136,E$143,FALSE) -> 61.22986971 | F190: =VLOOKUP(Vlookup!$B149,'CDCM Volume Forecasts'!$A$28:$AL$136,F$143,FALSE) -> 10476.91862 | G190: =VLOOKUP(Vlookup!$B149,'CDCM Volume Forecasts'!$A$28:$AL$136,G$143,FALSE) -> 12.98705717 | H190: =VLOOKUP(Vlookup!$B149,'CDCM Volume Forecasts'!$A$28:$AL$136,H$143,FALSE) -> 1333.714793
A191: LDNO HV: LV HH Metered | B191: =VLOOKUP(Vlookup!$B150,'CDCM Volume Forecasts'!$A$28:$AL$136,B$143,FALSE) -> 15040.23512 | C191: =VLOOKUP(Vlookup!$B150,'CDCM Volume Forecasts'!$A$28:$AL$136,C$143,FALSE) -> 54927.68561 | D191: =VLOOKUP(Vlookup!$B150,'CDCM Volume Forecasts'!$A$28:$AL$136,D$143,FALSE) -> 65960.83678 | E191: =VLOOKUP(Vlookup!$B150,'CDCM Volume Forecasts'!$A$28:$AL$136,E$143,FALSE) -> 382.6216986 | F191: =VLOOKUP(Vlookup!$B150,'CDCM Volume Forecasts'!$A$28:$AL$136,F$143,FALSE) -> 108669.6156 | G191: =VLOOKUP(Vlookup!$B150,'CDCM Volume Forecasts'!$A$28:$AL$136,G$143,FALSE) -> 446.261544 | H191: =VLOOKUP(Vlookup!$B150,'CDCM Volume Forecasts'!$A$28:$AL$136,H$143,FALSE) -> 11418.40144
A192: > LV Sub HH Metered
A193: LV Sub HH Metered | B193: =VLOOKUP(Vlookup!$B152,'CDCM Volume Forecasts'!$A$28:$AL$136,B$143,FALSE) -> 23555.93971 | C193: =VLOOKUP(Vlookup!$B152,'CDCM Volume Forecasts'!$A$28:$AL$136,C$143,FALSE) -> 90295.11947 | D193: =VLOOKUP(Vlookup!$B152,'CDCM Volume Forecasts'!$A$28:$AL$136,D$143,FALSE) -> 105307.3853 | E193: =VLOOKUP(Vlookup!$B152,'CDCM Volume Forecasts'!$A$28:$AL$136,E$143,FALSE) -> 342.8466956 | F193: =VLOOKUP(Vlookup!$B152,'CDCM Volume Forecasts'!$A$28:$AL$136,F$143,FALSE) -> 138821.8672 | G193: =VLOOKUP(Vlookup!$B152,'CDCM Volume Forecasts'!$A$28:$AL$136,G$143,FALSE) -> 1785.101098 | H193: =VLOOKUP(Vlookup!$B152,'CDCM Volume Forecasts'!$A$28:$AL$136,H$143,FALSE) -> 18220.1968
A194: LDNO HV: LV Sub HH Metered | B194: =VLOOKUP(Vlookup!$B153,'CDCM Volume Forecasts'!$A$28:$AL$136,B$143,FALSE) -> 890.7228729 | C194: =VLOOKUP(Vlookup!$B153,'CDCM Volume Forecasts'!$A$28:$AL$136,C$143,FALSE) -> 3077.583554 | D194: =VLOOKUP(Vlookup!$B153,'CDCM Volume Forecasts'!$A$28:$AL$136,D$143,FALSE) -> 5287.780212 | E194: =VLOOKUP(Vlookup!$B153,'CDCM Volume Forecasts'!$A$28:$AL$136,E$143,FALSE) -> 4.895893637 | F194: =VLOOKUP(Vlookup!$B153,'CDCM Volume Forecasts'!$A$28:$AL$136,F$143,FALSE) -> 3426.922262 | G194: =VLOOKUP(Vlookup!$B153,'CDCM Volume Forecasts'!$A$28:$AL$136,G$143,FALSE) -> 46.89237776 | H194: =VLOOKUP(Vlookup!$B153,'CDCM Volume Forecasts'!$A$28:$AL$136,H$143,FALSE) -> 903.927504
A195: > HV HH Metered
A196: HV HH Metered | B196: =VLOOKUP(Vlookup!$B155,'CDCM Volume Forecasts'!$A$28:$AL$136,B$143,FALSE) -> 738923.1968 | C196: =VLOOKUP(Vlookup!$B155,'CDCM Volume Forecasts'!$A$28:$AL$136,C$143,FALSE) -> 2849711.721 | D196: =VLOOKUP(Vlookup!$B155,'CDCM Volume Forecasts'!$A$28:$AL$136,D$143,FALSE) -> 4000945.162 | E196: =VLOOKUP(Vlookup!$B155,'CDCM Volume Forecasts'!$A$28:$AL$136,E$143,FALSE) -> 3524.919235 | F196: =VLOOKUP(Vlookup!$B155,'CDCM Volume Forecasts'!$A$28:$AL$136,F$143,FALSE) -> 2788259.538 | G196: =VLOOKUP(Vlookup!$B155,'CDCM Volume Forecasts'!$A$28:$AL$136,G$143,FALSE) -> 58664.74725 | H196: =VLOOKUP(Vlookup!$B155,'CDCM Volume Forecasts'!$A$28:$AL$136,H$143,FALSE) -> 557819.6963
A197: LDNO HV: HV HH Metered | B197: =VLOOKUP(Vlookup!$B156,'CDCM Volume Forecasts'!$A$28:$AL$136,B$143,FALSE) -> 7258.323342 | C197: =VLOOKUP(Vlookup!$B156,'CDCM Volume Forecasts'!$A$28:$AL$136,C$143,FALSE) -> 23980.29605 | D197: =VLOOKUP(Vlookup!$B156,'CDCM Volume Forecasts'!$A$28:$AL$136,D$143,FALSE) -> 38623.66453 | E197: =VLOOKUP(Vlookup!$B156,'CDCM Volume Forecasts'!$A$28:$AL$136,E$143,FALSE) -> 38.40859545 | F197: =VLOOKUP(Vlookup!$B156,'CDCM Volume Forecasts'!$A$28:$AL$136,F$143,FALSE) -> 48748.2535 | G197: =VLOOKUP(Vlookup!$B156,'CDCM Volume Forecasts'!$A$28:$AL$136,G$143,FALSE) -> 199.083295 | H197: =VLOOKUP(Vlookup!$B156,'CDCM Volume Forecasts'!$A$28:$AL$136,H$143,FALSE) -> 2217.464865
A198: > NHH UMS category A
A199: NHH UMS category A | B199: =VLOOKUP(Vlookup!$B158,'CDCM Volume Forecasts'!$A$28:$AL$136,B$143,FALSE) -> 34134.8937 | E199: =VLOOKUP(Vlookup!$B158,'CDCM Volume Forecasts'!$A$28:$AL$136,E$143,FALSE) -> 1567
A200: LDNO LV: NHH UMS category A | B200: =VLOOKUP(Vlookup!$B159,'CDCM Volume Forecasts'!$A$28:$AL$136,B$143,FALSE) -> 275.22148 | E200: =VLOOKUP(Vlookup!$B159,'CDCM Volume Forecasts'!$A$28:$AL$136,E$143,FALSE) -> 0
A201: LDNO HV: NHH UMS category A | B201: =VLOOKUP(Vlookup!$B160,'CDCM Volume Forecasts'!$A$28:$AL$136,B$143,FALSE) -> 531.7577591 | E201: =VLOOKUP(Vlookup!$B160,'CDCM Volume Forecasts'!$A$28:$AL$136,E$143,FALSE) -> 0
A202: > NHH UMS category B
A203: NHH UMS category B | B203: =VLOOKUP(Vlookup!$B162,'CDCM Volume Forecasts'!$A$28:$AL$136,B$143,FALSE) -> 22466.14998 | E203: =VLOOKUP(Vlookup!$B162,'CDCM Volume Forecasts'!$A$28:$AL$136,E$143,FALSE) -> 1279
A204: LDNO LV: NHH UMS category B | B204: =VLOOKUP(Vlookup!$B163,'CDCM Volume Forecasts'!$A$28:$AL$136,B$143,FALSE) -> 319.4011436 | E204: =VLOOKUP(Vlookup!$B163,'CDCM Volume Forecasts'!$A$28:$AL$136,E$143,FALSE) -> 0
A205: LDNO HV: NHH UMS category B | B205: =VLOOKUP(Vlookup!$B164,'CDCM Volume Forecasts'!$A$28:$AL$136,B$143,FALSE) -> 613.6304424 | E205: =VLOOKUP(Vlookup!$B164,'CDCM Volume Forecasts'!$A$28:$AL$136,E$143,FALSE) -> 0
A206: > NHH UMS category C
A207: NHH UMS category C | B207: =VLOOKUP(Vlookup!$B166,'CDCM Volume Forecasts'!$A$28:$AL$136,B$143,FALSE) -> 339.1014082 | E207: =VLOOKUP(Vlookup!$B166,'CDCM Volume Forecasts'!$A$28:$AL$136,E$143,FALSE) -> 194
A208: LDNO LV: NHH UMS category C | B208: =VLOOKUP(Vlookup!$B167,'CDCM Volume Forecasts'!$A$28:$AL$136,B$143,FALSE) -> 0 | E208: =VLOOKUP(Vlookup!$B167,'CDCM Volume Forecasts'!$A$28:$AL$136,E$143,FALSE) -> 0
A209: LDNO HV: NHH UMS category C | B209: =VLOOKUP(Vlookup!$B168,'CDCM Volume Forecasts'!$A$28:$AL$136,B$143,FALSE) -> 0 | E209: =VLOOKUP(Vlookup!$B168,'CDCM Volume Forecasts'!$A$28:$AL$136,E$143,FALSE) -> 0
A210: > NHH UMS category D
A211: NHH UMS category D | B211: =VLOOKUP(Vlookup!$B170,'CDCM Volume Forecasts'!$A$28:$AL$136,B$143,FALSE) -> 7208.556085 | E211: =VLOOKUP(Vlookup!$B170,'CDCM Volume Forecasts'!$A$28:$AL$136,E$143,FALSE) -> 247
A212: LDNO LV: NHH UMS category D | B212: =VLOOKUP(Vlookup!$B171,'CDCM Volume Forecasts'!$A$28:$AL$136,B$143,FALSE) -> 0 | E212: =VLOOKUP(Vlookup!$B171,'CDCM Volume Forecasts'!$A$28:$AL$136,E$143,FALSE) -> 0
A213: LDNO HV: NHH UMS category D | B213: =VLOOKUP(Vlookup!$B172,'CDCM Volume Forecasts'!$A$28:$AL$136,B$143,FALSE) -> 0 | E213: =VLOOKUP(Vlookup!$B172,'CDCM Volume Forecasts'!$A$28:$AL$136,E$143,FALSE) -> 0
A214: > LV UMS (Pseudo HH Metered)
A215: LV UMS (Pseudo HH Metered) | B215: =VLOOKUP(Vlookup!$B174,'CDCM Volume Forecasts'!$A$28:$AL$136,B$143,FALSE) -> 12092.42647 | C215: =VLOOKUP(Vlookup!$B174,'CDCM Volume Forecasts'!$A$28:$AL$136,C$143,FALSE) -> 33947.07157 | D215: =VLOOKUP(Vlookup!$B174,'CDCM Volume Forecasts'!$A$28:$AL$136,D$143,FALSE) -> 185619.8076 | E215: =VLOOKUP(Vlookup!$B174,'CDCM Volume Forecasts'!$A$28:$AL$136,E$143,FALSE) -> 26.81967213
A216: LDNO LV: LV UMS (Pseudo HH Metered) | B216: =VLOOKUP(Vlookup!$B175,'CDCM Volume Forecasts'!$A$28:$AL$136,B$143,FALSE) -> 0 | C216: =VLOOKUP(Vlookup!$B175,'CDCM Volume Forecasts'!$A$28:$AL$136,C$143,FALSE) -> 0 | D216: =VLOOKUP(Vlookup!$B175,'CDCM Volume Forecasts'!$A$28:$AL$136,D$143,FALSE) -> 0 | E216: =VLOOKUP(Vlookup!$B175,'CDCM Volume Forecasts'!$A$28:$AL$136,E$143,FALSE) -> 0
A217: LDNO HV: LV UMS (Pseudo HH Metered) | B217: =VLOOKUP(Vlookup!$B176,'CDCM Volume Forecasts'!$A$28:$AL$136,B$143,FALSE) -> 0 | C217: =VLOOKUP(Vlookup!$B176,'CDCM Volume Forecasts'!$A$28:$AL$136,C$143,FALSE) -> 0 | D217: =VLOOKUP(Vlookup!$B176,'CDCM Volume Forecasts'!$A$28:$AL$136,D$143,FALSE) -> 0 | E217: =VLOOKUP(Vlookup!$B176,'CDCM Volume Forecasts'!$A$28:$AL$136,E$143,FALSE) -> 0
A218: > LV Generation NHH or Aggregate HH
A219: LV Generation NHH or Aggregate HH | B219: =VLOOKUP(Vlookup!$B178,'CDCM Volume Forecasts'!$A$28:$AL$136,B$143,FALSE) -> 10233.95383 | E219: =VLOOKUP(Vlookup!$B178,'CDCM Volume Forecasts'!$A$28:$AL$136,E$143,FALSE) -> 136
A220: LDNO LV: LV Generation NHH or Aggregate HH | B220: =VLOOKUP(Vlookup!$B179,'CDCM Volume Forecasts'!$A$28:$AL$136,B$143,FALSE) -> 27.78537836 | E220: =VLOOKUP(Vlookup!$B179,'CDCM Volume Forecasts'!$A$28:$AL$136,E$143,FALSE) -> 0
A221: LDNO HV: LV Generation NHH or Aggregate HH | B221: =VLOOKUP(Vlookup!$B180,'CDCM Volume Forecasts'!$A$28:$AL$136,B$143,FALSE) -> 0 | E221: =VLOOKUP(Vlookup!$B180,'CDCM Volume Forecasts'!$A$28:$AL$136,E$143,FALSE) -> 0
A222: > LV Sub Generation NHH
A223: LV Sub Generation NHH | B223: =VLOOKUP(Vlookup!$B182,'CDCM Volume Forecasts'!$A$28:$AL$136,B$143,FALSE) -> 0 | E223: =VLOOKUP(Vlookup!$B182,'CDCM Volume Forecasts'!$A$28:$AL$136,E$143,FALSE) -> 0
A224: LDNO HV: LV Sub Generation NHH | B224: =VLOOKUP(Vlookup!$B183,'CDCM Volume Forecasts'!$A$28:$AL$136,B$143,FALSE) -> 0 | E224: =VLOOKUP(Vlookup!$B183,'CDCM Volume Forecasts'!$A$28:$AL$136,E$143,FALSE) -> 0
A225: > LV Generation Intermittent
A226: LV Generation Intermittent | B226: =VLOOKUP(Vlookup!$B185,'CDCM Volume Forecasts'!$A$28:$AL$136,B$143,FALSE) -> 39541.45547 | E226: =VLOOKUP(Vlookup!$B185,'CDCM Volume Forecasts'!$A$28:$AL$136,E$143,FALSE) -> 697.5741639 | H226: =VLOOKUP(Vlookup!$B185,'CDCM Volume Forecasts'!$A$28:$AL$136,H$143,FALSE) -> 4219.38069
A227: LDNO LV: LV Generation Intermittent | B227: =VLOOKUP(Vlookup!$B186,'CDCM Volume Forecasts'!$A$28:$AL$136,B$143,FALSE) -> 0 | E227: =VLOOKUP(Vlookup!$B186,'CDCM Volume Forecasts'!$A$28:$AL$136,E$143,FALSE) -> 0 | H227: =VLOOKUP(Vlookup!$B186,'CDCM Volume Forecasts'!$A$28:$AL$136,H$143,FALSE) -> 0
A228: LDNO HV: LV Generation Intermittent | B228: =VLOOKUP(Vlookup!$B187,'CDCM Volume Forecasts'!$A$28:$AL$136,B$143,FALSE) -> 72.66896608 | E228: =VLOOKUP(Vlookup!$B187,'CDCM Volume Forecasts'!$A$28:$AL$136,E$143,FALSE) -> 4.420147541 | H228: =VLOOKUP(Vlookup!$B187,'CDCM Volume Forecasts'!$A$28:$AL$136,H$143,FALSE) -> 40.59606129
... 99 more rows

Sheet (Y+1)
A1: Input data (Y+1)
A4: 1000. Company, charging year, data version
B6: Company | C6: Year | D6: Version
A7: Company, charging year, data version | B7: =VLOOKUP(Vlookup!B7,'CDCM Forecast Data'!$A$14:$I$271,6,FALSE) -> WPD East Midlands | C7: =VLOOKUP(Vlookup!C7,'CDCM Forecast Data'!$A$14:$I$271,6,FALSE) -> 2020/21 | D7: =VLOOKUP(Vlookup!D7,'CDCM Forecast Data'!$A$14:$I$271,6,FALSE) -> Forecast
A9: 1010. Financial and general assumptions
A11: Sources: financial assumptions; calendar; network model.
A12: These financial assumptions determine the annuity rate applied to convert the asset values of the network model into an annual charge.
B13: Rate of return | C13: Annualisation period (years) | D13: Annuity proportion for customer-contributed assets | E13: Power factor | F13: Days in the charging period
A14: Financial and general assumptions | B14: =VLOOKUP(Vlookup!B14,'CDCM Forecast Data'!$A$14:$I$271,6,FALSE) -> 0.0421 | C14: =VLOOKUP(Vlookup!C14,'CDCM Forecast Data'!$A$14:$I$271,6,FALSE) -> 40 | E14: =VLOOKUP(Vlookup!E14,'CDCM Forecast Data'!$A$14:$I$271,6,FALSE) -> 0.95 | F14: =VLOOKUP(Vlookup!F14,'CDCM Forecast Data'!$A$14:$I$271,6,FALSE) -> 365
A16: 1017. Diversity allowance between top and bottom of network level
A18: Source: operational data analysis and/or network model.
A19: The diversity figure against GSP is the diversity between GSP Group (the whole system) and individual GSPs.
A20: The diversity figure against 132kV is the diversity between GSPs (the top of the 132kV network) and 132kV/EHV bulk supply points (the bottom of the 132kV network).
A21: The diversity figure against EHV is the diversity between 132kV/EHV bulk supply points (the top of the EHV network) and EHV/HV primary substations (the bottom of the EHV network).
A22: The diversity figure against HV is the diversity between EHV/HV primary substations (the top of the HV network) and HV/LV substations (the bottom of the HV network).
B23: Diversity allowance between top and bottom of network level
A24: GSPs | B24: =VLOOKUP(Vlookup!B24,'CDCM Forecast Data'!$A$14:$I$271,6,FALSE) -> 0.02471374244
A25: 132kV | B25: =VLOOKUP(Vlookup!B25,'CDCM Forecast Data'!$A$14:$I$271,6,FALSE) -> 0.04501347824
A26: 132kV/EHV
A27: EHV | B27: =VLOOKUP(Vlookup!B27,'CDCM Forecast Data'!$A$14:$I$271,6,FALSE) -> 0.07901764269
A28: EHV/HV
A29: HV | B29: =VLOOKUP(Vlookup!B29,'CDCM Forecast Data'!$A$14:$I$271,6,FALSE) -> 0.34
A30: HV/LV
A31: LV circuits
A33: 1018. Proportion of relevant load going through 132kV/HV direct transformation
B35: 132kV/HV
A36: EHV/HV | B36: =VLOOKUP(Vlookup!B36,'CDCM Forecast Data'!$A$14:$I$271,6,FALSE) -> 0.07504434271
A38: 1019. Network model GSP peak demand (MW)
B40: Network model GSP peak demand (MW)
A41: Network model GSP peak demand (MW) | B41: =VLOOKUP(Vlookup!B41,'CDCM Forecast Data'!$A$14:$I$271,6,FALSE) -> 500
A43: 1020. Gross asset cost by network level (£)
B45: Gross assets £
A46: 132kV | B46: =VLOOKUP(Vlookup!B46,'CDCM Forecast Data'!$A$14:$I$271,6,FALSE) -> 58314087.63
A47: 132kV/EHV | B47: =VLOOKUP(Vlookup!B47,'CDCM Forecast Data'!$A$14:$I$271,6,FALSE) -> 29633886.51
A48: EHV | B48: =VLOOKUP(Vlookup!B48,'CDCM Forecast Data'!$A$14:$I$271,6,FALSE) -> 36222821.91
A49: EHV/HV | B49: =VLOOKUP(Vlookup!B49,'CDCM Forecast Data'!$A$14:$I$271,6,FALSE) -> 58803851.38
A50: 132kV/HV | B50: =VLOOKUP(Vlookup!B50,'CDCM Forecast Data'!$A$14:$I$271,6,FALSE) -> 4931925.834
A51: HV | B51: =VLOOKUP(Vlookup!B51,'CDCM Forecast Data'!$A$14:$I$271,6,FALSE) -> 139525767.8
A52: HV/LV | B52: =VLOOKUP(Vlookup!B52,'CDCM Forecast Data'!$A$14:$I$271,6,FALSE) -> 63068118.32
A53: LV circuits | B53: =VLOOKUP(Vlookup!B53,'CDCM Forecast Data'!$A$14:$I$271,6,FALSE) -> 122738128.9
A55: 1022. LV service model asset cost (£)
B57: LV service model 1 | C57: LV service model 2 | D57: LV service model 3 | E57: LV service model 4 | F57: LV service model 5 | G57: LV service model 6 | H57: LV service model 7 | I57: LV service model 8
A58: LV service model asset cost (£) | B58: =VLOOKUP(Vlookup!B58,'CDCM Forecast Data'!$A$14:$I$271,6,FALSE) -> 4495.771841 | C58: =VLOOKUP(Vlookup!C58,'CDCM Forecast Data'!$A$14:$I$271,6,FALSE) -> 685.4396296 | D58: =VLOOKUP(Vlookup!D58,'CDCM Forecast Data'!$A$14:$I$271,6,FALSE) -> 792.7676514 | E58: =VLOOKUP(Vlookup!E58,'CDCM Forecast Data'!$A$14:$I$271,6,FALSE) -> 575.3307709 | F58: =VLOOKUP(Vlookup!F58,'CDCM Forecast Data'!$A$14:$I$271,6,FALSE) -> 1269.305205 | G58: =VLOOKUP(Vlookup!G58,'CDCM Forecast Data'!$A$14:$I$271,6,FALSE) -> 990.8724913 | H58: =VLOOKUP(Vlookup!H58,'CDCM Forecast Data'!$A$14:$I$271,6,FALSE) -> 0 | I58: =VLOOKUP(Vlookup!I58,'CDCM Forecast Data'!$A$14:$I$271,6,FALSE) -> 542.3126865
A60: 1023. HV service model asset cost (£)
B62: HV service model 1 | C62: HV service model 2 | D62: HV service model 3 | E62: HV service model 4 | F62: HV service model 5
A63: HV service model asset cost (£) | B63: =VLOOKUP(Vlookup!B63,'CDCM Forecast Data'!$A$14:$I$271,6,FALSE) -> 10701.15894 | C63: =VLOOKUP(Vlookup!C63,'CDCM Forecast Data'!$A$14:$I$271,6,FALSE) -> 4399.478261 | D63: =VLOOKUP(Vlookup!D63,'CDCM Forecast Data'!$A$14:$I$271,6,FALSE) -> 0 | E63: =VLOOKUP(Vlookup!E63,'CDCM Forecast Data'!$A$14:$I$271,6,FALSE) -> 0 | F63: =VLOOKUP(Vlookup!F63,'CDCM Forecast Data'!$A$14:$I$271,6,FALSE) -> 0
A65: 1025. Matrix of applicability of LV service models to tariffs with fixed charges
B66: 10 | C66: =B66+1 -> 11 | D66: 12 | E66: 13 | F66: 14 | G66: 15 | H66: 16 | I66: 17
B67: LV service model 1 | C67: LV service model 2 | D67: LV service model 3 | E67: LV service model 4 | F67: LV service model 5 | G67: LV service model 6 | H67: LV service model 7 | I67: LV service model 8
A68: Domestic Unrestricted | B68: =VLOOKUP($A68,'Mat of App'!$B$7:$AP$43,B$66,FALSE) -> 0.05 | C68: =VLOOKUP($A68,'Mat of App'!$B$7:$AP$43,C$66,FALSE) -> 0 | D68: =VLOOKUP($A68,'Mat of App'!$B$7:$AP$43,D$66,FALSE) -> 0 | E68: =VLOOKUP($A68,'Mat of App'!$B$7:$AP$43,E$66,FALSE) -> 0 | F68: =VLOOKUP($A68,'Mat of App'!$B$7:$AP$43,F$66,FALSE) -> 0 | G68: =VLOOKUP($A68,'Mat of App'!$B$7:$AP$43,G$66,FALSE) -> 0 | H68: =VLOOKUP($A68,'Mat of App'!$B$7:$AP$43,H$66,FALSE) -> 0 | I68: =VLOOKUP($A68,'Mat of App'!$B$7:$AP$43,I$66,FALSE) -> 0
A69: Domestic Two Rate | B69: =VLOOKUP($A69,'Mat of App'!$B$7:$AP$43,B$66,FALSE) -> 0.05 | C69: =VLOOKUP($A69,'Mat of App'!$B$7:$AP$43,C$66,FALSE) -> 0 | D69: =VLOOKUP($A69,'Mat of App'!$B$7:$AP$43,D$66,FALSE) -> 0 | E69: =VLOOKUP($A69,'Mat of App'!$B$7:$AP$43,E$66,FALSE) -> 0 | F69: =VLOOKUP($A69,'Mat of App'!$B$7:$AP$43,F$66,FALSE) -> 0 | G69: =VLOOKUP($A69,'Mat of App'!$B$7:$AP$43,G$66,FALSE) -> 0 | H69: =VLOOKUP($A69,'Mat of App'!$B$7:$AP$43,H$66,FALSE) -> 0 | I69: =VLOOKUP($A69,'Mat of App'!$B$7:$AP$43,I$66,FALSE) -> 0
A70: Small Non Domestic Unrestricted | B70: =VLOOKUP($A70,'Mat of App'!$B$7:$AP$43,B$66,FALSE) -> 0 | C70: =VLOOKUP($A70,'Mat of App'!$B$7:$AP$43,C$66,FALSE) -> 1 | D70: =VLOOKUP($A70,'Mat of App'!$B$7:$AP$43,D$66,FALSE) -> 0 | E70: =VLOOKUP($A70,'Mat of App'!$B$7:$AP$43,E$66,FALSE) -> 0 | F70: =VLOOKUP($A70,'Mat of App'!$B$7:$AP$43,F$66,FALSE) -> 0 | G70: =VLOOKUP($A70,'Mat of App'!$B$7:$AP$43,G$66,FALSE) -> 0 | H70: =VLOOKUP($A70,'Mat of App'!$B$7:$AP$43,H$66,FALSE) -> 0 | I70: =VLOOKUP($A70,'Mat of App'!$B$7:$AP$43,I$66,FALSE) -> 0
A71: Small Non Domestic Two Rate | B71: =VLOOKUP($A71,'Mat of App'!$B$7:$AP$43,B$66,FALSE) -> 0 | C71: =VLOOKUP($A71,'Mat of App'!$B$7:$AP$43,C$66,FALSE) -> 1 | D71: =VLOOKUP($A71,'Mat of App'!$B$7:$AP$43,D$66,FALSE) -> 0 | E71: =VLOOKUP($A71,'Mat of App'!$B$7:$AP$43,E$66,FALSE) -> 0 | F71: =VLOOKUP($A71,'Mat of App'!$B$7:$AP$43,F$66,FALSE) -> 0 | G71: =VLOOKUP($A71,'Mat of App'!$B$7:$AP$43,G$66,FALSE) -> 0 | H71: =VLOOKUP($A71,'Mat of App'!$B$7:$AP$43,H$66,FALSE) -> 0 | I71: =VLOOKUP($A71,'Mat of App'!$B$7:$AP$43,I$66,FALSE) -> 0
A72: LV Medium Non-Domestic | B72: =VLOOKUP($A72,'Mat of App'!$B$7:$AP$43,B$66,FALSE) -> 0 | C72: =VLOOKUP($A72,'Mat of App'!$B$7:$AP$43,C$66,FALSE) -> 0 | D72: =VLOOKUP($A72,'Mat of App'!$B$7:$AP$43,D$66,FALSE) -> 1 | E72: =VLOOKUP($A72,'Mat of App'!$B$7:$AP$43,E$66,FALSE) -> 0 | F72: =VLOOKUP($A72,'Mat of App'!$B$7:$AP$43,F$66,FALSE) -> 0 | G72: =VLOOKUP($A72,'Mat of App'!$B$7:$AP$43,G$66,FALSE) -> 0 | H72: =VLOOKUP($A72,'Mat of App'!$B$7:$AP$43,H$66,FALSE) -> 0 | I72: =VLOOKUP($A72,'Mat of App'!$B$7:$AP$43,I$66,FALSE) -> 0
A73: LV Sub Medium Non-Domestic | B73: =VLOOKUP($A73,'Mat of App'!$B$7:$AP$43,B$66,FALSE) -> 0 | C73: =VLOOKUP($A73,'Mat of App'!$B$7:$AP$43,C$66,FALSE) -> 0 | D73: =VLOOKUP($A73,'Mat of App'!$B$7:$AP$43,D$66,FALSE) -> 0 | E73: =VLOOKUP($A73,'Mat of App'!$B$7:$AP$43,E$66,FALSE) -> 1 | F73: =VLOOKUP($A73,'Mat of App'!$B$7:$AP$43,F$66,FALSE) -> 0 | G73: =VLOOKUP($A73,'Mat of App'!$B$7:$AP$43,G$66,FALSE) -> 0 | H73: =VLOOKUP($A73,'Mat of App'!$B$7:$AP$43,H$66,FALSE) -> 0 | I73: =VLOOKUP($A73,'Mat of App'!$B$7:$AP$43,I$66,FALSE) -> 0
A74: LV Network Domestic | B74: =VLOOKUP($A74,'Mat of App'!$B$7:$AP$43,B$66,FALSE) -> 0.05 | C74: =VLOOKUP($A74,'Mat of App'!$B$7:$AP$43,C$66,FALSE) -> 0 | D74: =VLOOKUP($A74,'Mat of App'!$B$7:$AP$43,D$66,FALSE) -> 0 | E74: =VLOOKUP($A74,'Mat of App'!$B$7:$AP$43,E$66,FALSE) -> 0 | F74: =VLOOKUP($A74,'Mat of App'!$B$7:$AP$43,F$66,FALSE) -> 0 | G74: =VLOOKUP($A74,'Mat of App'!$B$7:$AP$43,G$66,FALSE) -> 0 | H74: =VLOOKUP($A74,'Mat of App'!$B$7:$AP$43,H$66,FALSE) -> 0 | I74: =VLOOKUP($A74,'Mat of App'!$B$7:$AP$43,I$66,FALSE) -> 0
A75: LV Network Non-Domestic Non-CT | B75: =VLOOKUP($A75,'Mat of App'!$B$7:$AP$43,B$66,FALSE) -> 0 | C75: =VLOOKUP($A75,'Mat of App'!$B$7:$AP$43,C$66,FALSE) -> 1 | D75: =VLOOKUP($A75,'Mat of App'!$B$7:$AP$43,D$66,FALSE) -> 0 | E75: =VLOOKUP($A75,'Mat of App'!$B$7:$AP$43,E$66,FALSE) -> 0 | F75: =VLOOKUP($A75,'Mat of App'!$B$7:$AP$43,F$66,FALSE) -> 0 | G75: =VLOOKUP($A75,'Mat of App'!$B$7:$AP$43,G$66,FALSE) -> 0 | H75: =VLOOKUP($A75,'Mat of App'!$B$7:$AP$43,H$66,FALSE) -> 0 | I75: =VLOOKUP($A75,'Mat of App'!$B$7:$AP$43,I$66,FALSE) -> 0
A76: LV HH Metered | B76: =VLOOKUP($A76,'Mat of App'!$B$7:$AP$43,B$66,FALSE) -> 0 | C76: =VLOOKUP($A76,'Mat of App'!$B$7:$AP$43,C$66,FALSE) -> 0 | D76: =VLOOKUP($A76,'Mat of App'!$B$7:$AP$43,D$66,FALSE) -> 0 | E76: =VLOOKUP($A76,'Mat of App'!$B$7:$AP$43,E$66,FALSE) -> 0 | F76: =VLOOKUP($A76,'Mat of App'!$B$7:$AP$43,F$66,FALSE) -> 1 | G76: =VLOOKUP($A76,'Mat of App'!$B$7:$AP$43,G$66,FALSE) -> 0 | H76: =VLOOKUP($A76,'Mat of App'!$B$7:$AP$43,H$66,FALSE) -> 0 | I76: =VLOOKUP($A76,'Mat of App'!$B$7:$AP$43,I$66,FALSE) -> 0
A77: LV Sub HH Metered | B77: =VLOOKUP($A77,'Mat of App'!$B$7:$AP$43,B$66,FALSE) -> 0 | C77: =VLOOKUP($A77,'Mat of App'!$B$7:$AP$43,C$66,FALSE) -> 0 | D77: =VLOOKUP($A77,'Mat of App'!$B$7:$AP$43,D$66,FALSE) -> 0 | E77: =VLOOKUP($A77,'Mat of App'!$B$7:$AP$43,E$66,FALSE) -> 0 | F77: =VLOOKUP($A77,'Mat of App'!$B$7:$AP$43,F$66,FALSE) -> 0 | G77: =VLOOKUP($A77,'Mat of App'!$B$7:$AP$43,G$66,FALSE) -> 1 | H77: =VLOOKUP($A77,'Mat of App'!$B$7:$AP$43,H$66,FALSE) -> 0 | I77: =VLOOKUP($A77,'Mat of App'!$B$7:$AP$43,I$66,FALSE) -> 0
A78: LV Generation NHH or Aggregate HH | B78: =VLOOKUP($A78,'Mat of App'!$B$7:$AP$43,B$66,FALSE) -> 0 | C78: =VLOOKUP($A78,'Mat of App'!$B$7:$AP$43,C$66,FALSE) -> 0 | D78: =VLOOKUP($A78,'Mat of App'!$B$7:$AP$43,D$66,FALSE) -> 0 | E78: =VLOOKUP($A78,'Mat of App'!$B$7:$AP$43,E$66,FALSE) -> 0 | F78: =VLOOKUP($A78,'Mat of App'!$B$7:$AP$43,F$66,FALSE) -> 0 | G78: =VLOOKUP($A78,'Mat of App'!$B$7:$AP$43,G$66,FALSE) -> 0 | H78: =VLOOKUP($A78,'Mat of App'!$B$7:$AP$43,H$66,FALSE) -> 1 | I78: =VLOOKUP($A78,'Mat of App'!$B$7:$AP$43,I$66,FALSE) -> 0
A79: LV Sub Generation NHH | B79: =VLOOKUP($A79,'Mat of App'!$B$7:$AP$43,B$66,FALSE) -> 0 | C79: =VLOOKUP($A79,'Mat of App'!$B$7:$AP$43,C$66,FALSE) -> 0 | D79: =VLOOKUP($A79,'Mat of App'!$B$7:$AP$43,D$66,FALSE) -> 0 | E79: =VLOOKUP($A79,'Mat of App'!$B$7:$AP$43,E$66,FALSE) -> 0 | F79: =VLOOKUP($A79,'Mat of App'!$B$7:$AP$43,F$66,FALSE) -> 0 | G79: =VLOOKUP($A79,'Mat of App'!$B$7:$AP$43,G$66,FALSE) -> 0 | H79: =VLOOKUP($A79,'Mat of App'!$B$7:$AP$43,H$66,FALSE) -> 1 | I79: =VLOOKUP($A79,'Mat of App'!$B$7:$AP$43,I$66,FALSE) -> 0
A80: LV Generation Intermittent | B80: =VLOOKUP($A80,'Mat of App'!$B$7:$AP$43,B$66,FALSE) -> 0 | C80: =VLOOKUP($A80,'Mat of App'!$B$7:$AP$43,C$66,FALSE) -> 0 | D80: =VLOOKUP($A80,'Mat of App'!$B$7:$AP$43,D$66,FALSE) -> 0 | E80: =VLOOKUP($A80,'Mat of App'!$B$7:$AP$43,E$66,FALSE) -> 0 | F80: =VLOOKUP($A80,'Mat of App'!$B$7:$AP$43,F$66,FALSE) -> 0 | G80: =VLOOKUP($A80,'Mat of App'!$B$7:$AP$43,G$66,FALSE) -> 0 | H80: =VLOOKUP($A80,'Mat of App'!$B$7:$AP$43,H$66,FALSE) -> 1 | I80: =VLOOKUP($A80,'Mat of App'!$B$7:$AP$43,I$66,FALSE) -> 0
A81: LV Generation Intermittent no RP charge | B81: =VLOOKUP($A81,'Mat of App'!$B$7:$AP$43,B$66,FALSE) -> 0 | C81: =VLOOKUP($A81,'Mat of App'!$B$7:$AP$43,C$66,FALSE) -> 0 | D81: =VLOOKUP($A81,'Mat of App'!$B$7:$AP$43,D$66,FALSE) -> 0 | E81: =VLOOKUP($A81,'Mat of App'!$B$7:$AP$43,E$66,FALSE) -> 0 | F81: =VLOOKUP($A81,'Mat of App'!$B$7:$AP$43,F$66,FALSE) -> 0 | G81: =VLOOKUP($A81,'Mat of App'!$B$7:$AP$43,G$66,FALSE) -> 0 | H81: =VLOOKUP($A81,'Mat of App'!$B$7:$AP$43,H$66,FALSE) -> 1 | I81: =VLOOKUP($A81,'Mat of App'!$B$7:$AP$43,I$66,FALSE) -> 0
A82: LV Generation Non-Intermittent | B82: =VLOOKUP($A82,'Mat of App'!$B$7:$AP$43,B$66,FALSE) -> 0 | C82: =VLOOKUP($A82,'Mat of App'!$B$7:$AP$43,C$66,FALSE) -> 0 | D82: =VLOOKUP($A82,'Mat of App'!$B$7:$AP$43,D$66,FALSE) -> 0 | E82: =VLOOKUP($A82,'Mat of App'!$B$7:$AP$43,E$66,FALSE) -> 0 | F82: =VLOOKUP($A82,'Mat of App'!$B$7:$AP$43,F$66,FALSE) -> 0 | G82: =VLOOKUP($A82,'Mat of App'!$B$7:$AP$43,G$66,FALSE) -> 0 | H82: =VLOOKUP($A82,'Mat of App'!$B$7:$AP$43,H$66,FALSE) -> 0 | I82: =VLOOKUP($A82,'Mat of App'!$B$7:$AP$43,I$66,FALSE) -> 0
A83: LV Generation Non-Intermittent no RP charge | B83: =VLOOKUP($A83,'Mat of App'!$B$7:$AP$43,B$66,FALSE) -> 0 | C83: =VLOOKUP($A83,'Mat of App'!$B$7:$AP$43,C$66,FALSE) -> 0 | D83: =VLOOKUP($A83,'Mat of App'!$B$7:$AP$43,D$66,FALSE) -> 0 | E83: =VLOOKUP($A83,'Mat of App'!$B$7:$AP$43,E$66,FALSE) -> 0 | F83: =VLOOKUP($A83,'Mat of App'!$B$7:$AP$43,F$66,FALSE) -> 0 | G83: =VLOOKUP($A83,'Mat of App'!$B$7:$AP$43,G$66,FALSE) -> 0 | H83: =VLOOKUP($A83,'Mat of App'!$B$7:$AP$43,H$66,FALSE) -> 0 | I83: =VLOOKUP($A83,'Mat of App'!$B$7:$AP$43,I$66,FALSE) -> 0
A84: LV Sub Generation Intermittent | B84: =VLOOKUP($A84,'Mat of App'!$B$7:$AP$43,B$66,FALSE) -> 0 | C84: =VLOOKUP($A84,'Mat of App'!$B$7:$AP$43,C$66,FALSE) -> 0 | D84: =VLOOKUP($A84,'Mat of App'!$B$7:$AP$43,D$66,FALSE) -> 0 | E84: =VLOOKUP($A84,'Mat of App'!$B$7:$AP$43,E$66,FALSE) -> 0 | F84: =VLOOKUP($A84,'Mat of App'!$B$7:$AP$43,F$66,FALSE) -> 0 | G84: =VLOOKUP($A84,'Mat of App'!$B$7:$AP$43,G$66,FALSE) -> 0 | H84: =VLOOKUP($A84,'Mat of App'!$B$7:$AP$43,H$66,FALSE) -> 0 | I84: =VLOOKUP($A84,'Mat of App'!$B$7:$AP$43,I$66,FALSE) -> 0
A85: LV Sub Generation Intermittent no RP charge | B85: =VLOOKUP($A85,'Mat of App'!$B$7:$AP$43,B$66,FALSE) -> 0 | C85: =VLOOKUP($A85,'Mat of App'!$B$7:$AP$43,C$66,FALSE) -> 0 | D85: =VLOOKUP($A85,'Mat of App'!$B$7:$AP$43,D$66,FALSE) -> 0 | E85: =VLOOKUP($A85,'Mat of App'!$B$7:$AP$43,E$66,FALSE) -> 0 | F85: =VLOOKUP($A85,'Mat of App'!$B$7:$AP$43,F$66,FALSE) -> 0 | G85: =VLOOKUP($A85,'Mat of App'!$B$7:$AP$43,G$66,FALSE) -> 0 | H85: =VLOOKUP($A85,'Mat of App'!$B$7:$AP$43,H$66,FALSE) -> 0 | I85: =VLOOKUP($A85,'Mat of App'!$B$7:$AP$43,I$66,FALSE) -> 0
A86: LV Sub Generation Non-Intermittent | B86: =VLOOKUP($A86,'Mat of App'!$B$7:$AP$43,B$66,FALSE) -> 0 | C86: =VLOOKUP($A86,'Mat of App'!$B$7:$AP$43,C$66,FALSE) -> 0 | D86: =VLOOKUP($A86,'Mat of App'!$B$7:$AP$43,D$66,FALSE) -> 0 | E86: =VLOOKUP($A86,'Mat of App'!$B$7:$AP$43,E$66,FALSE) -> 0 | F86: =VLOOKUP($A86,'Mat of App'!$B$7:$AP$43,F$66,FALSE) -> 0 | G86: =VLOOKUP($A86,'Mat of App'!$B$7:$AP$43,G$66,FALSE) -> 0 | H86: =VLOOKUP($A86,'Mat of App'!$B$7:$AP$43,H$66,FALSE) -> 0 | I86: =VLOOKUP($A86,'Mat of App'!$B$7:$AP$43,I$66,FALSE) -> 0
A87: LV Sub Generation Non-Intermittent no RP charge | B87: =VLOOKUP($A87,'Mat of App'!$B$7:$AP$43,B$66,FALSE) -> 0 | C87: =VLOOKUP($A87,'Mat of App'!$B$7:$AP$43,C$66,FALSE) -> 0 | D87: =VLOOKUP($A87,'Mat of App'!$B$7:$AP$43,D$66,FALSE) -> 0 | E87: =VLOOKUP($A87,'Mat of App'!$B$7:$AP$43,E$66,FALSE) -> 0 | F87: =VLOOKUP($A87,'Mat of App'!$B$7:$AP$43,F$66,FALSE) -> 0 | G87: =VLOOKUP($A87,'Mat of App'!$B$7:$AP$43,G$66,FALSE) -> 0 | H87: =VLOOKUP($A87,'Mat of App'!$B$7:$AP$43,H$66,FALSE) -> 0 | I87: =VLOOKUP($A87,'Mat of App'!$B$7:$AP$43,I$66,FALSE) -> 0
A89: 1026. Matrix of applicability of LV service models to unmetered tariffs
A91: Source: service models
A92: Proportion of service model involved in connecting load of 1 MWh/year
B93: LV service model 1 | C93: LV service model 2 | D93: LV service model 3 | E93: LV service model 4 | F93: LV service model 5 | G93: LV service model 6 | H93: LV service model 7 | I93: LV service model 8
A94: All LV unmetered tariffs | B94: =VLOOKUP($A94,'Mat of App'!$B$7:$AP$43,B$66,FALSE) -> 0 | C94: =VLOOKUP($A94,'Mat of App'!$B$7:$AP$43,C$66,FALSE) -> 0 | D94: =VLOOKUP($A94,'Mat of App'!$B$7:$AP$43,D$66,FALSE) -> 0 | E94: =VLOOKUP($A94,'Mat of App'!$B$7:$AP$43,E$66,FALSE) -> 0 | F94: =VLOOKUP($A94,'Mat of App'!$B$7:$AP$43,F$66,FALSE) -> 0 | G94: =VLOOKUP($A94,'Mat of App'!$B$7:$AP$43,G$66,FALSE) -> 0 | H94: =VLOOKUP($A94,'Mat of App'!$B$7:$AP$43,H$66,FALSE) -> 0 | I94: =VLOOKUP($A94,'Mat of App'!$B$7:$AP$43,I$66,FALSE) -> 0.488
A96: 1028. Matrix of applicability of HV service models to tariffs with fixed charges
B97: 7 | C97: =B97+1 -> 8 | D97: =C97+1 -> 9 | E97: =D97+1 -> 10 | F97: =E97+1 -> 11
B98: HV service model 1 | C98: HV service model 2 | D98: HV service model 3 | E98: HV service model 4 | F98: HV service model 5
A99: HV Medium Non-Domestic | B99: =VLOOKUP($A99,'Mat of App'!$B$7:$AP$43,B$97,FALSE) -> 1 | C99: =VLOOKUP($A99,'Mat of App'!$B$7:$AP$43,C$97,FALSE) -> 0 | D99: =VLOOKUP($A99,'Mat of App'!$B$7:$AP$43,D$97,FALSE) -> 0 | E99: =VLOOKUP($A99,'Mat of App'!$B$7:$AP$43,E$97,FALSE) -> 0 | F99: =VLOOKUP($A99,'Mat of App'!$B$7:$AP$43,F$97,FALSE) -> 0
A100: HV HH Metered | B100: =VLOOKUP($A100,'Mat of App'!$B$7:$AP$43,B$97,FALSE) -> 1 | C100: =VLOOKUP($A100,'Mat of App'!$B$7:$AP$43,C$97,FALSE) -> 0 | D100: =VLOOKUP($A100,'Mat of App'!$B$7:$AP$43,D$97,FALSE) -> 0 | E100: =VLOOKUP($A100,'Mat of App'!$B$7:$AP$43,E$97,FALSE) -> 0 | F100: =VLOOKUP($A100,'Mat of App'!$B$7:$AP$43,F$97,FALSE) -> 0
A101: HV Generation Intermittent | B101: =VLOOKUP($A101,'Mat of App'!$B$7:$AP$43,B$97,FALSE) -> 0 | C101: =VLOOKUP($A101,'Mat of App'!$B$7:$AP$43,C$97,FALSE) -> 1 | D101: =VLOOKUP($A101,'Mat of App'!$B$7:$AP$43,D$97,FALSE) -> 0 | E101: =VLOOKUP($A101,'Mat of App'!$B$7:$AP$43,E$97,FALSE) -> 0 | F101: =VLOOKUP($A101,'Mat of App'!$B$7:$AP$43,F$97,FALSE) -> 0
A102: HV Generation Intermittent no RP charge | B102: =VLOOKUP($A102,'Mat of App'!$B$7:$AP$43,B$97,FALSE) -> 0 | C102: =VLOOKUP($A102,'Mat of App'!$B$7:$AP$43,C$97,FALSE) -> 1 | D102: =VLOOKUP($A102,'Mat of App'!$B$7:$AP$43,D$97,FALSE) -> 0 | E102: =VLOOKUP($A102,'Mat of App'!$B$7:$AP$43,E$97,FALSE) -> 0 | F102: =VLOOKUP($A102,'Mat of App'!$B$7:$AP$43,F$97,FALSE) -> 0
A103: HV Generation Non-Intermittent | B103: =VLOOKUP($A103,'Mat of App'!$B$7:$AP$43,B$97,FALSE) -> 0 | C103: =VLOOKUP($A103,'Mat of App'!$B$7:$AP$43,C$97,FALSE) -> 1 | D103: =VLOOKUP($A103,'Mat of App'!$B$7:$AP$43,D$97,FALSE) -> 0 | E103: =VLOOKUP($A103,'Mat of App'!$B$7:$AP$43,E$97,FALSE) -> 0 | F103: =VLOOKUP($A103,'Mat of App'!$B$7:$AP$43,F$97,FALSE) -> 0
A104: HV Generation Non-Intermittent no RP charge | B104: =VLOOKUP($A104,'Mat of App'!$B$7:$AP$43,B$97,FALSE) -> 0 | C104: =VLOOKUP($A104,'Mat of App'!$B$7:$AP$43,C$97,FALSE) -> 1 | D104: =VLOOKUP($A104,'Mat of App'!$B$7:$AP$43,D$97,FALSE) -> 0 | E104: =VLOOKUP($A104,'Mat of App'!$B$7:$AP$43,E$97,FALSE) -> 0 | F104: =VLOOKUP($A104,'Mat of App'!$B$7:$AP$43,F$97,FALSE) -> 0
A106: 1032. Loss adjustment factors to transmission
A108: Source: losses model or loss adjustment factors at time of system peak.
B109: 132kV | C109: 132kV/EHV | D109: EHV | E109: EHV/HV | F109: HV | G109: HV/LV | H109: LV circuits
A110: Loss adjustment factor | B110: =VLOOKUP(Vlookup!B69,'CDCM Forecast Data'!$A$14:$I$271,6,FALSE) -> 1.002 | C110: =VLOOKUP(Vlookup!C69,'CDCM Forecast Data'!$A$14:$I$271,6,FALSE) -> 1.008 | D110: =VLOOKUP(Vlookup!D69,'CDCM Forecast Data'!$A$14:$I$271,6,FALSE) -> 1.01 | E110: =VLOOKUP(Vlookup!E69,'CDCM Forecast Data'!$A$14:$I$271,6,FALSE) -> 1.018 | F110: =VLOOKUP(Vlookup!F69,'CDCM Forecast Data'!$A$14:$I$271,6,FALSE) -> 1.034 | G110: =VLOOKUP(Vlookup!G69,'CDCM Forecast Data'!$A$14:$I$271,6,FALSE) -> 1.05 | H110: =VLOOKUP(Vlookup!H69,'CDCM Forecast Data'!$A$14:$I$271,6,FALSE) -> 1.08
A112: 1037. Embedded network (LDNO) discounts
A114: Source: separate price control disaggregation model.
B115: No discount | C115: LDNO LV: LV user | D115: LDNO HV: LV user | E115: LDNO HV: LV sub user | F115: LDNO HV: HV user
A116: LDNO discount | C116: =VLOOKUP(Vlookup!C75,'CDCM Forecast Data'!$A$14:$I$271,6,FALSE) -> 0.3003526752 | D116: =VLOOKUP(Vlookup!D75,'CDCM Forecast Data'!$A$14:$I$271,6,FALSE) -> 0.4781813948 | E116: =VLOOKUP(Vlookup!E75,'CDCM Forecast Data'!$A$14:$I$271,6,FALSE) -> 0.2436374369 | F116: =VLOOKUP(Vlookup!F75,'CDCM Forecast Data'!$A$14:$I$271,6,FALSE) -> 0.142496875
A118: 1041. Load profile data for demand users
A120: Source: load data analysis.
B121: Coincidence factor | C121: Load factor
A122: Domestic Unrestricted | B122: =VLOOKUP(Vlookup!B81,'CDCM Forecast Data'!$A$14:$I$271,6,FALSE) -> 0.8624074107 | C122: =VLOOKUP(Vlookup!C81,'CDCM Forecast Data'!$A$14:$I$271,6,FALSE) -> 0.416237105
A123: Domestic Two Rate | B123: =VLOOKUP(Vlookup!B82,'CDCM Forecast Data'!$A$14:$I$271,6,FALSE) -> 0.8603473111 | C123: =VLOOKUP(Vlookup!C82,'CDCM Forecast Data'!$A$14:$I$271,6,FALSE) -> 0.5028096693
A124: Domestic Off Peak (related MPAN) | C124: =VLOOKUP(Vlookup!C83,'CDCM Forecast Data'!$A$14:$I$271,6,FALSE) -> 0.1479037568
A125: Small Non Domestic Unrestricted | B125: =VLOOKUP(Vlookup!B84,'CDCM Forecast Data'!$A$14:$I$271,6,FALSE) -> 0.723249365 | C125: =VLOOKUP(Vlookup!C84,'CDCM Forecast Data'!$A$14:$I$271,6,FALSE) -> 0.3753258856
A126: Small Non Domestic Two Rate | B126: =VLOOKUP(Vlookup!B85,'CDCM Forecast Data'!$A$14:$I$271,6,FALSE) -> 0.8624062199 | C126: =VLOOKUP(Vlookup!C85,'CDCM Forecast Data'!$A$14:$I$271,6,FALSE) -> 0.5342406539
A127: Small Non Domestic Off Peak (related MPAN) | C127: =VLOOKUP(Vlookup!C86,'CDCM Forecast Data'!$A$14:$I$271,6,FALSE) -> 0.2427877725
A128: LV Medium Non-Domestic | B128: =VLOOKUP(Vlookup!B87,'CDCM Forecast Data'!$A$14:$I$271,6,FALSE) -> 0.8412277878 | C128: =VLOOKUP(Vlookup!C87,'CDCM Forecast Data'!$A$14:$I$271,6,FALSE) -> 0.5266769045
A129: LV Sub Medium Non-Domestic | B129: =VLOOKUP(Vlookup!B88,'CDCM Forecast Data'!$A$14:$I$271,6,FALSE) -> 0.8412277878 | C129: =VLOOKUP(Vlookup!C88,'CDCM Forecast Data'!$A$14:$I$271,6,FALSE) -> 0.5266769045
A130: HV Medium Non-Domestic | B130: =VLOOKUP(Vlookup!B89,'CDCM Forecast Data'!$A$14:$I$271,6,FALSE) -> 0.7888674972 | C130: =VLOOKUP(Vlookup!C89,'CDCM Forecast Data'!$A$14:$I$271,6,FALSE) -> 0.4919974796
A131: LV Network Domestic | B131: =VLOOKUP(Vlookup!B90,'CDCM Forecast Data'!$A$14:$I$271,6,FALSE) -> 0.8616444867 | C131: =VLOOKUP(Vlookup!C90,'CDCM Forecast Data'!$A$14:$I$271,6,FALSE) -> 0.4438295579
A132: LV Network Non-Domestic Non-CT | B132: =VLOOKUP(Vlookup!B91,'CDCM Forecast Data'!$A$14:$I$271,6,FALSE) -> 0.7875247765 | C132: =VLOOKUP(Vlookup!C91,'CDCM Forecast Data'!$A$14:$I$271,6,FALSE) -> 0.4478939551
A133: LV HH Metered | B133: =VLOOKUP(Vlookup!B92,'CDCM Forecast Data'!$A$14:$I$271,6,FALSE) -> 0.820865216 | C133: =VLOOKUP(Vlookup!C92,'CDCM Forecast Data'!$A$14:$I$271,6,FALSE) -> 0.5584288623
A134: LV Sub HH Metered | B134: =VLOOKUP(Vlookup!B93,'CDCM Forecast Data'!$A$14:$I$271,6,FALSE) -> 0.8402686756 | C134: =VLOOKUP(Vlookup!C93,'CDCM Forecast Data'!$A$14:$I$271,6,FALSE) -> 0.5790756672
A135: HV HH Metered | B135: =VLOOKUP(Vlookup!B94,'CDCM Forecast Data'!$A$14:$I$271,6,FALSE) -> 0.8476012159 | C135: =VLOOKUP(Vlookup!C94,'CDCM Forecast Data'!$A$14:$I$271,6,FALSE) -> 0.7141076062
A136: NHH UMS category A | B136: =VLOOKUP(Vlookup!B95,'CDCM Forecast Data'!$A$14:$I$271,6,FALSE) -> 1 | C136: =VLOOKUP(Vlookup!C95,'CDCM Forecast Data'!$A$14:$I$271,6,FALSE) -> 1
A137: NHH UMS category B | B137: =VLOOKUP(Vlookup!B96,'CDCM Forecast Data'!$A$14:$I$271,6,FALSE) -> 1 | C137: =VLOOKUP(Vlookup!C96,'CDCM Forecast Data'!$A$14:$I$271,6,FALSE) -> 0.4727080734
A138: NHH UMS category C | B138: =VLOOKUP(Vlookup!B97,'CDCM Forecast Data'!$A$14:$I$271,6,FALSE) -> 1 | C138: =VLOOKUP(Vlookup!C97,'CDCM Forecast Data'!$A$14:$I$271,6,FALSE) -> 0.2433937156
A139: NHH UMS category D | B139: =VLOOKUP(Vlookup!B98,'CDCM Forecast Data'!$A$14:$I$271,6,FALSE) -> 0.005362102748 | C139: =VLOOKUP(Vlookup!C98,'CDCM Forecast Data'!$A$14:$I$271,6,FALSE) -> 0.5115869751
A140: LV UMS (Pseudo HH Metered) | B140: =VLOOKUP(Vlookup!B99,'CDCM Forecast Data'!$A$14:$I$271,6,FALSE) -> 0.9507957642 | C140: =VLOOKUP(Vlookup!C99,'CDCM Forecast Data'!$A$14:$I$271,6,FALSE) -> 0.4416089679
A142: 1053. Volume forecasts for the charging year
B143: 11 | C143: 12 | D143: 13 | E143: 14 | F143: 15 | G143: 16 | H143: 17
A144: Source: forecast.
A145: Please include MPAN counts for tariffs with no fixed charge (e.g. off-peak tariffs),
A146: but exclude MPANs on tariffs with a fixed charge that are not subject to a fixed charge due to a site grouping arrangement.
B147: Rate 1 units (MWh) | C147: Rate 2 units (MWh) | D147: Rate 3 units (MWh) | E147: MPANs | F147: Import capacity (kVA) | G147: Exceeded capacity (kVA) | H147: Reactive power units (MVArh)
A148: > Domestic Unrestricted | B148: =VLOOKUP(Vlookup!$B107,'CDCM Volume Forecasts'!$A$28:$AL$136,B$143,FALSE) -> 0 | C148: =VLOOKUP(Vlookup!$B107,'CDCM Volume Forecasts'!$A$28:$AL$136,C$143,FALSE) -> 0 | D148: =VLOOKUP(Vlookup!$B107,'CDCM Volume Forecasts'!$A$28:$AL$136,D$143,FALSE) -> 0 | E148: =VLOOKUP(Vlookup!$B107,'CDCM Volume Forecasts'!$A$28:$AL$136,E$143,FALSE) -> 0 | F148: =VLOOKUP(Vlookup!$B107,'CDCM Volume Forecasts'!$A$28:$AL$136,F$143,FALSE) -> 0 | H148: =VLOOKUP(Vlookup!$B107,'CDCM Volume Forecasts'!$A$28:$AL$136,G$143,FALSE) -> 0
A149: Domestic Unrestricted | B149: =VLOOKUP(Vlookup!$B108,'CDCM Volume Forecasts'!$A$28:$AL$136,B$143,FALSE) -> 5635747.395 | E149: =VLOOKUP(Vlookup!$B108,'CDCM Volume Forecasts'!$A$28:$AL$136,E$143,FALSE) -> 1671267.776
A150: LDNO LV: Domestic Unrestricted | B150: =VLOOKUP(Vlookup!$B109,'CDCM Volume Forecasts'!$A$28:$AL$136,B$143,FALSE) -> 94982.04277 | E150: =VLOOKUP(Vlookup!$B109,'CDCM Volume Forecasts'!$A$28:$AL$136,E$143,FALSE) -> 35033.39034
A151: LDNO HV: Domestic Unrestricted | B151: =VLOOKUP(Vlookup!$B110,'CDCM Volume Forecasts'!$A$28:$AL$136,B$143,FALSE) -> 155171.2713 | E151: =VLOOKUP(Vlookup!$B110,'CDCM Volume Forecasts'!$A$28:$AL$136,E$143,FALSE) -> 58162.88093
A152: > Domestic Two Rate
A153: Domestic Two Rate | B153: =VLOOKUP(Vlookup!$B112,'CDCM Volume Forecasts'!$A$28:$AL$136,B$143,FALSE) -> 2417415.845 | C153: =VLOOKUP(Vlookup!$B112,'CDCM Volume Forecasts'!$A$28:$AL$136,C$143,FALSE) -> 1076309.379 | E153: =VLOOKUP(Vlookup!$B112,'CDCM Volume Forecasts'!$A$28:$AL$136,E$143,FALSE) -> 792868.4906
A154: LDNO LV: Domestic Two Rate | B154: =VLOOKUP(Vlookup!$B113,'CDCM Volume Forecasts'!$A$28:$AL$136,B$143,FALSE) -> 4629.961433 | C154: =VLOOKUP(Vlookup!$B113,'CDCM Volume Forecasts'!$A$28:$AL$136,C$143,FALSE) -> 1426.905031 | E154: =VLOOKUP(Vlookup!$B113,'CDCM Volume Forecasts'!$A$28:$AL$136,E$143,FALSE) -> 1499.239142
A155: LDNO HV: Domestic Two Rate | B155: =VLOOKUP(Vlookup!$B114,'CDCM Volume Forecasts'!$A$28:$AL$136,B$143,FALSE) -> 7642.505214 | C155: =VLOOKUP(Vlookup!$B114,'CDCM Volume Forecasts'!$A$28:$AL$136,C$143,FALSE) -> 2597.384749 | E155: =VLOOKUP(Vlookup!$B114,'CDCM Volume Forecasts'!$A$28:$AL$136,E$143,FALSE) -> 2453.434764
A156: > Domestic Off Peak (related MPAN)
A157: Domestic Off Peak (related MPAN) | B157: =VLOOKUP(Vlookup!$B116,'CDCM Volume Forecasts'!$A$28:$AL$136,B$143,FALSE) -> 49585.59318 | E157: =VLOOKUP(Vlookup!$B116,'CDCM Volume Forecasts'!$A$28:$AL$136,E$143,FALSE) -> 26805
A158: LDNO LV: Domestic Off Peak (related MPAN) | B158: =VLOOKUP(Vlookup!$B117,'CDCM Volume Forecasts'!$A$28:$AL$136,B$143,FALSE) -> 0 | E158: =VLOOKUP(Vlookup!$B117,'CDCM Volume Forecasts'!$A$28:$AL$136,E$143,FALSE) -> 0
A159: LDNO HV: Domestic Off Peak (related MPAN) | B159: =VLOOKUP(Vlookup!$B118,'CDCM Volume Forecasts'!$A$28:$AL$136,B$143,FALSE) -> 0 | E159: =VLOOKUP(Vlookup!$B118,'CDCM Volume Forecasts'!$A$28:$AL$136,E$143,FALSE) -> 0
A160: > Small Non Domestic Unrestricted
A161: Small Non Domestic Unrestricted | B161: =VLOOKUP(Vlookup!$B120,'CDCM Volume Forecasts'!$A$28:$AL$136,B$143,FALSE) -> 1140613.974 | E161: =VLOOKUP(Vlookup!$B120,'CDCM Volume Forecasts'!$A$28:$AL$136,E$143,FALSE) -> 95495.2531
A162: LDNO LV: Small Non Domestic Unrestricted | B162: =VLOOKUP(Vlookup!$B121,'CDCM Volume Forecasts'!$A$28:$AL$136,B$143,FALSE) -> 4254.851922 | E162: =VLOOKUP(Vlookup!$B121,'CDCM Volume Forecasts'!$A$28:$AL$136,E$143,FALSE) -> 714.0844724
A163: LDNO HV: Small Non Domestic Unrestricted | B163: =VLOOKUP(Vlookup!$B122,'CDCM Volume Forecasts'!$A$28:$AL$136,B$143,FALSE) -> 11145.92223 | E163: =VLOOKUP(Vlookup!$B122,'CDCM Volume Forecasts'!$A$28:$AL$136,E$143,FALSE) -> 1270.175358
A164: > Small Non Domestic Two Rate
A165: Small Non Domestic Two Rate | B165: =VLOOKUP(Vlookup!$B124,'CDCM Volume Forecasts'!$A$28:$AL$136,B$143,FALSE) -> 1514286.226 | C165: =VLOOKUP(Vlookup!$B124,'CDCM Volume Forecasts'!$A$28:$AL$136,C$143,FALSE) -> 451030.4649 | E165: =VLOOKUP(Vlookup!$B124,'CDCM Volume Forecasts'!$A$28:$AL$136,E$143,FALSE) -> 82427.24468
A166: LDNO LV: Small Non Domestic Two Rate | B166: =VLOOKUP(Vlookup!$B125,'CDCM Volume Forecasts'!$A$28:$AL$136,B$143,FALSE) -> 402.4795805 | C166: =VLOOKUP(Vlookup!$B125,'CDCM Volume Forecasts'!$A$28:$AL$136,C$143,FALSE) -> 80.43862928 | E166: =VLOOKUP(Vlookup!$B125,'CDCM Volume Forecasts'!$A$28:$AL$136,E$143,FALSE) -> 12.90367511
A167: LDNO HV: Small Non Domestic Two Rate | B167: =VLOOKUP(Vlookup!$B126,'CDCM Volume Forecasts'!$A$28:$AL$136,B$143,FALSE) -> 1111.632243 | C167: =VLOOKUP(Vlookup!$B126,'CDCM Volume Forecasts'!$A$28:$AL$136,C$143,FALSE) -> 286.0338415 | E167: =VLOOKUP(Vlookup!$B126,'CDCM Volume Forecasts'!$A$28:$AL$136,E$143,FALSE) -> 47.78805345
A168: > Small Non Domestic Off Peak (related MPAN)
A169: Small Non Domestic Off Peak (related MPAN) | B169: =VLOOKUP(Vlookup!$B128,'CDCM Volume Forecasts'!$A$28:$AL$136,B$143,FALSE) -> 2583.384072 | E169: =VLOOKUP(Vlookup!$B128,'CDCM Volume Forecasts'!$A$28:$AL$136,E$143,FALSE) -> 517
A170: LDNO LV: Small Non Domestic Off Peak (related MPAN) | B170: =VLOOKUP(Vlookup!$B129,'CDCM Volume Forecasts'!$A$28:$AL$136,B$143,FALSE) -> 0 | E170: =VLOOKUP(Vlookup!$B129,'CDCM Volume Forecasts'!$A$28:$AL$136,E$143,FALSE) -> 0
A171: LDNO HV: Small Non Domestic Off Peak (related MPAN) | B171: =VLOOKUP(Vlookup!$B130,'CDCM Volume Forecasts'!$A$28:$AL$136,B$143,FALSE) -> 0 | E171: =VLOOKUP(Vlookup!$B130,'CDCM Volume Forecasts'!$A$28:$AL$136,E$143,FALSE) -> 0
A172: > LV Medium Non-Domestic
A173: LV Medium Non-Domestic | B173: =VLOOKUP(Vlookup!$B132,'CDCM Volume Forecasts'!$A$28:$AL$136,B$143,FALSE) -> 41587.88902 | C173: =VLOOKUP(Vlookup!$B132,'CDCM Volume Forecasts'!$A$28:$AL$136,C$143,FALSE) -> 11522.85719 | E173: =VLOOKUP(Vlookup!$B132,'CDCM Volume Forecasts'!$A$28:$AL$136,E$143,FALSE) -> 1226.513004
A174: LDNO LV: LV Medium Non-Domestic | B174: =VLOOKUP(Vlookup!$B133,'CDCM Volume Forecasts'!$A$28:$AL$136,B$143,FALSE) -> -4.91127139e-14 | C174: =VLOOKUP(Vlookup!$B133,'CDCM Volume Forecasts'!$A$28:$AL$136,C$143,FALSE) -> 5.456968211e-15 | E174: =VLOOKUP(Vlookup!$B133,'CDCM Volume Forecasts'!$A$28:$AL$136,E$143,FALSE) -> 0
A175: LDNO HV: LV Medium Non-Domestic | B175: =VLOOKUP(Vlookup!$B134,'CDCM Volume Forecasts'!$A$28:$AL$136,B$143,FALSE) -> -2.473825589e-13 | C175: =VLOOKUP(Vlookup!$B134,'CDCM Volume Forecasts'!$A$28:$AL$136,C$143,FALSE) -> 1.818989404e-14 | E175: =VLOOKUP(Vlookup!$B134,'CDCM Volume Forecasts'!$A$28:$AL$136,E$143,FALSE) -> 0
A176: > LV Sub Medium Non-Domestic
A177: LV Sub Medium Non-Domestic | B177: =VLOOKUP(Vlookup!$B136,'CDCM Volume Forecasts'!$A$28:$AL$136,B$143,FALSE) -> 0.1430502914 | C177: =VLOOKUP(Vlookup!$B136,'CDCM Volume Forecasts'!$A$28:$AL$136,C$143,FALSE) -> 0.04177103706 | E177: =VLOOKUP(Vlookup!$B136,'CDCM Volume Forecasts'!$A$28:$AL$136,E$143,FALSE) -> 0.003167819672
A178: > HV Medium Non-Domestic
A179: HV Medium Non-Domestic | B179: =VLOOKUP(Vlookup!$B138,'CDCM Volume Forecasts'!$A$28:$AL$136,B$143,FALSE) -> 2605.212072 | C179: =VLOOKUP(Vlookup!$B138,'CDCM Volume Forecasts'!$A$28:$AL$136,C$143,FALSE) -> 788.6054445 | E179: =VLOOKUP(Vlookup!$B138,'CDCM Volume Forecasts'!$A$28:$AL$136,E$143,FALSE) -> 44
A180: > LV Network Domestic
A181: LV Network Domestic | B181: =VLOOKUP(Vlookup!$B140,'CDCM Volume Forecasts'!$A$28:$AL$136,B$143,FALSE) -> 25.91664886 | C181: =VLOOKUP(Vlookup!$B140,'CDCM Volume Forecasts'!$A$28:$AL$136,C$143,FALSE) -> 99.41640677 | D181: =VLOOKUP(Vlookup!$B140,'CDCM Volume Forecasts'!$A$28:$AL$136,D$143,FALSE) -> 122.0854601 | E181: =VLOOKUP(Vlookup!$B140,'CDCM Volume Forecasts'!$A$28:$AL$136,E$143,FALSE) -> 76.11876557
A182: LDNO LV: LV Network Domestic | B182: =VLOOKUP(Vlookup!$B141,'CDCM Volume Forecasts'!$A$28:$AL$136,B$143,FALSE) -> 0 | C182: =VLOOKUP(Vlookup!$B141,'CDCM Volume Forecasts'!$A$28:$AL$136,C$143,FALSE) -> 0 | D182: =VLOOKUP(Vlookup!$B141,'CDCM Volume Forecasts'!$A$28:$AL$136,D$143,FALSE) -> 0 | E182: =VLOOKUP(Vlookup!$B141,'CDCM Volume Forecasts'!$A$28:$AL$136,E$143,FALSE) -> 0
A183: LDNO HV: LV Network Domestic | B183: =VLOOKUP(Vlookup!$B142,'CDCM Volume Forecasts'!$A$28:$AL$136,B$143,FALSE) -> 0 | C183: =VLOOKUP(Vlookup!$B142,'CDCM Volume Forecasts'!$A$28:$AL$136,C$143,FALSE) -> 0 | D183: =VLOOKUP(Vlookup!$B142,'CDCM Volume Forecasts'!$A$28:$AL$136,D$143,FALSE) -> 0 | E183: =VLOOKUP(Vlookup!$B142,'CDCM Volume Forecasts'!$A$28:$AL$136,E$143,FALSE) -> 0
A184: > LV Network Non-Domestic Non-CT
A185: LV Network Non-Domestic Non-CT | B185: =VLOOKUP(Vlookup!$B144,'CDCM Volume Forecasts'!$A$28:$AL$136,B$143,FALSE) -> 18558.48769 | C185: =VLOOKUP(Vlookup!$B144,'CDCM Volume Forecasts'!$A$28:$AL$136,C$143,FALSE) -> 73567.92673 | D185: =VLOOKUP(Vlookup!$B144,'CDCM Volume Forecasts'!$A$28:$AL$136,D$143,FALSE) -> 78280.3327 | E185: =VLOOKUP(Vlookup!$B144,'CDCM Volume Forecasts'!$A$28:$AL$136,E$143,FALSE) -> 2509.103459
A186: LDNO LV: LV Network Non-Domestic Non-CT | B186: =VLOOKUP(Vlookup!$B145,'CDCM Volume Forecasts'!$A$28:$AL$136,B$143,FALSE) -> 19.24968808 | C186: =VLOOKUP(Vlookup!$B145,'CDCM Volume Forecasts'!$A$28:$AL$136,C$143,FALSE) -> 72.68858731 | D186: =VLOOKUP(Vlookup!$B145,'CDCM Volume Forecasts'!$A$28:$AL$136,D$143,FALSE) -> 120.4985183 | E186: =VLOOKUP(Vlookup!$B145,'CDCM Volume Forecasts'!$A$28:$AL$136,E$143,FALSE) -> 4.718437313
A187: LDNO HV: LV Network Non-Domestic Non-CT | B187: =VLOOKUP(Vlookup!$B146,'CDCM Volume Forecasts'!$A$28:$AL$136,B$143,FALSE) -> 104.2423559 | C187: =VLOOKUP(Vlookup!$B146,'CDCM Volume Forecasts'!$A$28:$AL$136,C$143,FALSE) -> 362.6834743 | D187: =VLOOKUP(Vlookup!$B146,'CDCM Volume Forecasts'!$A$28:$AL$136,D$143,FALSE) -> 416.1208825 | E187: =VLOOKUP(Vlookup!$B146,'CDCM Volume Forecasts'!$A$28:$AL$136,E$143,FALSE) -> 19.84182935
A188: > LV HH Metered
A189: LV HH Metered | B189: =VLOOKUP(Vlookup!$B148,'CDCM Volume Forecasts'!$A$28:$AL$136,B$143,FALSE) -> 377835.6813 | C189: =VLOOKUP(Vlookup!$B148,'CDCM Volume Forecasts'!$A$28:$AL$136,C$143,FALSE) -> 1505767.623 | D189: =VLOOKUP(Vlookup!$B148,'CDCM Volume Forecasts'!$A$28:$AL$136,D$143,FALSE) -> 1615847.006 | E189: =VLOOKUP(Vlookup!$B148,'CDCM Volume Forecasts'!$A$28:$AL$136,E$143,FALSE) -> 15832.33207 | F189: =VLOOKUP(Vlookup!$B148,'CDCM Volume Forecasts'!$A$28:$AL$136,F$143,FALSE) -> 1960000 | G189: =VLOOKUP(Vlookup!$B148,'CDCM Volume Forecasts'!$A$28:$AL$136,G$143,FALSE) -> 42265.31704 | H189: =VLOOKUP(Vlookup!$B148,'CDCM Volume Forecasts'!$A$28:$AL$136,H$143,FALSE) -> 367491.3783
A190: LDNO LV: LV HH Metered | B190: =VLOOKUP(Vlookup!$B149,'CDCM Volume Forecasts'!$A$28:$AL$136,B$143,FALSE) -> 1412.870559 | C190: =VLOOKUP(Vlookup!$B149,'CDCM Volume Forecasts'!$A$28:$AL$136,C$143,FALSE) -> 4888.839063 | D190: =VLOOKUP(Vlookup!$B149,'CDCM Volume Forecasts'!$A$28:$AL$136,D$143,FALSE) -> 6114.885476 | E190: =VLOOKUP(Vlookup!$B149,'CDCM Volume Forecasts'!$A$28:$AL$136,E$143,FALSE) -> 61.22986971 | F190: =VLOOKUP(Vlookup!$B149,'CDCM Volume Forecasts'!$A$28:$AL$136,F$143,FALSE) -> 10476.91862 | G190: =VLOOKUP(Vlookup!$B149,'CDCM Volume Forecasts'!$A$28:$AL$136,G$143,FALSE) -> 12.98705717 | H190: =VLOOKUP(Vlookup!$B149,'CDCM Volume Forecasts'!$A$28:$AL$136,H$143,FALSE) -> 1333.714793
A191: LDNO HV: LV HH Metered | B191: =VLOOKUP(Vlookup!$B150,'CDCM Volume Forecasts'!$A$28:$AL$136,B$143,FALSE) -> 15040.23512 | C191: =VLOOKUP(Vlookup!$B150,'CDCM Volume Forecasts'!$A$28:$AL$136,C$143,FALSE) -> 54927.68561 | D191: =VLOOKUP(Vlookup!$B150,'CDCM Volume Forecasts'!$A$28:$AL$136,D$143,FALSE) -> 65960.83678 | E191: =VLOOKUP(Vlookup!$B150,'CDCM Volume Forecasts'!$A$28:$AL$136,E$143,FALSE) -> 382.6216986 | F191: =VLOOKUP(Vlookup!$B150,'CDCM Volume Forecasts'!$A$28:$AL$136,F$143,FALSE) -> 108669.6156 | G191: =VLOOKUP(Vlookup!$B150,'CDCM Volume Forecasts'!$A$28:$AL$136,G$143,FALSE) -> 446.261544 | H191: =VLOOKUP(Vlookup!$B150,'CDCM Volume Forecasts'!$A$28:$AL$136,H$143,FALSE) -> 11418.40144
A192: > LV Sub HH Metered
A193: LV Sub HH Metered | B193: =VLOOKUP(Vlookup!$B152,'CDCM Volume Forecasts'!$A$28:$AL$136,B$143,FALSE) -> 23555.93971 | C193: =VLOOKUP(Vlookup!$B152,'CDCM Volume Forecasts'!$A$28:$AL$136,C$143,FALSE) -> 90295.11947 | D193: =VLOOKUP(Vlookup!$B152,'CDCM Volume Forecasts'!$A$28:$AL$136,D$143,FALSE) -> 105307.3853 | E193: =VLOOKUP(Vlookup!$B152,'CDCM Volume Forecasts'!$A$28:$AL$136,E$143,FALSE) -> 342.8466956 | F193: =VLOOKUP(Vlookup!$B152,'CDCM Volume Forecasts'!$A$28:$AL$136,F$143,FALSE) -> 138821.8672 | G193: =VLOOKUP(Vlookup!$B152,'CDCM Volume Forecasts'!$A$28:$AL$136,G$143,FALSE) -> 1785.101098 | H193: =VLOOKUP(Vlookup!$B152,'CDCM Volume Forecasts'!$A$28:$AL$136,H$143,FALSE) -> 18220.1968
A194: LDNO HV: LV Sub HH Metered | B194: =VLOOKUP(Vlookup!$B153,'CDCM Volume Forecasts'!$A$28:$AL$136,B$143,FALSE) -> 890.7228729 | C194: =VLOOKUP(Vlookup!$B153,'CDCM Volume Forecasts'!$A$28:$AL$136,C$143,FALSE) -> 3077.583554 | D194: =VLOOKUP(Vlookup!$B153,'CDCM Volume Forecasts'!$A$28:$AL$136,D$143,FALSE) -> 5287.780212 | E194: =VLOOKUP(Vlookup!$B153,'CDCM Volume Forecasts'!$A$28:$AL$136,E$143,FALSE) -> 4.895893637 | F194: =VLOOKUP(Vlookup!$B153,'CDCM Volume Forecasts'!$A$28:$AL$136,F$143,FALSE) -> 3426.922262 | G194: =VLOOKUP(Vlookup!$B153,'CDCM Volume Forecasts'!$A$28:$AL$136,G$143,FALSE) -> 46.89237776 | H194: =VLOOKUP(Vlookup!$B153,'CDCM Volume Forecasts'!$A$28:$AL$136,H$143,FALSE) -> 903.927504
A195: > HV HH Metered
A196: HV HH Metered | B196: =VLOOKUP(Vlookup!$B155,'CDCM Volume Forecasts'!$A$28:$AL$136,B$143,FALSE) -> 738923.1968 | C196: =VLOOKUP(Vlookup!$B155,'CDCM Volume Forecasts'!$A$28:$AL$136,C$143,FALSE) -> 2849711.721 | D196: =VLOOKUP(Vlookup!$B155,'CDCM Volume Forecasts'!$A$28:$AL$136,D$143,FALSE) -> 4000945.162 | E196: =VLOOKUP(Vlookup!$B155,'CDCM Volume Forecasts'!$A$28:$AL$136,E$143,FALSE) -> 3524.919235 | F196: =VLOOKUP(Vlookup!$B155,'CDCM Volume Forecasts'!$A$28:$AL$136,F$143,FALSE) -> 2788259.538 | G196: =VLOOKUP(Vlookup!$B155,'CDCM Volume Forecasts'!$A$28:$AL$136,G$143,FALSE) -> 58664.74725 | H196: =VLOOKUP(Vlookup!$B155,'CDCM Volume Forecasts'!$A$28:$AL$136,H$143,FALSE) -> 557819.6963
A197: LDNO HV: HV HH Metered | B197: =VLOOKUP(Vlookup!$B156,'CDCM Volume Forecasts'!$A$28:$AL$136,B$143,FALSE) -> 7258.323342 | C197: =VLOOKUP(Vlookup!$B156,'CDCM Volume Forecasts'!$A$28:$AL$136,C$143,FALSE) -> 23980.29605 | D197: =VLOOKUP(Vlookup!$B156,'CDCM Volume Forecasts'!$A$28:$AL$136,D$143,FALSE) -> 38623.66453 | E197: =VLOOKUP(Vlookup!$B156,'CDCM Volume Forecasts'!$A$28:$AL$136,E$143,FALSE) -> 38.40859545 | F197: =VLOOKUP(Vlookup!$B156,'CDCM Volume Forecasts'!$A$28:$AL$136,F$143,FALSE) -> 48748.2535 | G197: =VLOOKUP(Vlookup!$B156,'CDCM Volume Forecasts'!$A$28:$AL$136,G$143,FALSE) -> 199.083295 | H197: =VLOOKUP(Vlookup!$B156,'CDCM Volume Forecasts'!$A$28:$AL$136,H$143,FALSE) -> 2217.464865
A198: > NHH UMS category A
A199: NHH UMS category A | B199: =VLOOKUP(Vlookup!$B158,'CDCM Volume Forecasts'!$A$28:$AL$136,B$143,FALSE) -> 34134.8937 | E199: =VLOOKUP(Vlookup!$B158,'CDCM Volume Forecasts'!$A$28:$AL$136,E$143,FALSE) -> 1567
A200: LDNO LV: NHH UMS category A | B200: =VLOOKUP(Vlookup!$B159,'CDCM Volume Forecasts'!$A$28:$AL$136,B$143,FALSE) -> 275.22148 | E200: =VLOOKUP(Vlookup!$B159,'CDCM Volume Forecasts'!$A$28:$AL$136,E$143,FALSE) -> 0
A201: LDNO HV: NHH UMS category A | B201: =VLOOKUP(Vlookup!$B160,'CDCM Volume Forecasts'!$A$28:$AL$136,B$143,FALSE) -> 531.7577591 | E201: =VLOOKUP(Vlookup!$B160,'CDCM Volume Forecasts'!$A$28:$AL$136,E$143,FALSE) -> 0
A202: > NHH UMS category B
A203: NHH UMS category B | B203: =VLOOKUP(Vlookup!$B162,'CDCM Volume Forecasts'!$A$28:$AL$136,B$143,FALSE) -> 22466.14998 | E203: =VLOOKUP(Vlookup!$B162,'CDCM Volume Forecasts'!$A$28:$AL$136,E$143,FALSE) -> 1279
A204: LDNO LV: NHH UMS category B | B204: =VLOOKUP(Vlookup!$B163,'CDCM Volume Forecasts'!$A$28:$AL$136,B$143,FALSE) -> 319.4011436 | E204: =VLOOKUP(Vlookup!$B163,'CDCM Volume Forecasts'!$A$28:$AL$136,E$143,FALSE) -> 0
A205: LDNO HV: NHH UMS category B | B205: =VLOOKUP(Vlookup!$B164,'CDCM Volume Forecasts'!$A$28:$AL$136,B$143,FALSE) -> 613.6304424 | E205: =VLOOKUP(Vlookup!$B164,'CDCM Volume Forecasts'!$A$28:$AL$136,E$143,FALSE) -> 0
A206: > NHH UMS category C
A207: NHH UMS category C | B207: =VLOOKUP(Vlookup!$B166,'CDCM Volume Forecasts'!$A$28:$AL$136,B$143,FALSE) -> 339.1014082 | E207: =VLOOKUP(Vlookup!$B166,'CDCM Volume Forecasts'!$A$28:$AL$136,E$143,FALSE) -> 194
A208: LDNO LV: NHH UMS category C | B208: =VLOOKUP(Vlookup!$B167,'CDCM Volume Forecasts'!$A$28:$AL$136,B$143,FALSE) -> 0 | E208: =VLOOKUP(Vlookup!$B167,'CDCM Volume Forecasts'!$A$28:$AL$136,E$143,FALSE) -> 0
A209: LDNO HV: NHH UMS category C | B209: =VLOOKUP(Vlookup!$B168,'CDCM Volume Forecasts'!$A$28:$AL$136,B$143,FALSE) -> 0 | E209: =VLOOKUP(Vlookup!$B168,'CDCM Volume Forecasts'!$A$28:$AL$136,E$143,FALSE) -> 0
A210: > NHH UMS category D
A211: NHH UMS category D | B211: =VLOOKUP(Vlookup!$B170,'CDCM Volume Forecasts'!$A$28:$AL$136,B$143,FALSE) -> 7208.556085 | E211: =VLOOKUP(Vlookup!$B170,'CDCM Volume Forecasts'!$A$28:$AL$136,E$143,FALSE) -> 247
A212: LDNO LV: NHH UMS category D | B212: =VLOOKUP(Vlookup!$B171,'CDCM Volume Forecasts'!$A$28:$AL$136,B$143,FALSE) -> 0 | E212: =VLOOKUP(Vlookup!$B171,'CDCM Volume Forecasts'!$A$28:$AL$136,E$143,FALSE) -> 0
A213: LDNO HV: NHH UMS category D | B213: =VLOOKUP(Vlookup!$B172,'CDCM Volume Forecasts'!$A$28:$AL$136,B$143,FALSE) -> 0 | E213: =VLOOKUP(Vlookup!$B172,'CDCM Volume Forecasts'!$A$28:$AL$136,E$143,FALSE) -> 0
A214: > LV UMS (Pseudo HH Metered)
A215: LV UMS (Pseudo HH Metered) | B215: =VLOOKUP(Vlookup!$B174,'CDCM Volume Forecasts'!$A$28:$AL$136,B$143,FALSE) -> 12092.42647 | C215: =VLOOKUP(Vlookup!$B174,'CDCM Volume Forecasts'!$A$28:$AL$136,C$143,FALSE) -> 33947.07157 | D215: =VLOOKUP(Vlookup!$B174,'CDCM Volume Forecasts'!$A$28:$AL$136,D$143,FALSE) -> 185619.8076 | E215: =VLOOKUP(Vlookup!$B174,'CDCM Volume Forecasts'!$A$28:$AL$136,E$143,FALSE) -> 26.81967213
A216: LDNO LV: LV UMS (Pseudo HH Metered) | B216: =VLOOKUP(Vlookup!$B175,'CDCM Volume Forecasts'!$A$28:$AL$136,B$143,FALSE) -> 0 | C216: =VLOOKUP(Vlookup!$B175,'CDCM Volume Forecasts'!$A$28:$AL$136,C$143,FALSE) -> 0 | D216: =VLOOKUP(Vlookup!$B175,'CDCM Volume Forecasts'!$A$28:$AL$136,D$143,FALSE) -> 0 | E216: =VLOOKUP(Vlookup!$B175,'CDCM Volume Forecasts'!$A$28:$AL$136,E$143,FALSE) -> 0
A217: LDNO HV: LV UMS (Pseudo HH Metered) | B217: =VLOOKUP(Vlookup!$B176,'CDCM Volume Forecasts'!$A$28:$AL$136,B$143,FALSE) -> 0 | C217: =VLOOKUP(Vlookup!$B176,'CDCM Volume Forecasts'!$A$28:$AL$136,C$143,FALSE) -> 0 | D217: =VLOOKUP(Vlookup!$B176,'CDCM Volume Forecasts'!$A$28:$AL$136,D$143,FALSE) -> 0 | E217: =VLOOKUP(Vlookup!$B176,'CDCM Volume Forecasts'!$A$28:$AL$136,E$143,FALSE) -> 0
A218: > LV Generation NHH or Aggregate HH
A219: LV Generation NHH or Aggregate HH | B219: =VLOOKUP(Vlookup!$B178,'CDCM Volume Forecasts'!$A$28:$AL$136,B$143,FALSE) -> 10233.95383 | E219: =VLOOKUP(Vlookup!$B178,'CDCM Volume Forecasts'!$A$28:$AL$136,E$143,FALSE) -> 136
A220: LDNO LV: LV Generation NHH or Aggregate HH | B220: =VLOOKUP(Vlookup!$B179,'CDCM Volume Forecasts'!$A$28:$AL$136,B$143,FALSE) -> 27.78537836 | E220: =VLOOKUP(Vlookup!$B179,'CDCM Volume Forecasts'!$A$28:$AL$136,E$143,FALSE) -> 0
A221: LDNO HV: LV Generation NHH or Aggregate HH | B221: =VLOOKUP(Vlookup!$B180,'CDCM Volume Forecasts'!$A$28:$AL$136,B$143,FALSE) -> 0 | E221: =VLOOKUP(Vlookup!$B180,'CDCM Volume Forecasts'!$A$28:$AL$136,E$143,FALSE) -> 0
A222: > LV Sub Generation NHH
A223: LV Sub Generation NHH | B223: =VLOOKUP(Vlookup!$B182,'CDCM Volume Forecasts'!$A$28:$AL$136,B$143,FALSE) -> 0 | E223: =VLOOKUP(Vlookup!$B182,'CDCM Volume Forecasts'!$A$28:$AL$136,E$143,FALSE) -> 0
A224: LDNO HV: LV Sub Generation NHH | B224: =VLOOKUP(Vlookup!$B183,'CDCM Volume Forecasts'!$A$28:$AL$136,B$143,FALSE) -> 0 | E224: =VLOOKUP(Vlookup!$B183,'CDCM Volume Forecasts'!$A$28:$AL$136,E$143,FALSE) -> 0
A225: > LV Generation Intermittent
A226: LV Generation Intermittent | B226: =VLOOKUP(Vlookup!$B185,'CDCM Volume Forecasts'!$A$28:$AL$136,B$143,FALSE) -> 39541.45547 | E226: =VLOOKUP(Vlookup!$B185,'CDCM Volume Forecasts'!$A$28:$AL$136,E$143,FALSE) -> 697.5741639 | H226: =VLOOKUP(Vlookup!$B185,'CDCM Volume Forecasts'!$A$28:$AL$136,H$143,FALSE) -> 4219.38069
A227: LDNO LV: LV Generation Intermittent | B227: =VLOOKUP(Vlookup!$B186,'CDCM Volume Forecasts'!$A$28:$AL$136,B$143,FALSE) -> 0 | E227: =VLOOKUP(Vlookup!$B186,'CDCM Volume Forecasts'!$A$28:$AL$136,E$143,FALSE) -> 0 | H227: =VLOOKUP(Vlookup!$B186,'CDCM Volume Forecasts'!$A$28:$AL$136,H$143,FALSE) -> 0
A228: LDNO HV: LV Generation Intermittent | B228: =VLOOKUP(Vlookup!$B187,'CDCM Volume Forecasts'!$A$28:$AL$136,B$143,FALSE) -> 72.66896608 | E228: =VLOOKUP(Vlookup!$B187,'CDCM Volume Forecasts'!$A$28:$AL$136,E$143,FALSE) -> 4.420147541 | H228: =VLOOKUP(Vlookup!$B187,'CDCM Volume Forecasts'!$A$28:$AL$136,H$143,FALSE) -> 40.59606129
... 99 more rows

Sheet (Y+2)
A1: Input data (Y+2)
A4: 1000. Company, charging year, data version
B6: Company | C6: Year | D6: Version
A7: Company, charging year, data version | B7: =VLOOKUP(Vlookup!B7,'CDCM Forecast Data'!$A$14:$I$271,7,FALSE) -> WPD East Midlands | C7: =VLOOKUP(Vlookup!C7,'CDCM Forecast Data'!$A$14:$I$271,7,FALSE) -> 2021/22 | D7: =VLOOKUP(Vlookup!D7,'CDCM Forecast Data'!$A$14:$I$271,7,FALSE) -> Forecast
A9: 1010. Financial and general assumptions
A11: Sources: financial assumptions; calendar; network model.
A12: These financial assumptions determine the annuity rate applied to convert the asset values of the network model into an annual charge.
B13: Rate of return | C13: Annualisation period (years) | D13: Annuity proportion for customer-contributed assets | E13: Power factor | F13: Days in the charging period
A14: Financial and general assumptions | B14: =VLOOKUP(Vlookup!B14,'CDCM Forecast Data'!$A$14:$I$271,7,FALSE) -> 0.0421 | C14: =VLOOKUP(Vlookup!C14,'CDCM Forecast Data'!$A$14:$I$271,7,FALSE) -> 40 | E14: =VLOOKUP(Vlookup!E14,'CDCM Forecast Data'!$A$14:$I$271,7,FALSE) -> 0.95 | F14: =VLOOKUP(Vlookup!F14,'CDCM Forecast Data'!$A$14:$I$271,7,FALSE) -> 365
A16: 1017. Diversity allowance between top and bottom of network level
A18: Source: operational data analysis and/or network model.
A19: The diversity figure against GSP is the diversity between GSP Group (the whole system) and individual GSPs.
A20: The diversity figure against 132kV is the diversity between GSPs (the top of the 132kV network) and 132kV/EHV bulk supply points (the bottom of the 132kV network).
A21: The diversity figure against EHV is the diversity between 132kV/EHV bulk supply points (the top of the EHV network) and EHV/HV primary substations (the bottom of the EHV network).
A22: The diversity figure against HV is the diversity between EHV/HV primary substations (the top of the HV network) and HV/LV substations (the bottom of the HV network).
B23: Diversity allowance between top and bottom of network level
A24: GSPs | B24: =VLOOKUP(Vlookup!B24,'CDCM Forecast Data'!$A$14:$I$271,7,FALSE) -> 0.02471374244
A25: 132kV | B25: =VLOOKUP(Vlookup!B25,'CDCM Forecast Data'!$A$14:$I$271,7,FALSE) -> 0.04501347824
A26: 132kV/EHV
A27: EHV | B27: =VLOOKUP(Vlookup!B27,'CDCM Forecast Data'!$A$14:$I$271,7,FALSE) -> 0.07901764269
A28: EHV/HV
A29: HV | B29: =VLOOKUP(Vlookup!B29,'CDCM Forecast Data'!$A$14:$I$271,7,FALSE) -> 0.34
A30: HV/LV
A31: LV circuits
A33: 1018. Proportion of relevant load going through 132kV/HV direct transformation
B35: 132kV/HV
A36: EHV/HV | B36: =VLOOKUP(Vlookup!B36,'CDCM Forecast Data'!$A$14:$I$271,7,FALSE) -> 0.07504434271
A38: 1019. Network model GSP peak demand (MW)
B40: Network model GSP peak demand (MW)
A41: Network model GSP peak demand (MW) | B41: =VLOOKUP(Vlookup!B41,'CDCM Forecast Data'!$A$14:$I$271,7,FALSE) -> 500
A43: 1020. Gross asset cost by network level (£)
B45: Gross assets £
A46: 132kV | B46: =VLOOKUP(Vlookup!B46,'CDCM Forecast Data'!$A$14:$I$271,7,FALSE) -> 60109821.29
A47: 132kV/EHV | B47: =VLOOKUP(Vlookup!B47,'CDCM Forecast Data'!$A$14:$I$271,7,FALSE) -> 30546437.31
A48: EHV | B48: =VLOOKUP(Vlookup!B48,'CDCM Forecast Data'!$A$14:$I$271,7,FALSE) -> 37338273.48
A49: EHV/HV | B49: =VLOOKUP(Vlookup!B49,'CDCM Forecast Data'!$A$14:$I$271,7,FALSE) -> 60614666.91
A50: 132kV/HV | B50: =VLOOKUP(Vlookup!B50,'CDCM Forecast Data'!$A$14:$I$271,7,FALSE) -> 5083800.373
A51: HV | B51: =VLOOKUP(Vlookup!B51,'CDCM Forecast Data'!$A$14:$I$271,7,FALSE) -> 143822347.3
A52: HV/LV | B52: =VLOOKUP(Vlookup!B52,'CDCM Forecast Data'!$A$14:$I$271,7,FALSE) -> 65010248.38
A53: LV circuits | B53: =VLOOKUP(Vlookup!B53,'CDCM Forecast Data'!$A$14:$I$271,7,FALSE) -> 126517747.1
A55: 1022. LV service model asset cost (£)
B57: LV service model 1 | C57: LV service model 2 | D57: LV service model 3 | E57: LV service model 4 | F57: LV service model 5 | G57: LV service model 6 | H57: LV service model 7 | I57: LV service model 8
A58: LV service model asset cost (£) | B58: =VLOOKUP(Vlookup!B58,'CDCM Forecast Data'!$A$14:$I$271,7,FALSE) -> 4634.215383 | C58: =VLOOKUP(Vlookup!C58,'CDCM Forecast Data'!$A$14:$I$271,7,FALSE) -> 706.5471709 | D58: =VLOOKUP(Vlookup!D58,'CDCM Forecast Data'!$A$14:$I$271,7,FALSE) -> 817.1802696 | E58: =VLOOKUP(Vlookup!E58,'CDCM Forecast Data'!$A$14:$I$271,7,FALSE) -> 593.0476017 | F58: =VLOOKUP(Vlookup!F58,'CDCM Forecast Data'!$A$14:$I$271,7,FALSE) -> 1308.392399 | G58: =VLOOKUP(Vlookup!G58,'CDCM Forecast Data'!$A$14:$I$271,7,FALSE) -> 1021.385583 | H58: =VLOOKUP(Vlookup!H58,'CDCM Forecast Data'!$A$14:$I$271,7,FALSE) -> 0 | I58: =VLOOKUP(Vlookup!I58,'CDCM Forecast Data'!$A$14:$I$271,7,FALSE) -> 559.012753
A60: 1023. HV service model asset cost (£)
B62: HV service model 1 | C62: HV service model 2 | D62: HV service model 3 | E62: HV service model 4 | F62: HV service model 5
A63: HV service model asset cost (£) | B63: =VLOOKUP(Vlookup!B63,'CDCM Forecast Data'!$A$14:$I$271,7,FALSE) -> 11030.69219 | C63: =VLOOKUP(Vlookup!C63,'CDCM Forecast Data'!$A$14:$I$271,7,FALSE) -> 4534.956522 | D63: =VLOOKUP(Vlookup!D63,'CDCM Forecast Data'!$A$14:$I$271,7,FALSE) -> 0 | E63: =VLOOKUP(Vlookup!E63,'CDCM Forecast Data'!$A$14:$I$271,7,FALSE) -> 0 | F63: =VLOOKUP(Vlookup!F63,'CDCM Forecast Data'!$A$14:$I$271,7,FALSE) -> 0
A65: 1025. Matrix of applicability of LV service models to tariffs with fixed charges
B66: 18 | C66: =B66+1 -> 19 | D66: 20 | E66: 21 | F66: 22 | G66: 23 | H66: 24 | I66: 25
B67: LV service model 1 | C67: LV service model 2 | D67: LV service model 3 | E67: LV service model 4 | F67: LV service model 5 | G67: LV service model 6 | H67: LV service model 7 | I67: LV service model 8
A68: Domestic Unrestricted | B68: =VLOOKUP($A68,'Mat of App'!$B$7:$AP$43,B$66,FALSE) -> 0.05 | C68: =VLOOKUP($A68,'Mat of App'!$B$7:$AP$43,C$66,FALSE) -> 0 | D68: =VLOOKUP($A68,'Mat of App'!$B$7:$AP$43,D$66,FALSE) -> 0 | E68: =VLOOKUP($A68,'Mat of App'!$B$7:$AP$43,E$66,FALSE) -> 0 | F68: =VLOOKUP($A68,'Mat of App'!$B$7:$AP$43,F$66,FALSE) -> 0 | G68: =VLOOKUP($A68,'Mat of App'!$B$7:$AP$43,G$66,FALSE) -> 0 | H68: =VLOOKUP($A68,'Mat of App'!$B$7:$AP$43,H$66,FALSE) -> 0 | I68: =VLOOKUP($A68,'Mat of App'!$B$7:$AP$43,I$66,FALSE) -> 0
A69: Domestic Two Rate | B69: =VLOOKUP($A69,'Mat of App'!$B$7:$AP$43,B$66,FALSE) -> 0.05 | C69: =VLOOKUP($A69,'Mat of App'!$B$7:$AP$43,C$66,FALSE) -> 0 | D69: =VLOOKUP($A69,'Mat of App'!$B$7:$AP$43,D$66,FALSE) -> 0 | E69: =VLOOKUP($A69,'Mat of App'!$B$7:$AP$43,E$66,FALSE) -> 0 | F69: =VLOOKUP($A69,'Mat of App'!$B$7:$AP$43,F$66,FALSE) -> 0 | G69: =VLOOKUP($A69,'Mat of App'!$B$7:$AP$43,G$66,FALSE) -> 0 | H69: =VLOOKUP($A69,'Mat of App'!$B$7:$AP$43,H$66,FALSE) -> 0 | I69: =VLOOKUP($A69,'Mat of App'!$B$7:$AP$43,I$66,FALSE) -> 0
A70: Small Non Domestic Unrestricted | B70: =VLOOKUP($A70,'Mat of App'!$B$7:$AP$43,B$66,FALSE) -> 0 | C70: =VLOOKUP($A70,'Mat of App'!$B$7:$AP$43,C$66,FALSE) -> 1 | D70: =VLOOKUP($A70,'Mat of App'!$B$7:$AP$43,D$66,FALSE) -> 0 | E70: =VLOOKUP($A70,'Mat of App'!$B$7:$AP$43,E$66,FALSE) -> 0 | F70: =VLOOKUP($A70,'Mat of App'!$B$7:$AP$43,F$66,FALSE) -> 0 | G70: =VLOOKUP($A70,'Mat of App'!$B$7:$AP$43,G$66,FALSE) -> 0 | H70: =VLOOKUP($A70,'Mat of App'!$B$7:$AP$43,H$66,FALSE) -> 0 | I70: =VLOOKUP($A70,'Mat of App'!$B$7:$AP$43,I$66,FALSE) -> 0
A71: Small Non Domestic Two Rate | B71: =VLOOKUP($A71,'Mat of App'!$B$7:$AP$43,B$66,FALSE) -> 0 | C71: =VLOOKUP($A71,'Mat of App'!$B$7:$AP$43,C$66,FALSE) -> 1 | D71: =VLOOKUP($A71,'Mat of App'!$B$7:$AP$43,D$66,FALSE) -> 0 | E71: =VLOOKUP($A71,'Mat of App'!$B$7:$AP$43,E$66,FALSE) -> 0 | F71: =VLOOKUP($A71,'Mat of App'!$B$7:$AP$43,F$66,FALSE) -> 0 | G71: =VLOOKUP($A71,'Mat of App'!$B$7:$AP$43,G$66,FALSE) -> 0 | H71: =VLOOKUP($A71,'Mat of App'!$B$7:$AP$43,H$66,FALSE) -> 0 | I71: =VLOOKUP($A71,'Mat of App'!$B$7:$AP$43,I$66,FALSE) -> 0
A72: LV Medium Non-Domestic | B72: =VLOOKUP($A72,'Mat of App'!$B$7:$AP$43,B$66,FALSE) -> 0 | C72: =VLOOKUP($A72,'Mat of App'!$B$7:$AP$43,C$66,FALSE) -> 0 | D72: =VLOOKUP($A72,'Mat of App'!$B$7:$AP$43,D$66,FALSE) -> 1 | E72: =VLOOKUP($A72,'Mat of App'!$B$7:$AP$43,E$66,FALSE) -> 0 | F72: =VLOOKUP($A72,'Mat of App'!$B$7:$AP$43,F$66,FALSE) -> 0 | G72: =VLOOKUP($A72,'Mat of App'!$B$7:$AP$43,G$66,FALSE) -> 0 | H72: =VLOOKUP($A72,'Mat of App'!$B$7:$AP$43,H$66,FALSE) -> 0 | I72: =VLOOKUP($A72,'Mat of App'!$B$7:$AP$43,I$66,FALSE) -> 0
A73: LV Sub Medium Non-Domestic | B73: =VLOOKUP($A73,'Mat of App'!$B$7:$AP$43,B$66,FALSE) -> 0 | C73: =VLOOKUP($A73,'Mat of App'!$B$7:$AP$43,C$66,FALSE) -> 0 | D73: =VLOOKUP($A73,'Mat of App'!$B$7:$AP$43,D$66,FALSE) -> 0 | E73: =VLOOKUP($A73,'Mat of App'!$B$7:$AP$43,E$66,FALSE) -> 1 | F73: =VLOOKUP($A73,'Mat of App'!$B$7:$AP$43,F$66,FALSE) -> 0 | G73: =VLOOKUP($A73,'Mat of App'!$B$7:$AP$43,G$66,FALSE) -> 0 | H73: =VLOOKUP($A73,'Mat of App'!$B$7:$AP$43,H$66,FALSE) -> 0 | I73: =VLOOKUP($A73,'Mat of App'!$B$7:$AP$43,I$66,FALSE) -> 0
A74: LV Network Domestic | B74: =VLOOKUP($A74,'Mat of App'!$B$7:$AP$43,B$66,FALSE) -> 0.05 | C74: =VLOOKUP($A74,'Mat of App'!$B$7:$AP$43,C$66,FALSE) -> 0 | D74: =VLOOKUP($A74,'Mat of App'!$B$7:$AP$43,D$66,FALSE) -> 0 | E74: =VLOOKUP($A74,'Mat of App'!$B$7:$AP$43,E$66,FALSE) -> 0 | F74: =VLOOKUP($A74,'Mat of App'!$B$7:$AP$43,F$66,FALSE) -> 0 | G74: =VLOOKUP($A74,'Mat of App'!$B$7:$AP$43,G$66,FALSE) -> 0 | H74: =VLOOKUP($A74,'Mat of App'!$B$7:$AP$43,H$66,FALSE) -> 0 | I74: =VLOOKUP($A74,'Mat of App'!$B$7:$AP$43,I$66,FALSE) -> 0
A75: LV Network Non-Domestic Non-CT | B75: =VLOOKUP($A75,'Mat of App'!$B$7:$AP$43,B$66,FALSE) -> 0 | C75: =VLOOKUP($A75,'Mat of App'!$B$7:$AP$43,C$66,FALSE) -> 1 | D75: =VLOOKUP($A75,'Mat of App'!$B$7:$AP$43,D$66,FALSE) -> 0 | E75: =VLOOKUP($A75,'Mat of App'!$B$7:$AP$43,E$66,FALSE) -> 0 | F75: =VLOOKUP($A75,'Mat of App'!$B$7:$AP$43,F$66,FALSE) -> 0 | G75: =VLOOKUP($A75,'Mat of App'!$B$7:$AP$43,G$66,FALSE) -> 0 | H75: =VLOOKUP($A75,'Mat of App'!$B$7:$AP$43,H$66,FALSE) -> 0 | I75: =VLOOKUP($A75,'Mat of App'!$B$7:$AP$43,I$66,FALSE) -> 0
A76: LV HH Metered | B76: =VLOOKUP($A76,'Mat of App'!$B$7:$AP$43,B$66,FALSE) -> 0 | C76: =VLOOKUP($A76,'Mat of App'!$B$7:$AP$43,C$66,FALSE) -> 0 | D76: =VLOOKUP($A76,'Mat of App'!$B$7:$AP$43,D$66,FALSE) -> 0 | E76: =VLOOKUP($A76,'Mat of App'!$B$7:$AP$43,E$66,FALSE) -> 0 | F76: =VLOOKUP($A76,'Mat of App'!$B$7:$AP$43,F$66,FALSE) -> 1 | G76: =VLOOKUP($A76,'Mat of App'!$B$7:$AP$43,G$66,FALSE) -> 0 | H76: =VLOOKUP($A76,'Mat of App'!$B$7:$AP$43,H$66,FALSE) -> 0 | I76: =VLOOKUP($A76,'Mat of App'!$B$7:$AP$43,I$66,FALSE) -> 0
A77: LV Sub HH Metered | B77: =VLOOKUP($A77,'Mat of App'!$B$7:$AP$43,B$66,FALSE) -> 0 | C77: =VLOOKUP($A77,'Mat of App'!$B$7:$AP$43,C$66,FALSE) -> 0 | D77: =VLOOKUP($A77,'Mat of App'!$B$7:$AP$43,D$66,FALSE) -> 0 | E77: =VLOOKUP($A77,'Mat of App'!$B$7:$AP$43,E$66,FALSE) -> 0 | F77: =VLOOKUP($A77,'Mat of App'!$B$7:$AP$43,F$66,FALSE) -> 0 | G77: =VLOOKUP($A77,'Mat of App'!$B$7:$AP$43,G$66,FALSE) -> 1 | H77: =VLOOKUP($A77,'Mat of App'!$B$7:$AP$43,H$66,FALSE) -> 0 | I77: =VLOOKUP($A77,'Mat of App'!$B$7:$AP$43,I$66,FALSE) -> 0
A78: LV Generation NHH or Aggregate HH | B78: =VLOOKUP($A78,'Mat of App'!$B$7:$AP$43,B$66,FALSE) -> 0 | C78: =VLOOKUP($A78,'Mat of App'!$B$7:$AP$43,C$66,FALSE) -> 0 | D78: =VLOOKUP($A78,'Mat of App'!$B$7:$AP$43,D$66,FALSE) -> 0 | E78: =VLOOKUP($A78,'Mat of App'!$B$7:$AP$43,E$66,FALSE) -> 0 | F78: =VLOOKUP($A78,'Mat of App'!$B$7:$AP$43,F$66,FALSE) -> 0 | G78: =VLOOKUP($A78,'Mat of App'!$B$7:$AP$43,G$66,FALSE) -> 0 | H78: =VLOOKUP($A78,'Mat of App'!$B$7:$AP$43,H$66,FALSE) -> 1 | I78: =VLOOKUP($A78,'Mat of App'!$B$7:$AP$43,I$66,FALSE) -> 0
A79: LV Sub Generation NHH | B79: =VLOOKUP($A79,'Mat of App'!$B$7:$AP$43,B$66,FALSE) -> 0 | C79: =VLOOKUP($A79,'Mat of App'!$B$7:$AP$43,C$66,FALSE) -> 0 | D79: =VLOOKUP($A79,'Mat of App'!$B$7:$AP$43,D$66,FALSE) -> 0 | E79: =VLOOKUP($A79,'Mat of App'!$B$7:$AP$43,E$66,FALSE) -> 0 | F79: =VLOOKUP($A79,'Mat of App'!$B$7:$AP$43,F$66,FALSE) -> 0 | G79: =VLOOKUP($A79,'Mat of App'!$B$7:$AP$43,G$66,FALSE) -> 0 | H79: =VLOOKUP($A79,'Mat of App'!$B$7:$AP$43,H$66,FALSE) -> 1 | I79: =VLOOKUP($A79,'Mat of App'!$B$7:$AP$43,I$66,FALSE) -> 0
A80: LV Generation Intermittent | B80: =VLOOKUP($A80,'Mat of App'!$B$7:$AP$43,B$66,FALSE) -> 0 | C80: =VLOOKUP($A80,'Mat of App'!$B$7:$AP$43,C$66,FALSE) -> 0 | D80: =VLOOKUP($A80,'Mat of App'!$B$7:$AP$43,D$66,FALSE) -> 0 | E80: =VLOOKUP($A80,'Mat of App'!$B$7:$AP$43,E$66,FALSE) -> 0 | F80: =VLOOKUP($A80,'Mat of App'!$B$7:$AP$43,F$66,FALSE) -> 0 | G80: =VLOOKUP($A80,'Mat of App'!$B$7:$AP$43,G$66,FALSE) -> 0 | H80: =VLOOKUP($A80,'Mat of App'!$B$7:$AP$43,H$66,FALSE) -> 1 | I80: =VLOOKUP($A80,'Mat of App'!$B$7:$AP$43,I$66,FALSE) -> 0
A81: LV Generation Intermittent no RP charge | B81: =VLOOKUP($A81,'Mat of App'!$B$7:$AP$43,B$66,FALSE) -> 0 | C81: =VLOOKUP($A81,'Mat of App'!$B$7:$AP$43,C$66,FALSE) -> 0 | D81: =VLOOKUP($A81,'Mat of App'!$B$7:$AP$43,D$66,FALSE) -> 0 | E81: =VLOOKUP($A81,'Mat of App'!$B$7:$AP$43,E$66,FALSE) -> 0 | F81: =VLOOKUP($A81,'Mat of App'!$B$7:$AP$43,F$66,FALSE) -> 0 | G81: =VLOOKUP($A81,'Mat of App'!$B$7:$AP$43,G$66,FALSE) -> 0 | H81: =VLOOKUP($A81,'Mat of App'!$B$7:$AP$43,H$66,FALSE) -> 1 | I81: =VLOOKUP($A81,'Mat of App'!$B$7:$AP$43,I$66,FALSE) -> 0
A82: LV Generation Non-Intermittent | B82: =VLOOKUP($A82,'Mat of App'!$B$7:$AP$43,B$66,FALSE) -> 0 | C82: =VLOOKUP($A82,'Mat of App'!$B$7:$AP$43,C$66,FALSE) -> 0 | D82: =VLOOKUP($A82,'Mat of App'!$B$7:$AP$43,D$66,FALSE) -> 0 | E82: =VLOOKUP($A82,'Mat of App'!$B$7:$AP$43,E$66,FALSE) -> 0 | F82: =VLOOKUP($A82,'Mat of App'!$B$7:$AP$43,F$66,FALSE) -> 0 | G82: =VLOOKUP($A82,'Mat of App'!$B$7:$AP$43,G$66,FALSE) -> 0 | H82: =VLOOKUP($A82,'Mat of App'!$B$7:$AP$43,H$66,FALSE) -> 0 | I82: =VLOOKUP($A82,'Mat of App'!$B$7:$AP$43,I$66,FALSE) -> 0
A83: LV Generation Non-Intermittent no RP charge | B83: =VLOOKUP($A83,'Mat of App'!$B$7:$AP$43,B$66,FALSE) -> 0 | C83: =VLOOKUP($A83,'Mat of App'!$B$7:$AP$43,C$66,FALSE) -> 0 | D83: =VLOOKUP($A83,'Mat of App'!$B$7:$AP$43,D$66,FALSE) -> 0 | E83: =VLOOKUP($A83,'Mat of App'!$B$7:$AP$43,E$66,FALSE) -> 0 | F83: =VLOOKUP($A83,'Mat of App'!$B$7:$AP$43,F$66,FALSE) -> 0 | G83: =VLOOKUP($A83,'Mat of App'!$B$7:$AP$43,G$66,FALSE) -> 0 | H83: =VLOOKUP($A83,'Mat of App'!$B$7:$AP$43,H$66,FALSE) -> 0 | I83: =VLOOKUP($A83,'Mat of App'!$B$7:$AP$43,I$66,FALSE) -> 0
A84: LV Sub Generation Intermittent | B84: =VLOOKUP($A84,'Mat of App'!$B$7:$AP$43,B$66,FALSE) -> 0 | C84: =VLOOKUP($A84,'Mat of App'!$B$7:$AP$43,C$66,FALSE) -> 0 | D84: =VLOOKUP($A84,'Mat of App'!$B$7:$AP$43,D$66,FALSE) -> 0 | E84: =VLOOKUP($A84,'Mat of App'!$B$7:$AP$43,E$66,FALSE) -> 0 | F84: =VLOOKUP($A84,'Mat of App'!$B$7:$AP$43,F$66,FALSE) -> 0 | G84: =VLOOKUP($A84,'Mat of App'!$B$7:$AP$43,G$66,FALSE) -> 0 | H84: =VLOOKUP($A84,'Mat of App'!$B$7:$AP$43,H$66,FALSE) -> 0 | I84: =VLOOKUP($A84,'Mat of App'!$B$7:$AP$43,I$66,FALSE) -> 0
A85: LV Sub Generation Intermittent no RP charge | B85: =VLOOKUP($A85,'Mat of App'!$B$7:$AP$43,B$66,FALSE) -> 0 | C85: =VLOOKUP($A85,'Mat of App'!$B$7:$AP$43,C$66,FALSE) -> 0 | D85: =VLOOKUP($A85,'Mat of App'!$B$7:$AP$43,D$66,FALSE) -> 0 | E85: =VLOOKUP($A85,'Mat of App'!$B$7:$AP$43,E$66,FALSE) -> 0 | F85: =VLOOKUP($A85,'Mat of App'!$B$7:$AP$43,F$66,FALSE) -> 0 | G85: =VLOOKUP($A85,'Mat of App'!$B$7:$AP$43,G$66,FALSE) -> 0 | H85: =VLOOKUP($A85,'Mat of App'!$B$7:$AP$43,H$66,FALSE) -> 0 | I85: =VLOOKUP($A85,'Mat of App'!$B$7:$AP$43,I$66,FALSE) -> 0
A86: LV Sub Generation Non-Intermittent | B86: =VLOOKUP($A86,'Mat of App'!$B$7:$AP$43,B$66,FALSE) -> 0 | C86: =VLOOKUP($A86,'Mat of App'!$B$7:$AP$43,C$66,FALSE) -> 0 | D86: =VLOOKUP($A86,'Mat of App'!$B$7:$AP$43,D$66,FALSE) -> 0 | E86: =VLOOKUP($A86,'Mat of App'!$B$7:$AP$43,E$66,FALSE) -> 0 | F86: =VLOOKUP($A86,'Mat of App'!$B$7:$AP$43,F$66,FALSE) -> 0 | G86: =VLOOKUP($A86,'Mat of App'!$B$7:$AP$43,G$66,FALSE) -> 0 | H86: =VLOOKUP($A86,'Mat of App'!$B$7:$AP$43,H$66,FALSE) -> 0 | I86: =VLOOKUP($A86,'Mat of App'!$B$7:$AP$43,I$66,FALSE) -> 0
A87: LV Sub Generation Non-Intermittent no RP charge | B87: =VLOOKUP($A87,'Mat of App'!$B$7:$AP$43,B$66,FALSE) -> 0 | C87: =VLOOKUP($A87,'Mat of App'!$B$7:$AP$43,C$66,FALSE) -> 0 | D87: =VLOOKUP($A87,'Mat of App'!$B$7:$AP$43,D$66,FALSE) -> 0 | E87: =VLOOKUP($A87,'Mat of App'!$B$7:$AP$43,E$66,FALSE) -> 0 | F87: =VLOOKUP($A87,'Mat of App'!$B$7:$AP$43,F$66,FALSE) -> 0 | G87: =VLOOKUP($A87,'Mat of App'!$B$7:$AP$43,G$66,FALSE) -> 0 | H87: =VLOOKUP($A87,'Mat of App'!$B$7:$AP$43,H$66,FALSE) -> 0 | I87: =VLOOKUP($A87,'Mat of App'!$B$7:$AP$43,I$66,FALSE) -> 0
A89: 1026. Matrix of applicability of LV service models to unmetered tariffs
A91: Source: service models
A92: Proportion of service model involved in connecting load of 1 MWh/year
B93: LV service model 1 | C93: LV service model 2 | D93: LV service model 3 | E93: LV service model 4 | F93: LV service model 5 | G93: LV service model 6 | H93: LV service model 7 | I93: LV service model 8
A94: All LV unmetered tariffs | B94: =VLOOKUP($A94,'Mat of App'!$B$7:$AP$43,B$66,FALSE) -> 0 | C94: =VLOOKUP($A94,'Mat of App'!$B$7:$AP$43,C$66,FALSE) -> 0 | D94: =VLOOKUP($A94,'Mat of App'!$B$7:$AP$43,D$66,FALSE) -> 0 | E94: =VLOOKUP($A94,'Mat of App'!$B$7:$AP$43,E$66,FALSE) -> 0 | F94: =VLOOKUP($A94,'Mat of App'!$B$7:$AP$43,F$66,FALSE) -> 0 | G94: =VLOOKUP($A94,'Mat of App'!$B$7:$AP$43,G$66,FALSE) -> 0 | H94: =VLOOKUP($A94,'Mat of App'!$B$7:$AP$43,H$66,FALSE) -> 0 | I94: =VLOOKUP($A94,'Mat of App'!$B$7:$AP$43,I$66,FALSE) -> 0.488
A96: 1028. Matrix of applicability of HV service models to tariffs with fixed charges
B97: 12 | C97: =B97+1 -> 13 | D97: =C97+1 -> 14 | E97: =D97+1 -> 15 | F97: =E97+1 -> 16
B98: HV service model 1 | C98: HV service model 2 | D98: HV service model 3 | E98: HV service model 4 | F98: HV service model 5
A99: HV Medium Non-Domestic | B99: =VLOOKUP($A99,'Mat of App'!$B$7:$AP$43,B$97,FALSE) -> 1 | C99: =VLOOKUP($A99,'Mat of App'!$B$7:$AP$43,C$97,FALSE) -> 0 | D99: =VLOOKUP($A99,'Mat of App'!$B$7:$AP$43,D$97,FALSE) -> 0 | E99: =VLOOKUP($A99,'Mat of App'!$B$7:$AP$43,E$97,FALSE) -> 0 | F99: =VLOOKUP($A99,'Mat of App'!$B$7:$AP$43,F$97,FALSE) -> 0
A100: HV HH Metered | B100: =VLOOKUP($A100,'Mat of App'!$B$7:$AP$43,B$97,FALSE) -> 1 | C100: =VLOOKUP($A100,'Mat of App'!$B$7:$AP$43,C$97,FALSE) -> 0 | D100: =VLOOKUP($A100,'Mat of App'!$B$7:$AP$43,D$97,FALSE) -> 0 | E100: =VLOOKUP($A100,'Mat of App'!$B$7:$AP$43,E$97,FALSE) -> 0 | F100: =VLOOKUP($A100,'Mat of App'!$B$7:$AP$43,F$97,FALSE) -> 0
A101: HV Generation Intermittent | B101: =VLOOKUP($A101,'Mat of App'!$B$7:$AP$43,B$97,FALSE) -> 0 | C101: =VLOOKUP($A101,'Mat of App'!$B$7:$AP$43,C$97,FALSE) -> 1 | D101: =VLOOKUP($A101,'Mat of App'!$B$7:$AP$43,D$97,FALSE) -> 0 | E101: =VLOOKUP($A101,'Mat of App'!$B$7:$AP$43,E$97,FALSE) -> 0 | F101: =VLOOKUP($A101,'Mat of App'!$B$7:$AP$43,F$97,FALSE) -> 0
A102: HV Generation Intermittent no RP charge | B102: =VLOOKUP($A102,'Mat of App'!$B$7:$AP$43,B$97,FALSE) -> 0 | C102: =VLOOKUP($A102,'Mat of App'!$B$7:$AP$43,C$97,FALSE) -> 1 | D102: =VLOOKUP($A102,'Mat of App'!$B$7:$AP$43,D$97,FALSE) -> 0 | E102: =VLOOKUP($A102,'Mat of App'!$B$7:$AP$43,E$97,FALSE) -> 0 | F102: =VLOOKUP($A102,'Mat of App'!$B$7:$AP$43,F$97,FALSE) -> 0
A103: HV Generation Non-Intermittent | B103: =VLOOKUP($A103,'Mat of App'!$B$7:$AP$43,B$97,FALSE) -> 0 | C103: =VLOOKUP($A103,'Mat of App'!$B$7:$AP$43,C$97,FALSE) -> 1 | D103: =VLOOKUP($A103,'Mat of App'!$B$7:$AP$43,D$97,FALSE) -> 0 | E103: =VLOOKUP($A103,'Mat of App'!$B$7:$AP$43,E$97,FALSE) -> 0 | F103: =VLOOKUP($A103,'Mat of App'!$B$7:$AP$43,F$97,FALSE) -> 0
A104: HV Generation Non-Intermittent no RP charge | B104: =VLOOKUP($A104,'Mat of App'!$B$7:$AP$43,B$97,FALSE) -> 0 | C104: =VLOOKUP($A104,'Mat of App'!$B$7:$AP$43,C$97,FALSE) -> 1 | D104: =VLOOKUP($A104,'Mat of App'!$B$7:$AP$43,D$97,FALSE) -> 0 | E104: =VLOOKUP($A104,'Mat of App'!$B$7:$AP$43,E$97,FALSE) -> 0 | F104: =VLOOKUP($A104,'Mat of App'!$B$7:$AP$43,F$97,FALSE) -> 0
A106: 1032. Loss adjustment factors to transmission
A108: Source: losses model or loss adjustment factors at time of system peak.
B109: 132kV | C109: 132kV/EHV | D109: EHV | E109: EHV/HV | F109: HV | G109: HV/LV | H109: LV circuits
A110: Loss adjustment factor | B110: =VLOOKUP(Vlookup!B69,'CDCM Forecast Data'!$A$14:$I$271,7,FALSE) -> 1.002 | C110: =VLOOKUP(Vlookup!C69,'CDCM Forecast Data'!$A$14:$I$271,7,FALSE) -> 1.008 | D110: =VLOOKUP(Vlookup!D69,'CDCM Forecast Data'!$A$14:$I$271,7,FALSE) -> 1.01 | E110: =VLOOKUP(Vlookup!E69,'CDCM Forecast Data'!$A$14:$I$271,7,FALSE) -> 1.018 | F110: =VLOOKUP(Vlookup!F69,'CDCM Forecast Data'!$A$14:$I$271,7,FALSE) -> 1.034 | G110: =VLOOKUP(Vlookup!G69,'CDCM Forecast Data'!$A$14:$I$271,7,FALSE) -> 1.05 | H110: =VLOOKUP(Vlookup!H69,'CDCM Forecast Data'!$A$14:$I$271,7,FALSE) -> 1.08
A112: 1037. Embedded network (LDNO) discounts
A114: Source: separate price control disaggregation model.
B115: No discount | C115: LDNO LV: LV user | D115: LDNO HV: LV user | E115: LDNO HV: LV sub user | F115: LDNO HV: HV user
A116: LDNO discount | C116: =VLOOKUP(Vlookup!C75,'CDCM Forecast Data'!$A$14:$I$271,7,FALSE) -> 0.3003526752 | D116: =VLOOKUP(Vlookup!D75,'CDCM Forecast Data'!$A$14:$I$271,7,FALSE) -> 0.4781813948 | E116: =VLOOKUP(Vlookup!E75,'CDCM Forecast Data'!$A$14:$I$271,7,FALSE) -> 0.2436374369 | F116: =VLOOKUP(Vlookup!F75,'CDCM Forecast Data'!$A$14:$I$271,7,FALSE) -> 0.142496875
A118: 1041. Load profile data for demand users
A120: Source: load data analysis.
B121: Coincidence factor | C121: Load factor
A122: Domestic Unrestricted | B122: =VLOOKUP(Vlookup!B81,'CDCM Forecast Data'!$A$14:$I$271,7,FALSE) -> 0.8624074107 | C122: =VLOOKUP(Vlookup!C81,'CDCM Forecast Data'!$A$14:$I$271,7,FALSE) -> 0.416237105
A123: Domestic Two Rate | B123: =VLOOKUP(Vlookup!B82,'CDCM Forecast Data'!$A$14:$I$271,7,FALSE) -> 0.8603473111 | C123: =VLOOKUP(Vlookup!C82,'CDCM Forecast Data'!$A$14:$I$271,7,FALSE) -> 0.5028096693
A124: Domestic Off Peak (related MPAN) | C124: =VLOOKUP(Vlookup!C83,'CDCM Forecast Data'!$A$14:$I$271,7,FALSE) -> 0.1479037568
A125: Small Non Domestic Unrestricted | B125: =VLOOKUP(Vlookup!B84,'CDCM Forecast Data'!$A$14:$I$271,7,FALSE) -> 0.723249365 | C125: =VLOOKUP(Vlookup!C84,'CDCM Forecast Data'!$A$14:$I$271,7,FALSE) -> 0.3753258856
A126: Small Non Domestic Two Rate | B126: =VLOOKUP(Vlookup!B85,'CDCM Forecast Data'!$A$14:$I$271,7,FALSE) -> 0.8624062199 | C126: =VLOOKUP(Vlookup!C85,'CDCM Forecast Data'!$A$14:$I$271,7,FALSE) -> 0.5342406539
A127: Small Non Domestic Off Peak (related MPAN) | C127: =VLOOKUP(Vlookup!C86,'CDCM Forecast Data'!$A$14:$I$271,7,FALSE) -> 0.2427877725
A128: LV Medium Non-Domestic | B128: =VLOOKUP(Vlookup!B87,'CDCM Forecast Data'!$A$14:$I$271,7,FALSE) -> 0.8412277878 | C128: =VLOOKUP(Vlookup!C87,'CDCM Forecast Data'!$A$14:$I$271,7,FALSE) -> 0.5266769045
A129: LV Sub Medium Non-Domestic | B129: =VLOOKUP(Vlookup!B88,'CDCM Forecast Data'!$A$14:$I$271,7,FALSE) -> 0.8412277878 | C129: =VLOOKUP(Vlookup!C88,'CDCM Forecast Data'!$A$14:$I$271,7,FALSE) -> 0.5266769045
A130: HV Medium Non-Domestic | B130: =VLOOKUP(Vlookup!B89,'CDCM Forecast Data'!$A$14:$I$271,7,FALSE) -> 0.7888674972 | C130: =VLOOKUP(Vlookup!C89,'CDCM Forecast Data'!$A$14:$I$271,7,FALSE) -> 0.4919974796
A131: LV Network Domestic | B131: =VLOOKUP(Vlookup!B90,'CDCM Forecast Data'!$A$14:$I$271,7,FALSE) -> 0.8616444867 | C131: =VLOOKUP(Vlookup!C90,'CDCM Forecast Data'!$A$14:$I$271,7,FALSE) -> 0.4438295579
A132: LV Network Non-Domestic Non-CT | B132: =VLOOKUP(Vlookup!B91,'CDCM Forecast Data'!$A$14:$I$271,7,FALSE) -> 0.7875247765 | C132: =VLOOKUP(Vlookup!C91,'CDCM Forecast Data'!$A$14:$I$271,7,FALSE) -> 0.4478939551
A133: LV HH Metered | B133: =VLOOKUP(Vlookup!B92,'CDCM Forecast Data'!$A$14:$I$271,7,FALSE) -> 0.820865216 | C133: =VLOOKUP(Vlookup!C92,'CDCM Forecast Data'!$A$14:$I$271,7,FALSE) -> 0.5584288623
A134: LV Sub HH Metered | B134: =VLOOKUP(Vlookup!B93,'CDCM Forecast Data'!$A$14:$I$271,7,FALSE) -> 0.8402686756 | C134: =VLOOKUP(Vlookup!C93,'CDCM Forecast Data'!$A$14:$I$271,7,FALSE) -> 0.5790756672
A135: HV HH Metered | B135: =VLOOKUP(Vlookup!B94,'CDCM Forecast Data'!$A$14:$I$271,7,FALSE) -> 0.8476012159 | C135: =VLOOKUP(Vlookup!C94,'CDCM Forecast Data'!$A$14:$I$271,7,FALSE) -> 0.7141076062
A136: NHH UMS category A | B136: =VLOOKUP(Vlookup!B95,'CDCM Forecast Data'!$A$14:$I$271,7,FALSE) -> 1 | C136: =VLOOKUP(Vlookup!C95,'CDCM Forecast Data'!$A$14:$I$271,7,FALSE) -> 1
A137: NHH UMS category B | B137: =VLOOKUP(Vlookup!B96,'CDCM Forecast Data'!$A$14:$I$271,7,FALSE) -> 1 | C137: =VLOOKUP(Vlookup!C96,'CDCM Forecast Data'!$A$14:$I$271,7,FALSE) -> 0.4727080734
A138: NHH UMS category C | B138: =VLOOKUP(Vlookup!B97,'CDCM Forecast Data'!$A$14:$I$271,7,FALSE) -> 1 | C138: =VLOOKUP(Vlookup!C97,'CDCM Forecast Data'!$A$14:$I$271,7,FALSE) -> 0.2433937156
A139: NHH UMS category D | B139: =VLOOKUP(Vlookup!B98,'CDCM Forecast Data'!$A$14:$I$271,7,FALSE) -> 0.005362102748 | C139: =VLOOKUP(Vlookup!C98,'CDCM Forecast Data'!$A$14:$I$271,7,FALSE) -> 0.5115869751
A140: LV UMS (Pseudo HH Metered) | B140: =VLOOKUP(Vlookup!B99,'CDCM Forecast Data'!$A$14:$I$271,7,FALSE) -> 0.9507957642 | C140: =VLOOKUP(Vlookup!C99,'CDCM Forecast Data'!$A$14:$I$271,7,FALSE) -> 0.4416089679
A142: 1053. Volume forecasts for the charging year
B143: 18 | C143: 19 | D143: 20 | E143: 21 | F143: 22 | G143: 23 | H143: 24
A144: Source: forecast.
A145: Please include MPAN counts for tariffs with no fixed charge (e.g. off-peak tariffs),
A146: but exclude MPANs on tariffs with a fixed charge that are not subject to a fixed charge due to a site grouping arrangement.
B147: Rate 1 units (MWh) | C147: Rate 2 units (MWh) | D147: Rate 3 units (MWh) | E147: MPANs | F147: Import capacity (kVA) | G147: Exceeded capacity (kVA) | H147: Reactive power units (MVArh)
A148: > Domestic Unrestricted | B148: =VLOOKUP(Vlookup!$B107,'CDCM Volume Forecasts'!$A$28:$AL$136,B$143,FALSE) -> 0 | C148: =VLOOKUP(Vlookup!$B107,'CDCM Volume Forecasts'!$A$28:$AL$136,C$143,FALSE) -> 0 | D148: =VLOOKUP(Vlookup!$B107,'CDCM Volume Forecasts'!$A$28:$AL$136,D$143,FALSE) -> 0 | E148: =VLOOKUP(Vlookup!$B107,'CDCM Volume Forecasts'!$A$28:$AL$136,E$143,FALSE) -> 0 | F148: =VLOOKUP(Vlookup!$B107,'CDCM Volume Forecasts'!$A$28:$AL$136,F$143,FALSE) -> 0 | H148: =VLOOKUP(Vlookup!$B107,'CDCM Volume Forecasts'!$A$28:$AL$136,G$143,FALSE) -> 0
A149: Domestic Unrestricted | B149: =VLOOKUP(Vlookup!$B108,'CDCM Volume Forecasts'!$A$28:$AL$136,B$143,FALSE) -> 5635747.395 | E149: =VLOOKUP(Vlookup!$B108,'CDCM Volume Forecasts'!$A$28:$AL$136,E$143,FALSE) -> 1671267.776
A150: LDNO LV: Domestic Unrestricted | B150: =VLOOKUP(Vlookup!$B109,'CDCM Volume Forecasts'!$A$28:$AL$136,B$143,FALSE) -> 94982.04277 | E150: =VLOOKUP(Vlookup!$B109,'CDCM Volume Forecasts'!$A$28:$AL$136,E$143,FALSE) -> 35033.39034
A151: LDNO HV: Domestic Unrestricted | B151: =VLOOKUP(Vlookup!$B110,'CDCM Volume Forecasts'!$A$28:$AL$136,B$143,FALSE) -> 155171.2713 | E151: =VLOOKUP(Vlookup!$B110,'CDCM Volume Forecasts'!$A$28:$AL$136,E$143,FALSE) -> 58162.88093
A152: > Domestic Two Rate
A153: Domestic Two Rate | B153: =VLOOKUP(Vlookup!$B112,'CDCM Volume Forecasts'!$A$28:$AL$136,B$143,FALSE) -> 2417415.845 | C153: =VLOOKUP(Vlookup!$B112,'CDCM Volume Forecasts'!$A$28:$AL$136,C$143,FALSE) -> 1076309.379 | E153: =VLOOKUP(Vlookup!$B112,'CDCM Volume Forecasts'!$A$28:$AL$136,E$143,FALSE) -> 792868.4906
A154: LDNO LV: Domestic Two Rate | B154: =VLOOKUP(Vlookup!$B113,'CDCM Volume Forecasts'!$A$28:$AL$136,B$143,FALSE) -> 4629.961433 | C154: =VLOOKUP(Vlookup!$B113,'CDCM Volume Forecasts'!$A$28:$AL$136,C$143,FALSE) -> 1426.905031 | E154: =VLOOKUP(Vlookup!$B113,'CDCM Volume Forecasts'!$A$28:$AL$136,E$143,FALSE) -> 1499.239142
A155: LDNO HV: Domestic Two Rate | B155: =VLOOKUP(Vlookup!$B114,'CDCM Volume Forecasts'!$A$28:$AL$136,B$143,FALSE) -> 7642.505214 | C155: =VLOOKUP(Vlookup!$B114,'CDCM Volume Forecasts'!$A$28:$AL$136,C$143,FALSE) -> 2597.384749 | E155: =VLOOKUP(Vlookup!$B114,'CDCM Volume Forecasts'!$A$28:$AL$136,E$143,FALSE) -> 2453.434764
A156: > Domestic Off Peak (related MPAN)
A157: Domestic Off Peak (related MPAN) | B157: =VLOOKUP(Vlookup!$B116,'CDCM Volume Forecasts'!$A$28:$AL$136,B$143,FALSE) -> 49585.59318 | E157: =VLOOKUP(Vlookup!$B116,'CDCM Volume Forecasts'!$A$28:$AL$136,E$143,FALSE) -> 26805
A158: LDNO LV: Domestic Off Peak (related MPAN) | B158: =VLOOKUP(Vlookup!$B117,'CDCM Volume Forecasts'!$A$28:$AL$136,B$143,FALSE) -> 0 | E158: =VLOOKUP(Vlookup!$B117,'CDCM Volume Forecasts'!$A$28:$AL$136,E$143,FALSE) -> 0
A159: LDNO HV: Domestic Off Peak (related MPAN) | B159: =VLOOKUP(Vlookup!$B118,'CDCM Volume Forecasts'!$A$28:$AL$136,B$143,FALSE) -> 0 | E159: =VLOOKUP(Vlookup!$B118,'CDCM Volume Forecasts'!$A$28:$AL$136,E$143,FALSE) -> 0
A160: > Small Non Domestic Unrestricted
A161: Small Non Domestic Unrestricted | B161: =VLOOKUP(Vlookup!$B120,'CDCM Volume Forecasts'!$A$28:$AL$136,B$143,FALSE) -> 1140613.974 | E161: =VLOOKUP(Vlookup!$B120,'CDCM Volume Forecasts'!$A$28:$AL$136,E$143,FALSE) -> 95495.2531
A162: LDNO LV: Small Non Domestic Unrestricted | B162: =VLOOKUP(Vlookup!$B121,'CDCM Volume Forecasts'!$A$28:$AL$136,B$143,FALSE) -> 4254.851922 | E162: =VLOOKUP(Vlookup!$B121,'CDCM Volume Forecasts'!$A$28:$AL$136,E$143,FALSE) -> 714.0844724
A163: LDNO HV: Small Non Domestic Unrestricted | B163: =VLOOKUP(Vlookup!$B122,'CDCM Volume Forecasts'!$A$28:$AL$136,B$143,FALSE) -> 11145.92223 | E163: =VLOOKUP(Vlookup!$B122,'CDCM Volume Forecasts'!$A$28:$AL$136,E$143,FALSE) -> 1270.175358
A164: > Small Non Domestic Two Rate
A165: Small Non Domestic Two Rate | B165: =VLOOKUP(Vlookup!$B124,'CDCM Volume Forecasts'!$A$28:$AL$136,B$143,FALSE) -> 1514286.226 | C165: =VLOOKUP(Vlookup!$B124,'CDCM Volume Forecasts'!$A$28:$AL$136,C$143,FALSE) -> 451030.4649 | E165: =VLOOKUP(Vlookup!$B124,'CDCM Volume Forecasts'!$A$28:$AL$136,E$143,FALSE) -> 82427.24468
A166: LDNO LV: Small Non Domestic Two Rate | B166: =VLOOKUP(Vlookup!$B125,'CDCM Volume Forecasts'!$A$28:$AL$136,B$143,FALSE) -> 402.4795805 | C166: =VLOOKUP(Vlookup!$B125,'CDCM Volume Forecasts'!$A$28:$AL$136,C$143,FALSE) -> 80.43862928 | E166: =VLOOKUP(Vlookup!$B125,'CDCM Volume Forecasts'!$A$28:$AL$136,E$143,FALSE) -> 12.90367511
A167: LDNO HV: Small Non Domestic Two Rate | B167: =VLOOKUP(Vlookup!$B126,'CDCM Volume Forecasts'!$A$28:$AL$136,B$143,FALSE) -> 1111.632243 | C167: =VLOOKUP(Vlookup!$B126,'CDCM Volume Forecasts'!$A$28:$AL$136,C$143,FALSE) -> 286.0338415 | E167: =VLOOKUP(Vlookup!$B126,'CDCM Volume Forecasts'!$A$28:$AL$136,E$143,FALSE) -> 47.78805345
A168: > Small Non Domestic Off Peak (related MPAN)
A169: Small Non Domestic Off Peak (related MPAN) | B169: =VLOOKUP(Vlookup!$B128,'CDCM Volume Forecasts'!$A$28:$AL$136,B$143,FALSE) -> 2583.384072 | E169: =VLOOKUP(Vlookup!$B128,'CDCM Volume Forecasts'!$A$28:$AL$136,E$143,FALSE) -> 517
A170: LDNO LV: Small Non Domestic Off Peak (related MPAN) | B170: =VLOOKUP(Vlookup!$B129,'CDCM Volume Forecasts'!$A$28:$AL$136,B$143,FALSE) -> 0 | E170: =VLOOKUP(Vlookup!$B129,'CDCM Volume Forecasts'!$A$28:$AL$136,E$143,FALSE) -> 0
A171: LDNO HV: Small Non Domestic Off Peak (related MPAN) | B171: =VLOOKUP(Vlookup!$B130,'CDCM Volume Forecasts'!$A$28:$AL$136,B$143,FALSE) -> 0 | E171: =VLOOKUP(Vlookup!$B130,'CDCM Volume Forecasts'!$A$28:$AL$136,E$143,FALSE) -> 0
A172: > LV Medium Non-Domestic
A173: LV Medium Non-Domestic | B173: =VLOOKUP(Vlookup!$B132,'CDCM Volume Forecasts'!$A$28:$AL$136,B$143,FALSE) -> 41587.88902 | C173: =VLOOKUP(Vlookup!$B132,'CDCM Volume Forecasts'!$A$28:$AL$136,C$143,FALSE) -> 11522.85719 | E173: =VLOOKUP(Vlookup!$B132,'CDCM Volume Forecasts'!$A$28:$AL$136,E$143,FALSE) -> 1226.513004
A174: LDNO LV: LV Medium Non-Domestic | B174: =VLOOKUP(Vlookup!$B133,'CDCM Volume Forecasts'!$A$28:$AL$136,B$143,FALSE) -> -4.91127139e-14 | C174: =VLOOKUP(Vlookup!$B133,'CDCM Volume Forecasts'!$A$28:$AL$136,C$143,FALSE) -> 5.456968211e-15 | E174: =VLOOKUP(Vlookup!$B133,'CDCM Volume Forecasts'!$A$28:$AL$136,E$143,FALSE) -> 0
A175: LDNO HV: LV Medium Non-Domestic | B175: =VLOOKUP(Vlookup!$B134,'CDCM Volume Forecasts'!$A$28:$AL$136,B$143,FALSE) -> -2.473825589e-13 | C175: =VLOOKUP(Vlookup!$B134,'CDCM Volume Forecasts'!$A$28:$AL$136,C$143,FALSE) -> 1.818989404e-14 | E175: =VLOOKUP(Vlookup!$B134,'CDCM Volume Forecasts'!$A$28:$AL$136,E$143,FALSE) -> 0
A176: > LV Sub Medium Non-Domestic
A177: LV Sub Medium Non-Domestic | B177: =VLOOKUP(Vlookup!$B136,'CDCM Volume Forecasts'!$A$28:$AL$136,B$143,FALSE) -> 0.1430502914 | C177: =VLOOKUP(Vlookup!$B136,'CDCM Volume Forecasts'!$A$28:$AL$136,C$143,FALSE) -> 0.04177103706 | E177: =VLOOKUP(Vlookup!$B136,'CDCM Volume Forecasts'!$A$28:$AL$136,E$143,FALSE) -> 0.003167819672
A178: > HV Medium Non-Domestic
A179: HV Medium Non-Domestic | B179: =VLOOKUP(Vlookup!$B138,'CDCM Volume Forecasts'!$A$28:$AL$136,B$143,FALSE) -> 2605.212072 | C179: =VLOOKUP(Vlookup!$B138,'CDCM Volume Forecasts'!$A$28:$AL$136,C$143,FALSE) -> 788.6054445 | E179: =VLOOKUP(Vlookup!$B138,'CDCM Volume Forecasts'!$A$28:$AL$136,E$143,FALSE) -> 44
A180: > LV Network Domestic
A181: LV Network Domestic | B181: =VLOOKUP(Vlookup!$B140,'CDCM Volume Forecasts'!$A$28:$AL$136,B$143,FALSE) -> 25.91664886 | C181: =VLOOKUP(Vlookup!$B140,'CDCM Volume Forecasts'!$A$28:$AL$136,C$143,FALSE) -> 99.41640677 | D181: =VLOOKUP(Vlookup!$B140,'CDCM Volume Forecasts'!$A$28:$AL$136,D$143,FALSE) -> 122.0854601 | E181: =VLOOKUP(Vlookup!$B140,'CDCM Volume Forecasts'!$A$28:$AL$136,E$143,FALSE) -> 76.11876557
A182: LDNO LV: LV Network Domestic | B182: =VLOOKUP(Vlookup!$B141,'CDCM Volume Forecasts'!$A$28:$AL$136,B$143,FALSE) -> 0 | C182: =VLOOKUP(Vlookup!$B141,'CDCM Volume Forecasts'!$A$28:$AL$136,C$143,FALSE) -> 0 | D182: =VLOOKUP(Vlookup!$B141,'CDCM Volume Forecasts'!$A$28:$AL$136,D$143,FALSE) -> 0 | E182: =VLOOKUP(Vlookup!$B141,'CDCM Volume Forecasts'!$A$28:$AL$136,E$143,FALSE) -> 0
A183: LDNO HV: LV Network Domestic | B183: =VLOOKUP(Vlookup!$B142,'CDCM Volume Forecasts'!$A$28:$AL$136,B$143,FALSE) -> 0 | C183: =VLOOKUP(Vlookup!$B142,'CDCM Volume Forecasts'!$A$28:$AL$136,C$143,FALSE) -> 0 | D183: =VLOOKUP(Vlookup!$B142,'CDCM Volume Forecasts'!$A$28:$AL$136,D$143,FALSE) -> 0 | E183: =VLOOKUP(Vlookup!$B142,'CDCM Volume Forecasts'!$A$28:$AL$136,E$143,FALSE) -> 0
A184: > LV Network Non-Domestic Non-CT
A185: LV Network Non-Domestic Non-CT | B185: =VLOOKUP(Vlookup!$B144,'CDCM Volume Forecasts'!$A$28:$AL$136,B$143,FALSE) -> 18558.48769 | C185: =VLOOKUP(Vlookup!$B144,'CDCM Volume Forecasts'!$A$28:$AL$136,C$143,FALSE) -> 73567.92673 | D185: =VLOOKUP(Vlookup!$B144,'CDCM Volume Forecasts'!$A$28:$AL$136,D$143,FALSE) -> 78280.3327 | E185: =VLOOKUP(Vlookup!$B144,'CDCM Volume Forecasts'!$A$28:$AL$136,E$143,FALSE) -> 2509.103459
A186: LDNO LV: LV Network Non-Domestic Non-CT | B186: =VLOOKUP(Vlookup!$B145,'CDCM Volume Forecasts'!$A$28:$AL$136,B$143,FALSE) -> 19.24968808 | C186: =VLOOKUP(Vlookup!$B145,'CDCM Volume Forecasts'!$A$28:$AL$136,C$143,FALSE) -> 72.68858731 | D186: =VLOOKUP(Vlookup!$B145,'CDCM Volume Forecasts'!$A$28:$AL$136,D$143,FALSE) -> 120.4985183 | E186: =VLOOKUP(Vlookup!$B145,'CDCM Volume Forecasts'!$A$28:$AL$136,E$143,FALSE) -> 4.718437313
A187: LDNO HV: LV Network Non-Domestic Non-CT | B187: =VLOOKUP(Vlookup!$B146,'CDCM Volume Forecasts'!$A$28:$AL$136,B$143,FALSE) -> 104.2423559 | C187: =VLOOKUP(Vlookup!$B146,'CDCM Volume Forecasts'!$A$28:$AL$136,C$143,FALSE) -> 362.6834743 | D187: =VLOOKUP(Vlookup!$B146,'CDCM Volume Forecasts'!$A$28:$AL$136,D$143,FALSE) -> 416.1208825 | E187: =VLOOKUP(Vlookup!$B146,'CDCM Volume Forecasts'!$A$28:$AL$136,E$143,FALSE) -> 19.84182935
A188: > LV HH Metered
A189: LV HH Metered | B189: =VLOOKUP(Vlookup!$B148,'CDCM Volume Forecasts'!$A$28:$AL$136,B$143,FALSE) -> 377835.6813 | C189: =VLOOKUP(Vlookup!$B148,'CDCM Volume Forecasts'!$A$28:$AL$136,C$143,FALSE) -> 1505767.623 | D189: =VLOOKUP(Vlookup!$B148,'CDCM Volume Forecasts'!$A$28:$AL$136,D$143,FALSE) -> 1615847.006 | E189: =VLOOKUP(Vlookup!$B148,'CDCM Volume Forecasts'!$A$28:$AL$136,E$143,FALSE) -> 15832.33207 | F189: =VLOOKUP(Vlookup!$B148,'CDCM Volume Forecasts'!$A$28:$AL$136,F$143,FALSE) -> 1960000 | G189: =VLOOKUP(Vlookup!$B148,'CDCM Volume Forecasts'!$A$28:$AL$136,G$143,FALSE) -> 42265.31704 | H189: =VLOOKUP(Vlookup!$B148,'CDCM Volume Forecasts'!$A$28:$AL$136,H$143,FALSE) -> 367491.3783
A190: LDNO LV: LV HH Metered | B190: =VLOOKUP(Vlookup!$B149,'CDCM Volume Forecasts'!$A$28:$AL$136,B$143,FALSE) -> 1412.870559 | C190: =VLOOKUP(Vlookup!$B149,'CDCM Volume Forecasts'!$A$28:$AL$136,C$143,FALSE) -> 4888.839063 | D190: =VLOOKUP(Vlookup!$B149,'CDCM Volume Forecasts'!$A$28:$AL$136,D$143,FALSE) -> 6114.885476 | E190: =VLOOKUP(Vlookup!$B149,'CDCM Volume Forecasts'!$A$28:$AL$136,E$143,FALSE) -> 61.22986971 | F190: =VLOOKUP(Vlookup!$B149,'CDCM Volume Forecasts'!$A$28:$AL$136,F$143,FALSE) -> 10476.91862 | G190: =VLOOKUP(Vlookup!$B149,'CDCM Volume Forecasts'!$A$28:$AL$136,G$143,FALSE) -> 12.98705717 | H190: =VLOOKUP(Vlookup!$B149,'CDCM Volume Forecasts'!$A$28:$AL$136,H$143,FALSE) -> 1333.714793
A191: LDNO HV: LV HH Metered | B191: =VLOOKUP(Vlookup!$B150,'CDCM Volume Forecasts'!$A$28:$AL$136,B$143,FALSE) -> 15040.23512 | C191: =VLOOKUP(Vlookup!$B150,'CDCM Volume Forecasts'!$A$28:$AL$136,C$143,FALSE) -> 54927.68561 | D191: =VLOOKUP(Vlookup!$B150,'CDCM Volume Forecasts'!$A$28:$AL$136,D$143,FALSE) -> 65960.83678 | E191: =VLOOKUP(Vlookup!$B150,'CDCM Volume Forecasts'!$A$28:$AL$136,E$143,FALSE) -> 382.6216986 | F191: =VLOOKUP(Vlookup!$B150,'CDCM Volume Forecasts'!$A$28:$AL$136,F$143,FALSE) -> 108669.6156 | G191: =VLOOKUP(Vlookup!$B150,'CDCM Volume Forecasts'!$A$28:$AL$136,G$143,FALSE) -> 446.261544 | H191: =VLOOKUP(Vlookup!$B150,'CDCM Volume Forecasts'!$A$28:$AL$136,H$143,FALSE) -> 11418.40144
A192: > LV Sub HH Metered
A193: LV Sub HH Metered | B193: =VLOOKUP(Vlookup!$B152,'CDCM Volume Forecasts'!$A$28:$AL$136,B$143,FALSE) -> 23555.93971 | C193: =VLOOKUP(Vlookup!$B152,'CDCM Volume Forecasts'!$A$28:$AL$136,C$143,FALSE) -> 90295.11947 | D193: =VLOOKUP(Vlookup!$B152,'CDCM Volume Forecasts'!$A$28:$AL$136,D$143,FALSE) -> 105307.3853 | E193: =VLOOKUP(Vlookup!$B152,'CDCM Volume Forecasts'!$A$28:$AL$136,E$143,FALSE) -> 342.8466956 | F193: =VLOOKUP(Vlookup!$B152,'CDCM Volume Forecasts'!$A$28:$AL$136,F$143,FALSE) -> 138821.8672 | G193: =VLOOKUP(Vlookup!$B152,'CDCM Volume Forecasts'!$A$28:$AL$136,G$143,FALSE) -> 1785.101098 | H193: =VLOOKUP(Vlookup!$B152,'CDCM Volume Forecasts'!$A$28:$AL$136,H$143,FALSE) -> 18220.1968
A194: LDNO HV: LV Sub HH Metered | B194: =VLOOKUP(Vlookup!$B153,'CDCM Volume Forecasts'!$A$28:$AL$136,B$143,FALSE) -> 890.7228729 | C194: =VLOOKUP(Vlookup!$B153,'CDCM Volume Forecasts'!$A$28:$AL$136,C$143,FALSE) -> 3077.583554 | D194: =VLOOKUP(Vlookup!$B153,'CDCM Volume Forecasts'!$A$28:$AL$136,D$143,FALSE) -> 5287.780212 | E194: =VLOOKUP(Vlookup!$B153,'CDCM Volume Forecasts'!$A$28:$AL$136,E$143,FALSE) -> 4.895893637 | F194: =VLOOKUP(Vlookup!$B153,'CDCM Volume Forecasts'!$A$28:$AL$136,F$143,FALSE) -> 3426.922262 | G194: =VLOOKUP(Vlookup!$B153,'CDCM Volume Forecasts'!$A$28:$AL$136,G$143,FALSE) -> 46.89237776 | H194: =VLOOKUP(Vlookup!$B153,'CDCM Volume Forecasts'!$A$28:$AL$136,H$143,FALSE) -> 903.927504
A195: > HV HH Metered
A196: HV HH Metered | B196: =VLOOKUP(Vlookup!$B155,'CDCM Volume Forecasts'!$A$28:$AL$136,B$143,FALSE) -> 738923.1968 | C196: =VLOOKUP(Vlookup!$B155,'CDCM Volume Forecasts'!$A$28:$AL$136,C$143,FALSE) -> 2849711.721 | D196: =VLOOKUP(Vlookup!$B155,'CDCM Volume Forecasts'!$A$28:$AL$136,D$143,FALSE) -> 4000945.162 | E196: =VLOOKUP(Vlookup!$B155,'CDCM Volume Forecasts'!$A$28:$AL$136,E$143,FALSE) -> 3524.919235 | F196: =VLOOKUP(Vlookup!$B155,'CDCM Volume Forecasts'!$A$28:$AL$136,F$143,FALSE) -> 2788259.538 | G196: =VLOOKUP(Vlookup!$B155,'CDCM Volume Forecasts'!$A$28:$AL$136,G$143,FALSE) -> 58664.74725 | H196: =VLOOKUP(Vlookup!$B155,'CDCM Volume Forecasts'!$A$28:$AL$136,H$143,FALSE) -> 557819.6963
A197: LDNO HV: HV HH Metered | B197: =VLOOKUP(Vlookup!$B156,'CDCM Volume Forecasts'!$A$28:$AL$136,B$143,FALSE) -> 7258.323342 | C197: =VLOOKUP(Vlookup!$B156,'CDCM Volume Forecasts'!$A$28:$AL$136,C$143,FALSE) -> 23980.29605 | D197: =VLOOKUP(Vlookup!$B156,'CDCM Volume Forecasts'!$A$28:$AL$136,D$143,FALSE) -> 38623.66453 | E197: =VLOOKUP(Vlookup!$B156,'CDCM Volume Forecasts'!$A$28:$AL$136,E$143,FALSE) -> 38.40859545 | F197: =VLOOKUP(Vlookup!$B156,'CDCM Volume Forecasts'!$A$28:$AL$136,F$143,FALSE) -> 48748.2535 | G197: =VLOOKUP(Vlookup!$B156,'CDCM Volume Forecasts'!$A$28:$AL$136,G$143,FALSE) -> 199.083295 | H197: =VLOOKUP(Vlookup!$B156,'CDCM Volume Forecasts'!$A$28:$AL$136,H$143,FALSE) -> 2217.464865
A198: > NHH UMS category A
A199: NHH UMS category A | B199: =VLOOKUP(Vlookup!$B158,'CDCM Volume Forecasts'!$A$28:$AL$136,B$143,FALSE) -> 34134.8937 | E199: =VLOOKUP(Vlookup!$B158,'CDCM Volume Forecasts'!$A$28:$AL$136,E$143,FALSE) -> 1567
A200: LDNO LV: NHH UMS category A | B200: =VLOOKUP(Vlookup!$B159,'CDCM Volume Forecasts'!$A$28:$AL$136,B$143,FALSE) -> 275.22148 | E200: =VLOOKUP(Vlookup!$B159,'CDCM Volume Forecasts'!$A$28:$AL$136,E$143,FALSE) -> 0
A201: LDNO HV: NHH UMS category A | B201: =VLOOKUP(Vlookup!$B160,'CDCM Volume Forecasts'!$A$28:$AL$136,B$143,FALSE) -> 531.7577591 | E201: =VLOOKUP(Vlookup!$B160,'CDCM Volume Forecasts'!$A$28:$AL$136,E$143,FALSE) -> 0
A202: > NHH UMS category B
A203: NHH UMS category B | B203: =VLOOKUP(Vlookup!$B162,'CDCM Volume Forecasts'!$A$28:$AL$136,B$143,FALSE) -> 22466.14998 | E203: =VLOOKUP(Vlookup!$B162,'CDCM Volume Forecasts'!$A$28:$AL$136,E$143,FALSE) -> 1279
A204: LDNO LV: NHH UMS category B | B204: =VLOOKUP(Vlookup!$B163,'CDCM Volume Forecasts'!$A$28:$AL$136,B$143,FALSE) -> 319.4011436 | E204: =VLOOKUP(Vlookup!$B163,'CDCM Volume Forecasts'!$A$28:$AL$136,E$143,FALSE) -> 0
A205: LDNO HV: NHH UMS category B | B205: =VLOOKUP(Vlookup!$B164,'CDCM Volume Forecasts'!$A$28:$AL$136,B$143,FALSE) -> 613.6304424 | E205: =VLOOKUP(Vlookup!$B164,'CDCM Volume Forecasts'!$A$28:$AL$136,E$143,FALSE) -> 0
A206: > NHH UMS category C
A207: NHH UMS category C | B207: =VLOOKUP(Vlookup!$B166,'CDCM Volume Forecasts'!$A$28:$AL$136,B$143,FALSE) -> 339.1014082 | E207: =VLOOKUP(Vlookup!$B166,'CDCM Volume Forecasts'!$A$28:$AL$136,E$143,FALSE) -> 194
A208: LDNO LV: NHH UMS category C | B208: =VLOOKUP(Vlookup!$B167,'CDCM Volume Forecasts'!$A$28:$AL$136,B$143,FALSE) -> 0 | E208: =VLOOKUP(Vlookup!$B167,'CDCM Volume Forecasts'!$A$28:$AL$136,E$143,FALSE) -> 0
A209: LDNO HV: NHH UMS category C | B209: =VLOOKUP(Vlookup!$B168,'CDCM Volume Forecasts'!$A$28:$AL$136,B$143,FALSE) -> 0 | E209: =VLOOKUP(Vlookup!$B168,'CDCM Volume Forecasts'!$A$28:$AL$136,E$143,FALSE) -> 0
A210: > NHH UMS category D
A211: NHH UMS category D | B211: =VLOOKUP(Vlookup!$B170,'CDCM Volume Forecasts'!$A$28:$AL$136,B$143,FALSE) -> 7208.556085 | E211: =VLOOKUP(Vlookup!$B170,'CDCM Volume Forecasts'!$A$28:$AL$136,E$143,FALSE) -> 247
A212: LDNO LV: NHH UMS category D | B212: =VLOOKUP(Vlookup!$B171,'CDCM Volume Forecasts'!$A$28:$AL$136,B$143,FALSE) -> 0 | E212: =VLOOKUP(Vlookup!$B171,'CDCM Volume Forecasts'!$A$28:$AL$136,E$143,FALSE) -> 0
A213: LDNO HV: NHH UMS category D | B213: =VLOOKUP(Vlookup!$B172,'CDCM Volume Forecasts'!$A$28:$AL$136,B$143,FALSE) -> 0 | E213: =VLOOKUP(Vlookup!$B172,'CDCM Volume Forecasts'!$A$28:$AL$136,E$143,FALSE) -> 0
A214: > LV UMS (Pseudo HH Metered)
A215: LV UMS (Pseudo HH Metered) | B215: =VLOOKUP(Vlookup!$B174,'CDCM Volume Forecasts'!$A$28:$AL$136,B$143,FALSE) -> 12092.42647 | C215: =VLOOKUP(Vlookup!$B174,'CDCM Volume Forecasts'!$A$28:$AL$136,C$143,FALSE) -> 33947.07157 | D215: =VLOOKUP(Vlookup!$B174,'CDCM Volume Forecasts'!$A$28:$AL$136,D$143,FALSE) -> 185619.8076 | E215: =VLOOKUP(Vlookup!$B174,'CDCM Volume Forecasts'!$A$28:$AL$136,E$143,FALSE) -> 26.81967213
A216: LDNO LV: LV UMS (Pseudo HH Metered) | B216: =VLOOKUP(Vlookup!$B175,'CDCM Volume Forecasts'!$A$28:$AL$136,B$143,FALSE) -> 0 | C216: =VLOOKUP(Vlookup!$B175,'CDCM Volume Forecasts'!$A$28:$AL$136,C$143,FALSE) -> 0 | D216: =VLOOKUP(Vlookup!$B175,'CDCM Volume Forecasts'!$A$28:$AL$136,D$143,FALSE) -> 0 | E216: =VLOOKUP(Vlookup!$B175,'CDCM Volume Forecasts'!$A$28:$AL$136,E$143,FALSE) -> 0
A217: LDNO HV: LV UMS (Pseudo HH Metered) | B217: =VLOOKUP(Vlookup!$B176,'CDCM Volume Forecasts'!$A$28:$AL$136,B$143,FALSE) -> 0 | C217: =VLOOKUP(Vlookup!$B176,'CDCM Volume Forecasts'!$A$28:$AL$136,C$143,FALSE) -> 0 | D217: =VLOOKUP(Vlookup!$B176,'CDCM Volume Forecasts'!$A$28:$AL$136,D$143,FALSE) -> 0 | E217: =VLOOKUP(Vlookup!$B176,'CDCM Volume Forecasts'!$A$28:$AL$136,E$143,FALSE) -> 0
A218: > LV Generation NHH or Aggregate HH
A219: LV Generation NHH or Aggregate HH | B219: =VLOOKUP(Vlookup!$B178,'CDCM Volume Forecasts'!$A$28:$AL$136,B$143,FALSE) -> 10233.95383 | E219: =VLOOKUP(Vlookup!$B178,'CDCM Volume Forecasts'!$A$28:$AL$136,E$143,FALSE) -> 136
A220: LDNO LV: LV Generation NHH or Aggregate HH | B220: =VLOOKUP(Vlookup!$B179,'CDCM Volume Forecasts'!$A$28:$AL$136,B$143,FALSE) -> 27.78537836 | E220: =VLOOKUP(Vlookup!$B179,'CDCM Volume Forecasts'!$A$28:$AL$136,E$143,FALSE) -> 0
A221: LDNO HV: LV Generation NHH or Aggregate HH | B221: =VLOOKUP(Vlookup!$B180,'CDCM Volume Forecasts'!$A$28:$AL$136,B$143,FALSE) -> 0 | E221: =VLOOKUP(Vlookup!$B180,'CDCM Volume Forecasts'!$A$28:$AL$136,E$143,FALSE) -> 0
A222: > LV Sub Generation NHH
A223: LV Sub Generation NHH | B223: =VLOOKUP(Vlookup!$B182,'CDCM Volume Forecasts'!$A$28:$AL$136,B$143,FALSE) -> 0 | E223: =VLOOKUP(Vlookup!$B182,'CDCM Volume Forecasts'!$A$28:$AL$136,E$143,FALSE) -> 0
A224: LDNO HV: LV Sub Generation NHH | B224: =VLOOKUP(Vlookup!$B183,'CDCM Volume Forecasts'!$A$28:$AL$136,B$143,FALSE) -> 0 | E224: =VLOOKUP(Vlookup!$B183,'CDCM Volume Forecasts'!$A$28:$AL$136,E$143,FALSE) -> 0
A225: > LV Generation Intermittent
A226: LV Generation Intermittent | B226: =VLOOKUP(Vlookup!$B185,'CDCM Volume Forecasts'!$A$28:$AL$136,B$143,FALSE) -> 39541.45547 | E226: =VLOOKUP(Vlookup!$B185,'CDCM Volume Forecasts'!$A$28:$AL$136,E$143,FALSE) -> 697.5741639 | H226: =VLOOKUP(Vlookup!$B185,'CDCM Volume Forecasts'!$A$28:$AL$136,H$143,FALSE) -> 4219.38069
A227: LDNO LV: LV Generation Intermittent | B227: =VLOOKUP(Vlookup!$B186,'CDCM Volume Forecasts'!$A$28:$AL$136,B$143,FALSE) -> 0 | E227: =VLOOKUP(Vlookup!$B186,'CDCM Volume Forecasts'!$A$28:$AL$136,E$143,FALSE) -> 0 | H227: =VLOOKUP(Vlookup!$B186,'CDCM Volume Forecasts'!$A$28:$AL$136,H$143,FALSE) -> 0
A228: LDNO HV: LV Generation Intermittent | B228: =VLOOKUP(Vlookup!$B187,'CDCM Volume Forecasts'!$A$28:$AL$136,B$143,FALSE) -> 72.66896608 | E228: =VLOOKUP(Vlookup!$B187,'CDCM Volume Forecasts'!$A$28:$AL$136,E$143,FALSE) -> 4.420147541 | H228: =VLOOKUP(Vlookup!$B187,'CDCM Volume Forecasts'!$A$28:$AL$136,H$143,FALSE) -> 40.59606129
... 99 more rows

Sheet (Y+3)
A1: Input data (Y+3)
A4: 1000. Company, charging year, data version
B6: Company | C6: Year | D6: Version
A7: Company, charging year, data version | B7: =VLOOKUP(Vlookup!B7,'CDCM Forecast Data'!$A$14:$I$271,8,FALSE) -> WPD East Midlands | C7: =VLOOKUP(Vlookup!C7,'CDCM Forecast Data'!$A$14:$I$271,8,FALSE) -> 2022/23 | D7: =VLOOKUP(Vlookup!D7,'CDCM Forecast Data'!$A$14:$I$271,8,FALSE) -> Forecast
A9: 1010. Financial and general assumptions
A11: Sources: financial assumptions; calendar; network model.
A12: These financial assumptions determine the annuity rate applied to convert the asset values of the network model into an annual charge.
B13: Rate of return | C13: Annualisation period (years) | D13: Annuity proportion for customer-contributed assets | E13: Power factor | F13: Days in the charging period
A14: Financial and general assumptions | B14: =VLOOKUP(Vlookup!B14,'CDCM Forecast Data'!$A$14:$I$271,8,FALSE) -> 0.0421 | C14: =VLOOKUP(Vlookup!C14,'CDCM Forecast Data'!$A$14:$I$271,8,FALSE) -> 40 | E14: =VLOOKUP(Vlookup!E14,'CDCM Forecast Data'!$A$14:$I$271,8,FALSE) -> 0.95 | F14: =VLOOKUP(Vlookup!F14,'CDCM Forecast Data'!$A$14:$I$271,8,FALSE) -> 365
A16: 1017. Diversity allowance between top and bottom of network level
A18: Source: operational data analysis and/or network model.
A19: The diversity figure against GSP is the diversity between GSP Group (the whole system) and individual GSPs.
A20: The diversity figure against 132kV is the diversity between GSPs (the top of the 132kV network) and 132kV/EHV bulk supply points (the bottom of the 132kV network).
A21: The diversity figure against EHV is the diversity between 132kV/EHV bulk supply points (the top of the EHV network) and EHV/HV primary substations (the bottom of the EHV network).
A22: The diversity figure against HV is the diversity between EHV/HV primary substations (the top of the HV network) and HV/LV substations (the bottom of the HV network).
B23: Diversity allowance between top and bottom of network level
A24: GSPs | B24: =VLOOKUP(Vlookup!B24,'CDCM Forecast Data'!$A$14:$I$271,8,FALSE) -> 0.02471374244
A25: 132kV | B25: =VLOOKUP(Vlookup!B25,'CDCM Forecast Data'!$A$14:$I$271,8,FALSE) -> 0.04501347824
A26: 132kV/EHV
A27: EHV | B27: =VLOOKUP(Vlookup!B27,'CDCM Forecast Data'!$A$14:$I$271,8,FALSE) -> 0.07901764269
A28: EHV/HV
A29: HV | B29: =VLOOKUP(Vlookup!B29,'CDCM Forecast Data'!$A$14:$I$271,8,FALSE) -> 0.34
A30: HV/LV
A31: LV circuits
A33: 1018. Proportion of relevant load going through 132kV/HV direct transformation
B35: 132kV/HV
A36: EHV/HV | B36: =VLOOKUP(Vlookup!B36,'CDCM Forecast Data'!$A$14:$I$271,8,FALSE) -> 0.07504434271
A38: 1019. Network model GSP peak demand (MW)
B40: Network model GSP peak demand (MW)
A41: Network model GSP peak demand (MW) | B41: =VLOOKUP(Vlookup!B41,'CDCM Forecast Data'!$A$14:$I$271,8,FALSE) -> 500
A43: 1020. Gross asset cost by network level (£)
B45: Gross assets £
A46: 132kV | B46: =VLOOKUP(Vlookup!B46,'CDCM Forecast Data'!$A$14:$I$271,8,FALSE) -> 62000067.24
A47: 132kV/EHV | B47: =VLOOKUP(Vlookup!B47,'CDCM Forecast Data'!$A$14:$I$271,8,FALSE) -> 31507017.1
A48: EHV | B48: =VLOOKUP(Vlookup!B48,'CDCM Forecast Data'!$A$14:$I$271,8,FALSE) -> 38512433.02
A49: EHV/HV | B49: =VLOOKUP(Vlookup!B49,'CDCM Forecast Data'!$A$14:$I$271,8,FALSE) -> 62520788.51
A50: 132kV/HV | B50: =VLOOKUP(Vlookup!B50,'CDCM Forecast Data'!$A$14:$I$271,8,FALSE) -> 5243668.31
A51: HV | B51: =VLOOKUP(Vlookup!B51,'CDCM Forecast Data'!$A$14:$I$271,8,FALSE) -> 148345062.6
A52: HV/LV | B52: =VLOOKUP(Vlookup!B52,'CDCM Forecast Data'!$A$14:$I$271,8,FALSE) -> 67054595.81
A53: LV circuits | B53: =VLOOKUP(Vlookup!B53,'CDCM Forecast Data'!$A$14:$I$271,8,FALSE) -> 130496292.6
A55: 1022. LV service model asset cost (£)
B57: LV service model 1 | C57: LV service model 2 | D57: LV service model 3 | E57: LV service model 4 | F57: LV service model 5 | G57: LV service model 6 | H57: LV service model 7 | I57: LV service model 8
A58: LV service model asset cost (£) | B58: =VLOOKUP(Vlookup!B58,'CDCM Forecast Data'!$A$14:$I$271,8,FALSE) -> 4779.945426 | C58: =VLOOKUP(Vlookup!C58,'CDCM Forecast Data'!$A$14:$I$271,8,FALSE) -> 728.7656354 | D58: =VLOOKUP(Vlookup!D58,'CDCM Forecast Data'!$A$14:$I$271,8,FALSE) -> 842.8777623 | E58: =VLOOKUP(Vlookup!E58,'CDCM Forecast Data'!$A$14:$I$271,8,FALSE) -> 611.6968974 | F58: =VLOOKUP(Vlookup!F58,'CDCM Forecast Data'!$A$14:$I$271,8,FALSE) -> 1349.536814 | G58: =VLOOKUP(Vlookup!G58,'CDCM Forecast Data'!$A$14:$I$271,8,FALSE) -> 1053.504626 | H58: =VLOOKUP(Vlookup!H58,'CDCM Forecast Data'!$A$14:$I$271,8,FALSE) -> 0 | I58: =VLOOKUP(Vlookup!I58,'CDCM Forecast Data'!$A$14:$I$271,8,FALSE) -> 576.5917704
A60: 1023. HV service model asset cost (£)
B62: HV service model 1 | C62: HV service model 2 | D62: HV service model 3 | E62: HV service model 4 | F62: HV service model 5
A63: HV service model asset cost (£) | B63: =VLOOKUP(Vlookup!B63,'CDCM Forecast Data'!$A$14:$I$271,8,FALSE) -> 11377.56931 | C63: =VLOOKUP(Vlookup!C63,'CDCM Forecast Data'!$A$14:$I$271,8,FALSE) -> 4677.565217 | D63: =VLOOKUP(Vlookup!D63,'CDCM Forecast Data'!$A$14:$I$271,8,FALSE) -> 0 | E63: =VLOOKUP(Vlookup!E63,'CDCM Forecast Data'!$A$14:$I$271,8,FALSE) -> 0 | F63: =VLOOKUP(Vlookup!F63,'CDCM Forecast Data'!$A$14:$I$271,8,FALSE) -> 0
A65: 1025. Matrix of applicability of LV service models to tariffs with fixed charges
B66: 26 | C66: =B66+1 -> 27 | D66: 28 | E66: 29 | F66: 30 | G66: 31 | H66: 32 | I66: 33
B67: LV service model 1 | C67: LV service model 2 | D67: LV service model 3 | E67: LV service model 4 | F67: LV service model 5 | G67: LV service model 6 | H67: LV service model 7 | I67: LV service model 8
A68: Domestic Unrestricted | B68: =VLOOKUP($A68,'Mat of App'!$B$7:$AP$43,B$66,FALSE) -> 0.05 | C68: =VLOOKUP($A68,'Mat of App'!$B$7:$AP$43,C$66,FALSE) -> 0 | D68: =VLOOKUP($A68,'Mat of App'!$B$7:$AP$43,D$66,FALSE) -> 0 | E68: =VLOOKUP($A68,'Mat of App'!$B$7:$AP$43,E$66,FALSE) -> 0 | F68: =VLOOKUP($A68,'Mat of App'!$B$7:$AP$43,F$66,FALSE) -> 0 | G68: =VLOOKUP($A68,'Mat of App'!$B$7:$AP$43,G$66,FALSE) -> 0 | H68: =VLOOKUP($A68,'Mat of App'!$B$7:$AP$43,H$66,FALSE) -> 0 | I68: =VLOOKUP($A68,'Mat of App'!$B$7:$AP$43,I$66,FALSE) -> 0
A69: Domestic Two Rate | B69: =VLOOKUP($A69,'Mat of App'!$B$7:$AP$43,B$66,FALSE) -> 0.05 | C69: =VLOOKUP($A69,'Mat of App'!$B$7:$AP$43,C$66,FALSE) -> 0 | D69: =VLOOKUP($A69,'Mat of App'!$B$7:$AP$43,D$66,FALSE) -> 0 | E69: =VLOOKUP($A69,'Mat of App'!$B$7:$AP$43,E$66,FALSE) -> 0 | F69: =VLOOKUP($A69,'Mat of App'!$B$7:$AP$43,F$66,FALSE) -> 0 | G69: =VLOOKUP($A69,'Mat of App'!$B$7:$AP$43,G$66,FALSE) -> 0 | H69: =VLOOKUP($A69,'Mat of App'!$B$7:$AP$43,H$66,FALSE) -> 0 | I69: =VLOOKUP($A69,'Mat of App'!$B$7:$AP$43,I$66,FALSE) -> 0
A70: Small Non Domestic Unrestricted | B70: =VLOOKUP($A70,'Mat of App'!$B$7:$AP$43,B$66,FALSE) -> 0 | C70: =VLOOKUP($A70,'Mat of App'!$B$7:$AP$43,C$66,FALSE) -> 1 | D70: =VLOOKUP($A70,'Mat of App'!$B$7:$AP$43,D$66,FALSE) -> 0 | E70: =VLOOKUP($A70,'Mat of App'!$B$7:$AP$43,E$66,FALSE) -> 0 | F70: =VLOOKUP($A70,'Mat of App'!$B$7:$AP$43,F$66,FALSE) -> 0 | G70: =VLOOKUP($A70,'Mat of App'!$B$7:$AP$43,G$66,FALSE) -> 0 | H70: =VLOOKUP($A70,'Mat of App'!$B$7:$AP$43,H$66,FALSE) -> 0 | I70: =VLOOKUP($A70,'Mat of App'!$B$7:$AP$43,I$66,FALSE) -> 0
A71: Small Non Domestic Two Rate | B71: =VLOOKUP($A71,'Mat of App'!$B$7:$AP$43,B$66,FALSE) -> 0 | C71: =VLOOKUP($A71,'Mat of App'!$B$7:$AP$43,C$66,FALSE) -> 1 | D71: =VLOOKUP($A71,'Mat of App'!$B$7:$AP$43,D$66,FALSE) -> 0 | E71: =VLOOKUP($A71,'Mat of App'!$B$7:$AP$43,E$66,FALSE) -> 0 | F71: =VLOOKUP($A71,'Mat of App'!$B$7:$AP$43,F$66,FALSE) -> 0 | G71: =VLOOKUP($A71,'Mat of App'!$B$7:$AP$43,G$66,FALSE) -> 0 | H71: =VLOOKUP($A71,'Mat of App'!$B$7:$AP$43,H$66,FALSE) -> 0 | I71: =VLOOKUP($A71,'Mat of App'!$B$7:$AP$43,I$66,FALSE) -> 0
A72: LV Medium Non-Domestic | B72: =VLOOKUP($A72,'Mat of App'!$B$7:$AP$43,B$66,FALSE) -> 0 | C72: =VLOOKUP($A72,'Mat of App'!$B$7:$AP$43,C$66,FALSE) -> 0 | D72: =VLOOKUP($A72,'Mat of App'!$B$7:$AP$43,D$66,FALSE) -> 1 | E72: =VLOOKUP($A72,'Mat of App'!$B$7:$AP$43,E$66,FALSE) -> 0 | F72: =VLOOKUP($A72,'Mat of App'!$B$7:$AP$43,F$66,FALSE) -> 0 | G72: =VLOOKUP($A72,'Mat of App'!$B$7:$AP$43,G$66,FALSE) -> 0 | H72: =VLOOKUP($A72,'Mat of App'!$B$7:$AP$43,H$66,FALSE) -> 0 | I72: =VLOOKUP($A72,'Mat of App'!$B$7:$AP$43,I$66,FALSE) -> 0
A73: LV Sub Medium Non-Domestic | B73: =VLOOKUP($A73,'Mat of App'!$B$7:$AP$43,B$66,FALSE) -> 0 | C73: =VLOOKUP($A73,'Mat of App'!$B$7:$AP$43,C$66,FALSE) -> 0 | D73: =VLOOKUP($A73,'Mat of App'!$B$7:$AP$43,D$66,FALSE) -> 0 | E73: =VLOOKUP($A73,'Mat of App'!$B$7:$AP$43,E$66,FALSE) -> 1 | F73: =VLOOKUP($A73,'Mat of App'!$B$7:$AP$43,F$66,FALSE) -> 0 | G73: =VLOOKUP($A73,'Mat of App'!$B$7:$AP$43,G$66,FALSE) -> 0 | H73: =VLOOKUP($A73,'Mat of App'!$B$7:$AP$43,H$66,FALSE) -> 0 | I73: =VLOOKUP($A73,'Mat of App'!$B$7:$AP$43,I$66,FALSE) -> 0
A74: LV Network Domestic | B74: =VLOOKUP($A74,'Mat of App'!$B$7:$AP$43,B$66,FALSE) -> 0.05 | C74: =VLOOKUP($A74,'Mat of App'!$B$7:$AP$43,C$66,FALSE) -> 0 | D74: =VLOOKUP($A74,'Mat of App'!$B$7:$AP$43,D$66,FALSE) -> 0 | E74: =VLOOKUP($A74,'Mat of App'!$B$7:$AP$43,E$66,FALSE) -> 0 | F74: =VLOOKUP($A74,'Mat of App'!$B$7:$AP$43,F$66,FALSE) -> 0 | G74: =VLOOKUP($A74,'Mat of App'!$B$7:$AP$43,G$66,FALSE) -> 0 | H74: =VLOOKUP($A74,'Mat of App'!$B$7:$AP$43,H$66,FALSE) -> 0 | I74: =VLOOKUP($A74,'Mat of App'!$B$7:$AP$43,I$66,FALSE) -> 0
A75: LV Network Non-Domestic Non-CT | B75: =VLOOKUP($A75,'Mat of App'!$B$7:$AP$43,B$66,FALSE) -> 0 | C75: =VLOOKUP($A75,'Mat of App'!$B$7:$AP$43,C$66,FALSE) -> 1 | D75: =VLOOKUP($A75,'Mat of App'!$B$7:$AP$43,D$66,FALSE) -> 0 | E75: =VLOOKUP($A75,'Mat of App'!$B$7:$AP$43,E$66,FALSE) -> 0 | F75: =VLOOKUP($A75,'Mat of App'!$B$7:$AP$43,F$66,FALSE) -> 0 | G75: =VLOOKUP($A75,'Mat of App'!$B$7:$AP$43,G$66,FALSE) -> 0 | H75: =VLOOKUP($A75,'Mat of App'!$B$7:$AP$43,H$66,FALSE) -> 0 | I75: =VLOOKUP($A75,'Mat of App'!$B$7:$AP$43,I$66,FALSE) -> 0
A76: LV HH Metered | B76: =VLOOKUP($A76,'Mat of App'!$B$7:$AP$43,B$66,FALSE) -> 0 | C76: =VLOOKUP($A76,'Mat of App'!$B$7:$AP$43,C$66,FALSE) -> 0 | D76: =VLOOKUP($A76,'Mat of App'!$B$7:$AP$43,D$66,FALSE) -> 0 | E76: =VLOOKUP($A76,'Mat of App'!$B$7:$AP$43,E$66,FALSE) -> 0 | F76: =VLOOKUP($A76,'Mat of App'!$B$7:$AP$43,F$66,FALSE) -> 1 | G76: =VLOOKUP($A76,'Mat of App'!$B$7:$AP$43,G$66,FALSE) -> 0 | H76: =VLOOKUP($A76,'Mat of App'!$B$7:$AP$43,H$66,FALSE) -> 0 | I76: =VLOOKUP($A76,'Mat of App'!$B$7:$AP$43,I$66,FALSE) -> 0
A77: LV Sub HH Metered | B77: =VLOOKUP($A77,'Mat of App'!$B$7:$AP$43,B$66,FALSE) -> 0 | C77: =VLOOKUP($A77,'Mat of App'!$B$7:$AP$43,C$66,FALSE) -> 0 | D77: =VLOOKUP($A77,'Mat of App'!$B$7:$AP$43,D$66,FALSE) -> 0 | E77: =VLOOKUP($A77,'Mat of App'!$B$7:$AP$43,E$66,FALSE) -> 0 | F77: =VLOOKUP($A77,'Mat of App'!$B$7:$AP$43,F$66,FALSE) -> 0 | G77: =VLOOKUP($A77,'Mat of App'!$B$7:$AP$43,G$66,FALSE) -> 1 | H77: =VLOOKUP($A77,'Mat of App'!$B$7:$AP$43,H$66,FALSE) -> 0 | I77: =VLOOKUP($A77,'Mat of App'!$B$7:$AP$43,I$66,FALSE) -> 0
A78: LV Generation NHH or Aggregate HH | B78: =VLOOKUP($A78,'Mat of App'!$B$7:$AP$43,B$66,FALSE) -> 0 | C78: =VLOOKUP($A78,'Mat of App'!$B$7:$AP$43,C$66,FALSE) -> 0 | D78: =VLOOKUP($A78,'Mat of App'!$B$7:$AP$43,D$66,FALSE) -> 0 | E78: =VLOOKUP($A78,'Mat of App'!$B$7:$AP$43,E$66,FALSE) -> 0 | F78: =VLOOKUP($A78,'Mat of App'!$B$7:$AP$43,F$66,FALSE) -> 0 | G78: =VLOOKUP($A78,'Mat of App'!$B$7:$AP$43,G$66,FALSE) -> 0 | H78: =VLOOKUP($A78,'Mat of App'!$B$7:$AP$43,H$66,FALSE) -> 1 | I78: =VLOOKUP($A78,'Mat of App'!$B$7:$AP$43,I$66,FALSE) -> 0
A79: LV Sub Generation NHH | B79: =VLOOKUP($A79,'Mat of App'!$B$7:$AP$43,B$66,FALSE) -> 0 | C79: =VLOOKUP($A79,'Mat of App'!$B$7:$AP$43,C$66,FALSE) -> 0 | D79: =VLOOKUP($A79,'Mat of App'!$B$7:$AP$43,D$66,FALSE) -> 0 | E79: =VLOOKUP($A79,'Mat of App'!$B$7:$AP$43,E$66,FALSE) -> 0 | F79: =VLOOKUP($A79,'Mat of App'!$B$7:$AP$43,F$66,FALSE) -> 0 | G79: =VLOOKUP($A79,'Mat of App'!$B$7:$AP$43,G$66,FALSE) -> 0 | H79: =VLOOKUP($A79,'Mat of App'!$B$7:$AP$43,H$66,FALSE) -> 1 | I79: =VLOOKUP($A79,'Mat of App'!$B$7:$AP$43,I$66,FALSE) -> 0
A80: LV Generation Intermittent | B80: =VLOOKUP($A80,'Mat of App'!$B$7:$AP$43,B$66,FALSE) -> 0 | C80: =VLOOKUP($A80,'Mat of App'!$B$7:$AP$43,C$66,FALSE) -> 0 | D80: =VLOOKUP($A80,'Mat of App'!$B$7:$AP$43,D$66,FALSE) -> 0 | E80: =VLOOKUP($A80,'Mat of App'!$B$7:$AP$43,E$66,FALSE) -> 0 | F80: =VLOOKUP($A80,'Mat of App'!$B$7:$AP$43,F$66,FALSE) -> 0 | G80: =VLOOKUP($A80,'Mat of App'!$B$7:$AP$43,G$66,FALSE) -> 0 | H80: =VLOOKUP($A80,'Mat of App'!$B$7:$AP$43,H$66,FALSE) -> 1 | I80: =VLOOKUP($A80,'Mat of App'!$B$7:$AP$43,I$66,FALSE) -> 0
A81: LV Generation Intermittent no RP charge | B81: =VLOOKUP($A81,'Mat of App'!$B$7:$AP$43,B$66,FALSE) -> 0 | C81: =VLOOKUP($A81,'Mat of App'!$B$7:$AP$43,C$66,FALSE) -> 0 | D81: =VLOOKUP($A81,'Mat of App'!$B$7:$AP$43,D$66,FALSE) -> 0 | E81: =VLOOKUP($A81,'Mat of App'!$B$7:$AP$43,E$66,FALSE) -> 0 | F81: =VLOOKUP($A81,'Mat of App'!$B$7:$AP$43,F$66,FALSE) -> 0 | G81: =VLOOKUP($A81,'Mat of App'!$B$7:$AP$43,G$66,FALSE) -> 0 | H81: =VLOOKUP($A81,'Mat of App'!$B$7:$AP$43,H$66,FALSE) -> 1 | I81: =VLOOKUP($A81,'Mat of App'!$B$7:$AP$43,I$66,FALSE) -> 0
A82: LV Generation Non-Intermittent | B82: =VLOOKUP($A82,'Mat of App'!$B$7:$AP$43,B$66,FALSE) -> 0 | C82: =VLOOKUP($A82,'Mat of App'!$B$7:$AP$43,C$66,FALSE) -> 0 | D82: =VLOOKUP($A82,'Mat of App'!$B$7:$AP$43,D$66,FALSE) -> 0 | E82: =VLOOKUP($A82,'Mat of App'!$B$7:$AP$43,E$66,FALSE) -> 0 | F82: =VLOOKUP($A82,'Mat of App'!$B$7:$AP$43,F$66,FALSE) -> 0 | G82: =VLOOKUP($A82,'Mat of App'!$B$7:$AP$43,G$66,FALSE) -> 0 | H82: =VLOOKUP($A82,'Mat of App'!$B$7:$AP$43,H$66,FALSE) -> 0 | I82: =VLOOKUP($A82,'Mat of App'!$B$7:$AP$43,I$66,FALSE) -> 0
A83: LV Generation Non-Intermittent no RP charge | B83: =VLOOKUP($A83,'Mat of App'!$B$7:$AP$43,B$66,FALSE) -> 0 | C83: =VLOOKUP($A83,'Mat of App'!$B$7:$AP$43,C$66,FALSE) -> 0 | D83: =VLOOKUP($A83,'Mat of App'!$B$7:$AP$43,D$66,FALSE) -> 0 | E83: =VLOOKUP($A83,'Mat of App'!$B$7:$AP$43,E$66,FALSE) -> 0 | F83: =VLOOKUP($A83,'Mat of App'!$B$7:$AP$43,F$66,FALSE) -> 0 | G83: =VLOOKUP($A83,'Mat of App'!$B$7:$AP$43,G$66,FALSE) -> 0 | H83: =VLOOKUP($A83,'Mat of App'!$B$7:$AP$43,H$66,FALSE) -> 0 | I83: =VLOOKUP($A83,'Mat of App'!$B$7:$AP$43,I$66,FALSE) -> 0
A84: LV Sub Generation Intermittent | B84: =VLOOKUP($A84,'Mat of App'!$B$7:$AP$43,B$66,FALSE) -> 0 | C84: =VLOOKUP($A84,'Mat of App'!$B$7:$AP$43,C$66,FALSE) -> 0 | D84: =VLOOKUP($A84,'Mat of App'!$B$7:$AP$43,D$66,FALSE) -> 0 | E84: =VLOOKUP($A84,'Mat of App'!$B$7:$AP$43,E$66,FALSE) -> 0 | F84: =VLOOKUP($A84,'Mat of App'!$B$7:$AP$43,F$66,FALSE) -> 0 | G84: =VLOOKUP($A84,'Mat of App'!$B$7:$AP$43,G$66,FALSE) -> 0 | H84: =VLOOKUP($A84,'Mat of App'!$B$7:$AP$43,H$66,FALSE) -> 0 | I84: =VLOOKUP($A84,'Mat of App'!$B$7:$AP$43,I$66,FALSE) -> 0
A85: LV Sub Generation Intermittent no RP charge | B85: =VLOOKUP($A85,'Mat of App'!$B$7:$AP$43,B$66,FALSE) -> 0 | C85: =VLOOKUP($A85,'Mat of App'!$B$7:$AP$43,C$66,FALSE) -> 0 | D85: =VLOOKUP($A85,'Mat of App'!$B$7:$AP$43,D$66,FALSE) -> 0 | E85: =VLOOKUP($A85,'Mat of App'!$B$7:$AP$43,E$66,FALSE) -> 0 | F85: =VLOOKUP($A85,'Mat of App'!$B$7:$AP$43,F$66,FALSE) -> 0 | G85: =VLOOKUP($A85,'Mat of App'!$B$7:$AP$43,G$66,FALSE) -> 0 | H85: =VLOOKUP($A85,'Mat of App'!$B$7:$AP$43,H$66,FALSE) -> 0 | I85: =VLOOKUP($A85,'Mat of App'!$B$7:$AP$43,I$66,FALSE) -> 0
A86: LV Sub Generation Non-Intermittent | B86: =VLOOKUP($A86,'Mat of App'!$B$7:$AP$43,B$66,FALSE) -> 0 | C86: =VLOOKUP($A86,'Mat of App'!$B$7:$AP$43,C$66,FALSE) -> 0 | D86: =VLOOKUP($A86,'Mat of App'!$B$7:$AP$43,D$66,FALSE) -> 0 | E86: =VLOOKUP($A86,'Mat of App'!$B$7:$AP$43,E$66,FALSE) -> 0 | F86: =VLOOKUP($A86,'Mat of App'!$B$7:$AP$43,F$66,FALSE) -> 0 | G86: =VLOOKUP($A86,'Mat of App'!$B$7:$AP$43,G$66,FALSE) -> 0 | H86: =VLOOKUP($A86,'Mat of App'!$B$7:$AP$43,H$66,FALSE) -> 0 | I86: =VLOOKUP($A86,'Mat of App'!$B$7:$AP$43,I$66,FALSE) -> 0
A87: LV Sub Generation Non-Intermittent no RP charge | B87: =VLOOKUP($A87,'Mat of App'!$B$7:$AP$43,B$66,FALSE) -> 0 | C87: =VLOOKUP($A87,'Mat of App'!$B$7:$AP$43,C$66,FALSE) -> 0 | D87: =VLOOKUP($A87,'Mat of App'!$B$7:$AP$43,D$66,FALSE) -> 0 | E87: =VLOOKUP($A87,'Mat of App'!$B$7:$AP$43,E$66,FALSE) -> 0 | F87: =VLOOKUP($A87,'Mat of App'!$B$7:$AP$43,F$66,FALSE) -> 0 | G87: =VLOOKUP($A87,'Mat of App'!$B$7:$AP$43,G$66,FALSE) -> 0 | H87: =VLOOKUP($A87,'Mat of App'!$B$7:$AP$43,H$66,FALSE) -> 0 | I87: =VLOOKUP($A87,'Mat of App'!$B$7:$AP$43,I$66,FALSE) -> 0
A89: 1026. Matrix of applicability of LV service models to unmetered tariffs
A91: Source: service models
A92: Proportion of service model involved in connecting load of 1 MWh/year
B93: LV service model 1 | C93: LV service model 2 | D93: LV service model 3 | E93: LV service model 4 | F93: LV service model 5 | G93: LV service model 6 | H93: LV service model 7 | I93: LV service model 8
A94: All LV unmetered tariffs | B94: =VLOOKUP($A94,'Mat of App'!$B$7:$AP$43,B$66,FALSE) -> 0 | C94: =VLOOKUP($A94,'Mat of App'!$B$7:$AP$43,C$66,FALSE) -> 0 | D94: =VLOOKUP($A94,'Mat of App'!$B$7:$AP$43,D$66,FALSE) -> 0 | E94: =VLOOKUP($A94,'Mat of App'!$B$7:$AP$43,E$66,FALSE) -> 0 | F94: =VLOOKUP($A94,'Mat of App'!$B$7:$AP$43,F$66,FALSE) -> 0 | G94: =VLOOKUP($A94,'Mat of App'!$B$7:$AP$43,G$66,FALSE) -> 0 | H94: =VLOOKUP($A94,'Mat of App'!$B$7:$AP$43,H$66,FALSE) -> 0 | I94: =VLOOKUP($A94,'Mat of App'!$B$7:$AP$43,I$66,FALSE) -> 0.488
A96: 1028. Matrix of applicability of HV service models to tariffs with fixed charges
B97: 17 | C97: =B97+1 -> 18 | D97: =C97+1 -> 19 | E97: =D97+1 -> 20 | F97: =E97+1 -> 21
B98: HV service model 1 | C98: HV service model 2 | D98: HV service model 3 | E98: HV service model 4 | F98: HV service model 5
A99: HV Medium Non-Domestic | B99: =VLOOKUP($A99,'Mat of App'!$B$7:$AP$43,B$97,FALSE) -> 1 | C99: =VLOOKUP($A99,'Mat of App'!$B$7:$AP$43,C$97,FALSE) -> 0 | D99: =VLOOKUP($A99,'Mat of App'!$B$7:$AP$43,D$97,FALSE) -> 0 | E99: =VLOOKUP($A99,'Mat of App'!$B$7:$AP$43,E$97,FALSE) -> 0 | F99: =VLOOKUP($A99,'Mat of App'!$B$7:$AP$43,F$97,FALSE) -> 0
A100: HV HH Metered | B100: =VLOOKUP($A100,'Mat of App'!$B$7:$AP$43,B$97,FALSE) -> 1 | C100: =VLOOKUP($A100,'Mat of App'!$B$7:$AP$43,C$97,FALSE) -> 0 | D100: =VLOOKUP($A100,'Mat of App'!$B$7:$AP$43,D$97,FALSE) -> 0 | E100: =VLOOKUP($A100,'Mat of App'!$B$7:$AP$43,E$97,FALSE) -> 0 | F100: =VLOOKUP($A100,'Mat of App'!$B$7:$AP$43,F$97,FALSE) -> 0
A101: HV Generation Intermittent | B101: =VLOOKUP($A101,'Mat of App'!$B$7:$AP$43,B$97,FALSE) -> 0 | C101: =VLOOKUP($A101,'Mat of App'!$B$7:$AP$43,C$97,FALSE) -> 1 | D101: =VLOOKUP($A101,'Mat of App'!$B$7:$AP$43,D$97,FALSE) -> 0 | E101: =VLOOKUP($A101,'Mat of App'!$B$7:$AP$43,E$97,FALSE) -> 0 | F101: =VLOOKUP($A101,'Mat of App'!$B$7:$AP$43,F$97,FALSE) -> 0
A102: HV Generation Intermittent no RP charge | B102: =VLOOKUP($A102,'Mat of App'!$B$7:$AP$43,B$97,FALSE) -> 0 | C102: =VLOOKUP($A102,'Mat of App'!$B$7:$AP$43,C$97,FALSE) -> 1 | D102: =VLOOKUP($A102,'Mat of App'!$B$7:$AP$43,D$97,FALSE) -> 0 | E102: =VLOOKUP($A102,'Mat of App'!$B$7:$AP$43,E$97,FALSE) -> 0 | F102: =VLOOKUP($A102,'Mat of App'!$B$7:$AP$43,F$97,FALSE) -> 0
A103: HV Generation Non-Intermittent | B103: =VLOOKUP($A103,'Mat of App'!$B$7:$AP$43,B$97,FALSE) -> 0 | C103: =VLOOKUP($A103,'Mat of App'!$B$7:$AP$43,C$97,FALSE) -> 1 | D103: =VLOOKUP($A103,'Mat of App'!$B$7:$AP$43,D$97,FALSE) -> 0 | E103: =VLOOKUP($A103,'Mat of App'!$B$7:$AP$43,E$97,FALSE) -> 0 | F103: =VLOOKUP($A103,'Mat of App'!$B$7:$AP$43,F$97,FALSE) -> 0
A104: HV Generation Non-Intermittent no RP charge | B104: =VLOOKUP($A104,'Mat of App'!$B$7:$AP$43,B$97,FALSE) -> 0 | C104: =VLOOKUP($A104,'Mat of App'!$B$7:$AP$43,C$97,FALSE) -> 1 | D104: =VLOOKUP($A104,'Mat of App'!$B$7:$AP$43,D$97,FALSE) -> 0 | E104: =VLOOKUP($A104,'Mat of App'!$B$7:$AP$43,E$97,FALSE) -> 0 | F104: =VLOOKUP($A104,'Mat of App'!$B$7:$AP$43,F$97,FALSE) -> 0
A106: 1032. Loss adjustment factors to transmission
A108: Source: losses model or loss adjustment factors at time of system peak.
B109: 132kV | C109: 132kV/EHV | D109: EHV | E109: EHV/HV | F109: HV | G109: HV/LV | H109: LV circuits
